Workbook

Sheet 1-START
B2: You must enable Macros in order to use all of the features of this Workbook
D5: Project C11: Economic Analysis Tools
D6: Economic Development Research Group- Prime Consultant
B8: Intermodal Connectivity Conditions –
B9: Assessing Intermodal Connectivity
D11: Prepared by ICF International
D12: December 2012
B15: Instructions:
B16: 1. Click Mouse on Tab 2 at bottom to choose "Intermodal Facility Inputs"
B17: Then Enter Inputs
B19: 2. Click Mouse on Tab 3 at bottom to choose "Improvement Inputs"
B20: Then Enter Inputs
B22: 3. Click Mouse on Tab 4 at bottom to choose "Results"
B23: Then view and print out estimated regional economic impact.
B25: Key to Cell Colors
B26: Required Input | D26: The user must enter data in these cells if a facility is selected. Leave cells blank if value or category does not apply.
B27: Optional Input | D27: Default values are provided. The user should modify these cells if more accurate data is available.
B28: Results/Calculations | D28: Do not modify these cells. They are part of the tool's calculation structure.

Sheet 2-INTERMODAL FACILITY INPUTS
E2: INTERMODAL FACILITY INPUTS
B5: Facility 1 / Alternative 1
C6: 1a. State | E6: TX
C7: 1b. Facility Type | E7: Rail Freight
C8: 1c. Facility Name | E8: BNSF - Alliance Intermodal Terminal | G8: 1d. Unit Lift Capacity | H8: 600,000
C9: County | E9: =IFERROR(VLOOKUP(E8,'All Facilities'!D:E,2,FALSE),"") -> Denton
B11: Facility 2 / Alternative 2
C12: 2a. State | E12: TX
C13: 2b. Facility Type | E13: Rail Freight
C14: 2c. Facility Name | E14: BNSF - Alliance Intermodal Terminal | G14: 2d. Unit Lift Capacity | H14: 600,000
C15: County | E15: =IFERROR(VLOOKUP(E14,'All Facilities'!D:E,2,FALSE),"") -> Denton

Sheet 3- IMPROVEMENT INPUTS
C2: ROADWAY IMPROVEMENT INPUTS
B6: Facility 1 / Alternative 1
C7: State | D7: =IF(ISBLANK('2-INTERMODAL FACILITY INPUTS'!E6),"",'2-INTERMODAL FACILITY INPUTS'!E6) -> TX
C8: Facility Type | D8: =IF(ISBLANK('2-INTERMODAL FACILITY INPUTS'!E7),"",'2-INTERMODAL FACILITY INPUTS'!E7) -> Rail Freight
C9: Facility Name | D9: =IF(ISBLANK('2-INTERMODAL FACILITY INPUTS'!E8),"",'2-INTERMODAL FACILITY INPUTS'!E8) -> BNSF - Alliance Intermodal Terminal
C10: 1a. Proposed infrastructure improvement description | D10: No Build (Base)
C11: =IF(D9="","1b. Number of trucks within study area",IF(VLOOKUP(D8,Category,2,FALSE)="Freight","1b. Number of trucks within study area","1b. Number of passenger vehicles within study area")) -> 1b. Number of trucks within study area | D11: 5,853
C12: 1c. Roadway distance for analysis (miles) | D12: 12.2
C13: 1d. Roadway average travel speed (mph) | D13: 42.3
C14: =IF(D9="","Hours traveled per truck",IF(VLOOKUP(D8,Category,2,FALSE)="Freight","Hours traveled per truck","Hours traveled per passenger vehicle")) -> Hours traveled per truck | D14: =IFERROR(D12/D13,"") -> 0.29
C15: =CONCATENATE("1e. ", IF(D9="","Fraction of trucks at infrastructure investment location associated with intermodal facility",IF(VLOOKUP(D8,Category,2,FALSE)="freight","Fraction of trucks at infrastructure investment location associated with intermodal facility","Fraction of passenger vehicles at infrastructure investment location associated with intermodal facility"))) -> 1e. Fraction of trucks at infrastructure investment location associated with intermodal facility | D15: 1.0
C18: =IF(D9="","Default value per truck hour",IF(VLOOKUP(D8,Category,2,FALSE)="Freight","Default value per truck hour","Default value per passenger hour")) -> Default value per truck hour | D18: =IF(D8="","",IF(VLOOKUP(D8,Category,2,FALSE)="Freight",Selection!Z$10,Selection!Z$11)) -> $57
C19: =IF(D9="","1f. User specified value per truck hour",IF(VLOOKUP(D8,Category,2,FALSE)="Freight","1f. User specified value per truck hour","1f. User specified average value per passenger hour")) -> 1f. User specified value per truck hour
B21: Facility 2 / Alternative 2
C22: State | D22: =IF(ISBLANK('2-INTERMODAL FACILITY INPUTS'!E12),"",'2-INTERMODAL FACILITY INPUTS'!E12) -> TX
C23: Facility Type | D23: =IF(ISBLANK('2-INTERMODAL FACILITY INPUTS'!E13),"",'2-INTERMODAL FACILITY INPUTS'!E13) -> Rail Freight
C24: Facility Name | D24: =IF(ISBLANK('2-INTERMODAL FACILITY INPUTS'!E14),"",'2-INTERMODAL FACILITY INPUTS'!E14) -> BNSF - Alliance Intermodal Terminal
C25: 1a. Proposed infrastructure improvement description | D25: I-170 Improvements (Project)
C26: =IF(D24="","1b. Number of trucks within study area",IF(VLOOKUP(D23,Category,2,FALSE)="Freight","1b. Number of trucks within study area","1b. Number of passenger vehicles within study area")) -> 1b. Number of trucks within study area | D26: 5,853
C27: 1c. Roadway distance for analysis (miles) | D27: 9.6
C28: 1d. Roadway average travel speed (mph) | D28: 45.0
C29: =IF(D24="","Hours traveled per truck",IF(VLOOKUP(D23,Category,2,FALSE)="Freight","Hours traveled per truck","Hours traveled per passenger vehicle")) -> Hours traveled per truck | D29: =IFERROR(D27/D28,"") -> 0.21
C30: =CONCATENATE("1e. ", IF(D24="","Fraction of trucks at infrastructure investment location associated with intermodal location",IF(VLOOKUP(D23,Category,2,FALSE)="freight","Fraction of trucks at infrastructure investment location associated with intermodal location","Fraction of passenger vehicles at infrastructure investment location associated with intermodal location"))) -> 1e. Fraction of trucks at infrastructure investment location associated with intermodal location | D30: 1.0
C33: =IF(D24="","Default value per truck hour",IF(VLOOKUP(D23,Category,2,FALSE)="Freight","Default value per truck hour","Default value per passenger hour")) -> Default value per truck hour | D33: =IF(D23="","",IF(VLOOKUP(D23,Category,2,FALSE)="Freight",Selection!Z$10,Selection!Z$11)) -> $57
C34: =IF(D24="","1f. User specified value per truck hour",IF(VLOOKUP(D23,Category,2,FALSE)="Freight","1f. User specified value per truck hour","1f. User specified average value per passenger hour")) -> 1f. User specified value per truck hour

Sheet 4-RESULTS
B2: =IF(C6="","",IF(C6="Airport Freight","Freight Connectivity Index",IF(OR(C6="Marine",C6="Rail Freight"),"Container Connectivity Index",IF(OR(C6="Rail passenger",C6="Airport passenger"),"Passenger Connectivity Index",0)))) -> Container Connectivity Index | F2: =IF(G6="","",IF(G6="Airport Freight","Freight Connectivity Index",IF(OR(G6="Marine",G6="Rail Freight"),"Container Connectivity Index",IF(OR(G6="Rail passenger",G6="Airport passenger"),"Passenger Connectivity Index",0)))) -> Container Connectivity Index
B3: Facility 1 / Alternative 1 | F3: Facility 2 / Alternative 2
B4: Facility Details | F4: Facility Details
B5: Facility Name | C5: =IF(ISBLANK('2-INTERMODAL FACILITY INPUTS'!E8),"",'2-INTERMODAL FACILITY INPUTS'!E8) -> BNSF - Alliance Intermodal Terminal | F5: Facility Name | G5: =IF(ISBLANK('2-INTERMODAL FACILITY INPUTS'!E14),"",'2-INTERMODAL FACILITY INPUTS'!E14) -> BNSF - Alliance Intermodal Terminal
B6: Facility Type | C6: =IF(ISBLANK('2-INTERMODAL FACILITY INPUTS'!E7),"",'2-INTERMODAL FACILITY INPUTS'!E7) -> Rail Freight | F6: Facility Type | G6: =IF(ISBLANK('2-INTERMODAL FACILITY INPUTS'!E13),"",'2-INTERMODAL FACILITY INPUTS'!E13) -> Rail Freight
C8: Value | D8: Units | G8: Value | H8: Units
B9: Activity | C9: =IF(C5="","",IF(C6="Marine",VLOOKUP(C5,Marine,10,FALSE),IF(C6="Airport Passenger",VLOOKUP(C5,Airport,6,FALSE),IF(C6="Airport Freight",VLOOKUP(C5,Airport,9,FALSE),IF(C6="Rail Passenger",VLOOKUP(C5,RailPassenger,7,FALSE),IF(C6="Rail Freight",VLOOKUP(C5,RailFreight,8,FALSE),"")))))) -> 600,000 | D9: =IF(C6="","",IF(C6="Airport Freight","tons",IF(OR(C6="Marine",C6="Rail Freight"),"Containers",IF(OR(C6="Rail passenger",C6="Airport passenger"),"Passengers",0)))) -> Containers | F9: Activity | G9: =IF(G5="","",IF(G6="Marine",VLOOKUP(G5,Marine,10,FALSE),IF(G6="Airport Passenger",VLOOKUP(G5,Airport,6,FALSE),IF(G6="Airport Freight",VLOOKUP(G5,Airport,9,FALSE),IF(G6="Rail Passenger",VLOOKUP(G5,RailPassenger,7,FALSE),IF(G6="Rail Freight",VLOOKUP(G5,RailFreight,8,FALSE),"")))))) -> 600,000 | H9: =IF(G6="","",IF(G6="Airport Freight","tons",IF(OR(G6="Marine",G6="Rail Freight"),"Containers",IF(OR(G6="Rail passenger",G6="Airport passenger"),"Passengers",0)))) -> Containers
B10: Value | C10: =IF(C5="","",IF(C6="Marine",VLOOKUP(C5,Marine,12,FALSE),IF(C6="Airport Passenger","",IF(C6="Airport Freight",VLOOKUP(C5,Airport,10,FALSE),IF(C6="Rail Passenger","",IF(C6="Rail Freight",VLOOKUP(C5,RailFreight,9,FALSE),"")))))) -> $32,694 | D10: =IF(C5="","",IF(C6="Airport Freight","per ton",IF(OR(C6="Marine",C6="Rail Freight"),"per container",IF(OR(C6="Rail passenger",C6="Airport passenger"),"",0)))) -> per container | F10: Value | G10: =IF(G5="","",IF(G6="Marine",VLOOKUP(G5,Marine,12,FALSE),IF(G6="Airport Passenger","",IF(G6="Airport Freight",VLOOKUP(G5,Airport,10,FALSE),IF(G6="Rail Passenger","",IF(G6="Rail Freight",VLOOKUP(G5,RailFreight,9,FALSE),"")))))) -> $32,694 | H10: =IF(G5="","",IF(G6="Airport Freight","per ton",IF(OR(G6="Marine",G6="Rail Freight"),"per container",IF(OR(G6="Rail passenger",G6="Airport passenger"),"",0)))) -> per container
B11: Unique Origins/Destinations | C11: =IF(C5="","",IF(C6="Marine",VLOOKUP(C5,Marine,13,FALSE),IF(C6="Airport Passenger",VLOOKUP(C5,Airport,7,FALSE),IF(C6="Airport Freight",VLOOKUP(C5,Airport,11,FALSE),IF(C6="Rail Passenger",VLOOKUP(C5,RailPassenger,8,FALSE),IF(C6="Rail Freight",VLOOKUP(C5,RailFreight,10,FALSE),"")))))) -> 122 | F11: Unique Origins/destinations | G11: =IF(G5="","",IF(G6="Marine",VLOOKUP(G5,Marine,13,FALSE),IF(G6="Airport Passenger",VLOOKUP(G5,Airport,7,FALSE),IF(G6="Airport Freight",VLOOKUP(G5,Airport,11,FALSE),IF(G6="Rail Passenger",VLOOKUP(G5,RailPassenger,8,FALSE),IF(G6="Rail Freight",VLOOKUP(G5,RailFreight,10,FALSE),"")))))) -> 122
B12: Facility Connectivity Raw Value | C12: =IF(C5="","",IF(C6="Marine",VLOOKUP(C5,Marine,14,FALSE),IF(C6="Airport Passenger",VLOOKUP(C5,Airport,8,FALSE),IF(C6="Airport Freight",VLOOKUP(C5,Airport,12,FALSE),IF(C6="Rail Passenger",VLOOKUP(C5,RailPassenger,9,FALSE),IF(C6="Rail Freight",VLOOKUP(C5,RailFreight,11,FALSE),"")))))) -> 23.9 | F12: Facility Connectivity Raw Value | G12: =IF(G5="","",IF(G6="Marine",VLOOKUP(G5,Marine,14,FALSE),IF(G6="Airport Passenger",VLOOKUP(G5,Airport,8,FALSE),IF(G6="Airport Freight",VLOOKUP(G5,Airport,12,FALSE),IF(G6="Rail Passenger",VLOOKUP(G5,RailPassenger,9,FALSE),IF(G6="Rail Freight",VLOOKUP(G5,RailFreight,11,FALSE),"")))))) -> 23.9
B13: Relative Activity | C13: =IF(C5="","",IF(C6="Marine",VLOOKUP(C5,Marine,19,FALSE),IF(C6="Airport Passenger",VLOOKUP(C5,Airport,13,FALSE),IF(C6="Airport Freight",VLOOKUP(C5,Airport,16,FALSE),IF(C6="Rail Passenger",VLOOKUP(C5,RailPassenger,10,FALSE),IF(C6="Rail Freight","","")))))) ->  | F13: Relative Activity | G13: =IF(G5="","",IF(G6="Marine",VLOOKUP(G5,Marine,19,FALSE),IF(G6="Airport Passenger",VLOOKUP(G5,Airport,13,FALSE),IF(G6="Airport Freight",VLOOKUP(G5,Airport,16,FALSE),IF(G6="Rail Passenger",VLOOKUP(G5,RailPassenger,10,FALSE),IF(G6="Rail Freight","","")))))) -> 
B14: Relative Value | C14: =IF(C5="","",IF(C6="Marine",VLOOKUP(C5,Marine,20,FALSE),IF(C6="Airport Passenger","",IF(C6="Airport Freight",VLOOKUP(C5,Airport,17,FALSE),IF(C6="Rail Passenger","",IF(C6="Rail Freight",VLOOKUP(C5,RailFreight,12,FALSE),"")))))) -> 7.1% | F14: Relative Value | G14: =IF(G5="","",IF(G6="Marine",VLOOKUP(G5,Marine,20,FALSE),IF(G6="Airport Passenger","",IF(G6="Airport Freight",VLOOKUP(G5,Airport,17,FALSE),IF(G6="Rail Passenger","",IF(G6="Rail Freight",VLOOKUP(G5,RailFreight,12,FALSE),"")))))) -> 7.1%
B15: Relative Origins and Destinations | C15: =IF(C5="","",IF(C6="Marine",VLOOKUP(C5,Marine,21,FALSE),IF(C6="Airport Passenger",VLOOKUP(C5,Airport,14,FALSE),IF(C6="Airport Freight",VLOOKUP(C5,Airport,18,FALSE),IF(C6="Rail Passenger",VLOOKUP(C5,RailPassenger,11,FALSE),IF(C6="Rail Freight",VLOOKUP(C5,RailFreight,13,FALSE),"")))))) -> 51.5% | F15: Relative Origins and Destinations | G15: =IF(G5="","",IF(G6="Marine",VLOOKUP(G5,Marine,21,FALSE),IF(G6="Airport Passenger",VLOOKUP(G5,Airport,14,FALSE),IF(G6="Airport Freight",VLOOKUP(G5,Airport,18,FALSE),IF(G6="Rail Passenger",VLOOKUP(G5,RailPassenger,11,FALSE),IF(G6="Rail Freight",VLOOKUP(G5,RailFreight,13,FALSE),"")))))) -> 51.5%
B16: Relative Facility Connectivity Index | C16: =IF(C5="","",IF(C6="Marine",VLOOKUP(C5,Marine,22,FALSE),IF(C6="Airport Passenger",VLOOKUP(C5,Airport,15,FALSE),IF(C6="Airport Freight",VLOOKUP(C5,Airport,19,FALSE),IF(C6="Rail Passenger",VLOOKUP(C5,RailPassenger,12,FALSE),IF(C6="Rail Freight","","")))))) ->  | F16: Relative Facility Connectivity Index | G16: =IF(G5="","",IF(G6="Marine",VLOOKUP(G5,Marine,22,FALSE),IF(G6="Airport Passenger",VLOOKUP(G5,Airport,15,FALSE),IF(G6="Airport Freight",VLOOKUP(G5,Airport,19,FALSE),IF(G6="Rail Passenger",VLOOKUP(G5,RailPassenger,12,FALSE),IF(G6="Rail Freight","","")))))) -> 
B18: Total Vehicles | F18: Total Vehicles
B19: =IF(ISNA(VLOOKUP(C6,Category,2,FALSE)),"Number of Trucks",IF(C5="","",IF(VLOOKUP(C6,Category,2,FALSE)="Freight","Number of Trucks","Number of Passenger Vehicles"))) -> Number of Trucks | C19: =IF(ISERROR('3- IMPROVEMENT INPUTS'!D14),"",'3- IMPROVEMENT INPUTS'!D11) -> 5,853 | F19: =IF(ISNA(VLOOKUP(G6,Category,2,FALSE)),"Number of Trucks",IF(G5="","",IF(VLOOKUP(G6,Category,2,FALSE)="Freight","Number of Trucks","Number of Passenger Vehicles"))) -> Number of Trucks | G19: =IF(ISERROR('3- IMPROVEMENT INPUTS'!D29),"",'3- IMPROVEMENT INPUTS'!D26) -> 5,853
B20: =IF(ISNA(VLOOKUP($C$6,Category,2,FALSE)),"Total Truck Hours",IF(VLOOKUP($C$6,Category,2,FALSE)="Freight","Total Truck Hours","Total Passenger Vehicle Hours")) -> Total Truck Hours | C20: =IF(ISERROR('3- IMPROVEMENT INPUTS'!D14),"",C19*'3- IMPROVEMENT INPUTS'!D14) -> 1,688 | F20: =IF(ISNA(VLOOKUP($G$6,Category,2,FALSE)),"Total Truck Hours",IF(VLOOKUP($G$6,Category,2,FALSE)="Freight","Total Truck Hours","Total Passenger Vehicle Hours")) -> Total Truck Hours | G20: =IF(ISERROR('3- IMPROVEMENT INPUTS'!D29),"",G19*'3- IMPROVEMENT INPUTS'!D29) -> 1,249
B21: Total Value of Time | C21: =IF(C19="","",C20*IF(ISNUMBER('3- IMPROVEMENT INPUTS'!D19),'3- IMPROVEMENT INPUTS'!D19,'3- IMPROVEMENT INPUTS'!D18)) -> $96,100 | F21: Total Value of Time | G21: =IF(G19="","",G20*IF(ISNUMBER('3- IMPROVEMENT INPUTS'!D34),'3- IMPROVEMENT INPUTS'!D34,'3- IMPROVEMENT INPUTS'!D33)) -> $71,082
B23: Vehicles Associated with the Terminal | F23: Vehicles Associated with the Terminal
B24: =IF(C5="","",IF(VLOOKUP(C6,Category,2,FALSE)="Freight","Number of Trucks","Number of Passenger Vehicles")) -> Number of Trucks | C24: =IF(C19="","",C19*IF(ISNUMBER('3- IMPROVEMENT INPUTS'!D15),'3- IMPROVEMENT INPUTS'!D15,1)) -> 5,853 | F24: =IF(G5="","",IF(VLOOKUP(G6,Category,2,FALSE)="Freight","Number of Trucks","Number of Passenger Vehicles")) -> Number of Trucks | G24: =IF(G19="","",G19*IF(ISNUMBER('3- IMPROVEMENT INPUTS'!D30),'3- IMPROVEMENT INPUTS'!D30,'3- IMPROVEMENT INPUTS'!#REF!)) -> 5,853
B25: =IF(ISNA(VLOOKUP($C$6,Category,2,FALSE)), "Truck Hours",IF(VLOOKUP($C$6,Category,2,FALSE)="Freight","Truck Hours","Passenger Vehicle Hours")) -> Truck Hours | C25: =IF(C20="","",C24*'3- IMPROVEMENT INPUTS'!D14) -> 1,688 | F25: =IF(ISNA(VLOOKUP($G$6,Category,2,FALSE)), "Truck Hours",IF(VLOOKUP($G$6,Category,2,FALSE)="Freight","Truck Hours","Passenger Vehicle Hours")) -> Truck Hours | G25: =IF(G20="","",G24*'3- IMPROVEMENT INPUTS'!D29) -> 1,249
B26: Total Terminal Value of Time | C26: =IF(C19="","",C25*IF(ISNUMBER('3- IMPROVEMENT INPUTS'!D19),'3- IMPROVEMENT INPUTS'!D19,'3- IMPROVEMENT INPUTS'!D18)) -> $96,100 | F26: Total Terminal Value of Time | G26: =IF(G19="","",G25*IF(ISNUMBER('3- IMPROVEMENT INPUTS'!D34),'3- IMPROVEMENT INPUTS'!D34,'3- IMPROVEMENT INPUTS'!D33)) -> $71,082
B28: Weighted Connectivity | C28: =IF(OR(C5="",C26=""),"",C12*C26) -> 2,299,879 | F28: Weighted Connectivity | G28: =IF(OR(G5="",G26=""),"",G12*G26) -> 1,701,157
F30: % Change in Weighted Connectivity | G30: =IFERROR(ABS(C28-G28)/C28,"") -> 26%
B32: =IF(C35="Marine", "Bulk Connectivity Index","For Marine Terminal Use Only") -> For Marine Terminal Use Only | F32: =IF(G35="Marine", "Bulk Connectivity Index","For Marine Terminal Use Only") -> For Marine Terminal Use Only
B33: Facility 1 | F33: Facility 2
B34: Facility Details | F34: Facility Details
B35: Facility Type | C35: =IF('2-INTERMODAL FACILITY INPUTS'!E7="Marine",'2-INTERMODAL FACILITY INPUTS'!E7,"") ->  | F35: Facility Type | G35: =IF('2-INTERMODAL FACILITY INPUTS'!E13="Marine",'2-INTERMODAL FACILITY INPUTS'!E13,"") -> 
B36: Facility Name | C36: =IF(C35="Marine",'2-INTERMODAL FACILITY INPUTS'!E8,"") ->  | F36: Facility Name | G36: =IF(G35="Marine",'2-INTERMODAL FACILITY INPUTS'!E14,"") -> 
C38: Value | D38: Units | G38: Value | H38: Units
B39: Activity | C39: =IF(C35="Marine",VLOOKUP(C36,Marine,6,FALSE),"") ->  | D39: =IF(C35="Marine","tons","") ->  | F39: Activity | G39: =IF(G35="Marine",VLOOKUP(G36,Marine,6,FALSE),"") ->  | H39: =IF(G35="Marine","tons","") -> 
B40: Value | C40: =IF(C35="Marine",VLOOKUP(C36,Marine,7,FALSE),"") ->  | D40: =IF(C35="Marine","per ton","") ->  | F40: Value | G40: =IF(G35="Marine",VLOOKUP(G36,Marine,7,FALSE),"") ->  | H40: =IF(G35="Marine","per ton","") -> 
B41: Unique Origins/destinations | C41: =IF(C35="Marine",VLOOKUP(C36,Marine,8,FALSE),"") ->  | F41: Unique Origins/destinations | G41: =IF(G35="Marine",VLOOKUP(G36,Marine,8,FALSE),"") -> 
B42: Facility Connectivity Raw Value | C42: =IF(C35="Marine",VLOOKUP(C36,Marine,9,FALSE),"") ->  | F42: Facility Connectivity Raw Value | G42: =IF(G35="Marine",VLOOKUP(G36,Marine,9,FALSE),"") -> 
B43: Relative Activity | C43: =IF(C35="Marine",VLOOKUP(C36,Marine,15,FALSE),"") ->  | F43: Relative Activity | G43: =IF(G35="Marine",VLOOKUP(G36,Marine,15,FALSE),"") -> 
B44: Relative Value | C44: =IF(C35="Marine",VLOOKUP(C36,Marine,16,FALSE),"") ->  | F44: Relative Value | G44: =IF(G35="Marine",VLOOKUP(G36,Marine,16,FALSE),"") -> 
B45: Relative Origins and Destinations | C45: =IF(C35="Marine",VLOOKUP(C36,Marine,17,FALSE),"") ->  | F45: Relative Origins and Destinations | G45: =IF(G35="Marine",VLOOKUP(G36,Marine,17,FALSE),"") -> 
B46: Relative Facility Connectivity Index | C46: =IF(C35="Marine",VLOOKUP(C36,Marine,18,FALSE),"") ->  | F46: Relative Facility Connectivity Index | G46: =IF(G35="Marine",VLOOKUP(G36,Marine,18,FALSE),"") -> 
B48: Total Vehicles | F48: Total Vehicles
B49: Number of Trucks | C49: =IF(C$35="Marine",C19,"") ->  | F49: Number of Trucks | G49: =IF(G$35="Marine",G19,"") -> 
B50: Total Truck Hours | C50: =IF(C$35="Marine",C20,"") ->  | F50: Total Truck Hours | G50: =IF(G$35="Marine",G20,"") -> 
B51: Total Value of Time | C51: =IF(C$35="Marine",C21,"") ->  | F51: Total Value of Time | G51: =IF(G$35="Marine",G21,"") -> 
B53: Vehicles Associated with the Terminal | F53: Vehicles Associated with the Terminal
B54: Number of Trucks | C54: =IF(C$35="Marine",C24,"") ->  | F54: Number of Trucks | G54: =IF(G$35="Marine",G24,"") -> 
B55: Truck Hours | C55: =IF(C$35="Marine",C25,"") ->  | F55: Truck Hours | G55: =IF(G$35="Marine",G25,"") -> 
B56: Total Terminal Value of Time | C56: =IF(C$35="Marine",C26,"") ->  | F56: Total Terminal Value of Time | G56: =IF(G$35="Marine",G26,"") -> 
B58: Weighted connectivity | C58: =IF(OR(C36="",C56=""),"",C42*C56) ->  | F58: Weighted connectivity | G58: =IF(OR(G36="",G56=""),"",G42*G56) -> 
F60: % Change in Weighted Connectivity | G60: =IFERROR(ABS(C58-G58)/C58,"") -> 

Sheet Marine (hidden)
B1: 1 | C1: 2 | D1: 3 | E1: 4 | F1: 5 | G1: 6 | H1: 7 | I1: 8 | J1: 9 | K1: 10 | L1: 11 | M1: 12 | N1: 13 | O1: 14 | P1: 15 | Q1: 16 | R1: 17 | S1: 18 | T1: 19 | U1: 20 | V1: 21 | W1: 22
A2: Location | G2: Bulk | K2: Containers | P2: Bulk % of Max | T2: Container % of Max
A3: Port ID | B3: Port Name | C3: Lat | D3: Long | E3: County | F3: State | G3: Tonnage | H3: Value ($/ton) | I3: Origins/Destinations | J3: Total Connectivity | K3: Containers | L3: Ton/Container | M3: $/Container | N3: Origins/Destinations | O3: Connectivity Score | P3: Activity | Q3: Value | R3: Origins/Destinations | S3: Connectivity | T3: Activity | U3: Value | V3: Origins/Destinations | W3: Connectivity
A4: 2012 | B4: Houston, TX | C4: 29.747023 | D4: -95.293679 | E4: Harris | F4: TX | G4: 227,133,231 | H4: $507 | I4: 881 | J4: 1014.6 | K4: 1,341,897 | L4: 16.5 | M4: $32,694 | N4: 84 | O4: 36.9 | P4: 96% | Q4: 44% | R4: 100% | S4: 100% | T4: 24% | U4: 7% | V4: 68% | W4: 6%
A5: 2253 | B5: South Louisiana, LA, Port of | C5: 30.033450 | D5: -90.617940 | E5: St. John the Baptist | F5: LA | G5: 236,262,069 | H5: $352 | I5: 623 | J5: 517.9 | K5: 1,991 | L5: 16.5 | M5: $17,247 | N5: 1 | O5: 0.0 | P5: 100% | Q5: 31% | R5: 71% | S5: 51% | T5: 0% | U5: 4% | V5: 1% | W5: 0%
A6: 398 | B6: New York, NY and NJ | C6: 40.673949 | D6: -74.038357 | E6: Hudson | F6: NJ | G6: 139,198,215 | H6: $498 | I6: 517 | J6: 358.5 | K6: 4,216,136 | L6: 16.5 | M6: $117,981 | N6: 124 | O6: 616.8 | P6: 59% | Q6: 44% | R6: 59% | S6: 35% | T6: 77% | U6: 26% | V6: 100% | W6: 100%
A7: 2423 | B7: Corpus Christi, TX | C7: 27.812770 | D7: -97.397890 | E7: Nueces | F7: TX | G7: 73,663,432 | H7: $507 | I7: 404 | J7: 150.9 | K7: 0 | L7: 16.5 | M7: 0 | N7: 3 | O7: 0.0 | P7: 31% | Q7: 44% | R7: 46% | S7: 15% | T7: 0% | U7: 0% | V7: 2% | W7: 0%
A8: 2251 | B8: New Orleans, LA | C8: 29.914140 | D8: -90.085256 | E8: Orleans | F8: LA | G8: 72,410,730 | H8: $352 | I8: 601 | J8: 153.1 | K8: 274,692 | L8: 16.5 | M8: $17,247 | N8: 43 | O8: 2.0 | P8: 31% | Q8: 31% | R8: 68% | S8: 15% | T8: 5% | U8: 4% | V8: 35% | W8: 0%
A9: 2395 | B9: Beaumont, TX | C9: 30.087163 | D9: -94.088112 | E9: Orange | F9: TX | G9: 76,958,592 | H9: $507 | I9: 336 | J9: 131.1 | K9: 0 | L9: 16.5 | M9: 0 | N9: 0 | O9: 0.0 | P9: 33% | Q9: 44% | R9: 38% | S9: 13% | T9: 0% | U9: 0% | V9: 0% | W9: 0%
A10: 4110 | B10: Long Beach, CA | C10: 33.739570 | D10: -118.209500 | E10: Los Angeles | F10: CA | G10: 75,434,788 | H10: $450 | I10: 341 | J10: 115.8 | K10: 4,736,900 | L10: 16.5 | M10: $110,831 | N10: 59 | O10: 309.7 | P10: 32% | Q10: 39% | R10: 39% | S10: 11% | T10: 86% | U10: 24% | V10: 48% | W10: 50%
A11: 2005 | B11: Mobile, AL | C11: 30.725270 | D11: -88.041130 | E11: Baldwin | F11: AL | G11: 55,713,273 | H11: $385 | I11: 413 | J11: 88.6 | K11: 80,953 | L11: 16.5 | M11: $56,608 | N11: 23 | O11: 1.1 | P11: 24% | Q11: 34% | R11: 47% | S11: 9% | T11: 1% | U11: 12% | V11: 19% | W11: 0%
A12: 776 | B12: Savannah, GA | C12: 32.084711 | D12: -81.095382 | E12: Jasper | F12: GA | G12: 34,681,656 | H12: $785 | I12: 305 | J12: 83.0 | K12: 2,147,792 | L12: 16.5 | M12: $68,355 | N12: 72 | O12: 105.7 | P12: 15% | Q12: 69% | R12: 35% | S12: 8% | T12: 39% | U12: 15% | V12: 58% | W12: 17%
A13: 2255 | B13: Plaquemines, LA, Port of | C13: 29.480004 | D13: -89.687447 | E13: Plaquemines | F13: LA | G13: 55,836,687 | H13: $352 | I13: 387 | J13: 76.0 | K13: 0 | L13: 16.5 | M13: 0 | N13: 2 | O13: 0.0 | P13: 24% | Q13: 31% | R13: 44% | S13: 7% | T13: 0% | U13: 0% | V13: 2% | W13: 0%
A14: 4120 | B14: Los Angeles, CA | C14: 33.777280 | D14: -118.241000 | E14: Los Angeles | F14: CA | G14: 62,386,603 | H14: $450 | I14: 253 | J14: 71.1 | K14: 5,479,351 | L14: 16.5 | M14: $110,831 | N14: 62 | O14: 376.5 | P14: 26% | Q14: 39% | R14: 29% | S14: 7% | T14: 100% | U14: 24% | V14: 50% | W14: 61%
A15: 2404 | B15: Texas City, TX | C15: 29.363068 | D15: -94.918091 | E15: Galveston | F15: TX | G15: 56,590,856 | H15: $507 | I15: 239 | J15: 68.6 | K15: 0 | L15: 16.5 | M15: 0 | N15: 0 | O15: 0.0 | P15: 24% | Q15: 44% | R15: 27% | S15: 7% | T15: 0% | U15: 0% | V15: 0% | W15: 0%
A16: 2254 | B16: Lake Charles, LA | C16: 30.106406 | D16: -93.286839 | E16: Calcasieu | F16: LA | G16: 54,614,895 | H16: $352 | I16: 289 | J16: 55.5 | K16: 2,141 | L16: 16.5 | M16: $17,247 | N16: 1 | O16: 0.0 | P16: 23% | Q16: 31% | R16: 33% | S16: 5% | T16: 0% | U16: 4% | V16: 1% | W16: 0%
A17: 2021 | B17: Tampa, FL | C17: 27.785340 | D17: -82.522350 | E17: Hillsborough | F17: FL | G17: 34,202,079 | H17: $474 | I17: 319 | J17: 51.8 | K17: 27,626 | L17: 16.5 | M17: $46,933 | N17: 12 | O17: 0.2 | P17: 14% | Q17: 42% | R17: 36% | S17: 5% | T17: 1% | U17: 10% | V17: 10% | W17: 0%
A18: 2252 | B18: Baton Rouge, LA | C18: 30.422920 | D18: -91.199340 | E18: East Baton Rouge | F18: LA | G18: 55,536,987 | H18: $352 | I18: 259 | J18: 50.6 | K18: 0 | L18: 16.5 | M18: 0 | N18: 4 | O18: 0.0 | P18: 24% | Q18: 31% | R18: 29% | S18: 5% | T18: 0% | U18: 0% | V18: 3% | W18: 0%
A19: 2416 | B19: Port Arthur, TX | C19: 29.831420 | D19: -93.960690 | E19: Jefferson | F19: TX | G19: 30,231,786 | H19: $507 | I19: 314 | J19: 48.1 | K19: 0 | L19: 16.5 | M19: 0 | N19: 2 | O19: 0.0 | P19: 13% | Q19: 44% | R19: 36% | S19: 5% | T19: 0% | U19: 0% | V19: 2% | W19: 0%
A20: 773 | B20: Charleston, SC | C20: 32.788781 | D20: -79.921595 | E20: Charleston | F20: SC | G20: 17,985,995 | H20: $1,035 | I20: 228 | J20: 42.4 | K20: 1,061,326 | L20: 16.5 | M20: $48,110 | N20: 67 | O20: 34.2 | P20: 8% | Q20: 91% | R20: 26% | S20: 4% | T20: 19% | U20: 11% | V20: 54% | W20: 6%
A21: 2163 | B21: Port Everglades, FL | C21: 26.093392 | D21: -80.117801 | E21: Broward | F21: FL | G21: 20,233,197 | H21: $474 | I21: 335 | J21: 32.2 | K21: 578,950 | L21: 16.5 | M21: $46,933 | N21: 104 | O21: 28.3 | P21: 9% | Q21: 42% | R21: 38% | S21: 3% | T21: 11% | U21: 10% | V21: 84% | W21: 5%
A22: 552 | B22: Philadelphia, PA | C22: 39.918820 | D22: -75.202191 | E22: Philadelphia | F22: PA | G22: 34,036,094 | H22: $505 | I22: 209 | J22: 35.9 | K22: 166,335 | L22: 16.5 | M22: $112,431 | N22: 38 | O22: 7.1 | P22: 14% | Q22: 44% | R22: 24% | S22: 4% | T22: 3% | U22: 25% | V22: 31% | W22: 1%
A23: 2408 | B23: Freeport, TX | C23: 28.961330 | D23: -95.370700 | E23: Brazoria | F23: TX | G23: 26,675,842 | H23: $507 | I23: 213 | J23: 28.8 | K23: 57,331 | L23: 16.5 | M23: $32,694 | N23: 15 | O23: 0.3 | P23: 11% | Q23: 44% | R23: 24% | S23: 3% | T23: 1% | U23: 7% | V23: 12% | W23: 0%
A24: 5735 | B24: Norfolk Harbor, VA | C24: 36.866420 | D24: -76.311740 | E24: Norfolk | F24: VA | G24: 41,569,373 | H24: $309 | I24: 220 | J24: 28.2 | K24: 1,472,851 | L24: 16.5 | M24: $68,631 | N24: 64 | O24: 64.7 | P24: 18% | Q24: 27% | R24: 25% | S24: 3% | T24: 27% | U24: 15% | V24: 52% | W24: 10%
A25: 2004 | B25: Pascagoula, MS | C25: 30.348020 | D25: -88.558790 | E25: Jackson | F25: MS | G25: 37,275,809 | H25: $301 | I25: 248 | J25: 27.8 | K25: 0 | L25: 16.5 | M25: 0 | N25: 0 | O25: 0.0 | P25: 16% | Q25: 26% | R25: 28% | S25: 3% | T25: 0% | U25: 0% | V25: 0% | W25: 0%
A26: 2017 | B26: Jacksonville, FL | C26: 30.322757 | D26: -81.665125 | E26: Duval | F26: FL | G26: 19,117,823 | H26: $474 | I26: 288 | J26: 26.1 | K26: 725,472 | L26: 16.5 | M26: $46,933 | N26: 39 | O26: 13.3 | P26: 8% | Q26: 42% | R26: 33% | S26: 3% | T26: 13% | U26: 10% | V26: 31% | W26: 2%
A27: 700 | B27: Baltimore, MD | C27: 39.208990 | D27: -76.517120 | E27: Baltimore | F27: MD | G27: 39,629,187 | H27: $150 | I27: 363 | J27: 21.6 | K27: 495,158 | L27: 16.5 | M27: $103,326 | N27: 20 | O27: 10.2 | P27: 17% | Q27: 13% | R27: 41% | S27: 2% | T27: 9% | U27: 23% | V27: 16% | W27: 2%
A28: 149 | B28: Boston, MA | C28: 42.350939 | D28: -71.052290 | E28: Middlesex | F28: MA | G28: 19,091,378 | H28: $629 | I28: 172 | J28: 20.6 | K28: 130,206 | L28: 16.5 | M28: $457,508 | N28: 22 | O28: 13.1 | P28: 8% | Q28: 55% | R28: 20% | S28: 2% | T28: 2% | U28: 100% | V28: 18% | W28: 2%
A29: 766 | B29: Wilmington, NC | C29: 34.239278 | D29: -77.953954 | E29: New Hanover | F29: NC | G29: 7,428,160 | H29: $1,143 | I29: 205 | J29: 17.4 | K29: 199,727 | L29: 16.5 | M29: $76,487 | N29: 20 | O29: 3.1 | P29: 3% | Q29: 100% | R29: 23% | S29: 2% | T29: 4% | U29: 17% | V29: 16% | W29: 0%
A30: 4350 | B30: Richmond, CA | C30: 37.924237 | D30: -122.374233 | E30: Contra Costa | F30: CA | G30: 24,177,521 | H30: $450 | I30: 159 | J30: 17.3 | K30: 0 | L30: 16.5 | M30: 0 | N30: 3 | O30: 0.0 | P30: 10% | Q30: 39% | R30: 18% | S30: 2% | T30: 0% | U30: 0% | V30: 2% | W30: 0%
A31: 4722 | B31: Seattle, WA | C31: 47.587711 | D31: -122.359218 | E31: King | F31: WA | G31: 27,191,675 | H31: $411 | I31: 145 | J31: 16.2 | K31: 1,601,842 | L31: 16.5 | M31: $45,046 | N31: 31 | O31: 22.4 | P31: 12% | Q31: 36% | R31: 16% | S31: 2% | T31: 29% | U31: 10% | V31: 25% | W31: 4%
A32: 5252 | B32: Paulsboro, NJ | C32: 39.826890 | D32: -75.226550 | E32: Philadelphia | F32: NJ | G32: 17,499,056 | H32: $498 | I32: 191 | J32: 16.6 | K32: 0 | L32: 16.5 | M32: 0 | N32: 1 | O32: 0.0 | P32: 7% | Q32: 44% | R32: 22% | S32: 2% | T32: 0% | U32: 0% | V32: 1% | W32: 0%
A33: 2417 | B33: Galveston, TX | C33: 29.310490 | D33: -94.812700 | E33: Galveston | F33: TX | G33: 13,948,896 | H33: $507 | I33: 225 | J33: 15.9 | K33: 11,483 | L33: 16.5 | M33: $32,694 | N33: 1 | O33: 0.0 | P33: 6% | Q33: 44% | R33: 26% | S33: 2% | T33: 0% | U33: 7% | V33: 1% | W33: 0%
A34: 4720 | B34: Tacoma, WA | C34: 47.289660 | D34: -122.451500 | E34: Pierce | F34: WA | G34: 22,399,200 | H34: $411 | I34: 147 | J34: 13.5 | K34: 1,086,347 | L34: 16.5 | M34: $45,046 | N34: 23 | O34: 11.3 | P34: 9% | Q34: 36% | R34: 17% | S34: 1% | T34: 20% | U34: 10% | V34: 19% | W34: 2%
A35: 4644 | B35: Portland, OR | C35: 45.478810 | D35: -122.665300 | E35: Multnomah | F35: OR | G35: 25,949,307 | H35: $232 | I35: 213 | J35: 12.8 | K35: 135,885 | L35: 16.5 | M35: $39,402 | N35: 7 | O35: 0.4 | P35: 11% | Q35: 20% | R35: 24% | S35: 1% | T35: 2% | U35: 9% | V35: 6% | W35: 0%
A36: 5251 | B36: Marcus Hook, PA | C36: 39.815440 | D36: -75.404240 | E36: Delaware | F36: PA | G36: 21,940,459 | H36: $505 | I36: 125 | J36: 13.8 | K36: 0 | L36: 16.5 | M36: 0 | N36: 0 | O36: 0.0 | P36: 9% | Q36: 44% | R36: 14% | S36: 1% | T36: 0% | U36: 0% | V36: 0% | W36: 0%
A37: 736 | B37: Newport News, VA | C37: 36.985220 | D37: -76.458230 | E37: Newport News | F37: VA | G37: 20,839,227 | H37: $309 | I37: 186 | J37: 12.0 | K37: 0 | L37: 16.5 | M37: 0 | N37: 0 | O37: 0.0 | P37: 9% | Q37: 27% | R37: 21% | S37: 1% | T37: 0% | U37: 0% | V37: 0% | W37: 0%
A38: 128 | B38: Portland, ME | C38: 43.649510 | D38: -70.251340 | E38: Cumberland | F38: ME | G38: 18,158,230 | H38: $744 | I38: 74 | J38: 10.0 | K38: 0 | L38: 16.5 | M38: 0 | N38: 0 | O38: 0.0 | P38: 8% | Q38: 65% | R38: 8% | S38: 1% | T38: 0% | U38: 0% | V38: 0% | W38: 0%
A39: 4345 | B39: Oakland, CA | C39: 37.821520 | D39: -122.308100 | E39: Alameda | F39: CA | G39: 18,609,728 | H39: $450 | I39: 97 | J39: 8.1 | K39: 1,673,857 | L39: 16.5 | M39: $110,831 | N39: 64 | O39: 118.7 | P39: 8% | Q39: 39% | R39: 11% | S39: 1% | T39: 31% | U39: 24% | V39: 52% | W39: 19%
A40: 191 | B40: Providence, RI | C40: 41.811780 | D40: -71.398440 | E40: Providence | F40: RI | G40: 7,115,472 | H40: $743 | I40: 117 | J40: 6.2 | K40: 0 | L40: 16.5 | M40: 0 | N40: 0 | O40: 0.0 | P40: 3% | Q40: 65% | R40: 13% | S40: 1% | T40: 0% | U40: 0% | V40: 0% | W40: 0%
A41: 2164 | B41: Miami, FL | C41: 25.783538 | D41: -80.183171 | E41: Miami-Dade | F41: FL | G41: 6,959,725 | H41: $474 | I41: 187 | J41: 6.2 | K41: 678,916 | L41: 16.5 | M41: $46,933 | N41: 87 | O41: 27.7 | P41: 3% | Q41: 42% | R41: 21% | S41: 1% | T41: 12% | U41: 10% | V41: 70% | W41: 4%
A42: 4626 | B42: Kalama, WA | C42: 46.020480 | D42: -122.862800 | E42: Cowlitz | F42: WA | G42: 12,254,997 | H42: $411 | I42: 121 | J42: 6.1 | K42: 0 | L42: 16.5 | M42: 0 | N42: 0 | O42: 0.0 | P42: 5% | Q42: 36% | R42: 14% | S42: 1% | T42: 0% | U42: 0% | V42: 0% | W42: 0%
A43: 4636 | B43: Vancouver, WA | C43: 45.622440 | D43: -122.680600 | E43: Clark | F43: WA | G43: 8,390,485 | H43: $411 | I43: 170 | J43: 5.9 | K43: 15,443 | L43: 16.5 | M43: $45,046 | N43: 0 | O43: 0.0 | P43: 4% | Q43: 36% | R43: 19% | S43: 1% | T43: 0% | U43: 10% | V43: 0% | W43: 0%
A44: 2410 | B44: Matagorda Port Lv Pt Com, TX | C44: 28.595400 | D44: -96.564120 | E44: Calhoun | F44: TX | G44: 8,879,191 | H44: $507 | I44: 126 | J44: 5.7 | K44: 0 | L44: 16.5 | M44: 0 | N44: 0 | O44: 0.0 | P44: 4% | Q44: 44% | R44: 14% | S44: 1% | T44: 0% | U44: 0% | V44: 0% | W44: 0%
A45: 4420 | B45: Honolulu, HI | C45: 21.311110 | D45: -157.871700 | E45: Honolulu | F45: HI | G45: 8,903,468 | H45: $663 | I45: 117 | J45: 6.9 | K45: 749,375 | L45: 16.5 | M45: $23,570 | N45: 21 | O45: 3.7 | P45: 4% | Q45: 58% | R45: 13% | S45: 1% | T45: 14% | U45: 5% | V45: 17% | W45: 1%
A46: 3924 | B46: Duluth-Superior, MN and WI | C46: 46.778362 | D46: -92.096408 | E46: St. Louis | F46: MN | G46: 36,598,247 | H46: $138 | I46: 98 | J46: 4.9 | K46: 0 | L46: 16.5 | M46: 0 | N46: 0 | O46: 0.0 | P46: 15% | Q46: 12% | R46: 11% | S46: 0% | T46: 0% | U46: 0% | V46: 0% | W46: 0%
A47: 551 | B47: Camden-Gloucester, NJ | C47: 39.943050 | D47: -75.104320 | E47: Philadelphia | F47: NJ | G47: 5,369,118 | H47: $498 | I47: 154 | J47: 4.1 | K47: 85,548 | L47: 16.5 | M47: $117,981 | N47: 5 | O47: 0.5 | P47: 2% | Q47: 44% | R47: 17% | S47: 0% | T47: 2% | U47: 26% | V47: 4% | W47: 0%
A48: 4458 | B48: Barbers Point, Oahu, HI | C48: 21.297230 | D48: -158.108900 | E48: Honolulu | F48: HI | G48: 9,170,554 | H48: $663 | I48: 85 | J48: 5.2 | K48: 0 | L48: 16.5 | M48: 0 | N48: 0 | O48: 0.0 | P48: 4% | Q48: 58% | R48: 10% | S48: 1% | T48: 0% | U48: 0% | V48: 0% | W48: 0%
A49: 554 | B49: Wilmington, DE | C49: 39.715890 | D49: -75.506970 | E49: New Castle | F49: DE | G49: 4,824,863 | H49: $742 | I49: 161 | J49: 5.8 | K49: 154,698 | L49: 16.5 | M49: $99,902 | N49: 21 | O49: 3.2 | P49: 2% | Q49: 65% | R49: 18% | S49: 1% | T49: 3% | U49: 22% | V49: 17% | W49: 1%
A50: 4622 | B50: Longview, WA | C50: 46.142220 | D50: -122.914000 | E50: Cowlitz | F50: WA | G50: 6,822,715 | H50: $411 | I50: 126 | J50: 3.5 | K50: 0 | L50: 16.5 | M50: 0 | N50: 0 | O50: 0.0 | P50: 3% | Q50: 36% | R50: 14% | S50: 0% | T50: 0% | U50: 0% | V50: 0% | W50: 0%
A51: 764 | B51: Morehead City, NC | C51: 34.716930 | D51: -76.724210 | E51: Carteret | F51: NC | G51: 3,497,666 | H51: $1,143 | I51: 82 | J51: 3.3 | K51: 0 | L51: 16.5 | M51: 0 | N51: 2 | O51: 0.0 | P51: 1% | Q51: 100% | R51: 9% | S51: 0% | T51: 0% | U51: 0% | V51: 2% | W51: 0%
A52: 2348 | B52: Huntington - Tristate | C52: 38.433610 | D52: -82.419980 | E52: Lawrence | F52: WV | G52: 61,521,942 | H52: $63 | I52: 72 | J52: 2.8 | K52: 0 | L52: 16.5 | M52: 0 | N52: 5 | O52: 0.0 | P52: 26% | Q52: 6% | R52: 8% | S52: 0% | T52: 0% | U52: 0% | V52: 4% | W52: 0%
A53: 2420 | B53: Brownsville, TX | C53: 25.952201 | D53: -97.398138 | E53: Cameron | F53: TX | G53: 4,616,492 | H53: $507 | I53: 106 | J53: 2.5 | K53: 0 | L53: 16.5 | M53: 0 | N53: 0 | O53: 0.0 | P53: 2% | Q53: 44% | R53: 12% | S53: 0% | T53: 0% | U53: 0% | V53: 0% | W53: 0%
A54: 4730 | B54: Anacortes, WA | C54: 48.495943 | D54: -122.599610 | E54: Skagit | F54: WA | G54: 8,455,447 | H54: $411 | I54: 70 | J54: 2.4 | K54: 0 | L54: 16.5 | M54: 0 | N54: 0 | O54: 0.0 | P54: 4% | Q54: 36% | R54: 8% | S54: 0% | T54: 0% | U54: 0% | V54: 0% | W54: 0%
A55: 505 | B55: Albany, NY | C55: 42.642710 | D55: -73.748160 | E55: Rensselaer | F55: NY | G55: 6,810,017 | H55: $337 | I55: 81 | J55: 1.9 | K55: 0 | L55: 16.5 | M55: 0 | N55: 0 | O55: 0.0 | P55: 3% | Q55: 29% | R55: 9% | S55: 0% | T55: 0% | U55: 0% | V55: 0% | W55: 0%
A56: 2358 | B56: Pittsburgh, PA | C56: 40.442340 | D56: -80.016120 | E56: Allegheny | F56: PA | G56: 33,843,362 | H56: $505 | I56: 13 | J56: 2.2 | K56: 0 | L56: 16.5 | M56: 0 | N56: 4 | O56: 0.0 | P56: 14% | Q56: 44% | R56: 1% | S56: 0% | T56: 0% | U56: 0% | V56: 3% | W56: 0%
A57: 780 | B57: Brunswick, GA | C57: 31.158560 | D57: -81.499880 | E57: Glynn | F57: GA | G57: 2,437,800 | H57: $785 | I57: 93 | J57: 1.8 | K57: 0 | L57: 16.5 | M57: 0 | N57: 0 | O57: 0.0 | P57: 1% | Q57: 69% | R57: 11% | S57: 0% | T57: 0% | U57: 0% | V57: 0% | W57: 0%
A58: 2023 | B58: Port Manatee, FL | C58: 27.660000 | D58: -82.602710 | E58: Manatee | F58: FL | G58: 3,288,171 | H58: $474 | I58: 111 | J58: 1.7 | K58: 15,923 | L58: 16.5 | M58: $46,933 | N58: 7 | O58: 0.1 | P58: 1% | Q58: 42% | R58: 13% | S58: 0% | T58: 0% | U58: 10% | V58: 6% | W58: 0%
A59: 2310 | B59: St. Louis, MO and IL | C59: 38.569540 | D59: -90.229610 | E59: St. Louis City | F59: IL | G59: 30,772,951 | H59: $120 | I59: 43 | J59: 1.6 | K59: 0 | L59: 16.5 | M59: 0 | N59: 4 | O59: 0.0 | P59: 13% | Q59: 10% | R59: 5% | S59: 0% | T59: 0% | U59: 0% | V59: 3% | W59: 0%
A60: 2160 | B60: Port Canaveral, FL | C60: 28.414090 | D60: -80.608150 | E60: Brevard | F60: FL | G60: 2,510,158 | H60: $474 | I60: 131 | J60: 1.6 | K60: 0 | L60: 16.5 | M60: 0 | N60: 0 | O60: 0.0 | P60: 1% | Q60: 42% | R60: 15% | S60: 0% | T60: 0% | U60: 0% | V60: 0% | W60: 0%
A61: 2294 | B61: Memphis, TN | C61: 35.181770 | D61: -90.061980 | E61: Shelby | F61: TN | G61: 12,155,049 | H61: $287 | I61: 40 | J61: 1.4 | K61: 0 | L61: 16.5 | M61: 0 | N61: 4 | O61: 0.0 | P61: 5% | Q61: 25% | R61: 5% | S61: 0% | T61: 0% | U61: 0% | V61: 3% | W61: 0%
A62: 3749 | B62: Chicago, IL | C62: 41.886620 | D62: -87.637990 | E62: Cook | F62: IL | G62: 18,534,237 | H62: $120 | I62: 58 | J62: 1.3 | K62: 0 | L62: 16.5 | M62: 0 | N62: 0 | O62: 0.0 | P62: 8% | Q62: 10% | R62: 7% | S62: 0% | T62: 0% | U62: 0% | V62: 0% | W62: 0%
A63: 2162 | B63: Palm Beach, FL | C63: 26.769040 | D63: -80.052670 | E63: Palm Beach | F63: FL | G63: 2,374,251 | H63: $474 | I63: 100 | J63: 1.1 | K63: 108,987 | L63: 16.5 | M63: $46,933 | N63: 6 | O63: 0.3 | P63: 1% | Q63: 42% | R63: 11% | S63: 0% | T63: 2% | U63: 10% | V63: 5% | W63: 0%
A64: 2016 | B64: Panama City, FL | C64: 30.190090 | D64: -84.199260 | E64: Wakulla | F64: FL | G64: 2,890,880 | H64: $474 | I64: 79 | J64: 1.1 | K64: 26,872 | L64: 16.5 | M64: $46,933 | N64: 4 | O64: 0.1 | P64: 1% | Q64: 42% | R64: 9% | S64: 0% | T64: 0% | U64: 10% | V64: 3% | W64: 0%
A65: 4816 | B65: Valdez, AK | C65: 61.124730 | D65: -146.346400 | E65: Valdez-Cordova | F65: AK | G65: 31,902,056 | H65: $489 | I65: 6 | J65: 0.9 | K65: 0 | L65: 16.5 | M65: 0 | N65: 0 | O65: 0.0 | P65: 14% | Q65: 43% | R65: 1% | S65: 0% | T65: 0% | U65: 0% | V65: 0% | W65: 0%
A66: 112 | B66: Searsport, ME | C66: 44.452850 | D66: -68.924970 | E66: Waldo | F66: ME | G66: 1,986,759 | H66: $744 | I66: 61 | J66: 0.9 | K66: 0 | L66: 16.5 | M66: 0 | N66: 0 | O66: 0.0 | P66: 1% | Q66: 65% | R66: 7% | S66: 0% | T66: 0% | U66: 0% | V66: 0% | W66: 0%
A67: 4947 | B67: Unalaska Island, AK | C67: 53.893330 | D67: -166.541700 | E67: Aleutians West | F67: AK | G67: 1,054,416 | H67: $489 | I67: 166 | J67: 0.9 | K67: 43,892 | L67: 16.5 | M67: $11,921 | N67: 15 | O67: 0.1 | P67: 0% | Q67: 43% | R67: 19% | S67: 0% | T67: 1% | U67: 3% | V67: 12% | W67: 0%
A68: 4100 | B68: San Diego, CA | C68: 32.708210 | D68: -117.178400 | E68: San Diego | F68: CA | G68: 1,324,883 | H68: $450 | I68: 129 | J68: 0.8 | K68: 51,335 | L68: 16.5 | M68: $110,831 | N68: 10 | O68: 0.6 | P68: 1% | Q68: 39% | R68: 15% | S68: 0% | T68: 1% | U68: 24% | V68: 8% | W68: 0%
A69: 2276 | B69: Vicksburg, MS | C69: 32.334700 | D69: -90.900560 | E69: Warren | F69: MS | G69: 3,350,189 | H69: $301 | I69: 73 | J69: 0.7 | K69: 0 | L69: 16.5 | M69: 0 | N69: 15 | O69: 0.0 | P69: 1% | Q69: 26% | R69: 8% | S69: 0% | T69: 0% | U69: 0% | V69: 12% | W69: 0%
A70: 4270 | B70: Stockton, CA | C70: 37.952700 | D70: -121.315600 | E70: San Joaquin | F70: CA | G70: 1,813,859 | H70: $450 | I70: 89 | J70: 0.7 | K70: 0 | L70: 16.5 | M70: 0 | N70: 0 | O70: 0.0 | P70: 1% | Q70: 39% | R70: 10% | S70: 0% | T70: 0% | U70: 0% | V70: 0% | W70: 0%
A71: 298 | B71: Penn Manor, PA | C71: 40.135980 | D71: -74.740810 | E71: Bucks | F71: PA | G71: 2,200,080 | H71: $505 | I71: 75 | J71: 0.8 | K71: 0 | L71: 16.5 | M71: 0 | N71: 0 | O71: 0.0 | P71: 1% | Q71: 44% | R71: 9% | S71: 0% | T71: 0% | U71: 0% | V71: 0% | W71: 0%
A72: 2002 | B72: Biloxi, MS | C72: 30.419070 | D72: -88.886930 | E72: Jackson | F72: MS | G72: 3,140,787 | H72: $301 | I72: 73 | J72: 0.7 | K72: 0 | L72: 16.5 | M72: 0 | N72: 15 | O72: 0.0 | P72: 1% | Q72: 26% | R72: 8% | S72: 0% | T72: 0% | U72: 0% | V72: 12% | W72: 0%
A73: 2271 | B73: Greenville, MS | C73: 33.359232 | D73: -91.126869 | E73: Chicot | F73: MS | G73: 2,714,951 | H73: $301 | I73: 73 | J73: 0.6 | K73: 0 | L73: 16.5 | M73: 0 | N73: 15 | O73: 0.0 | P73: 1% | Q73: 26% | R73: 8% | S73: 0% | T73: 0% | U73: 0% | V73: 12% | W73: 0%
A74: 189 | B74: Fall River, MA | C74: 41.721660 | D74: -71.158750 | E74: Bristol | F74: MA | G74: 2,517,059 | H74: $629 | I74: 37 | J74: 0.6 | K74: 0 | L74: 16.5 | M74: 0 | N74: 0 | O74: 0.0 | P74: 1% | Q74: 55% | R74: 4% | S74: 0% | T74: 0% | U74: 0% | V74: 0% | W74: 0%
A75: 4831 | B75: Nikishka, AK | C75: 60.747930 | D75: -151.314400 | E75: Kenai Peninsula | F75: AK | G75: 4,851,523 | H75: $489 | I75: 24 | J75: 0.6 | K75: 0 | L75: 16.5 | M75: 0 | N75: 0 | O75: 0.0 | P75: 2% | Q75: 43% | R75: 3% | S75: 0% | T75: 0% | U75: 0% | V75: 0% | W75: 0%
A76: 4150 | B76: Port Hueneme, CA | C76: 34.148244 | D76: -119.208475 | E76: Ventura | F76: CA | G76: 1,381,561 | H76: $450 | I76: 86 | J76: 0.5 | K76: 24,566 | L76: 16.5 | M76: $110,831 | N76: 2 | O76: 0.1 | P76: 1% | Q76: 39% | R76: 10% | S76: 0% | T76: 0% | U76: 24% | V76: 2% | W76: 0%
A77: 6109 | B77: Tulsa, Port of Catoosa, OK | C77: 36.218200 | D77: -95.740020 | E77: Rogers | F77: OK | G77: 2,046,926 | H77: $401 | I77: 64 | J77: 0.5 | K77: 0 | L77: 16.5 | M77: 0 | N77: 2 | O77: 0.0 | P77: 1% | Q77: 35% | R77: 7% | S77: 0% | T77: 0% | U77: 0% | V77: 2% | W77: 0%
A78: 2371 | B78: Guntersville, AL | C78: 34.373904 | D78: -86.287506 | E78: Marshall | F78: AL | G78: 1,820,102 | H78: $385 | I78: 74 | J78: 0.5 | K78: 0 | L78: 16.5 | M78: 0 | N78: 9 | O78: 0.0 | P78: 1% | Q78: 34% | R78: 8% | S78: 0% | T78: 0% | U78: 0% | V78: 7% | W78: 0%
A79: 4820 | B79: Anchorage, AK | C79: 61.237780 | D79: -149.895000 | E79: Anchorage | F79: AK | G79: 2,770,300 | H79: $489 | I79: 39 | J79: 0.5 | K79: 267,624 | L79: 16.5 | M79: $11,921 | N79: 0 | O79: 0.0 | P79: 1% | Q79: 43% | R79: 4% | S79: 0% | T79: 5% | U79: 3% | V79: 0% | W79: 0%
A80: 3204 | B80: Toledo, OH | C80: 41.662940 | D80: -83.507510 | E80: Lucas | F80: OH | G80: 10,720,187 | H80: $71 | I80: 68 | J80: 0.5 | K80: 0 | L80: 16.5 | M80: 0 | N80: 0 | O80: 0.0 | P80: 5% | Q80: 6% | R80: 8% | S80: 0% | T80: 0% | U80: 0% | V80: 0% | W80: 0%
A81: 1507 | B81: New Haven, CT | C81: 41.298830 | D81: -72.904730 | E81: New Haven | F81: CT | G81: 9,987,285 | H81: $38 | I81: 127 | J81: 0.5 | K81: 0 | L81: 16.5 | M81: 0 | N81: 2 | O81: 0.0 | P81: 4% | Q81: 3% | R81: 14% | S81: 0% | T81: 0% | U81: 0% | V81: 2% | W81: 0%
A82: 299 | B82: New Castle, DE | C82: 39.656680 | D82: -75.561580 | E82: New Castle | F82: DE | G82: 1,608,664 | H82: $742 | I82: 60 | J82: 0.7 | K82: 0 | L82: 16.5 | M82: 0 | N82: 0 | O82: 0.0 | P82: 1% | Q82: 65% | R82: 7% | S82: 0% | T82: 0% | U82: 0% | V82: 0% | W82: 0%
A83: 1233 | B83: Mount Vernon, IN | C83: 37.922080 | D83: -87.875000 | E83: Posey | F83: IN | G83: 5,629,444 | H83: $118 | I83: 67 | J83: 0.4 | K83: 0 | L83: 16.5 | M83: 0 | N83: 2 | O83: 0.0 | P83: 2% | Q83: 10% | R83: 8% | S83: 0% | T83: 0% | U83: 0% | V83: 2% | W83: 0%
A84: 4405 | B84: Kawaihae Harbor, HI | C84: 20.037780 | D84: -155.833300 | E84: Hawaii | F84: HI | G84: 1,049,792 | H84: $663 | I84: 76 | J84: 0.5 | K84: 46,572 | L84: 16.5 | M84: $23,570 | N84: 15 | O84: 0.2 | P84: 0% | Q84: 58% | R84: 9% | S84: 0% | T84: 1% | U84: 5% | V84: 12% | W84: 0%
A85: 3217 | B85: Cleveland, OH | C85: 41.478520 | D85: -81.671910 | E85: Cuyahoga | F85: OH | G85: 10,791,326 | H85: $71 | I85: 53 | J85: 0.4 | K85: 0 | L85: 16.5 | M85: 0 | N85: 0 | O85: 0.0 | P85: 5% | Q85: 6% | R85: 6% | S85: 0% | T85: 0% | U85: 0% | V85: 0% | W85: 0%
A86: 2269 | B86: Lake Providence, LA | C86: 32.894850 | D86: -91.122837 | E86: Issaquena | F86: LA | G86: 1,348,703 | H86: $352 | I86: 86 | J86: 0.4 | K86: 0 | L86: 16.5 | M86: 0 | N86: 34 | O86: 0.0 | P86: 1% | Q86: 31% | R86: 10% | S86: 0% | T86: 0% | U86: 0% | V86: 27% | W86: 0%
A87: 4702 | B87: Grays Harbor, WA | C87: 46.904156 | D87: -124.176146 | E87: Grays Harbor | F87: WA | G87: 1,679,991 | H87: $411 | I87: 53 | J87: 0.4 | K87: 0 | L87: 16.5 | M87: 0 | N87: 0 | O87: 0.0 | P87: 1% | Q87: 36% | R87: 6% | S87: 0% | T87: 0% | U87: 0% | V87: 0% | W87: 0%
A88: 2335 | B88: Cincinnati, OH | C88: 39.094030 | D88: -84.504500 | E88: Hamilton | F88: OH | G88: 12,708,524 | H88: $71 | I88: 37 | J88: 0.3 | K88: 0 | L88: 16.5 | M88: 0 | N88: 4 | O88: 0.0 | P88: 5% | Q88: 6% | R88: 4% | S88: 0% | T88: 0% | U88: 0% | V88: 3% | W88: 0%
A89: 2268 | B89: Rosedale, MS | C89: 33.777730 | D89: -91.071210 | E89: Desha | F89: MS | G89: 1,452,391 | H89: $301 | I89: 73 | J89: 0.3 | K89: 0 | L89: 16.5 | M89: 0 | N89: 15 | O89: 0.0 | P89: 1% | Q89: 26% | R89: 8% | S89: 0% | T89: 0% | U89: 0% | V89: 12% | W89: 0%
A90: 4725 | B90: Everett, WA | C90: 47.984760 | D90: -122.229400 | E90: Snohomish | F90: WA | G90: 1,379,817 | H90: $411 | I90: 53 | J90: 0.3 | K90: 13,792 | L90: 16.5 | M90: $45,046 | N90: 4 | O90: 0.0 | P90: 1% | Q90: 36% | R90: 6% | S90: 0% | T90: 0% | U90: 10% | V90: 3% | W90: 0%
A91: 2320 | B91: St. Paul, MN | C91: 44.951570 | D91: -93.061900 | E91: Ramsey | F91: MN | G91: 4,753,808 | H91: $138 | I91: 43 | J91: 0.3 | K91: 0 | L91: 16.5 | M91: 0 | N91: 2 | O91: 0.0 | P91: 2% | Q91: 12% | R91: 5% | S91: 0% | T91: 0% | U91: 0% | V91: 2% | W91: 0%
A92: 2411 | B92: Victoria, TX | C92: 28.691310 | D92: -96.972470 | E92: Victoria | F92: TX | G92: 2,792,180 | H92: $507 | I92: 19 | J92: 0.3 | K92: 0 | L92: 16.5 | M92: 0 | N92: 15 | O92: 0.0 | P92: 1% | Q92: 44% | R92: 2% | S92: 0% | T92: 0% | U92: 0% | V92: 12% | W92: 0%
A93: 2298 | B93: Helena, AR | C93: 34.521860 | D93: -90.583230 | E93: Tunica | F93: AR | G93: 1,385,190 | H93: $288 | I93: 67 | J93: 0.3 | K93: 0 | L93: 16.5 | M93: 0 | N93: 12 | O93: 0.0 | P93: 1% | Q93: 25% | R93: 8% | S93: 0% | T93: 0% | U93: 0% | V93: 10% | W93: 0%
A94: 2333 | B94: Louisville, KY | C94: 38.261470 | D94: -85.760993 | E94: Clark | F94: KY | G94: 6,169,971 | H94: $97 | I94: 37 | J94: 0.2 | K94: 0 | L94: 16.5 | M94: 0 | N94: 6 | O94: 0.0 | P94: 3% | Q94: 9% | R94: 4% | S94: 0% | T94: 0% | U94: 0% | V94: 5% | W94: 0%
A95: 3738 | B95: Indiana Harbor, IN | C95: 41.675860 | D95: -87.445470 | E95: Lake | F95: IN | G95: 10,168,960 | H95: $118 | I95: 18 | J95: 0.2 | K95: 0 | L95: 16.5 | M95: 0 | N95: 0 | O95: 0.0 | P95: 4% | Q95: 10% | R95: 2% | S95: 0% | T95: 0% | U95: 0% | V95: 0% | W95: 0%
A96: 2267 | B96: Madison Parish, LA, Port of | C96: 32.494850 | D96: -91.122837 | E96: Warren | F96: LA | G96: 734,557 | H96: $352 | I96: 86 | J96: 0.2 | K96: 0 | L96: 16.5 | M96: 0 | N96: 34 | O96: 0.0 | P96: 0% | Q96: 31% | R96: 10% | S96: 0% | T96: 0% | U96: 0% | V96: 27% | W96: 0%
A97: 784 | B97: Fernandina Beach, FL | C97: 30.669800 | D97: -81.467770 | E97: Nassau County | F97: FL | G97: 734,130 | H97: $474 | I97: 56 | J97: 0.2 | K97: 15,690 | L97: 16.5 | M97: $46,933 | N97: 11 | O97: 0.1 | P97: 0% | Q97: 42% | R97: 6% | S97: 0% | T97: 0% | U97: 10% | V97: 9% | W97: 0%
A98: 2372 | B98: Chattanooga, TN | C98: 35.024480 | D98: -85.326820 | E98: Hamilton | F98: TN | G98: 2,012,662 | H98: $287 | I98: 35 | J98: 0.2 | K98: 0 | L98: 16.5 | M98: 0 | N98: 6 | O98: 0.0 | P98: 1% | Q98: 25% | R98: 4% | S98: 0% | T98: 0% | U98: 0% | V98: 5% | W98: 0%
A99: 4708 | B99: Port Angeles, WA | C99: 48.130500 | D99: -123.453200 | E99: Clallam | F99: WA | G99: 719,892 | H99: $411 | I99: 63 | J99: 0.2 | K99: 0 | L99: 16.5 | M99: 0 | N99: 0 | O99: 0.0 | P99: 0% | Q99: 36% | R99: 7% | S99: 0% | T99: 0% | U99: 0% | V99: 0% | W99: 0%
A100: 3219 | B100: Ashtabula, OH | C100: 41.918730 | D100: -80.791720 | E100: Ashtabula | F100: OH | G100: 6,346,279 | H100: $71 | I100: 42 | J100: 0.2 | K100: 0 | L100: 16.5 | M100: 0 | N100: 0 | O100: 0.0 | P100: 3% | Q100: 6% | R100: 5% | S100: 0% | T100: 0% | U100: 0% | V100: 0% | W100: 0%
A101: 3739 | B101: Burns Waterway Harbor, IN | C101: 41.643250 | D101: -87.155210 | E101: Porter | F101: IN | G101: 6,055,201 | H101: $118 | I101: 26 | J101: 0.2 | K101: 0 | L101: 16.5 | M101: 0 | N101: 0 | O101: 0.0 | P101: 3% | Q101: 10% | R101: 3% | S101: 0% | T101: 0% | U101: 0% | V101: 0% | W101: 0%
A102: 2370 | B102: Nashville, TN | C102: 36.165130 | D102: -86.774670 | E102: Davidson | F102: TN | G102: 2,001,521 | H102: $287 | I102: 33 | J102: 0.2 | K102: 0 | L102: 16.5 | M102: 0 | N102: 3 | O102: 0.0 | P102: 1% | Q102: 25% | R102: 4% | S102: 0% | T102: 0% | U102: 0% | V102: 2% | W102: 0%
A103: 4335 | B103: San Francisco, CA | C103: 37.806665 | D103: -122.399042 | E103: San Francisco | F103: CA | G103: 905,794 | H103: $450 | I103: 44 | J103: 0.2 | K103: 0 | L103: 16.5 | M103: 0 | N103: 0 | O103: 0.0 | P103: 0% | Q103: 39% | R103: 5% | S103: 0% | T103: 0% | U103: 0% | V103: 0% | W103: 0%
A104: 2083 | B104: Gulfport, MS | C104: 30.352160 | D104: -89.085330 | E104: Harrison | F104: MS | G104: 2,079,697 | H104: $301 | I104: 28 | J104: 0.2 | K104: 177,172 | L104: 16.5 | M104: $21,852 | N104: 15 | O104: 0.6 | P104: 1% | Q104: 26% | R104: 3% | S104: 0% | T104: 3% | U104: 5% | V104: 12% | W104: 0%
A105: 4400 | B105: Hilo, HI | C105: 19.728610 | D105: -155.075800 | E105: Hawaii | F105: HI | G105: 1,135,403 | H105: $663 | I105: 28 | J105: 0.2 | K105: 21,494 | L105: 16.5 | M105: $23,570 | N105: 4 | O105: 0.0 | P105: 0% | Q105: 58% | R105: 3% | S105: 0% | T105: 0% | U105: 5% | V105: 3% | W105: 0%
A106: 4930 | B106: Seward, AK | C106: 60.119450 | D106: -149.434400 | E106: Kenai Peninsula | F106: AK | G106: 959,381 | H106: $489 | I106: 33 | J106: 0.2 | K106: 0 | L106: 16.5 | M106: 0 | N106: 0 | O106: 0.0 | P106: 0% | Q106: 43% | R106: 4% | S106: 0% | T106: 0% | U106: 0% | V106: 0% | W106: 0%
A107: 738 | B107: Hopewell, VA | C107: 37.322308 | D107: -77.276338 | E107: Henrico | F107: VA | G107: 1,008,770 | H107: $309 | I107: 49 | J107: 0.2 | K107: 0 | L107: 16.5 | M107: 0 | N107: 0 | O107: 0.0 | P107: 0% | Q107: 27% | R107: 6% | S107: 0% | T107: 0% | U107: 0% | V107: 0% | W107: 0%
A108: 2087 | B108: Morgan City, La, Port of | C108: 29.688462 | D108: -91.211242 | E108: St. Mary | F108: LA | G108: 1,986,244 | H108: $352 | I108: 19 | J108: 0.1 | K108: 0 | L108: 16.5 | M108: 0 | N108: 0 | O108: 0.0 | P108: 1% | Q108: 31% | R108: 2% | S108: 0% | T108: 0% | U108: 0% | V108: 0% | W108: 0%
A109: 4410 | B109: Kahului, Maui, HI | C109: 20.898610 | D109: -156.472800 | E109: Maui | F109: HI | G109: 2,114,105 | H109: $663 | I109: 12 | J109: 0.2 | K109: 58,975 | L109: 16.5 | M109: $23,570 | N109: 0 | O109: 0.0 | P109: 1% | Q109: 58% | R109: 1% | S109: 0% | T109: 1% | U109: 5% | V109: 0% | W109: 0%
A110: 4660 | B110: Coos Bay, OR | C110: 43.363510 | D110: -124.209500 | E110: Coos | F110: OR | G110: 1,586,404 | H110: $232 | I110: 30 | J110: 0.1 | K110: 0 | L110: 16.5 | M110: 0 | N110: 0 | O110: 0.0 | P110: 1% | Q110: 20% | R110: 3% | S110: 0% | T110: 0% | U110: 0% | V110: 0% | W110: 0%
A111: 3736 | B111: Gary, IN | C111: 41.612020 | D111: -87.325130 | E111: Lake | F111: IN | G111: 7,831,215 | H111: $118 | I111: 12 | J111: 0.1 | K111: 0 | L111: 16.5 | M111: 0 | N111: 0 | O111: 0.0 | P111: 3% | Q111: 10% | R111: 1% | S111: 0% | T111: 0% | U111: 0% | V111: 0% | W111: 0%
A112: 3321 | B112: Detroit, MI | C112: 42.269094 | D112: -83.109586 | E112: Wayne | F112: MI | G112: 13,406,493 | H112: $33 | I112: 24 | J112: 0.1 | K112: 0 | L112: 16.5 | M112: 0 | N112: 0 | O112: 0.0 | P112: 6% | Q112: 3% | R112: 3% | S112: 0% | T112: 0% | U112: 0% | V112: 0% | W112: 0%
A113: 3925 | B113: Silver Bay, MN | C113: 47.284330 | D113: -91.275730 | E113: Lake | F113: MN | G113: 6,190,949 | H113: $138 | I113: 12 | J113: 0.1 | K113: 0 | L113: 16.5 | M113: 0 | N113: 0 | O113: 0.0 | P113: 3% | Q113: 12% | R113: 1% | S113: 0% | T113: 0% | U113: 0% | V113: 0% | W113: 0%
A114: 4718 | B114: Olympia, WA | C114: 47.068270 | D114: -122.908900 | E114: Thurston | F114: WA | G114: 1,269,250 | H114: $411 | I114: 19 | J114: 0.1 | K114: 0 | L114: 16.5 | M114: 0 | N114: 0 | O114: 0.0 | P114: 1% | Q114: 36% | R114: 2% | S114: 0% | T114: 0% | U114: 0% | V114: 0% | W114: 0%
A115: 3509 | B115: St. Clair, MI | C115: 42.826630 | D115: -82.494130 | E115: St. Clair | F115: MI | G115: 7,988,201 | H115: $33 | I115: 36 | J115: 0.1 | K115: 0 | L115: 16.5 | M115: 0 | N115: 0 | O115: 0.0 | P115: 3% | Q115: 3% | R115: 4% | S115: 0% | T115: 0% | U115: 0% | V115: 0% | W115: 0%
A116: 3778 | B116: Green Bay, WI | C116: 44.516215 | D116: -88.018118 | E116: Brown | F116: WI | G116: 1,909,845 | H116: $120 | I116: 42 | J116: 0.1 | K116: 0 | L116: 16.5 | M116: 0 | N116: 3 | O116: 0.0 | P116: 1% | Q116: 11% | R116: 5% | S116: 0% | T116: 0% | U116: 0% | V116: 2% | W116: 0%
A117: 3756 | B117: Milwaukee, WI | C117: 42.988240 | D117: -87.899670 | E117: Milwaukee | F117: WI | G117: 2,434,985 | H117: $120 | I117: 32 | J117: 0.1 | K117: 0 | L117: 16.5 | M117: 0 | N117: 0 | O117: 0.0 | P117: 1% | Q117: 11% | R117: 4% | S117: 0% | T117: 0% | U117: 0% | V117: 0% | W117: 0%
A118: 4340 | B118: Redwood City, CA | C118: 37.505360 | D118: -122.214012 | E118: San Mateo | F118: CA | G118: 1,044,502 | H118: $450 | I118: 19 | J118: 0.1 | K118: 0 | L118: 16.5 | M118: 0 | N118: 0 | O118: 0.0 | P118: 0% | Q118: 39% | R118: 2% | S118: 0% | T118: 0% | U118: 0% | V118: 0% | W118: 0%
A119: 297 | B119: Chester, PA | C119: 39.854230 | D119: -75.322200 | E119: Delaware | F119: PA | G119: 1,435,266 | H119: $505 | I119: 14 | J119: 0.1 | K119: 80,553 | L119: 16.5 | M119: $112,431 | N119: 8 | O119: 0.7 | P119: 1% | Q119: 44% | R119: 2% | S119: 0% | T119: 1% | U119: 25% | V119: 6% | W119: 0%
A120: 135 | B120: Portsmouth, NH | C120: 43.073980 | D120: -70.738060 | E120: York | F120: NH | G120: 2,963,931 | H120: $534 | I120: 5 | J120: 0.1 | K120: 0 | L120: 16.5 | M120: 0 | N120: 1 | O120: 0.0 | P120: 1% | Q120: 47% | R120: 1% | S120: 0% | T120: 0% | U120: 0% | V120: 1% | W120: 0%
A121: 3230 | B121: Buffalo, NY | C121: 42.878300 | D121: -78.895260 | E121: Erie | F121: NY | G121: 1,298,279 | H121: $337 | I121: 17 | J121: 0.1 | K121: 0 | L121: 16.5 | M121: 0 | N121: 0 | O121: 0.0 | P121: 1% | Q121: 29% | R121: 2% | S121: 0% | T121: 0% | U121: 0% | V121: 0% | W121: 0%
A122: 2298 | B122: Elvis Stahr Harbor, KY | C122: 36.498428 | D122: -89.415053 | E122: New Madrid | F122: KY | G122: 1,048,522 | H122: $97 | I122: 71 | J122: 0.1 | K122: 0 | L122: 16.5 | M122: 0 | N122: 15 | O122: 0.0 | P122: 0% | Q122: 9% | R122: 8% | S122: 0% | T122: 0% | U122: 0% | V122: 12% | W122: 0%
A123: 2007 | B123: Pensacola, FL | C123: 30.407850 | D123: -87.257930 | E123: Escambia | F123: FL | G123: 848,152 | H123: $474 | I123: 16 | J123: 0.1 | K123: 0 | L123: 16.5 | M123: 0 | N123: 0 | O123: 0.0 | P123: 0% | Q123: 42% | R123: 2% | S123: 0% | T123: 0% | U123: 0% | V123: 0% | W123: 0%
A124: 4430 | B124: Nawiliwili, Kauai, HI | C124: 21.961110 | D124: -159.353100 | E124: Kauai | F124: HI | G124: 876,895 | H124: $663 | I124: 14 | J124: 0.1 | K124: 25,570 | L124: 16.5 | M124: $23,570 | N124: 0 | O124: 0.0 | P124: 0% | Q124: 58% | R124: 2% | S124: 0% | T124: 0% | U124: 5% | V124: 0% | W124: 0%
A125: 3926 | B125: Two Harbors, MN | C125: 47.004280 | D125: -91.662610 | E125: Lake | F125: MN | G125: 13,877,097 | H125: $138 | I125: 3 | J125: 0.1 | K125: 0 | L125: 16.5 | M125: 0 | N125: 0 | O125: 0.0 | P125: 6% | Q125: 12% | R125: 0% | S125: 0% | T125: 0% | U125: 0% | V125: 0% | W125: 0%
A126: 311 | B126: Bridgeport, CT | C126: 41.172000 | D126: -73.178860 | E126: Fairfield | F126: CT | G126: 4,535,476 | H126: $38 | I126: 33 | J126: 0.1 | K126: 0 | L126: 16.5 | M126: 0 | N126: 0 | O126: 0.0 | P126: 2% | Q126: 3% | R126: 4% | S126: 0% | T126: 0% | U126: 0% | V126: 0% | W126: 0%
A127: 4978 | B127: Kivilina, AK | C127: 67.719180 | D127: -164.538900 | E127: Northwest Arctic | F127: AK | G127: 2,950,121 | H127: $489 | I127: 4 | J127: 0.1 | K127: 0 | L127: 16.5 | M127: 0 | N127: 0 | O127: 0.0 | P127: 1% | Q127: 43% | R127: 0% | S127: 0% | T127: 0% | U127: 0% | V127: 0% | W127: 0%
A128: 2385 | B128: Kansas City, MO | C128: 39.115000 | D128: -94.607620 | E128: Platte | F128: MO | G128: 1,671,245 | H128: $107 | I128: 25 | J128: 0.0 | K128: 0 | L128: 16.5 | M128: 0 | N128: 0 | O128: 0.0 | P128: 1% | Q128: 9% | R128: 3% | S128: 0% | T128: 0% | U128: 0% | V128: 0% | W128: 0%
A129: 3620 | B129: Calcite, MI | C129: 45.392930 | D129: -83.775600 | E129: Presque Isle | F129: MI | G129: 4,760,464 | H129: $33 | I129: 25 | J129: 0.0 | K129: 0 | L129: 16.5 | M129: 0 | N129: 0 | O129: 0.0 | P129: 2% | Q129: 3% | R129: 3% | S129: 0% | T129: 0% | U129: 0% | V129: 0% | W129: 0%
A130: 522 | B130: Port Jefferson, NY | C130: 40.948810 | D130: -73.072160 | E130: Suffolk | F130: NY | G130: 1,121,475 | H130: $337 | I130: 10 | J130: 0.0 | K130: 0 | L130: 16.5 | M130: 0 | N130: 1 | O130: 0.0 | P130: 0% | Q130: 29% | R130: 1% | S130: 0% | T130: 0% | U130: 0% | V130: 1% | W130: 0%
A131: 3212 | B131: Marblehead, OH | C131: 41.529620 | D131: -82.709060 | E131: Ottawa | F131: OH | G131: 2,588,092 | H131: $71 | I131: 20 | J131: 0.0 | K131: 0 | L131: 16.5 | M131: 0 | N131: 0 | O131: 0.0 | P131: 1% | Q131: 6% | R131: 2% | S131: 0% | T131: 0% | U131: 0% | V131: 0% | W131: 0%
A132: 2301 | B132: Southeast Missouri Port, MO | C132: 37.973320 | D132: -89.934880 | E132: Randolph | F132: MO | G132: 890,290 | H132: $107 | I132: 35 | J132: 0.0 | K132: 0 | L132: 16.5 | M132: 0 | N132: 7 | O132: 0.0 | P132: 0% | Q132: 9% | R132: 4% | S132: 0% | T132: 0% | U132: 0% | V132: 6% | W132: 0%
A133: 3213 | B133: Sandusky, OH | C133: 41.470220 | D133: -82.712270 | E133: Erie | F133: OH | G133: 2,304,141 | H133: $71 | I133: 19 | J133: 0.0 | K133: 0 | L133: 16.5 | M133: 0 | N133: 0 | O133: 0.0 | P133: 1% | Q133: 6% | R133: 2% | S133: 0% | T133: 0% | U133: 0% | V133: 0% | W133: 0%
A134: 3619 | B134: Stoneport, MI | C134: 45.280730 | D134: -83.470310 | E134: Presque Isle | F134: MI | G134: 5,648,756 | H134: $33 | I134: 16 | J134: 0.0 | K134: 0 | L134: 16.5 | M134: 0 | N134: 0 | O134: 0.0 | P134: 2% | Q134: 3% | R134: 2% | S134: 0% | T134: 0% | U134: 0% | V134: 0% | W134: 0%
A135: 514 | B135: Hempstead, NY | C135: 40.873610 | D135: -73.673320 | E135: Nassau | F135: NY | G135: 869,647 | H135: $337 | I135: 10 | J135: 0.0 | K135: 0 | L135: 16.5 | M135: 0 | N135: 1 | O135: 0.0 | P135: 0% | Q135: 29% | R135: 1% | S135: 0% | T135: 0% | U135: 0% | V135: 1% | W135: 0%
A136: 3202 | B136: Monroe, MI | C136: 41.915134 | D136: -83.390609 | E136: Monroe | F136: MI | G136: 2,412,543 | H136: $33 | I136: 36 | J136: 0.0 | K136: 0 | L136: 16.5 | M136: 0 | N136: 0 | O136: 0.0 | P136: 1% | Q136: 3% | R136: 4% | S136: 0% | T136: 0% | U136: 0% | V136: 0% | W136: 0%
A137: 3220 | B137: Conneaut, OH | C137: 41.966710 | D137: -80.548600 | E137: Erie | F137: OH | G137: 3,558,487 | H137: $71 | I137: 11 | J137: 0.0 | K137: 0 | L137: 16.5 | M137: 0 | N137: 0 | O137: 0.0 | P137: 2% | Q137: 6% | R137: 1% | S137: 0% | T137: 0% | U137: 0% | V137: 0% | W137: 0%
A138: 3218 | B138: Fairport Harbor, OH | C138: 41.766660 | D138: -81.294070 | E138: Lake | F138: OH | G138: 1,498,425 | H138: $71 | I138: 20 | J138: 0.0 | K138: 0 | L138: 16.5 | M138: 0 | N138: 0 | O138: 0.0 | P138: 1% | Q138: 6% | R138: 2% | S138: 0% | T138: 0% | U138: 0% | V138: 0% | W138: 0%
A139: 3845 | B139: Presque Isle, MI | C139: 46.577367 | D139: -87.385166 | E139: Marquette | F139: MI | G139: 8,720,506 | H139: $33 | I139: 7 | J139: 0.0 | K139: 0 | L139: 16.5 | M139: 0 | N139: 0 | O139: 0.0 | P139: 4% | Q139: 3% | R139: 1% | S139: 0% | T139: 0% | U139: 0% | V139: 0% | W139: 0%
A140: 3803 | B140: Port Inland, MI | C140: 45.955080 | D140: -85.862790 | E140: Schoolcraft | F140: MI | G140: 4,694,580 | H140: $33 | I140: 13 | J140: 0.0 | K140: 0 | L140: 16.5 | M140: 0 | N140: 0 | O140: 0.0 | P140: 2% | Q140: 3% | R140: 1% | S140: 0% | T140: 0% | U140: 0% | V140: 0% | W140: 0%
A141: 737 | B141: Richmond, VA | C141: 37.457010 | D141: -77.419360 | E141: Henrico | F141: VA | G141: 857,808 | H141: $309 | I141: 6 | J141: 0.0 | K141: 3,447 | L141: 16.5 | M141: $68,631 | N141: 4 | O141: 0.0 | P141: 0% | Q141: 27% | R141: 1% | S141: 0% | T141: 0% | U141: 15% | V141: 3% | W141: 0%
A142: 3627 | B142: Port Dolomite, MI | C142: 45.991390 | D142: -84.312810 | E142: Mackinac | F142: MI | G142: 3,248,590 | H142: $33 | I142: 14 | J142: 0.0 | K142: 0 | L142: 16.5 | M142: 0 | N142: 0 | O142: 0.0 | P142: 1% | Q142: 3% | R142: 2% | S142: 0% | T142: 0% | U142: 0% | V142: 0% | W142: 0%
A143: 3617 | B143: Alpena, MI | C143: 45.055600 | D143: -83.422270 | E143: Alpena | F143: MI | G143: 2,148,171 | H143: $33 | I143: 20 | J143: 0.0 | K143: 0 | L143: 16.5 | M143: 0 | N143: 0 | O143: 0.0 | P143: 1% | Q143: 3% | R143: 2% | S143: 0% | T143: 0% | U143: 0% | V143: 0% | W143: 0%
A144: 3795 | B144: Escanaba, MI | C144: 45.733509 | D144: -87.024999 | E144: Delta | F144: MI | G144: 4,735,674 | H144: $33 | I144: 9 | J144: 0.0 | K144: 0 | L144: 16.5 | M144: 0 | N144: 0 | O144: 0.0 | P144: 2% | Q144: 3% | R144: 1% | S144: 0% | T144: 0% | U144: 0% | V144: 0% | W144: 0%
A145: 3728 | B145: Grand Haven, MI | C145: 43.066940 | D145: -86.235570 | E145: Ottawa | F145: MI | G145: 762,998 | H145: $33 | I145: 36 | J145: 0.0 | K145: 0 | L145: 16.5 | M145: 0 | N145: 0 | O145: 0.0 | P145: 0% | Q145: 3% | R145: 4% | S145: 0% | T145: 0% | U145: 0% | V145: 0% | W145: 0%
A146: 3725 | B146: Muskegon, MI | C146: 43.194920 | D146: -86.350140 | E146: Muskegon | F146: MI | G146: 1,478,753 | H146: $33 | I146: 16 | J146: 0.0 | K146: 0 | L146: 16.5 | M146: 0 | N146: 0 | O146: 0.0 | P146: 1% | Q146: 3% | R146: 2% | S146: 0% | T146: 0% | U146: 0% | V146: 0% | W146: 0%
A147: 3216 | B147: Lorain, OH | C147: 41.482480 | D147: -82.195140 | E147: Lorain | F147: OH | G147: 852,982 | H147: $71 | I147: 10 | J147: 0.0 | K147: 0 | L147: 16.5 | M147: 0 | N147: 0 | O147: 0.0 | P147: 0% | Q147: 6% | R147: 1% | S147: 0% | T147: 0% | U147: 0% | V147: 0% | W147: 0%
A148: 3214 | B148: Huron, OH | C148: 41.405000 | D148: -82.543990 | E148: Erie | F148: OH | G148: 716,514 | H148: $71 | I148: 11 | J148: 0.0 | K148: 0 | L148: 16.5 | M148: 0 | N148: 0 | O148: 0.0 | P148: 0% | Q148: 6% | R148: 1% | S148: 0% | T148: 0% | U148: 0% | V148: 0% | W148: 0%
A149: 3737 | B149: Buffington, IN | C149: 41.645230 | D149: -87.416140 | E149: Lake | F149: IN | G149: 1,128,061 | H149: $118 | I149: 3 | J149: 0.0 | K149: 0 | L149: 16.5 | M149: 0 | N149: 0 | O149: 0.0 | P149: 0% | Q149: 10% | R149: 0% | S149: 0% | T149: 0% | U149: 0% | V149: 0% | W149: 0%
A150: 3813 | B150: Drummond Island, MI | C150: 45.992450 | D150: -83.885560 | E150: Chippewa | F150: MI | G150: 1,069,169 | H150: $33 | I150: 10 | J150: 0.0 | K150: 0 | L150: 16.5 | M150: 0 | N150: 0 | O150: 0.0 | P150: 0% | Q150: 3% | R150: 1% | S150: 0% | T150: 0% | U150: 0% | V150: 0% | W150: 0%
A151: 3844 | B151: Marquette, MI | C151: 46.511130 | D151: -87.287030 | E151: Marquette | F151: MI | G151: 1,009,550 | H151: $33 | I151: 4 | J151: 0.0 | K151: 0 | L151: 16.5 | M151: 0 | N151: 0 | O151: 0.0 | P151: 0% | Q151: 3% | R151: 0% | S151: 0% | T151: 0% | U151: 0% | V151: 0% | W151: 0%

Sheet Air (hidden)
B1: 1 | C1: 2 | D1: 3 | E1: 4 | F1: 5 | G1: 6 | H1: 7 | I1: 8 | J1: 9 | K1: 10 | L1: 11 | M1: 12 | N1: 13 | O1: 14 | P1: 15 | Q1: 16 | R1: 17 | S1: 18 | T1: 19
A2: Location | G2: Passengers | J2: Freight | N2: % of Pax. Max | Q2: % of Freight Max
A3: Airport Code | B3: Airport Name | C3: Latitude | D3: Longitude | E3: County | F3: State | G3: Activity | H3: Connectivity | I3: Total | J3: Activity (Tons) | K3: Value ($/ton) | L3: Connections | M3: Freight | N3: Activity | O3: Connections | P3: Connectivity | Q3: Activity | R3: Value | S3: Connections | T3: Connectivity
A4: MEM | B4: Memphis Intl Airport | C4: 35.04241667 | D4: -89.97666667 | E4: SHELBY | F4: TN | G4: 10,008,108 | H4: 185 | I4: 18.5 | J4: 4,313,726 | K4: $129,324 | L4: 198 | M4: 1104.6 | N4: 12% | O4: 51% | P4: 6% | Q4: 85% | R4: 57% | S4: 48% | T4: 100%
A5: ANC | B5: Anchorage Intl Airport | C5: 61.17436111 | D5: -149.9963611 | E5: ANCHORAGE | F5: AK | G5: 4,647,560 | H5: 179 | I5: 8.3 | J5: 5,069,125 | K5: $79,182 | L5: 192 | M5: 770.7 | N5: 5% | O5: 49% | P5: 3% | Q5: 100% | R5: 35% | S5: 46% | T5: 70%
A6: JFK | B6: John F Kennedy Intl Arpt | C6: 40.63975111 | D6: -73.77892556 | E6: QUEENS | F6: NY | G6: 46,055,070 | H6: 309 | I6: 142.3 | J6: 1,632,163 | K6: $112,940 | L6: 335 | M6: 617.5 | N6: 53% | O6: 85% | P6: 45% | Q6: 32% | R6: 50% | S6: 81% | T6: 56%
A7: LAX | B7: Los Angeles Intl Airport | C7: 33.94252222 | D7: -118.4071611 | E7: LOS ANGELES | F7: CA | G7: 59,053,874 | H7: 316 | I7: 186.6 | J7: 1,969,715 | K7: $85,937 | L7: 360 | M7: 609.4 | N7: 68% | O7: 87% | P7: 59% | Q7: 39% | R7: 38% | S7: 87% | T7: 55%
A8: ORD | B8: O'Hare Intl Airport | C8: 41.98164861 | D8: -87.90667142 | E8: COOK | F8: IL | G8: 65,034,153 | H8: 318 | I8: 206.8 | J8: 1,715,059 | K8: $76,316 | L8: 413 | M8: 540.6 | N8: 75% | O8: 88% | P8: 66% | Q8: 34% | R8: 34% | S8: 100% | T8: 49%
A9: MIA | B9: Miami Intl Airport | C9: 25.79536111 | D9: -80.29011111 | E9: DADE | F9: FL | G9: 34,192,691 | H9: 335 | I9: 114.5 | J9: 2,031,543 | K9: $61,499 | L9: 357 | M9: 446.0 | N9: 39% | O9: 92% | P9: 36% | Q9: 40% | R9: 27% | S9: 86% | T9: 40%
A10: EWR | B10: Newark Intl Airport | C10: 40.6925 | D10: -74.16866667 | E10: ESSEX | F10: NJ | G10: 33,168,396 | H10: 307 | I10: 101.8 | J10: 927,041 | K10: $108,321 | L10: 332 | M10: 333.4 | N10: 38% | O10: 85% | P10: 32% | Q10: 18% | R10: 48% | S10: 80% | T10: 30%
A11: SDF | B11: Louisville- Kentucky | C11: 38.17408583 | D11: -85.73649889 | E11: JEFFERSON | F11: KY | G11: 3,368,255 | H11: 125 | I11: 4.2 | J11: 2,394,196 | K11: $79,716 | L11: 134 | M11: 255.7 | N11: 4% | O11: 34% | P11: 1% | Q11: 47% | R11: 35% | S11: 32% | T11: 23%
A12: DEN | B12: Denver Intl Airport | C12: 39.86165639 | D12: -104.6731775 | E12: DENVER | F12: CO | G12: 51,642,819 | H12: 275 | I12: 142.0 | J12: 297,807 | K12: $189,992 | L12: 315 | M12: 178.2 | N12: 60% | O12: 76% | P12: 45% | Q12: 6% | R12: 84% | S12: 76% | T12: 16%
A13: ATL | B13: William B Hartsfield Intl | C13: 33.63672 | D13: -84.42806611 | E13: FULTON | F13: GA | G13: 86,733,741 | H13: 363 | I13: 314.8 | J13: 829,815 | K13: $83,392 | L13: 332 | M13: 229.7 | N13: 100% | O13: 100% | P13: 100% | Q13: 16% | R13: 37% | S13: 80% | T13: 21%
A14: DFW | B14: Dallas/Ft Worth Intl | C14: 32.89682806 | D14: -97.03799583 | E14: TARRANT | F14: TX | G14: 54,812,634 | H14: 254 | I14: 139.2 | J14: 834,141 | K14: $98,817 | L14: 287 | M14: 236.6 | N14: 63% | O14: 70% | P14: 44% | Q14: 16% | R14: 44% | S14: 69% | T14: 21%
A15: IND | B15: Indianapolis- Indiana | C15: 39.71729914 | D15: -86.29466119 | E15: MARION | F15: IN | G15: 7,513,305 | H15: 164 | I15: 12.3 | J15: 1,041,228 | K15: $103,193 | L15: 175 | M15: 188.0 | N15: 9% | O15: 45% | P15: 4% | Q15: 21% | R15: 46% | S15: 42% | T15: 17%
A16: PHL | B16: Philadelphia Intl Arpt | C16: 39.87224944 | D16: -75.24086583 | E16: PHILADELPHIA | F16: PA | G16: 30,444,142 | H16: 255 | I16: 77.6 | J16: 516,146 | K16: $104,076 | L16: 245 | M16: 131.6 | N16: 35% | O16: 70% | P16: 25% | Q16: 10% | R16: 46% | S16: 59% | T16: 12%
A17: IAH | B17: Houston Intercontinental | C17: 29.98443361 | D17: -95.34144222 | E17: HARRIS | F17: TX | G17: 39,196,239 | H17: 268 | I17: 105.0 | J17: 515,487 | K17: $98,817 | L17: 284 | M17: 144.7 | N17: 45% | O17: 74% | P17: 33% | Q17: 10% | R17: 44% | S17: 69% | T17: 13%
A18: CVG | B18: Cincinnati/N Kentucky | C18: 39.04883667 | D18: -84.66782222 | E18: BOONE | F18: KY | G18: 7,913,970 | H18: 161 | I18: 12.7 | J18: 427,932 | K18: $79,716 | L18: 300 | M18: 102.3 | N18: 9% | O18: 44% | P18: 4% | Q18: 8% | R18: 35% | S18: 73% | T18: 9%
A19: SEA | B19: Seattle/Tacoma Intl Arpt | C19: 47.44988889 | D19: -122.3117778 | E19: KING | F19: WA | G19: 31,024,589 | H19: 183 | I19: 56.8 | J19: 420,455 | K19: $94,522 | L19: 208 | M19: 82.7 | N19: 36% | O19: 50% | P19: 18% | Q19: 8% | R19: 42% | S19: 50% | T19: 7%
A20: IAD | B20: Dulles Intl Airport | C20: 38.94744444 | D20: -77.45994444 | E20: LOUDOUN | F20: VA | G20: 22,943,912 | H20: 313 | I20: 71.8 | J20: 360,227 | K20: $94,436 | L20: 295 | M20: 100.4 | N20: 26% | O20: 86% | P20: 23% | Q20: 7% | R20: 42% | S20: 71% | T20: 9%
A21: SFO | B21: San Francisco Intl Arpt | C21: 37.61897222 | D21: -122.3748889 | E21: SAN MATEO | F21: CA | G21: 39,120,291 | H21: 214 | I21: 83.7 | J21: 535,232 | K21: $85,937 | L21: 224 | M21: 103.0 | N21: 45% | O21: 59% | P21: 27% | Q21: 11% | R21: 38% | S21: 54% | T21: 9%
A22: MSP | B22: St Paul Intl Airport | C22: 44.88195667 | D22: -93.22176556 | E22: HENNEPIN | F22: MN | G22: 31,384,960 | H22: 322 | I22: 101.1 | J22: 246,903 | K22: $99,956 | L22: 363 | M22: 89.6 | N22: 36% | O22: 89% | P22: 32% | Q22: 5% | R22: 44% | S22: 88% | T22: 8%
A23: BOS | B23: Logan Intl Airport | C23: 42.36297222 | D23: -71.00641667 | E23: SUFFOLK | F23: MA | G23: 27,198,702 | H23: 269 | I23: 73.2 | J23: 291,183 | K23: $116,435 | L23: 234 | M23: 79.3 | N23: 31% | O23: 74% | P23: 23% | Q23: 6% | R23: 52% | S23: 57% | T23: 7%
A24: OAK | B24: Metropolitan Oakland Arpt | C24: 37.72127778 | D24: -122.2207222 | E24: ALAMEDA | F24: CA | G24: 9,774,127 | H24: 139 | I24: 13.6 | J24: 558,337 | K24: $85,937 | L24: 134 | M24: 64.3 | N24: 11% | O24: 38% | P24: 4% | Q24: 11% | R24: 38% | S24: 32% | T24: 6%
A25: PDX | B25: Portland- Oregon | C25: 45.58870886 | D25: -122.5968694 | E25: MULTNOMAH | F25: OR | G25: 13,331,863 | H25: 131 | I25: 17.5 | J25: 218,204 | K25: $66,859 | L25: 168 | M25: 24.5 | N25: 15% | O25: 36% | P25: 6% | Q25: 4% | R25: 30% | S25: 41% | T25: 2%
A26: PHX | B26: Sky Harbor Intl Airport | C26: 33.43427778 | D26: -112.0115833 | E26: MARICOPA | F26: AZ | G26: 39,338,123 | H26: 218 | I26: 85.8 | J26: 285,302 | K26: $99,194 | L26: 218 | M26: 61.7 | N26: 45% | O26: 60% | P26: 27% | Q26: 6% | R26: 44% | S26: 53% | T26: 6%
A27: MHT | B27: Manchester- New Hampshire | C27: 42.93280556 | D27: -71.43575 | E27: HILLSBOROUGH | F27: NH | G27: 2,781,302 | H27: 77 | I27: 2.1 | J27: 94,866 | K27: $225,288 | L27: 131 | M27: 28.0 | N27: 3% | O27: 21% | P27: 1% | Q27: 2% | R27: 100% | S27: 32% | T27: 3%
A28: MCO | B28: Orlando Intl Airport | C28: 28.42939361 | D28: -81.30899306 | E28: ORANGE | F28: FL | G28: 34,489,239 | H28: 240 | I28: 82.8 | J28: 194,022 | K28: $61,499 | L28: 274 | M28: 32.7 | N28: 40% | O28: 66% | P28: 26% | Q28: 4% | R28: 27% | S28: 66% | T28: 3%
A29: ONT | B29: Ontario Intl Airport | C29: 34.056 | D29: -117.6011944 | E29: SAN BERNARDINO | F29: CA | G29: 4,872,174 | H29: 92 | I29: 4.5 | J29: 465,237 | K29: $85,937 | L29: 75 | M29: 30.0 | N29: 6% | O29: 25% | P29: 1% | Q29: 9% | R29: 38% | S29: 18% | T29: 3%
A30: HNL | B30: Honolulu- Oahu- Hawaii | C30: 21.31868128 | D30: -157.9224287 | E30: HONOLULU | F30: HI | G30: 17,559,496 | H30: 81 | I30: 14.2 | J30: 608,651 | K30: $35,478 | L30: 116 | M30: 25.0 | N30: 20% | O30: 22% | P30: 5% | Q30: 12% | R30: 16% | S30: 28% | T30: 2%
A31: DTW | B31: Wayne County Airport | C31: 42.21244444 | D31: -83.35338889 | E31: WAYNE | F31: MI | G31: 31,529,034 | H31: 266 | I31: 83.9 | J31: 206,099 | K31: $52,330 | L31: 254 | M31: 27.4 | N31: 36% | O31: 73% | P31: 27% | Q31: 4% | R31: 23% | S31: 62% | T31: 2%
A32: BDL | B32: Bradley Intl Airport | C32: 41.93888889 | D32: -72.68322222 | E32: HARTFORD | F32: CT | G32: 5,311,192 | H32: 149 | I32: 7.9 | J32: 130,772 | K32: $81,228 | L32: 135 | M32: 14.3 | N32: 6% | O32: 41% | P32: 3% | Q32: 3% | R32: 36% | S32: 33% | T32: 1%
A33: CLT | B33: Charlotte- North Carolina | C33: 35.21374067 | D33: -80.94906903 | E33: MECKLENBURG | F33: NC | G33: 37,950,293 | H33: 203 | I33: 77.0 | J33: 137,609 | K33: $76,450 | L33: 221 | M33: 23.2 | N33: 44% | O33: 56% | P33: 24% | Q33: 3% | R33: 34% | S33: 54% | T33: 2%
A34: SAT | B34: San Antonio Intl Airport | C34: 29.53369444 | D34: -98.46977778 | E34: BEXAR | F34: TX | G34: 8,238,824 | H34: 157 | I34: 12.9 | J34: 144,422 | K34: $98,817 | L34: 173 | M34: 24.7 | N34: 9% | O34: 43% | P34: 4% | Q34: 3% | R34: 44% | S34: 42% | T34: 2%
A35: ABQ | B35: Albuquerque Intl Airport | C35: 35.04019444 | D35: -106.6091944 | E35: BERNALILLO | F35: NM | G35: 6,322,111 | H35: 110 | I35: 7.0 | J35: 113,463 | K35: $146,651 | L35: 104 | M35: 17.3 | N35: 7% | O35: 30% | P35: 2% | Q35: 2% | R35: 65% | S35: 25% | T35: 2%
A36: SLC | B36: Salt Lake City Intl Arpt | C36: 40.78838778 | D36: -111.9777731 | E36: SALT LAKE | F36: UT | G36: 20,299,906 | H36: 177 | I36: 35.9 | J36: 180,905 | K36: $47,090 | L36: 182 | M36: 15.5 | N36: 23% | O36: 49% | P36: 11% | Q36: 4% | R36: 21% | S36: 44% | T36: 1%
A37: PIT | B37: Pittsburgh Intl Airport | C37: 40.49147222 | D37: -80.23286111 | E37: ALLEGHENY | F37: PA | G37: 8,122,954 | H37: 190 | I37: 15.4 | J37: 87,319 | K37: $104,076 | L37: 203 | M37: 18.4 | N37: 9% | O37: 52% | P37: 5% | Q37: 2% | R37: 46% | S37: 49% | T37: 2%
A38: SAN | B38: Lindberg Field | C38: 32.73355556 | D38: -117.1896667 | E38: SAN DIEGO | F38: CA | G38: 17,234,321 | H38: 129 | I38: 22.2 | J38: 138,151 | K38: $85,937 | L38: 145 | M38: 17.2 | N38: 20% | O38: 36% | P38: 7% | Q38: 3% | R38: 38% | S38: 35% | T38: 2%
A39: BFI | B39: Boeing Field Intl Arpt | C39: 47.53 | D39: -122.3019722 | E39: KING | F39: WA | G39: 63,393 | H39: 106 | I39: 0.1 | J39: 123,009 | K39: $94,522 | L39: 103 | M39: 12.0 | N39: 0% | O39: 29% | P39: 0% | Q39: 2% | R39: 42% | S39: 25% | T39: 1%
A40: BNA | B40: Nashville- Tennessee | C40: 36.12447222 | D40: -86.67819444 | E40: DAVIDSON | F40: TN | G40: 9,507,891 | H40: 189 | I40: 18.0 | J40: 48,453 | K40: $129,324 | L40: 213 | M40: 13.3 | N40: 11% | O40: 52% | P40: 6% | Q40: 1% | R40: 57% | S40: 52% | T40: 1%
A41: RDU | B41: Raleigh/Durham- NC | C41: 35.87763889 | D41: -78.78747222 | E41: WAKE | F41: NC | G41: 9,036,071 | H41: 180 | I41: 16.3 | J41: 96,201 | K41: $76,450 | L41: 199 | M41: 14.6 | N41: 10% | O41: 50% | P41: 5% | Q41: 2% | R41: 34% | S41: 48% | T41: 1%
A42: MCI | B42: Kansas City Intl Arpt | C42: 39.29760528 | D42: -94.71390556 | E42: PLATTE | F42: MO | G42: 10,518,288 | H42: 166 | I42: 17.5 | J42: 97,922 | K42: $77,032 | L42: 163 | M42: 12.3 | N42: 12% | O42: 46% | P42: 6% | Q42: 2% | R42: 34% | S42: 39% | T42: 1%
A43: STL | B43: Lambert-St Louis Intl Ap | C43: 38.74869722 | D43: -90.37002889 | E43: ST LOUIS CITY | F43: MO | G43: 12,807,535 | H43: 178 | I43: 22.8 | J43: 84,840 | K43: $77,032 | L43: 186 | M43: 12.2 | N43: 15% | O43: 49% | P43: 7% | Q43: 2% | R43: 34% | S43: 45% | T43: 1%
A44: TYS | B44: Knoxville- Tennessee | C44: 35.81097222 | D44: -83.99402778 | E44: BLOUNT | F44: TN | G44: 1,621,226 | H44: 158 | I44: 2.6 | J44: 53,942 | K44: $129,324 | L44: 183 | M44: 12.8 | N44: 2% | O44: 44% | P44: 1% | Q44: 1% | R44: 57% | S44: 44% | T44: 1%
A45: AUS | B45: Robert Mueller Municipal | C45: 30.19452778 | D45: -97.66988889 | E45: TRAVIS | F45: TX | G45: 8,810,889 | H45: 168 | I45: 14.8 | J45: 95,011 | K45: $98,817 | L45: 167 | M45: 15.7 | N45: 10% | O45: 46% | P45: 5% | Q45: 2% | R45: 44% | S45: 40% | T45: 1%
A46: SJC | B46: San Jose Municipal Arpt | C46: 37.36266667 | D46: -121.9291111 | E46: SANTA CLARA | F46: CA | G46: 8,408,944 | H46: 129 | I46: 10.8 | J46: 63,091 | K46: $85,937 | L46: 257 | M46: 13.9 | N46: 10% | O46: 36% | P46: 3% | Q46: 1% | R46: 38% | S46: 62% | T46: 1%
A47: FSD | B47: Sioux Falls- South Dakota | C47: 43.58201333 | D47: -96.74191361 | E47: MINNEHAHA | F47: SD | G47: 722,235 | H47: 66 | I47: 0.5 | J47: 50,318 | K47: $131,230 | L47: 142 | M47: 9.4 | N47: 1% | O47: 18% | P47: 0% | Q47: 1% | R47: 58% | S47: 34% | T47: 1%
A48: FLL | B48: Fort Lauderdale Intl | C48: 26.07258333 | D48: -80.15275 | E48: BROWARD | F48: FL | G48: 21,854,098 | H48: 215 | I48: 47.0 | J48: 100,418 | K48: $61,499 | L48: 200 | M48: 12.4 | N48: 25% | O48: 59% | P48: 15% | Q48: 2% | R48: 27% | S48: 48% | T48: 1%
A49: LAS | B49: McCarran Intl Airport | C49: 36.08005556 | D49: -115.15225 | E49: CLARK | F49: NV | G49: 38,878,638 | H49: 252 | I49: 98.0 | J49: 110,225 | K49: $24,564 | L49: 273 | M49: 7.4 | N49: 45% | O49: 69% | P49: 31% | Q49: 2% | R49: 11% | S49: 66% | T49: 1%
A50: MKE | B50: Milwaukee- Wisconsin | C50: 42.94721072 | D50: -87.89672956 | E50: MILWAUKEE | F50: WI | G50: 9,750,308 | H50: 186 | I50: 18.1 | J50: 90,894 | K50: $57,046 | L50: 192 | M50: 10.0 | N50: 11% | O50: 51% | P50: 6% | Q50: 2% | R50: 25% | S50: 46% | T50: 1%
A51: CLE | B51: Hopkins Intl Airport | C51: 41.40941669 | D51: -81.85498044 | E51: CUYAHOGA | F51: OH | G51: 9,238,504 | H51: 201 | I51: 18.6 | J51: 85,609 | K51: $89,692 | L51: 205 | M51: 15.7 | N51: 11% | O51: 55% | P51: 6% | Q51: 2% | R51: 40% | S51: 50% | T51: 1%
A52: DSM | B52: Des Moines- Iowa | C52: 41.53397222 | D52: -93.66308333 | E52: POLK | F52: IA | G52: 1,807,533 | H52: 129 | I52: 2.3 | J52: 79,721 | K52: $68,340 | L52: 202 | M52: 11.0 | N52: 2% | O52: 36% | P52: 1% | Q52: 2% | R52: 30% | S52: 49% | T52: 1%
A53: GSO | B53: Greensboro/High Point- NC | C53: 36.10132586 | D53: -79.94112344 | E53: GUILFORD | F53: NC | G53: 1,708,775 | H53: 109 | I53: 1.9 | J53: 88,263 | K53: $76,450 | L53: 134 | M53: 9.0 | N53: 2% | O53: 30% | P53: 1% | Q53: 2% | R53: 34% | S53: 32% | T53: 1%
A54: TPA | B54: Tampa Intl Airport | C54: 27.97547222 | D54: -82.53325 | E54: HILLSBOROUGH | F54: FL | G54: 16,632,258 | H54: 153 | I54: 25.4 | J54: 91,640 | K54: $61,499 | L54: 169 | M54: 9.5 | N54: 19% | O54: 42% | P54: 8% | Q54: 2% | R54: 27% | S54: 41% | T54: 1%
A55: TOL | B55: Toledo- Ohio | C55: 41.58680556 | D55: -83.80783333 | E55: LUCAS | F55: OH | G55: 182,320 | H55: 75 | I55: 0.1 | J55: 194,200 | K55: $89,692 | L55: 76 | M55: 13.2 | N55: 0% | O55: 21% | P55: 0% | Q55: 4% | R55: 40% | S55: 18% | T55: 1%
A56: BUR | B56: Hollywood-Burbank Airport | C56: 34.20066667 | D56: -118.3586667 | E56: LOS ANGELES | F56: CA | G56: 4,619,403 | H56: 197 | I56: 9.1 | J56: 51,181 | K56: $85,937 | L56: 204 | M56: 9.0 | N56: 5% | O56: 54% | P56: 3% | Q56: 1% | R56: 38% | S56: 49% | T56: 1%
A57: BOI | B57: Boise- Idaho | C57: 43.56436111 | D57: -116.2228611 | E57: ADA | F57: ID | G57: 2,948,354 | H57: 73 | I57: 2.2 | J57: 42,852 | K57: $169,945 | L57: 78 | M57: 5.7 | N57: 3% | O57: 20% | P57: 1% | Q57: 1% | R57: 75% | S57: 19% | T57: 1%
A58: GEG | B58: Spokane Intl Airport | C58: 47.61902778 | D58: -117.5352222 | E58: SPOKANE | F58: WA | G58: 3,127,479 | H58: 80 | I58: 2.5 | J58: 79,239 | K58: $94,522 | L58: 82 | M58: 6.1 | N58: 4% | O58: 22% | P58: 1% | Q58: 2% | R58: 42% | S58: 20% | T58: 1%
A59: BUF | B59: Buffalo- New York | C59: 42.94052472 | D59: -78.73216667 | E59: ERIE | F59: NY | G59: 5,199,565 | H59: 134 | I59: 7.0 | J59: 49,242 | K59: $112,940 | L59: 139 | M59: 7.7 | N59: 6% | O59: 37% | P59: 2% | Q59: 1% | R59: 50% | S59: 34% | T59: 1%
A60: SYR | B60: Syracuse- New York | C60: 43.11118694 | D60: -76.10631056 | E60: ONONDAGA | F60: NY | G60: 2,059,025 | H60: 112 | I60: 2.3 | J60: 51,797 | K60: $112,940 | L60: 132 | M60: 7.7 | N60: 2% | O60: 31% | P60: 1% | Q60: 1% | R60: 50% | S60: 32% | T60: 1%
A61: ELP | B61: El Paso Intl Airport | C61: 31.80725 | D61: -106.3775556 | E61: EL PASO | F61: TX | G61: 3,523,233 | H61: 85 | I61: 3.0 | J61: 93,788 | K61: $98,817 | L61: 91 | M61: 8.4 | N61: 4% | O61: 23% | P61: 1% | Q61: 2% | R61: 44% | S61: 22% | T61: 1%
A62: LIT | B62: Little Rock Regional Arpt | C62: 34.72944444 | D62: -92.22477778 | E62: PULASKI | F62: AR | G62: 2,362,625 | H62: 102 | I62: 2.4 | J62: 23,872 | K62: $145,559 | L62: 174 | M62: 6.0 | N62: 3% | O62: 28% | P62: 1% | Q62: 0% | R62: 65% | S62: 42% | T62: 1%
A63: BWI | B63: Baltimore/Wash Intl- MD | C63: 39.17536111 | D63: -76.66833333 | E63: ANNE ARUNDEL | F63: MD | G63: 22,427,392 | H63: 207 | I63: 46.4 | J63: 108,918 | K63: $88,592 | L63: 151 | M63: 14.6 | N63: 26% | O63: 57% | P63: 15% | Q63: 2% | R63: 39% | S63: 37% | T63: 1%
A64: SMF | B64: Sacramento Metropolitan Ap | C64: 38.69541667 | D64: -121.5907778 | E64: SACRAMENTO | F64: CA | G64: 9,161,336 | H64: 109 | I64: 10.0 | J64: 68,719 | K64: $85,937 | L64: 124 | M64: 7.3 | N64: 11% | O64: 30% | P64: 3% | Q64: 1% | R64: 38% | S64: 30% | T64: 1%
A65: JAX | B65: Jacksonville Intl Arpt | C65: 30.49405556 | D65: -81.68786111 | E65: DUVAL | F65: FL | G65: 5,672,174 | H65: 132 | I65: 7.5 | J65: 80,784 | K65: $61,499 | L65: 128 | M65: 6.4 | N65: 7% | O65: 36% | P65: 2% | Q65: 2% | R65: 27% | S65: 31% | T65: 1%
A66: LBB | B66: Lubbock Intl Airport | C66: 33.66363889 | D66: -101.8227778 | E66: LUBBOCK | F66: TX | G66: 1,052,455 | H66: 51 | I66: 0.5 | J66: 45,622 | K66: $98,817 | L66: 147 | M66: 6.6 | N66: 1% | O66: 14% | P66: 0% | Q66: 1% | R66: 44% | S66: 36% | T66: 1%
A67: RIC | B67: Richmond Intl- Richmnd- VA | C67: 37.50516667 | D67: -77.31966667 | E67: HENRICO | F67: VA | G67: 3,325,846 | H67: 136 | I67: 4.5 | J67: 54,351 | K67: $94,436 | L67: 113 | M67: 5.8 | N67: 4% | O67: 37% | P67: 1% | Q67: 1% | R67: 42% | S67: 27% | T67: 1%
A68: MSY | B68: Moisant Intl Airport | C68: 29.99338889 | D68: -90.25802778 | E68: JEFFERSON | F68: LA | G68: 8,464,700 | H68: 162 | I68: 13.7 | J68: 62,843 | K68: $104,934 | L68: 131 | M68: 8.6 | N68: 10% | O68: 45% | P68: 4% | Q68: 1% | R68: 47% | S68: 32% | T68: 1%
A69: CAE | B69: Columbia Metro Area | C69: 33.93883333 | D69: -81.11952778 | E69: LEXINGTON | F69: SC | G69: 994,494 | H69: 138 | I69: 1.4 | J69: 74,758 | K69: $50,644 | L69: 98 | M69: 3.7 | N69: 1% | O69: 38% | P69: 0% | Q69: 1% | R69: 22% | S69: 24% | T69: 0%
A70: ORF | B70: Norfolk Intl Airport | C70: 36.89461111 | D70: -76.20122222 | E70: NORFOLK | F70: VA | G70: 3,412,949 | H70: 123 | I70: 4.2 | J70: 33,564 | K70: $94,436 | L70: 154 | M70: 4.9 | N70: 4% | O70: 34% | P70: 1% | Q70: 1% | R70: 42% | S70: 37% | T70: 0%
A71: MDW | B71: Chicago Midway Airport | C71: 41.78597222 | D71: -87.75241667 | E71: COOK | F71: IL | G71: 18,186,446 | H71: 182 | I71: 33.1 | J71: 29,477 | K71: $76,316 | L71: 213 | M71: 4.8 | N71: 21% | O71: 50% | P71: 11% | Q71: 1% | R71: 34% | S71: 52% | T71: 0%
A72: BGR | B72: Bangor- Maine | C72: 44.80744444 | D72: -68.82813889 | E72: PENOBSCOT | F72: ME | G72: 420,266 | H72: 119 | I72: 0.5 | J72: 26,721 | K72: $74,972 | L72: 156 | M72: 3.1 | N72: 0% | O72: 33% | P72: 0% | Q72: 1% | R72: 33% | S72: 38% | T72: 0%
A73: MDT | B73: Harrisburg Intl Airport | C73: 40.19319067 | D73: -76.76262061 | E73: DAUPHIN | F73: PA | G73: 1,332,773 | H73: 104 | I73: 1.4 | J73: 54,303 | K73: $104,076 | L73: 79 | M73: 4.5 | N73: 2% | O73: 29% | P73: 0% | Q73: 1% | R73: 46% | S73: 19% | T73: 0%
A74: ROC | B74: Rochester- New York | C74: 43.11886111 | D74: -77.67238889 | E74: MONROE | F74: NY | G74: 2,537,451 | H74: 76 | I74: 1.9 | J74: 51,433 | K74: $112,940 | L74: 66 | M74: 3.8 | N74: 3% | O74: 21% | P74: 1% | Q74: 1% | R74: 50% | S74: 16% | T74: 0%
A75: BET | B75: Bethel- Alaska | C75: 60.77855683 | D75: -161.8371774 | E75: BETHEL | F75: AK | G75: 289,478 | H75: 88 | I75: 0.3 | J75: 35,137 | K75: $79,182 | L75: 129 | M75: 3.6 | N75: 0% | O75: 24% | P75: 0% | Q75: 1% | R75: 35% | S75: 31% | T75: 0%
A76: FAI | B76: Fairbanks Intl Airport | C76: 64.81511008 | D76: -147.8564476 | E76: FAIRBANKS NORTH STAR | F76: AK | G76: 963,844 | H76: 142 | I76: 1.4 | J76: 30,044 | K76: $79,182 | L76: 148 | M76: 3.5 | N76: 1% | O76: 39% | P76: 0% | Q76: 1% | R76: 35% | S76: 36% | T76: 0%
A77: RFD | B77: Rockford- Illinois | C77: 42.19536111 | D77: -89.09722222 | E77: WINNEBAGO | F77: IL | G77: 180,700 | H77: 47 | I77: 0.1 | J77: 159,603 | K77: $76,316 | L77: 28 | M77: 3.4 | N77: 0% | O77: 13% | P77: 0% | Q77: 3% | R77: 34% | S77: 7% | T77: 0%
A78: COS | B78: Colorado Springs- Colorado | C78: 38.80580556 | D78: -104.7007778 | E78: EL PASO | F78: CO | G78: 1,765,914 | H78: 133 | I78: 2.3 | J78: 13,154 | K78: $189,992 | L78: 91 | M78: 2.3 | N78: 2% | O78: 37% | P78: 1% | Q78: 0% | R78: 84% | S78: 22% | T78: 0%
A79: HSV | B79: Madison County Airport | C79: 34.63719444 | D79: -86.77505556 | E79: MADISON | F79: AL | G79: 1,228,202 | H79: 85 | I79: 1.0 | J79: 87,503 | K79: $78,494 | L79: 55 | M79: 3.8 | N79: 1% | O79: 23% | P79: 0% | Q79: 2% | R79: 35% | S79: 13% | T79: 0%
A80: ICT | B80: Mid-Continent Airport | C80: 37.64994444 | D80: -97.43305556 | E80: SEDGWICK | F80: KS | G80: 1,520,184 | H80: 114 | I80: 1.7 | J80: 27,512 | K80: $157,157 | L80: 67 | M80: 2.9 | N80: 2% | O80: 31% | P80: 1% | Q80: 1% | R80: 70% | S80: 16% | T80: 0%
A81: ALB | B81: Albany- New York | C81: 42.74911111 | D81: -73.80197222 | E81: ALBANY | F81: NY | G81: 2,514,927 | H81: 104 | I81: 2.6 | J81: 21,154 | K81: $112,940 | L81: 122 | M81: 2.9 | N81: 3% | O81: 29% | P81: 1% | Q81: 0% | R81: 50% | S81: 30% | T81: 0%
A82: TUL | B82: Tulsa- Oklahoma | C82: 36.19838889 | D82: -95.88811111 | E82: TULSA | F82: OK | G82: 2,941,538 | H82: 106 | I82: 3.1 | J82: 56,486 | K82: $69,139 | L82: 126 | M82: 4.9 | N82: 3% | O82: 29% | P82: 1% | Q82: 1% | R82: 31% | S82: 31% | T82: 0%
A83: CHS | B83: Charleston- South Carolina | C83: 32.89863889 | D83: -80.04052778 | E83: CHARLESTON | F83: SC | G83: 2,025,376 | H83: 97 | I83: 2.0 | J83: 29,422 | K83: $50,644 | L83: 148 | M83: 2.2 | N83: 2% | O83: 27% | P83: 1% | Q83: 1% | R83: 22% | S83: 36% | T83: 0%
A84: BHM | B84: Birmingham- Alabama | C84: 33.56388889 | D84: -86.75230556 | E84: JEFFERSON | F84: AL | G84: 3,180,438 | H84: 139 | I84: 4.4 | J84: 29,250 | K84: $78,494 | L84: 151 | M84: 3.5 | N84: 4% | O84: 38% | P84: 1% | Q84: 1% | R84: 35% | S84: 37% | T84: 0%
A85: RNO | B85: Reno- Nevada | C85: 39.49911111 | D85: -119.7681111 | E85: WASHOE | F85: NV | G85: 3,884,331 | H85: 108 | I85: 4.2 | J85: 53,932 | K85: $24,564 | L85: 123 | M85: 1.6 | N85: 4% | O85: 30% | P85: 1% | Q85: 1% | R85: 11% | S85: 30% | T85: 0%
A86: TUS | B86: Tucson Intl Airport | C86: 32.11608333 | D86: -110.9410278 | E86: PIMA | F86: AZ | G86: 3,716,950 | H86: 141 | I86: 5.2 | J86: 28,070 | K86: $99,194 | L86: 133 | M86: 3.7 | N86: 4% | O86: 39% | P86: 2% | Q86: 1% | R86: 44% | S86: 32% | T86: 0%
A87: GRR | B87: Grand Rapids- Michigan | C87: 42.88083333 | D87: -85.52280556 | E87: KENT | F87: MI | G87: 2,183,566 | H87: 117 | I87: 2.6 | J87: 40,677 | K87: $52,330 | L87: 107 | M87: 2.3 | N87: 3% | O87: 32% | P87: 1% | Q87: 1% | R87: 23% | S87: 26% | T87: 0%
A88: OKC | B88: Will Rogers World Arpt | C88: 35.39308833 | D88: -97.60073389 | E88: OKLAHOMA | F88: OK | G88: 3,666,588 | H88: 168 | I88: 6.2 | J88: 37,857 | K88: $69,139 | L88: 140 | M88: 3.7 | N88: 4% | O88: 46% | P88: 2% | Q88: 1% | R88: 31% | S88: 34% | T88: 0%
A89: SNA | B89: John Wayne Intl Airport | C89: 33.67566667 | D89: -117.8682222 | E89: ORANGE | F89: CA | G89: 8,666,728 | H89: 96 | I89: 8.3 | J89: 22,709 | K89: $85,937 | L89: 111 | M89: 2.2 | N89: 10% | O89: 26% | P89: 3% | Q89: 0% | R89: 38% | S89: 27% | T89: 0%
A90: LGB | B90: Long Beach- California | C90: 33.81777708 | D90: -118.151651 | E90: LOS ANGELES | F90: CA | G90: 2,907,919 | H90: 65 | I90: 1.9 | J90: 30,440 | K90: $85,937 | L90: 81 | M90: 2.1 | N90: 3% | O90: 18% | P90: 1% | Q90: 1% | R90: 38% | S90: 20% | T90: 0%
A91: HOU | B91: Hobby Airport | C91: 29.64541861 | D91: -95.27888889 | E91: HARRIS | F91: TX | G91: 9,792,389 | H91: 123 | I91: 12.0 | J91: 14,888 | K91: $98,817 | L91: 146 | M91: 2.1 | N91: 11% | O91: 34% | P91: 4% | Q91: 0% | R91: 44% | S91: 35% | T91: 0%
A92: LCK | B92: Rickenbacker Airport | C92: 39.81377778 | D92: -82.92780556 | E92: FRANKLIN | F92: OH | G92: 9,049 | H92: 22 | I92: 0.0 | J92: 119,424 | K92: $89,692 | L92: 26 | M92: 2.8 | N92: 0% | O92: 6% | P92: 0% | Q92: 2% | R92: 40% | S92: 6% | T92: 0%
A93: CID | B93: Cedar Rapids- Iowa | C93: 41.88469444 | D93: -91.71080556 | E93: LINN | F93: IA | G93: 924,726 | H93: 84 | I93: 0.8 | J93: 30,982 | K93: $68,340 | L93: 98 | M93: 2.1 | N93: 1% | O93: 23% | P93: 0% | Q93: 1% | R93: 30% | S93: 24% | T93: 0%
A94: PBI | B94: West Palm Beach- FL | C94: 26.68316667 | D94: -80.09558333 | E94: PALM BEACH | F94: FL | G94: 5,908,816 | H94: 118 | I94: 7.0 | J94: 27,323 | K94: $61,499 | L94: 107 | M94: 1.8 | N94: 7% | O94: 33% | P94: 2% | Q94: 1% | R94: 27% | S94: 26% | T94: 0%
A95: OME | B95: Nome- Alaska | C95: 64.51220222 | D95: -165.4452458 | E95: NOME | F95: AK | G95: 148,384 | H95: 73 | I95: 0.1 | J95: 20,535 | K95: $79,182 | L95: 93 | M95: 1.5 | N95: 0% | O95: 20% | P95: 0% | Q95: 0% | R95: 35% | S95: 23% | T95: 0%
A96: OTZ | B96: Kotzebue- Alaska | C96: 66.88469444 | D96: -162.5985 | E96: KOBUK | F96: AK | G96: 162,706 | H96: 57 | I96: 0.1 | J96: 24,591 | K96: $79,182 | L96: 77 | M96: 1.5 | N96: 0% | O96: 16% | P96: 0% | Q96: 0% | R96: 35% | S96: 19% | T96: 0%
A97: PIA | B97: Peoria- Illinois | C97: 40.66420139 | D97: -89.69325778 | E97: PEORIA | F97: IL | G97: 501,454 | H97: 64 | I97: 0.3 | J97: 29,805 | K97: $76,316 | L97: 73 | M97: 1.7 | N97: 1% | O97: 18% | P97: 0% | Q97: 1% | R97: 34% | S97: 18% | T97: 0%
A98: RSW | B98: SW Florida Regional Arpt | C98: 26.53616667 | D98: -81.75516667 | E98: LEE | F98: FL | G98: 7,411,569 | H98: 122 | I98: 9.0 | J98: 17,745 | K98: $61,499 | L98: 148 | M98: 1.6 | N98: 9% | O98: 34% | P98: 3% | Q98: 0% | R98: 27% | S98: 36% | T98: 0%
A99: FWA | B99: Fort Wayne- Indiana | C99: 40.97847222 | D99: -85.19516667 | E99: ALLEN | F99: IN | G99: 547,679 | H99: 79 | I99: 0.4 | J99: 25,858 | K99: $103,193 | L99: 61 | M99: 1.6 | N99: 1% | O99: 22% | P99: 0% | Q99: 1% | R99: 46% | S99: 15% | T99: 0%
A100: LGA | B100: La Guardia Airport | C100: 40.77725 | D100: -73.87261111 | E100: QUEENS | F100: NY | G100: 23,956,875 | H100: 163 | I100: 39.0 | J100: 6,752 | K100: $112,940 | L100: 196 | M100: 1.5 | N100: 28% | O100: 45% | P100: 12% | Q100: 0% | R100: 50% | S100: 47% | T100: 0%
A101: SBN | B101: South Bend- Indiana | C101: 41.70822222 | D101: -86.31733333 | E101: ST JOSEPH | F101: IN | G101: 631,125 | H101: 89 | I101: 0.6 | J101: 10,676 | K101: $103,193 | L101: 142 | M101: 1.6 | N101: 1% | O101: 25% | P101: 0% | Q101: 0% | R101: 46% | S101: 34% | T101: 0%
A102: BIL | B102: Billings- Montana | C102: 45.80766667 | D102: -108.5428889 | E102: YELLOWSTONE | F102: MT | G102: 784,895 | H102: 54 | I102: 0.4 | J102: 37,086 | K102: $89,497 | L102: 56 | M102: 1.9 | N102: 1% | O102: 15% | P102: 0% | Q102: 1% | R102: 40% | S102: 14% | T102: 0%
A103: AFW | B103: Ft Worth Alliance | C103: 32.98763889 | D103: -97.31880556 | E103: TARRANT | F103: TX | G103: 4,226 | H103: 22 | I103: 0.0 | J103: 145,589 | K103: $98,817 | L103: 11 | M103: 1.6 | N103: 0% | O103: 6% | P103: 0% | Q103: 3% | R103: 44% | S103: 3% | T103: 0%
A104: GSP | B104: Greenville/Spartanburg Ap | C104: 34.89566667 | D104: -82.21886111 | E104: GREENVILLE | F104: SC | G104: 1,296,166 | H104: 122 | I104: 1.6 | J104: 26,283 | K104: $50,644 | L104: 78 | M104: 1.0 | N104: 1% | O104: 34% | P104: 1% | Q104: 1% | R104: 22% | S104: 19% | T104: 0%
A105: DAL | B105: Love Field- Dallas | C105: 32.84711111 | D105: -96.85177778 | E105: DALLAS | F105: TX | G105: 8,451,447 | H105: 138 | I105: 11.7 | J105: 12,842 | K105: $98,817 | L105: 120 | M105: 1.5 | N105: 10% | O105: 38% | P105: 4% | Q105: 0% | R105: 44% | S105: 29% | T105: 0%
A106: SGF | B106: Springfield- Missouri | C106: 37.24566667 | D106: -93.38863889 | E106: GREENE | F106: MO | G106: 765,020 | H106: 59 | I106: 0.5 | J106: 24,409 | K106: $77,032 | L106: 56 | M106: 1.1 | N106: 1% | O106: 16% | P106: 0% | Q106: 0% | R106: 34% | S106: 14% | T106: 0%
A107: HRL | B107: Harlingen- Texas | C107: 26.2285 | D107: -97.65438889 | E107: CAMERON | F107: TX | G107: 765,729 | H107: 38 | I107: 0.3 | J107: 33,984 | K107: $98,817 | L107: 37 | M107: 1.2 | N107: 1% | O107: 10% | P107: 0% | Q107: 1% | R107: 44% | S107: 9% | T107: 0%
A108: PIE | B108: St Petersburg Intl Arpt | C108: 27.91 | D108: -82.68741667 | E108: PINELLAS | F108: FL | G108: 769,624 | H108: 75 | I108: 0.6 | J108: 19,545 | K108: $61,499 | L108: 92 | M108: 1.1 | N108: 1% | O108: 21% | P108: 0% | Q108: 0% | R108: 27% | S108: 22% | T108: 0%
A109: SHV | B109: Shreveport Regional Arpt | C109: 32.44661111 | D109: -93.82561111 | E109: CADDO | F109: LA | G109: 490,649 | H109: 80 | I109: 0.4 | J109: 34,398 | K109: $104,934 | L109: 48 | M109: 1.7 | N109: 1% | O109: 22% | P109: 0% | Q109: 1% | R109: 47% | S109: 12% | T109: 0%
A110: OMA | B110: Eppley Airfield | C110: 41.30316667 | D110: -95.89405556 | E110: DOUGLAS | F110: NE | G110: 4,254,632 | H110: 122 | I110: 5.2 | J110: 67,601 | K110: $54,441 | L110: 152 | M110: 5.6 | N110: 5% | O110: 34% | P110: 2% | Q110: 1% | R110: 24% | S110: 37% | T110: 1%
A111: ROA | B111: Roanoke- Virginia | C111: 37.32547222 | D111: -79.97541667 | E111: ROANOKE | F111: VA | G111: 625,607 | H111: 71 | I111: 0.4 | J111: 13,435 | K111: $94,436 | L111: 75 | M111: 1.0 | N111: 1% | O111: 20% | P111: 0% | Q111: 0% | R111: 42% | S111: 18% | T111: 0%
A112: DCA | B112: National Airport | C112: 38.85208333 | D112: -77.03772222 | E112: ARLINGTON | F112: VA | G112: 17,589,885 | H112: 131 | I112: 23.0 | J112: 6,202 | K112: $94,436 | L112: 154 | M112: 0.9 | N112: 20% | O112: 36% | P112: 7% | Q112: 0% | R112: 42% | S112: 37% | T112: 0%
A113: LAN | B113: Lansing- Michigan | C113: 42.77863889 | D113: -84.58619444 | E113: CLINTON | F113: MI | G113: 263,739 | H113: 68 | I113: 0.2 | J113: 20,553 | K113: $52,330 | L113: 79 | M113: 0.8 | N113: 0% | O113: 19% | P113: 0% | Q113: 0% | R113: 23% | S113: 19% | T113: 0%
A114: TLH | B114: Tallahassee- Florida | C114: 30.39652778 | D114: -84.35033333 | E114: LEON | F114: FL | G114: 653,549 | H114: 87 | I114: 0.6 | J114: 10,289 | K114: $61,499 | L114: 134 | M114: 0.8 | N114: 1% | O114: 24% | P114: 0% | Q114: 0% | R114: 27% | S114: 32% | T114: 0%
A115: ABE | B115: Allentown/Bethlhm/Estn- PA | C115: 40.65236267 | D115: -75.44040119 | E115: LEHIGH | F115: PA | G115: 846,601 | H115: 98 | I115: 0.8 | J115: 14,289 | K115: $104,076 | L115: 56 | M115: 0.8 | N115: 1% | O115: 27% | P115: 0% | Q115: 0% | R115: 46% | S115: 14% | T115: 0%
A116: LRD | B116: Laredo Intl Airport | C116: 27.54379942 | D116: -99.46153261 | E116: WEBB | F116: TX | G116: 231,173 | H116: 36 | I116: 0.1 | J116: 37,374 | K116: $98,817 | L116: 25 | M116: 0.9 | N116: 0% | O116: 10% | P116: 0% | Q116: 1% | R116: 44% | S116: 6% | T116: 0%
A117: JAN | B117: Jackson- Mississippi | C117: 32.31116667 | D117: -90.07588889 | E117: RANKIN | F117: MS | G117: 1,317,836 | H117: 85 | I117: 1.1 | J117: 9,865 | K117: $160,193 | L117: 76 | M117: 1.2 | N117: 2% | O117: 23% | P117: 0% | Q117: 0% | R117: 71% | S117: 18% | T117: 0%
A118: DOV | B118: Dover AFB- Dvr-Chs- DE | C118: 39.1295 | D118: -75.466 | E118: KENT | F118: DE | G118: 1,520 | H118: 7 | I118: 0.0 | J118: 32,551 | K118: $115,290 | L118: 20 | M118: 0.8 | N118: 0% | O118: 2% | P118: 0% | Q118: 1% | R118: 51% | S118: 5% | T118: 0%
A119: MSN | B119: Madison- Wisconsin | C119: 43.13987778 | D119: -89.33750556 | E119: DANE | F119: WI | G119: 1,525,656 | H119: 117 | I119: 1.8 | J119: 13,295 | K119: $57,046 | L119: 97 | M119: 0.7 | N119: 2% | O119: 32% | P119: 1% | Q119: 0% | R119: 25% | S119: 23% | T119: 0%
A120: OGG | B120: Kahului- Maui- Hawaii | C120: 20.89864972 | D120: -156.4304579 | E120: MAUI | F120: HI | G120: 5,172,760 | H120: 38 | I120: 2.0 | J120: 41,881 | K120: $35,478 | L120: 48 | M120: 0.7 | N120: 6% | O120: 10% | P120: 1% | Q120: 1% | R120: 16% | S120: 12% | T120: 0%
A121: PVD | B121: Providence- Rhode Island | C121: 41.72399917 | D121: -71.42822111 | E121: KENT | F121: RI | G121: 3,910,091 | H121: 98 | I121: 3.8 | J121: 13,245 | K121: $37,240 | L121: 121 | M121: 0.6 | N121: 5% | O121: 27% | P121: 1% | Q121: 0% | R121: 17% | S121: 29% | T121: 0%
A122: JNU | B122: Juneau Intl Airport | C122: 58.35497222 | D122: -134.5762778 | E122: JUNEAU | F122: AK | G122: 714,159 | H122: 31 | I122: 0.2 | J122: 19,793 | K122: $79,182 | L122: 43 | M122: 0.7 | N122: 1% | O122: 9% | P122: 0% | Q122: 0% | R122: 35% | S122: 10% | T122: 0%
A123: PWM | B123: Portland- Maine | C123: 43.64616667 | D123: -70.30927778 | E123: CUMBERLAND | F123: ME | G123: 1,699,577 | H123: 67 | I123: 1.1 | J123: 9,707 | K123: $74,972 | L123: 64 | M123: 0.5 | N123: 2% | O123: 18% | P123: 0% | Q123: 0% | R123: 33% | S123: 15% | T123: 0%
A124: GFK | B124: Grand Forks- North Dakota | C124: 47.94726658 | D124: -97.17378069 | E124: GRAND FORKS | F124: ND | G124: 235,961 | H124: 35 | I124: 0.1 | J124: 22,675 | K124: $16,124 | L124: 68 | M124: 0.2 | N124: 0% | O124: 10% | P124: 0% | Q124: 0% | R124: 7% | S124: 16% | T124: 0%
A125: GJT | B125: Grand Junction- Colorado | C125: 39.1224125 | D125: -108.5267347 | E125: MESA | F125: CO | G125: 455,771 | H125: 77 | I125: 0.4 | J125: 4,865 | K125: $189,992 | L125: 46 | M125: 0.4 | N125: 1% | O125: 21% | P125: 0% | Q125: 0% | R125: 84% | S125: 11% | T125: 0%
A126: DLG | B126: Dillingham- Alaska | C126: 59.04466667 | D126: -158.5055 | E126: BRISTOL BAY | F126: AK | G126: 71,021 | H126: 52 | I126: 0.0 | J126: 11,169 | K126: $79,182 | L126: 60 | M126: 0.5 | N126: 0% | O126: 14% | P126: 0% | Q126: 0% | R126: 35% | S126: 15% | T126: 0%
A127: AKN | B127: King Salmon- Alaska | C127: 58.67649347 | D127: -156.648691 | E127: BRISTOL BAY | F127: AK | G127: 108,814 | H127: 64 | I127: 0.1 | J127: 7,126 | K127: $79,182 | L127: 92 | M127: 0.5 | N127: 0% | O127: 18% | P127: 0% | Q127: 0% | R127: 35% | S127: 22% | T127: 0%
A128: DAY | B128: James Cox Dayton Intl | C128: 39.90225139 | D128: -84.21941019 | E128: MONTGOMERY | F128: OH | G128: 2,500,337 | H128: 103 | I128: 2.6 | J128: 7,557 | K128: $89,692 | L128: 122 | M128: 0.8 | N128: 3% | O128: 28% | P128: 1% | Q128: 0% | R128: 40% | S128: 30% | T128: 0%
A129: SAV | B129: Savannah Intl Airport | C129: 32.12758333 | D129: -81.20213889 | E129: CHATHAM | F129: GA | G129: 1,608,439 | H129: 87 | I129: 1.4 | J129: 6,639 | K129: $83,392 | L129: 95 | M129: 0.5 | N129: 2% | O129: 24% | P129: 0% | Q129: 0% | R129: 37% | S129: 23% | T129: 0%
A130: KTN | B130: Ketchikan Intl Airport | C130: 55.354075 | D130: -131.7112194 | E130: KETCHIKAN GATEWAY | F130: AK | G130: 377,702 | H130: 28 | I130: 0.1 | J130: 15,274 | K130: $79,182 | L130: 39 | M130: 0.5 | N130: 0% | O130: 8% | P130: 0% | Q130: 0% | R130: 35% | S130: 9% | T130: 0%
A131: BTV | B131: Burlington- Vermont | C131: 44.47186111 | D131: -73.15327778 | E131: CHITTENDEN | F131: VT | G131: 1,273,531 | H131: 53 | I131: 0.7 | J131: 4,625 | K131: $130,997 | L131: 56 | M131: 0.3 | N131: 1% | O131: 15% | P131: 0% | Q131: 0% | R131: 58% | S131: 14% | T131: 0%
A132: KOA | B132: Kona- Hawaii- Hawaii | C132: 19.73876583 | D132: -156.0456314 | E132: HAWAII | F132: HI | G132: 2,538,370 | H132: 21 | I132: 0.5 | J132: 32,983 | K132: $35,478 | L132: 38 | M132: 0.4 | N132: 3% | O132: 6% | P132: 0% | Q132: 1% | R132: 16% | S132: 9% | T132: 0%
A133: CMH | B133: Port Columbus Intl Arpt | C133: 39.99797222 | D133: -82.89188889 | E133: FRANKLIN | F133: OH | G133: 6,373,796 | H133: 151 | I133: 9.6 | J133: 4,962 | K133: $89,692 | L133: 159 | M133: 0.7 | N133: 7% | O133: 42% | P133: 3% | Q133: 0% | R133: 40% | S133: 38% | T133: 0%
A134: GTF | B134: Great Falls Intl Arpt | C134: 47.48265392 | D134: -111.37061 | E134: CASCADE | F134: MT | G134: 356,308 | H134: 38 | I134: 0.1 | J134: 17,997 | K134: $89,497 | L134: 36 | M134: 0.6 | N134: 0% | O134: 10% | P134: 0% | Q134: 0% | R134: 40% | S134: 9% | T134: 0%
A135: SWF | B135: Newburgh- New York | C135: 41.50411111 | D135: -74.10483333 | E135: ORANGE | F135: NY | G135: 411,952 | H135: 74 | I135: 0.3 | J135: 13,945 | K135: $112,940 | L135: 27 | M135: 0.4 | N135: 0% | O135: 20% | P135: 0% | Q135: 0% | R135: 50% | S135: 7% | T135: 0%
A136: FAT | B136: Fresno Air Terminal | C136: 36.77619444 | D136: -119.7181389 | E136: FRESNO | F136: CA | G136: 1,140,791 | H136: 61 | I136: 0.7 | J136: 8,231 | K136: $85,937 | L136: 66 | M136: 0.5 | N136: 1% | O136: 17% | P136: 0% | Q136: 0% | R136: 38% | S136: 16% | T136: 0%
A137: LAF | B137: Lafayette- Indiana | C137: 40.41230556 | D137: -86.93688889 | E137: TIPPECANOE | F137: IN | G137: 24,295 | H137: 34 | I137: 0.0 | J137: 5,453 | K137: $103,193 | L137: 80 | M137: 0.5 | N137: 0% | O137: 9% | P137: 0% | Q137: 0% | R137: 46% | S137: 19% | T137: 0%
A138: UNK | B138: Unalakleet- Alaska | C138: 63.88849561 | D138: -160.7991109 | E138: NOME | F138: AK | G138: 29,067 | H138: 51 | I138: 0.0 | J138: 6,262 | K138: $79,182 | L138: 70 | M138: 0.3 | N138: 0% | O138: 14% | P138: 0% | Q138: 0% | R138: 35% | S138: 17% | T138: 0%
A139: KSM | B139: St Marys- Alaska | C139: 62.06083333 | D139: -163.3018333 | E139: WADE HAMPTON | F139: AK | G139: 22,145 | H139: 53 | I139: 0.0 | J139: 4,730 | K139: $79,182 | L139: 83 | M139: 0.3 | N139: 0% | O139: 15% | P139: 0% | Q139: 0% | R139: 35% | S139: 20% | T139: 0%
A140: FNT | B140: Flint- Michigan | C140: 42.96541667 | D140: -83.74366667 | E140: GENESEE | F140: MI | G140: 989,423 | H140: 48 | I140: 0.5 | J140: 11,058 | K140: $52,330 | L140: 59 | M140: 0.3 | N140: 1% | O140: 13% | P140: 0% | Q140: 0% | R140: 23% | S140: 14% | T140: 0%
A141: SCC | B141: Deadhorse/Prudhoe Bay | C141: 70.19475 | D141: -148.4651667 | E141: NORTH SLOPE | F141: AK | G141: 91,889 | H141: 20 | I141: 0.0 | J141: 16,787 | K141: $79,182 | L141: 23 | M141: 0.3 | N141: 0% | O141: 6% | P141: 0% | Q141: 0% | R141: 35% | S141: 6% | T141: 0%
A142: BRW | B142: Barrow WBAS | C142: 71.28466111 | D142: -156.7687472 | E142: NORTH SLOPE | F142: AK | G142: 111,351 | H142: 22 | I142: 0.0 | J142: 13,136 | K142: $79,182 | L142: 27 | M142: 0.3 | N142: 0% | O142: 6% | P142: 0% | Q142: 0% | R142: 35% | S142: 7% | T142: 0%
A143: ANI | B143: Aniak- Alaska | C143: 61.58159694 | D143: -159.5430428 | E143: KUSKOKWIM | F143: AK | G143: 34,688 | H143: 52 | I143: 0.0 | J143: 6,340 | K143: $79,182 | L143: 54 | M143: 0.3 | N143: 0% | O143: 14% | P143: 0% | Q143: 0% | R143: 35% | S143: 13% | T143: 0%
A144: LFT | B144: Lafayette- Louisiana | C144: 30.20525 | D144: -91.98761111 | E144: LAFAYETTE | F144: LA | G144: 445,179 | H144: 63 | I144: 0.3 | J144: 13,049 | K144: $104,934 | L144: 37 | M144: 0.5 | N144: 1% | O144: 17% | P144: 0% | Q144: 0% | R144: 47% | S144: 9% | T144: 0%
A145: RST | B145: Rochester- Minnesota | C145: 43.90827778 | D145: -92.50002778 | E145: OLMSTED | F145: MN | G145: 243,686 | H145: 48 | I145: 0.1 | J145: 8,144 | K145: $99,956 | L145: 32 | M145: 0.3 | N145: 0% | O145: 13% | P145: 0% | Q145: 0% | R145: 44% | S145: 8% | T145: 0%
A146: ADQ | B146: Kodiak Metro Area | C146: 57.74996778 | D146: -152.4938553 | E146: KODIAK ISLAND | F146: AK | G146: 159,305 | H146: 38 | I146: 0.1 | J146: 6,310 | K146: $79,182 | L146: 48 | M146: 0.2 | N146: 0% | O146: 10% | P146: 0% | Q146: 0% | R146: 35% | S146: 12% | T146: 0%
A147: SFB | B147: Sanford- Florida | C147: 28.77669444 | D147: -81.23552778 | E147: SEMINOLE | F147: FL | G147: 1,142,829 | H147: 106 | I147: 1.2 | J147: 2,979 | K147: $61,499 | L147: 142 | M147: 0.3 | N147: 1% | O147: 29% | P147: 0% | Q147: 0% | R147: 27% | S147: 34% | T147: 0%
A148: RAP | B148: Rapid City Regional Arpt | C148: 44.04533333 | D148: -103.0573611 | E148: PENNINGTON | F148: SD | G148: 578,834 | H148: 43 | I148: 0.2 | J148: 2,494 | K148: $131,230 | L148: 57 | M148: 0.2 | N148: 1% | O148: 12% | P148: 0% | Q148: 0% | R148: 58% | S148: 14% | T148: 0%
A149: CHA | B149: Chattanooga- Tennessee | C149: 35.03519444 | D149: -85.20355556 | E149: HAMILTON | F149: TN | G149: 588,820 | H149: 79 | I149: 0.5 | J149: 2,575 | K149: $129,324 | L149: 66 | M149: 0.2 | N149: 1% | O149: 22% | P149: 0% | Q149: 0% | R149: 57% | S149: 16% | T149: 0%
A150: YIP | B150: Willow Run Airport | C150: 42.23930367 | D150: -83.53096528 | E150: WAYNE | F150: MI | G150: 6,236 | H150: 112 | I150: 0.0 | J150: 4,765 | K150: $52,330 | L150: 103 | M150: 0.3 | N150: 0% | O150: 31% | P150: 0% | Q150: 0% | R150: 23% | S150: 25% | T150: 0%
A151: HTS | B151: Ashland- KY/Huntington- WV | C151: 38.36692575 | D151: -82.55865394 | E151: WAYNE | F151: WV | G151: 227,520 | H151: 28 | I151: 0.1 | J151: 5,502 | K151: $169,751 | L151: 31 | M151: 0.3 | N151: 0% | O151: 8% | P151: 0% | Q151: 0% | R151: 75% | S151: 8% | T151: 0%
A152: SBA | B152: Santa Barbara- California | C152: 34.42619444 | D152: -119.8415 | E152: SANTA BARBARA | F152: CA | G152: 765,681 | H152: 48 | I152: 0.4 | J152: 3,737 | K152: $85,937 | L152: 65 | M152: 0.2 | N152: 1% | O152: 13% | P152: 0% | Q152: 0% | R152: 38% | S152: 16% | T152: 0%
A153: SIT | B153: Sitka- Alaska | C153: 57.04713889 | D153: -135.3616111 | E153: SITKA | F153: AK | G153: 211,576 | H153: 20 | I153: 0.0 | J153: 10,430 | K153: $79,182 | L153: 21 | M153: 0.2 | N153: 0% | O153: 6% | P153: 0% | Q153: 0% | R153: 35% | S153: 5% | T153: 0%
A154: IDA | B154: Idaho Falls- Idaho | C154: 43.51372222 | D154: -112.07075 | E154: BONNEVILLE | F154: ID | G154: 292,149 | H154: 40 | I154: 0.1 | J154: 1,780 | K154: $169,945 | L154: 43 | M154: 0.1 | N154: 0% | O154: 11% | P154: 0% | Q154: 0% | R154: 75% | S154: 10% | T154: 0%
A155: GAL | B155: Galena- Alaska | C155: 64.73616667 | D155: -156.9373889 | E155: YUKON-KOYUKUK | F155: AK | G155: 35,873 | H155: 55 | I155: 0.0 | J155: 2,606 | K155: $79,182 | L155: 83 | M155: 0.2 | N155: 0% | O155: 15% | P155: 0% | Q155: 0% | R155: 35% | S155: 20% | T155: 0%
A156: ATW | B156: Appleton- Wisconsin | C156: 44.25808333 | D156: -88.51908333 | E156: OUTAGAMIE | F156: WI | G156: 540,702 | H156: 37 | I156: 0.2 | J156: 11,982 | K156: $57,046 | L156: 25 | M156: 0.2 | N156: 1% | O156: 10% | P156: 0% | Q156: 0% | R156: 25% | S156: 6% | T156: 0%
A157: MFR | B157: Medford- Oregon | C157: 42.37422222 | D157: -122.8735 | E157: JACKSON | F157: OR | G157: 623,863 | H157: 34 | I157: 0.2 | J157: 3,253 | K157: $66,859 | L157: 37 | M157: 0.1 | N157: 1% | O157: 9% | P157: 0% | Q157: 0% | R157: 30% | S157: 9% | T157: 0%
A158: LEX | B158: Lexington- Kentucky | C158: 38.03675 | D158: -84.60863889 | E158: FAYETTE | F158: KY | G158: 1,078,701 | H158: 104 | I158: 1.1 | J158: 1,627 | K158: $79,716 | L158: 126 | M158: 0.2 | N158: 1% | O158: 29% | P158: 0% | Q158: 0% | R158: 35% | S158: 31% | T158: 0%
A159: ABY | B159: Albany- Georgia | C159: 31.535515 | D159: -84.19447333 | E159: DOUGHERTY | F159: GA | G159: 70,064 | H159: 9 | I159: 0.0 | J159: 21,608 | K159: $83,392 | L159: 9 | M159: 0.2 | N159: 0% | O159: 2% | P159: 0% | Q159: 0% | R159: 37% | S159: 2% | T159: 0%
A160: ENM | B160: Emmonak- Alaska | C160: 62.78613889 | D160: -164.49075 | E160: WADE HAMPTON | F160: AK | G160: 22,191 | H160: 35 | I160: 0.0 | J160: 4,144 | K160: $79,182 | L160: 46 | M160: 0.2 | N160: 0% | O160: 10% | P160: 0% | Q160: 0% | R160: 35% | S160: 11% | T160: 0%
A161: MSO | B161: Missoula- Montana | C161: 46.91630556 | D161: -114.0905556 | E161: MISSOULA | F161: MT | G161: 579,402 | H161: 47 | I161: 0.3 | J161: 2,174 | K161: $89,497 | L161: 105 | M161: 0.2 | N161: 1% | O161: 13% | P161: 0% | Q161: 0% | R161: 40% | S161: 25% | T161: 0%
A162: CPR | B162: Casper- Wyoming | C162: 42.908 | D162: -106.4644167 | E162: NATRONA | F162: WY | G162: 169,420 | H162: 32 | I162: 0.1 | J162: 14,421 | K162: $65,497 | L162: 20 | M162: 0.2 | N162: 0% | O162: 9% | P162: 0% | Q162: 0% | R162: 29% | S162: 5% | T162: 0%
A163: PSC | B163: Pasco- Washington | C163: 46.26469444 | D163: -119.1190278 | E163: FRANKLIN | F163: WA | G163: 624,491 | H163: 32 | I163: 0.2 | J163: 3,756 | K163: $94,522 | L163: 33 | M163: 0.1 | N163: 1% | O163: 9% | P163: 0% | Q163: 0% | R163: 42% | S163: 8% | T163: 0%
A164: MAF | B164: Midland Intl Airport | C164: 31.94252778 | D164: -102.2019167 | E164: MIDLAND | F164: TX | G164: 917,969 | H164: 36 | I164: 0.3 | J164: 3,553 | K164: $98,817 | L164: 46 | M164: 0.2 | N164: 1% | O164: 10% | P164: 0% | Q164: 0% | R164: 44% | S164: 11% | T164: 0%
A165: MCG | B165: McGrath- Alaska | C165: 62.95278333 | D165: -155.6070444 | E165: KUSKOKWIM | F165: AK | G165: 10,596 | H165: 55 | I165: 0.0 | J165: 2,032 | K165: $79,182 | L165: 78 | M165: 0.1 | N165: 0% | O165: 15% | P165: 0% | Q165: 0% | R165: 35% | S165: 19% | T165: 0%
A166: WRI | B166: Fort Dix- New Jersey | C166: 40.01558222 | D166: -74.59170806 | E166: BURLINGTON | F166: NJ | G166: 654 | H166: 14 | I166: 0.0 | J166: 17,439 | K166: $108,321 | L166: 7 | M166: 0.1 | N166: 0% | O166: 4% | P166: 0% | Q166: 0% | R166: 48% | S166: 2% | T166: 0%
A167: BFM | B167: Mobile -Aerospace-- AL | C167: 30.62677778 | D167: -88.06808333 | E167: MOBILE | F167: AL | G167: 301 | H167: 7 | I167: 0.0 | J167: 25,910 | K167: $78,494 | L167: 7 | M167: 0.1 | N167: 0% | O167: 2% | P167: 0% | Q167: 1% | R167: 35% | S167: 2% | T167: 0%
A168: LWS | B168: Lewiston- Idaho | C168: 46.3745 | D168: -117.0153889 | E168: NEZ PERCE | F168: ID | G168: 161,346 | H168: 35 | I168: 0.1 | J168: 700 | K168: $169,945 | L168: 67 | M168: 0.1 | N168: 0% | O168: 10% | P168: 0% | Q168: 0% | R168: 75% | S168: 16% | T168: 0%
A169: UNV | B169: State College Air Depot | C169: 40.84927778 | D169: -77.84869444 | E169: CENTRE | F169: PA | G169: 284,678 | H169: 60 | I169: 0.2 | J169: 1,493 | K169: $104,076 | L169: 73 | M169: 0.1 | N169: 0% | O169: 17% | P169: 0% | Q169: 0% | R169: 46% | S169: 18% | T169: 0%
A170: ITO | B170: Hilo- Hawaii- Hawaii | C170: 19.720263 | D170: -155.0484701 | E170: HAWAII | F170: HI | G170: 1,230,943 | H170: 4 | I170: 0.0 | J170: 29,566 | K170: $35,478 | L170: 9 | M170: 0.1 | N170: 1% | O170: 1% | P170: 0% | Q170: 1% | R170: 16% | S170: 2% | T170: 0%
A171: EUG | B171: Eugene- Oregon | C171: 44.12458333 | D171: -123.2119722 | E171: LANE | F171: OR | G171: 738,936 | H171: 50 | I171: 0.4 | J171: 1,021 | K171: $66,859 | L171: 63 | M171: 0.0 | N171: 1% | O171: 14% | P171: 0% | Q171: 0% | R171: 30% | S171: 15% | T171: 0%
A172: CRW | B172: Charleston- West Virginia | C172: 38.37313889 | D172: -81.59319444 | E172: KANAWHA | F172: WV | G172: 529,147 | H172: 50 | I172: 0.3 | J172: 1,552 | K172: $169,751 | L172: 45 | M172: 0.1 | N172: 1% | O172: 14% | P172: 0% | Q172: 0% | R172: 75% | S172: 11% | T172: 0%
A173: MYR | B173: Myrtle Beach AFB | C173: 33.67975 | D173: -78.92833333 | E173: HORRY | F173: SC | G173: 1,714,106 | H173: 76 | I173: 1.3 | J173: 1,144 | K173: $50,644 | L173: 111 | M173: 0.1 | N173: 2% | O173: 21% | P173: 0% | Q173: 0% | R173: 22% | S173: 27% | T173: 0%
A174: PAE | B174: Everett- Washington | C174: 47.90698736 | D174: -122.2815721 | E174: SNOHOMISH | F174: WA | G174: 660 | H174: 12 | I174: 0.0 | J174: 6,269 | K174: $94,522 | L174: 10 | M174: 0.1 | N174: 0% | O174: 3% | P174: 0% | Q174: 0% | R174: 42% | S174: 2% | T174: 0%
A175: VAK | B175: Chevak- Alaska | C175: 61.54084528 | D175: -165.6008919 | E175: WADE HAMPTON | F175: AK | G175: 16,374 | H175: 42 | I175: 0.0 | J175: 1,327 | K175: $79,182 | L175: 64 | M175: 0.1 | N175: 0% | O175: 12% | P175: 0% | Q175: 0% | R175: 35% | S175: 15% | T175: 0%
A176: LIH | B176: Lihue- Kauai- Hawaii | C176: 21.97598303 | D176: -159.338958 | E176: KAUAI | F176: HI | G176: 2,343,535 | H176: 14 | I176: 0.3 | J176: 11,978 | K176: $35,478 | L176: 15 | M176: 0.1 | N176: 3% | O176: 4% | P176: 0% | Q176: 0% | R176: 16% | S176: 4% | T176: 0%
A177: ILI | B177: Iliamna- Alaska | C177: 59.75557811 | D177: -154.9177523 | E177: BRISTOL BAY | F177: AK | G177: 11,003 | H177: 41 | I177: 0.0 | J177: 2,096 | K177: $79,182 | L177: 38 | M177: 0.1 | N177: 0% | O177: 11% | P177: 0% | Q177: 0% | R177: 35% | S177: 9% | T177: 0%
A178: KWK | B178: Kwigillingok- Alaska | C178: 59.836725 | D178: -163.1403353 | E178: BETHEL | F178: AK | G178: 11,442 | H178: 25 | I178: 0.0 | J178: 487 | K178: $79,182 | L178: 161 | M178: 0.1 | N178: 0% | O178: 7% | P178: 0% | Q178: 0% | R178: 35% | S178: 39% | T178: 0%
A179: ILM | B179: Wilmington- North Carolina | C179: 34.27060314 | D179: -77.902558 | E179: NEW HANOVER | F179: NC | G179: 813,359 | H179: 58 | I179: 0.5 | J179: 1,760 | K179: $76,450 | L179: 48 | M179: 0.1 | N179: 1% | O179: 16% | P179: 0% | Q179: 0% | R179: 34% | S179: 12% | T179: 0%
A180: ISP | B180: Islip -MacArthur- | C180: 40.79525 | D180: -73.10022222 | E180: SUFFOLK | F180: NY | G180: 1,732,310 | H180: 47 | I180: 0.8 | J180: 1,067 | K180: $112,940 | L180: 52 | M180: 0.1 | N180: 2% | O180: 13% | P180: 0% | Q180: 0% | R180: 50% | S180: 13% | T180: 0%
A181: RDM | B181: Bend/Redmond- Oregon | C181: 44.25405556 | D181: -121.1499722 | E181: DESCHUTES | F181: OR | G181: 466,273 | H181: 27 | I181: 0.1 | J181: 1,013 | K181: $66,859 | L181: 36 | M181: 0.0 | N181: 1% | O181: 7% | P181: 0% | Q181: 0% | R181: 30% | S181: 9% | T181: 0%
A182: PSM | B182: Portsmouth- New Hampshire | C182: 43.07794444 | D182: -70.82327778 | E182: ROCKINGHAM | F182: NH | G182: 6,907 | H182: 59 | I182: 0.0 | J182: 402 | K182: $225,288 | L182: 51 | M182: 0.0 | N182: 0% | O182: 16% | P182: 0% | Q182: 0% | R182: 100% | S182: 12% | T182: 0%
A183: HOM | B183: Homer- Alaska | C183: 59.64555556 | D183: -151.4765833 | E183: KENAI-COOK INLET | F183: AK | G183: 75,981 | H183: 32 | I183: 0.0 | J183: 1,306 | K183: $79,182 | L183: 46 | M183: 0.0 | N183: 0% | O183: 9% | P183: 0% | Q183: 0% | R183: 35% | S183: 11% | T183: 0%
A184: HPB | B184: Hooper Bay- Alaska | C184: 61.52386111 | D184: -166.1466389 | E184: WADE HAMPTON | F184: AK | G184: 16,080 | H184: 34 | I184: 0.0 | J184: 1,517 | K184: $79,182 | L184: 37 | M184: 0.0 | N184: 0% | O184: 9% | P184: 0% | Q184: 0% | R184: 35% | S184: 9% | T184: 0%
A185: BZN | B185: Bozeman- Montana | C185: 45.77756969 | D185: -111.1520216 | E185: GALLATIN | F185: MT | G185: 728,958 | H185: 44 | I185: 0.3 | J185: 1,029 | K185: $89,497 | L185: 62 | M185: 0.1 | N185: 1% | O185: 12% | P185: 0% | Q185: 0% | R185: 40% | S185: 15% | T185: 0%
A186: CDB | B186: Cold Bay Airport- Alaska | C186: 55.20515003 | D186: -162.7244662 | E186: ALEUTIAN ISLANDS | F186: AK | G186: 44,098 | H186: 21 | I186: 0.0 | J186: 2,563 | K186: $79,182 | L186: 20 | M186: 0.0 | N186: 0% | O186: 6% | P186: 0% | Q186: 0% | R186: 35% | S186: 5% | T186: 0%
A187: FMN | B187: Farmington- New Mexico | C187: 36.74125 | D187: -108.2299444 | E187: SAN JUAN | F187: NM | G187: 41,709 | H187: 14 | I187: 0.0 | J187: 1,425 | K187: $146,651 | L187: 16 | M187: 0.0 | N187: 0% | O187: 4% | P187: 0% | Q187: 0% | R187: 65% | S187: 4% | T187: 0%
A188: DUT | B188: Dutch Harbor- Alaska | C188: 53.90013889 | D188: -166.5435 | E188: ALEUTIAN ISLANDS | F188: AK | G188: 52,848 | H188: 18 | I188: 0.0 | J188: 1,678 | K188: $79,182 | L188: 28 | M188: 0.0 | N188: 0% | O188: 5% | P188: 0% | Q188: 0% | R188: 35% | S188: 7% | T188: 0%
A189: TOG | B189: Togiak Village- Alaska | C189: 59.05362611 | D189: -160.3969242 | E189: BETHEL | F189: AK | G189: 4,912 | H189: 31 | I189: 0.0 | J189: 1,615 | K189: $79,182 | L189: 28 | M189: 0.0 | N189: 0% | O189: 9% | P189: 0% | Q189: 0% | R189: 35% | S189: 7% | T189: 0%
A190: YAK | B190: Yakutat- Alaska | C190: 59.50330556 | D190: -139.66025 | E190: SKAGWAY-YAKUTAT | F190: AK | G190: 47,629 | H190: 8 | I190: 0.0 | J190: 3,681 | K190: $79,182 | L190: 12 | M190: 0.0 | N190: 0% | O190: 2% | P190: 0% | Q190: 0% | R190: 35% | S190: 3% | T190: 0%
A191: EWN | B191: Simmons Nott Airport | C191: 35.07297222 | D191: -77.04294444 | E191: CRAVEN | F191: NC | G191: 253,904 | H191: 19 | I191: 0.0 | J191: 2,227 | K191: $76,450 | L191: 21 | M191: 0.0 | N191: 0% | O191: 5% | P191: 0% | Q191: 0% | R191: 34% | S191: 5% | T191: 0%
A192: RDD | B192: Redding- California | C192: 40.509 | D192: -122.2933889 | E192: SHASTA | F192: CA | G192: 183,813 | H192: 20 | I192: 0.0 | J192: 778 | K192: $85,937 | L192: 58 | M192: 0.0 | N192: 0% | O192: 6% | P192: 0% | Q192: 0% | R192: 38% | S192: 14% | T192: 0%
A193: FAR | B193: Fargo- North Dakota | C193: 46.92065 | D193: -96.81576389 | E193: CASS | F193: ND | G193: 734,446 | H193: 76 | I193: 0.6 | J193: 1,361 | K193: $16,124 | L193: 63 | M193: 0.0 | N193: 1% | O193: 21% | P193: 0% | Q193: 0% | R193: 7% | S193: 15% | T193: 0%
A194: BLI | B194: Bellingham- Washington | C194: 48.79269444 | D194: -122.5375278 | E194: WHATCOM | F194: WA | G194: 783,187 | H194: 26 | I194: 0.2 | J194: 1,112 | K194: $94,522 | L194: 26 | M194: 0.0 | N194: 1% | O194: 7% | P194: 0% | Q194: 0% | R194: 42% | S194: 6% | T194: 0%
A195: FYU | B195: Fort Yukon- Alaska | C195: 66.57149028 | D195: -145.2504169 | E195: UPPER YUKON | F195: AK | G195: 24,142 | H195: 26 | I195: 0.0 | J195: 1,387 | K195: $79,182 | L195: 28 | M195: 0.0 | N195: 0% | O195: 7% | P195: 0% | Q195: 0% | R195: 35% | S195: 7% | T195: 0%
A196: ACK | B196: Nantucket- Massachusetts | C196: 41.25311111 | D196: -70.06030556 | E196: NANTUCKET | F196: MA | G196: 215,160 | H196: 28 | I196: 0.1 | J196: 752 | K196: $116,435 | L196: 33 | M196: 0.0 | N196: 0% | O196: 8% | P196: 0% | Q196: 0% | R196: 52% | S196: 8% | T196: 0%
A197: PTK | B197: Pontiac- Michigan | C197: 42.66563619 | D197: -83.42050564 | E197: OAKLAND | F197: MI | G197: 3,924 | H197: 41 | I197: 0.0 | J197: 939 | K197: $52,330 | L197: 68 | M197: 0.0 | N197: 0% | O197: 11% | P197: 0% | Q197: 0% | R197: 23% | S197: 16% | T197: 0%
A198: 5KE | B198: Ketchikan Waterfront SPB | C198: 55.34446389 | D198: -131.6634389 | E198: KETCHIKAN GATEWAY | F198: AK | G198: 27,629 | H198: 29 | I198: 0.0 | J198: 955 | K198: $79,182 | L198: 39 | M198: 0.0 | N198: 0% | O198: 8% | P198: 0% | Q198: 0% | R198: 35% | S198: 9% | T198: 0%
A199: DLH | B199: Duluth Intl Airport | C199: 46.84208333 | D199: -92.19363889 | E199: ST LOUIS | F199: MN | G199: 305,492 | H199: 53 | I199: 0.2 | J199: 1,174 | K199: $99,956 | L199: 26 | M199: 0.0 | N199: 0% | O199: 15% | P199: 0% | Q199: 0% | R199: 44% | S199: 6% | T199: 0%
A200: BFL | B200: Meadows Field | C200: 35.43386111 | D200: -119.0576667 | E200: KERN | F200: CA | G200: 220,401 | H200: 35 | I200: 0.1 | J200: 999 | K200: $85,937 | L200: 39 | M200: 0.0 | N200: 0% | O200: 10% | P200: 0% | Q200: 0% | R200: 38% | S200: 9% | T200: 0%
... 795 more rows

Sheet Rail - Passenger (hidden)
B1: 1 | C1: 2 | D1: 3 | E1: 4 | F1: 5 | G1: 6 | H1: 7 | I1: 8 | J1: 9 | K1: 10 | L1: 11 | M1: 12
A2: STN Code | B2: Station | C2: Address | D2: Zip Code | E2: City | F2: County | G2: State | H2: Number of Passengers | I2: Number of Unique Origins/Destinations | J2: Connectivity Index | K2: % of Max Passengers | L2: % of Connections | M2: % of connectivity
A3: NYP | B3: New York, NY | C3: 8th Ave 31st Street / 8th Ave 33rd Street | D3: 10001 | E3: New York | F3: New York County | G3: NY | H3: 8,377,944 | I3: 208 | J3: 17.4 | K3: 100% | L3: 80% | M3: 100%
A4: CHI | B4: Chicago, IL | C4: 225 South Canal Street | D4: 60606 | E4: Chicago | F4: Cook County | G4: IL | H4: 3,288,054 | I4: 260 | J4: 8.5 | K4: 39% | L4: 100% | M4: 49%
A5: WAS | B5: Washington, DC | C5: 50 Massachusetts Ave NE | D5: 20002-4214 | E5: Washington | F5: District of Columbia | G5: DC | H5: 4,572,878 | I5: 157 | J5: 7.2 | K5: 55% | L5: 60% | M5: 41%
A6: PHL | B6: Philadelphia, PA | C6: 2955 Market St. | D6: 19104-2898 | E6: Philadelphia | F6: Philadelphia County | G6: PA | H6: 3,787,331 | I6: 162 | J6: 6.1 | K6: 45% | L6: 62% | M6: 35%
A7: LAX | B7: Los Angeles, CA | C7: 800 North Alameda Street | D7: 90012-2902 | E7: Los Angeles | F7: Los Angelos County | G7: CA | H7: 1,517,342 | I7: 131 | J7: 2.0 | K7: 18% | L7: 50% | M7: 11%
A8: BAL | B8: Baltimore, MD | C8: 1515 North Charles Street | D8: 21201-5893 | E8: Baltimore | F8: Baltimore County | G8: MD | H8: 926,245 | I8: 143 | J8: 1.3 | K8: 11% | L8: 55% | M8: 8%
A9: NWK | B9: Newark, NJ | C9: 1 Raymond Plaza West | D9: 07102-5405 | E9: Newark | F9: Essex County | G9: NJ | H9: 658,089 | I9: 162 | J9: 1.1 | K9: 8% | L9: 62% | M9: 6%
A10: BOS | B10: Boston South Station, MA | C10: 2 South Station | D10: 02110 | E10: Boston | F10: Suffolk County | G10: MA | H10: 1,311,205 | I10: 80 | J10: 1.0 | K10: 16% | L10: 31% | M10: 6%
A11: WIL | B11: Wilmington, DE | C11: 100 South French Street | D11: 19801-5036 | E11: Wilmington | F11: New Castle County | G11: DE | H11: 696,979 | I11: 143 | J11: 1.0 | K11: 8% | L11: 55% | M11: 6%
A12: SAC | B12: Sacramento, CA | C12: 401 I Street | D12: 95814-2308 | E12: Sacramento | F12: Sacramento County | G12: CA | H12: 1,107,220 | I12: 80 | J12: 0.9 | K12: 13% | L12: 31% | M12: 5%
A13: TRE | B13: Trenton, NJ | C13: 72 South Clinton Avenue | D13: 08609-1238 | E13: Trenton | F13: Mercer County | G13: NJ | H13: 420,533 | I13: 162 | J13: 0.7 | K13: 5% | L13: 62% | M13: 4%
A14: SEA | B14: Seattle, WA | C14: 303 South Jackson Street | D14: 98104-2868 | E14: Seattle | F14: King County | G14: WA | H14: 677,953 | I14: 78 | J14: 0.5 | K14: 8% | L14: 30% | M14: 3%
A15: PDX | B15: Portland, OR | C15: 800 NW Sixth Ave. | D15: 97209-3789 | E15: Portland | F15: Multnomah County | G15: OR | H15: 672,608 | I15: 78 | J15: 0.5 | K15: 8% | L15: 30% | M15: 3%
A16: NHV | B16: New Haven, CT | C16: 50 Union Avenue | D16: 06519-1754 | E16: New Haven | F16: New Haven County | G16: CT | H16: 723,287 | I16: 61 | J16: 0.4 | K16: 9% | L16: 23% | M16: 3%
A17: EMY | B17: Emeryville, CA | C17: 5885 Horton Street | D17: 94608-2037 | E17: Emeryville | F17: Alameda County | G17: CA | H17: 529,965 | I17: 80 | J17: 0.4 | K17: 6% | L17: 31% | M17: 2%
A18: BWI | B18: BWI Airport, MD | C18: 7 Amtrak Way | D18: 21240-0642 | E18: BWI Airport | F18: Anne Arundel County | G18: MD | H18: 654,151 | I18: 61 | J18: 0.4 | K18: 8% | L18: 23% | M18: 2%
A19: ALB | B19: Albany-Rensselaer, NY | C19: 525 East St. | D19: 12144-2310 | E19: Rensselaer | F19: Rensselaer County | G19: NY | H19: 737,259 | I19: 50 | J19: 0.4 | K19: 9% | L19: 19% | M19: 2%
A20: MTZ | B20: Martinez | C20: 601 Marina Vista Ave. | D20: 94553-1132 | E20: Martinez | F20: Contra Costa County | G20: CA | H20: 410,968 | I20: 80 | J20: 0.3 | K20: 5% | L20: 31% | M20: 2%
A21: BBY | B21: Boston Back Bay, MA | C21: 145 Dartmouth St. | D21: 02116-5162 | E21: Boston | F21: Suffolk County | G21: MA | H21: 445,074 | I21: 70 | J21: 0.3 | K21: 5% | L21: 27% | M21: 2%
A22: PVD | B22: Providence, RI | C22: 100 Gaspee Street | D22: 02903 | E22: Providence | F22: Providence County | G22: RI | H22: 602,474 | I22: 50 | J22: 0.3 | K22: 7% | L22: 19% | M22: 2%
A23: MKE | B23: Milwaukee, WI | C23: 433 West St. Paul Ave. | D23: 53203 | E23: Milwaukee | F23: Milwaukee County | G23: WI | H23: 588,617 | I23: 47 | J23: 0.3 | K23: 7% | L23: 18% | M23: 2%
A24: DAV | B24: Davis | C24: 840 Second Street | D24: 95616-4624 | E24: Davis | F24: Yolo County | G24: CA | H24: 409,611 | I24: 67 | J24: 0.3 | K24: 5% | L24: 26% | M24: 2%
A25: RVR | B25: Richmond - Staples Mill | C25: 7519 Staples Mill Road | D25: 23228 | E25: Richmond | F25: Henrico County | G25: VA | H25: 266,343 | I25: 94 | J25: 0.3 | K25: 3% | L25: 36% | M25: 1%
A26: FUL | B26: Fullerton | C26: 120 East Santa Fe Avenue | D26: 92832 | E26: Fullerton | F26: Orange County | G26: CA | H26: 411,489 | I26: 60 | J26: 0.2 | K26: 5% | L26: 23% | M26: 1%
A27: STL | B27: St. Louis | C27: 551 South 16th St. | D27: 63103 | E27: St. Louis | F27: St. Louis City | G27: MO | H27: 321,629 | I27: 70 | J27: 0.2 | K27: 4% | L27: 27% | M27: 1%
A28: STM | B28: Stamford | C28: Washington Blvd and South State St. | D28: 06902 | E28: Stamford | F28: Fairfield County | G28: CT | H28: 355,232 | I28: 61 | J28: 0.2 | K28: 4% | L28: 23% | M28: 1%
A29: SAN | B29: San Diego, CA | C29: 1050 Kettner Blvd | D29: 92101-3339 | E29: San Diego | F29: San Diego County | G29: CA | H29: 715,043 | I29: 29 | J29: 0.2 | K29: 9% | L29: 11% | M29: 1%
A30: RTE | B30: Route 128 (Boston) | C30: 50 University Ave | D30: 02090-2307 | E30: Westwood | F30: Norfolk County | G30: MA | H30: 394,674 | I30: 50 | J30: 0.2 | K30: 5% | L30: 19% | M30: 1%
A31: ALX | B31: Alexandria | C31: 110 Callahan Drive | D31: 22301-2752 | E31: Alexandria | F31: Alexandria city | G31: VA | H31: 139,837 | I31: 132 | J31: 0.2 | K31: 2% | L31: 51% | M31: 1%
A32: IRV | B32: Irvine, CA | C32: 15215 Barranca Parkway | D32: 92618 | E32: Irvine | F32: Orange County | G32: CA | H32: 630,190 | I32: 29 | J32: 0.2 | K32: 8% | L32: 11% | M32: 1%
A33: OKJ | B33: Oakland | C33: 245 Second Street | D33: 94607 | E33: Oakland | F33: Alameda County | G33: CA | H33: 355,128 | I33: 51 | J33: 0.2 | K33: 4% | L33: 20% | M33: 1%
A34: SBA | B34: Santa Barbara | C34: 209 State Street | D34: 93101-3833 | E34: Santa Barbara | F34: Santa Barbara County | G34: CA | H34: 295,079 | I34: 53 | J34: 0.2 | K34: 4% | L34: 20% | M34: 1%
A35: SPG | B35: Springfield | C35: 66 Lyman St. | D35: 01103 | E35: Springfield | F35: Hampden County | G35: MA | H35: 190,172 | I35: 81 | J35: 0.2 | K35: 2% | L35: 31% | M35: 1%
A36: HAR | B36: Harrisburg, PA | C36: 4th and Chestnut Streets | D36: 17101 | E36: Harrisburg | F36: Dauphin County | G36: PA | H36: 547,257 | I36: 28 | J36: 0.2 | K36: 7% | L36: 11% | M36: 1%
A37: LNC | B37: Lancaster, PA | C37: 53 McGovern Avenue | D37: 17602 | E37: Lancaster | F37: Lancaster | G37: PA | H37: 514,971 | I37: 28 | J37: 0.1 | K37: 6% | L37: 11% | M37: 1%
A38: NOL | B38: New Orleans | C38: 1001 Loyola Avenue | D38: 70113 | E38: New Orleans | F38: Orleans | G38: LA | H38: 200,249 | I38: 71 | J38: 0.1 | K38: 2% | L38: 27% | M38: 1%
A39: RIC | B39: Richmond | C39: 1700 Nevin Avenue | D39: 94802 | E39: Richmond | F39: Contra Costa | G39: CA | H39: 271,486 | I39: 51 | J39: 0.1 | K39: 3% | L39: 20% | M39: 1%
A40: BNL | B40: Bloomington/Normal | C40: 100 East Parkinson St. | D40: 61761-3015 | E40: Normal | F40: McLean | G40: IL | H40: 209,629 | I40: 61 | J40: 0.1 | K40: 3% | L40: 23% | M40: 1%
A41: SOL | B41: Solana Beach | C41: 105 North Cedros Avenue | D41: 92075 | E41: Solana Beach | F41: San Diego | G41: CA | H41: 408,060 | I41: 29 | J41: 0.1 | K41: 5% | L41: 11% | M41: 1%
A42: SPI | B42: Springfield | C42: East Washington and North Third Sts. | D42: 62701-1106 | E42: Springfield | F42: Sangamon | G42: IL | H42: 190,172 | I42: 61 | J42: 0.1 | K42: 2% | L42: 23% | M42: 1%
A43: NCR | B43: New Carrollton | C43: 4300 Garden City Drive | D43: 20785-2209 | E43: New Carrollton | F43: Prince Georges | G43: MD | H43: 170,848 | I43: 61 | J43: 0.1 | K43: 2% | L43: 23% | M43: 1%
A44: HFD | B44: Hartford | C44: One Union Place | D44: 06103 | E44: Hartford | F44: Hartford | G44: CT | H44: 170,060 | I44: 61 | J44: 0.1 | K44: 2% | L44: 23% | M44: 1%
A45: ANA | B45: Anaheim | C45: 2150 East Katella Avenue | D45: 92806 | E45: Anaheim | F45: Orange | G45: CA | H45: 331,666 | I45: 29 | J45: 0.1 | K45: 4% | L45: 11% | M45: 1%
A46: GBB | B46: Galesburg | C46: 225 South Seminary Street | D46: 61401 | E46: Galesburg | F46: Knox | G46: IL | H46: 102,851 | I46: 87 | J46: 0.1 | K46: 1% | L46: 33% | M46: 1%
A47: RGH | B47: Raleigh | C47: 320 West Cabarrus Street | D47: 27601 | E47: Raleigh | F47: Wake | G47: NC | H47: 164,745 | I47: 54 | J47: 0.1 | K47: 2% | L47: 21% | M47: 1%
A48: OSD | B48: Oceanside | C48: 235 South Tremont Street | D48: 92054 | E48: Oceanside | F48: San Diego | G48: CA | H48: 293,012 | I48: 29 | J48: 0.1 | K48: 3% | L48: 11% | M48: 0%
A49: NLC | B49: New London | C49: 27 Water Street | D49: 06320 | E49: New London | F49: New London | G49: CT | H49: 162,396 | I49: 50 | J49: 0.1 | K49: 2% | L49: 19% | M49: 0%
A50: VAN | B50: Vancouver | C50: 1301 West 11th Street | D50: 98660 | E50: Vancouver | F50: Clark | G50: WA | H50: 100,979 | I50: 78 | J50: 0.1 | K50: 1% | L50: 30% | M50: 0%
A51: SJC | B51: San Jose | C51: 65 Cahill Street | D51: 95110 | E51: San Jose | F51: Santa Clara | G51: CA | H51: 202,512 | I51: 38 | J51: 0.1 | K51: 2% | L51: 15% | M51: 0%
A52: KIN | B52: Kingston | C52: 1 Railroad Avenue | D52: 02892-1508 | E52: West Kingston | F52: Washington | G52: RI | H52: 151,954 | I52: 50 | J52: 0.1 | K52: 2% | L52: 19% | M52: 0%
A53: ORL | B53: Orlando | C53: 1400 Sligh Blvd. | D53: 32806-3905 | E53: Orlando | F53: Orange | G53: FL | H53: 159,533 | I53: 45 | J53: 0.1 | K53: 2% | L53: 17% | M53: 0%
A54: CLT | B54: Charlotte | C54: 1914 North Tryon St. | D54: 28206 | E54: Charlotte | F54: Mecklenburg | G54: NC | H54: 162,905 | I54: 44 | J54: 0.1 | K54: 2% | L54: 17% | M54: 0%
A55: EWR | B55: Newark Airport | C55: Newark Liberty International Airport | D55: 07114-3401 | E55: Newark | F55: Essex | G55: NJ | H55: 116,526 | I55: 61 | J55: 0.1 | K55: 1% | L55: 23% | M55: 0%
A56: BFD | B56: Bakersfield | C56: 601 Truxtun Ave | D56: 93301-5319 | E56: Bakersfield | F56: Kern | G56: CA | H56: 413,172 | I56: 17 | J56: 0.1 | K56: 5% | L56: 7% | M56: 0%
A57: SNC | B57: San Juan Capistrano | C57: 26701 Verdugo Street | D57: 92675 | E57: San Juan Capistrano | F57: Orange | G57: CA | H57: 223,580 | I57: 29 | J57: 0.1 | K57: 3% | L57: 11% | M57: 0%
A58: FNO | B58: Fresno | C58: 2650 Tulare St. | D58: 93721-1325 | E58: Fresno | F58: Fresno | G58: CA | H58: 352,737 | I58: 17 | J58: 0.1 | K58: 4% | L58: 7% | M58: 0%
A59: TPA | B59: Tampa | C59: 601 North Nebraska Ave | D59: 33602-3555 | E59: Tampa | F59: Hillsborough | G59: FL | H59: 131,054 | I59: 45 | J59: 0.1 | K59: 2% | L59: 17% | M59: 0%
A60: KCY | B60: Kansas City | C60: 30 West Pershing Rd. | D60: 64108-2410 | E60: Kansas City | F60: Jackson | G60: MO | H60: 142,769 | I60: 41 | J60: 0.1 | K60: 2% | L60: 16% | M60: 0%
A61: NPN | B61: Newport News | C61: 9304 Warwick Boulevard | D61: 23601-4535 | E61: Newport News | F61: Newport News City | G61: VA | H61: 116,229 | I61: 50 | J61: 0.1 | K61: 1% | L61: 19% | M61: 0%
A62: MSP | B62: St. Paul-Minneapolis (Midway Station) | C62: Midway Station | D62: 55114-1498 | E62: St. Paul | F62: Ramsey | G62: MN | H62: 128,658 | I62: 45 | J62: 0.1 | K62: 2% | L62: 17% | M62: 0%
A63: CHM | B63: Champaign-Urbana | C63: 45 East University Ave. | D63: 61820-4046 | E63: Champaign | F63: Champaign | G63: IL | H63: 142,406 | I63: 40 | J63: 0.1 | K63: 2% | L63: 15% | M63: 0%
A64: FTW | B64: Fort Worth | C64: 1001 Jones Street | D64: 76102 | E64: Fort Worth | F64: Tarrant | G64: TX | H64: 118,199 | I64: 46 | J64: 0.1 | K64: 1% | L64: 18% | M64: 0%
A65: RHI | B65: Rhinecliff | C65: Hutton and Charles Sts. | D65: 12574 | E65: Rhinecliff | F65: Dutchess | G65: NY | H65: 158,534 | I65: 34 | J65: 0.1 | K65: 2% | L65: 13% | M65: 0%
A66: SYR | B66: Syracuse | C66: 131 Alliance Bank Parkway | D66: 13208 | E66: Syracuse | F66: Onondaga | G66: NY | H66: 139,175 | I66: 37 | J66: 0.1 | K66: 2% | L66: 14% | M66: 0%
A67: HUD | B67: Hudson | C67: 69 South Front St. | D67: 12534 | E67: Hudson | F67: Columbia | G67: NY | H67: 150,197 | I67: 34 | J67: 0.1 | K67: 2% | L67: 13% | M67: 0%
A68: ROC | B68: Rochester | C68: 320 Central Avenue | D68: 14605 | E68: Rochester | F68: Monroe | G68: NY | H68: 128,935 | I68: 37 | J68: 0.0 | K68: 2% | L68: 14% | M68: 0%
A69: GRO | B69: Greensboro | C69: 236 East Washington Street | D69: 27401-2704 | E69: Greensboro | F69: Guilford | G69: NC | H69: 105,671 | I69: 44 | J69: 0.0 | K69: 1% | L69: 17% | M69: 0%
A70: CDL | B70: Carbondale | C70: 401 South Illinois St. | D70: 62901 | E70: Carbondale | F70: Jackson | G70: IL | H70: 116,094 | I70: 40 | J70: 0.0 | K70: 1% | L70: 15% | M70: 0%
A71: PGH | B71: Pittsburgh | C71: 1100 Liberty Avenue | D71: 15222 | E71: Pittsburgh | F71: Allegheny | G71: PA | H71: 136,333 | I71: 33 | J71: 0.0 | K71: 2% | L71: 13% | M71: 0%
A72: SNA | B72: Santa Ana | C72: 1000 East Santa Ana Boulevard | D72: 92701 | E72: Santa Ana | F72: Orange | G72: CA | H72: 152,733 | I72: 29 | J72: 0.0 | K72: 2% | L72: 11% | M72: 0%
A73: PAO | B73: Paoli | C73: 13 Lancaster Ave. | D73: 19301 | E73: Paoli | F73: Chester | G73: PA | H73: 153,154 | I73: 28 | J73: 0.0 | K73: 2% | L73: 11% | M73: 0%
A74: DEN | B74: Denver | C74: 1701 Wynkoop Street | D74: 80202 | E74: Denver | F74: Denver | G74: CO | H74: 128,410 | I74: 33 | J74: 0.0 | K74: 2% | L74: 13% | M74: 0%
A75: BUF | B75: Buffalo-Depew | C75: 55 Dick Road | D75: 14043 | E75: Depew | F75: Erie | G75: NY | H75: 111,513 | I75: 37 | J75: 0.0 | K75: 1% | L75: 14% | M75: 0%
A76: EUG | B76: Eugene | C76: 433 Willamette Street | D76: 97401-2613 | E76: Eugene | F76: Lane | G76: OR | H76: 110,633 | I76: 37 | J76: 0.0 | K76: 1% | L76: 14% | M76: 0%
A77: MIA | B77: Miami | C77: 8303 NW 37th Ave | D77: 33147 | E77: Miami | F77: Miami-dade | G77: FL | H77: 90,561 | I77: 45 | J77: 0.0 | K77: 1% | L77: 17% | M77: 0%
A78: SKN | B78: Stockton (San Joaquin St.) | C78: 735 S. San Joaquin St | D78: 95203 | E78: Stockton | F78: San Joaquin | G78: CA | H78: 238,868 | I78: 17 | J78: 0.0 | K78: 3% | L78: 7% | M78: 0%
A79: BON | B79: Boston North Station, MA | C79: 100 Legends Way | D79: 02114-1300 | E79: Boston | F79: Suffolk | G79: MA | H79: 418,993 | I79: 9 | J79: 0.0 | K79: 5% | L79: 3% | M79: 0%
A80: ATL | B80: Atlanta | C80: 1688 Peachtree Street, NW | D80: 30309 | E80: Atlanta | F80: Fulton | G80: GA | H80: 112,364 | I80: 32 | J80: 0.0 | K80: 1% | L80: 12% | M80: 0%
A81: CHS | B81: Charleston | C81: 4565 Gaynor Avenue | D81: 29405 | E81: North Charleston | F81: Charleston | G81: SC | H81: 79,806 | I81: 45 | J81: 0.0 | K81: 1% | L81: 17% | M81: 0%
A82: ARB | B82: Ann Arbor | C82: 325 Depot Street | D82: 48104 | E82: Ann Arbor | F82: Washtenaw | G82: MI | H82: 140,735 | I82: 24 | J82: 0.0 | K82: 2% | L82: 9% | M82: 0%
A83: HNF | B83: Hanford | C83: 200 Santa Fe Avenue #A | D83: 93230-4554 | E83: Hanford | F83: Kings | G83: CA | H83: 187,865 | I83: 17 | J83: 0.0 | K83: 2% | L83: 7% | M83: 0%
A84: SAV | B84: Savannah | C84: 2611 Seaboard Coastline Drive | D84: 31401-1634 | E84: Savannah | F84: Chatham | G84: GA | H84: 65,656 | I84: 45 | J84: 0.0 | K84: 1% | L84: 17% | M84: 0%
A85: KAL | B85: Kalamazoo | C85: 459 North Burdick St. | D85: 49007-3669 | E85: Kalamazoo | F85: Kalamazoo | G85: MI | H85: 113,061 | I85: 24 | J85: 0.0 | K85: 1% | L85: 9% | M85: 0%
A86: SUI | B86: Suisun-Fairfield | C86: 177 Main Street | D86: 94585 | E86: Suisun | F86: Solano | G86: CA | H86: 171,381 | I86: 15 | J86: 0.0 | K86: 2% | L86: 6% | M86: 0%
A87: ABQ | B87: Albuquerque | C87: 320 First Street SW | D87: 87102 | E87: Albuquerque | F87: Bernalillo | G87: NM | H87: 71,848 | I87: 32 | J87: 0.0 | K87: 1% | L87: 12% | M87: 0%
A88: BKY | B88: Berkeley | C88: University Ave. and Third St. | D88: 94710 | E88: Berkeley | F88: Alameda | G88: CA | H88: 133,152 | I88: 15 | J88: 0.0 | K88: 2% | L88: 6% | M88: 0%
A89: MCD | B89: Merced | C89: 324 West 24th St | D89: 95340 | E89: Merced | F89: Merced | G89: CA | H89: 103,505 | I89: 17 | J89: 0.0 | K89: 1% | L89: 7% | M89: 0%
A90: DET | B90: Detroit | C90: 11 West Baltimore Ave. | D90: 48202 | E90: Detroit | F90: Wayne | G90: MI | H90: 67,971 | I90: 24 | J90: 0.0 | K90: 1% | L90: 9% | M90: 0%
A91: POR | B91: Portland | C91: 100 Thompson's Point Road | D91: 04102-2630 | E91: Portland | F91: Cumberland | G91: ME | H91: 180,465 | I91: 9 | J91: 0.0 | K91: 2% | L91: 3% | M91: 0%
A92: GAC | B92: Great America (Santa Clara) | C92: 5099 Stars & Stripes Dr. | D92: 95054 | E92: Santa Clara | F92: Santa Clara | G92: CA | H92: 104,041 | I92: 15 | J92: 0.0 | K92: 1% | L92: 6% | M92: 0%
A93: MEM | B93: Memphis | C93: Central Station | D93: 38103 | E93: Memphis | F93: Shelby | G93: TN | H93: 62,915 | I93: 18 | J93: 0.0 | K93: 1% | L93: 7% | M93: 0%
A94: IND | B94: Indianapolis | C94: 350 South Illinois Street | D94: 46225-1198 | E94: Indianapolis | F94: Marion | G94: IN | H94: 32,125 | I94: 31 | J94: 0.0 | K94: 0% | L94: 12% | M94: 0%
A95: MKA | B95: Milwaukee Airport | C95: 5601 South 6th Street | D95: 53221 | E95: Milwaukee | F95: Milwaukee | G95: WI | H95: 155,726 | I95: 4 | J95: 0.0 | K95: 2% | L95: 2% | M95: 0%
A96: SFA | B96: Sanford (Auto-Train Station) | C96: 600 South Persimmon Avenue | D96: 32771-2385 | E96: Sanford | F96: Seminole | G96: FL | H96: 244,252 | I96: 1 | J96: 0.0 | K96: 3% | L96: 0% | M96: 0%
A97: LOR | B97: Lorton (Auto-Train) | C97: 8006 Lorton Road | D97: 22079 | E97: Lorton | F97: Fairfax | G97: VA | H97: 244,252 | I97: 1 | J97: 0.0 | K97: 3% | L97: 0% | M97: 0%

Sheet Rail - Freight (hidden)
B1: 1 | C1: 2 | D1: 3 | E1: 4 | F1: 5 | G1: 6 | H1: 7 | I1: 8 | J1: 9 | K1: 10 | L1: 11 | M1: 12 | N1: 13
A2: State | B2: Location | C2: Description | D2: Facility Type | E2: CSA | F2: Location (if not in CSA) | G2: Zip Code | H2: County | I2: Activity (User Input) | J2: Value/container | K2: Connectivity | L2: Total | M2: % of Max Value | N2: % of Max Connections
A3: AL | B3: Burlington Northern RR Dixie Hub Center | C3: Finley Blvd. to I-65 and U.S. 78 West | D3: Truck/Rail | E3: Birmingham AL CSA | G3: 35204 | H3: Jefferson County | I3: =IF(B3='2-INTERMODAL FACILITY INPUTS'!E$8,'2-INTERMODAL FACILITY INPUTS'!H$8,IF(B3='2-INTERMODAL FACILITY INPUTS'!E$14,'2-INTERMODAL FACILITY INPUTS'!H$14,0)) -> 0 | J3: $56,608 | K3: 89 | L3: =I3*J3*K3/Selection!O$12 -> 0.0 | M3: 12.4% | N3: 37%
A4: AL | B4: Alabama State Docks (CSX and BN Rail/Truck) | C4: Beauregard St and The Robert Hope Bridge from the Facility to Water St and I-165 | D4: Truck/Rail | E4: Mobile AL CSA | G4: 36602 | H4: Mobile County | I4: =IF(B4='2-INTERMODAL FACILITY INPUTS'!E$8,'2-INTERMODAL FACILITY INPUTS'!H$8,IF(B4='2-INTERMODAL FACILITY INPUTS'!E$14,'2-INTERMODAL FACILITY INPUTS'!H$14,0)) -> 0 | J4: $56,608 | K4: 107 | L4: =I4*J4*K4/Selection!O$12 -> 0.0 | M4: 12.4% | N4: 45%
A5: AL | B5: Brookley Industrial Complex | C5: Michigan Ave (Ave I to I-10) | D5: Truck/Rail | E5: Mobile AL CSA | H5: Mobile County | I5: =IF(B5='2-INTERMODAL FACILITY INPUTS'!E$8,'2-INTERMODAL FACILITY INPUTS'!H$8,IF(B5='2-INTERMODAL FACILITY INPUTS'!E$14,'2-INTERMODAL FACILITY INPUTS'!H$14,0)) -> 0 | J5: $56,608 | K5: 107 | L5: =I5*J5*K5/Selection!O$12 -> 0.0 | M5: 12.4% | N5: 45%
A6: AL | B6: Ernest Norris RR Yards | C6: Entrance on Norfolk Southern Dr. to Ruffner Rd, to 16th St. to US 78 to Kilgore Mem. Dr. to I-20 | D6: Truck/Rail | E6: Birmingham AL CSA | G6: 35210 | H6: Jefferson County | I6: =IF(B6='2-INTERMODAL FACILITY INPUTS'!E$8,'2-INTERMODAL FACILITY INPUTS'!H$8,IF(B6='2-INTERMODAL FACILITY INPUTS'!E$14,'2-INTERMODAL FACILITY INPUTS'!H$14,0)) -> 0 | J6: $56,608 | K6: 89 | L6: =I6*J6*K6/Selection!O$12 -> 0.0 | M6: 12.4% | N6: 37%
A7: AZ | B7: Glendale Intermodal and Auto Yard | C7: 51st Ave (Grand Ave to I-10) | D7: Truck/Rail | E7: Phoenix AZ MSA | G7: 85301 | H7: Maricopa County | I7: =IF(B7='2-INTERMODAL FACILITY INPUTS'!E$8,'2-INTERMODAL FACILITY INPUTS'!H$8,IF(B7='2-INTERMODAL FACILITY INPUTS'!E$14,'2-INTERMODAL FACILITY INPUTS'!H$14,0)) -> 0 | J7: $159,393 | K7: 66 | L7: =I7*J7*K7/Selection!O$12 -> 0.0 | M7: 34.8% | N7: 28%
A8: AZ | B8: Phoenix Intermodal and Auto Yard | C8: 7th St (I-10 to I-17) | D8: Truck/Rail | E8: Phoenix AZ MSA | H8: Maricopa County | I8: =IF(B8='2-INTERMODAL FACILITY INPUTS'!E$8,'2-INTERMODAL FACILITY INPUTS'!H$8,IF(B8='2-INTERMODAL FACILITY INPUTS'!E$14,'2-INTERMODAL FACILITY INPUTS'!H$14,0)) -> 0 | J8: $159,393 | K8: 66 | L8: =I8*J8*K8/Selection!O$12 -> 0.0 | M8: 34.8% | N8: 28%
A9: AR | B9: Union Pacific Rail/Truck Ramp | C9: From I-40 (ex 157) to SH161 to Bethany Rd | D9: Truck/Rail | E9: Arkansas | I9: =IF(B9='2-INTERMODAL FACILITY INPUTS'!E$8,'2-INTERMODAL FACILITY INPUTS'!H$8,IF(B9='2-INTERMODAL FACILITY INPUTS'!E$14,'2-INTERMODAL FACILITY INPUTS'!H$14,0)) -> 0 | J9: $19,713 | K9: 139 | L9: =I9*J9*K9/Selection!O$12 -> 0.0 | M9: 4.3% | N9: 58%
A10: AR | B10: Union Pacific Ebony Terminal, W Memphis | C10: SH 118 (I-40 to Red Cross), Red Cross Rd (SH 118 to Kuhn), Kuhn Rd (Red Cross to Terminal) | D10: Truck/Rail | E10: Arkansas | G10: 72364 | H10: Crittenden County | I10: =IF(B10='2-INTERMODAL FACILITY INPUTS'!E$8,'2-INTERMODAL FACILITY INPUTS'!H$8,IF(B10='2-INTERMODAL FACILITY INPUTS'!E$14,'2-INTERMODAL FACILITY INPUTS'!H$14,0)) -> 0 | J10: $19,713 | K10: 139 | L10: =I10*J10*K10/Selection!O$12 -> 0.0 | M10: 4.3% | N10: 58%
A11: AR | B11: St. Louis Southwestern Railroad Complex | C11: 2nd St (US 65 to Port Rd), Port Rd (2nd to Emmett Sanders), Emmett Sanders (Port to Port of Pine Bluff Complex) | D11: Truck/Rail | E11: Arkansas | H11: Jefferson County | I11: =IF(B11='2-INTERMODAL FACILITY INPUTS'!E$8,'2-INTERMODAL FACILITY INPUTS'!H$8,IF(B11='2-INTERMODAL FACILITY INPUTS'!E$14,'2-INTERMODAL FACILITY INPUTS'!H$14,0)) -> 0 | J11: $19,713 | K11: 139 | L11: =I11*J11*K11/Selection!O$12 -> 0.0 | M11: 4.3% | N11: 58%
A12: AR | B12: Burlington Northern & Sante Fe Intermodal Terminal | C12: Frontage Rd (US 64 to 77 Bypass), 77 Bypass (Frontage to SH 77), SH 77 (77 Bypass to Terminal) | D12: Truck/Rail | E12: Arkansas | H12: Crittenden County | I12: =IF(B12='2-INTERMODAL FACILITY INPUTS'!E$8,'2-INTERMODAL FACILITY INPUTS'!H$8,IF(B12='2-INTERMODAL FACILITY INPUTS'!E$14,'2-INTERMODAL FACILITY INPUTS'!H$14,0)) -> 0 | J12: $19,713 | K12: 139 | L12: =I12*J12*K12/Selection!O$12 -> 0.0 | M12: 4.3% | N12: 58%
A13: CA | B13: Fresno TOPC Rail Yard | C13: North Ave. (Facility to Rt. 99) | D13: Truck/Rail | E13: Remainder of California | F13: Fresno | H13: Fresno | I13: =IF(B13='2-INTERMODAL FACILITY INPUTS'!E$8,'2-INTERMODAL FACILITY INPUTS'!H$8,IF(B13='2-INTERMODAL FACILITY INPUTS'!E$14,'2-INTERMODAL FACILITY INPUTS'!H$14,0)) -> 0 | J13: $110,831 | K13: 179 | L13: =I13*J13*K13/Selection!O$12 -> 0.0 | M13: 24.2% | N13: 75%
A14: CA | B14: Long Beach (Carson) Rail Yard | C14: Sepulveda Blvd. (Facility to Rt. 47) | D14: Truck/Rail | E14: Los Angeles CA CSA | G14: 90810 | H14: Los Angelos | I14: =IF(B14='2-INTERMODAL FACILITY INPUTS'!E$8,'2-INTERMODAL FACILITY INPUTS'!H$8,IF(B14='2-INTERMODAL FACILITY INPUTS'!E$14,'2-INTERMODAL FACILITY INPUTS'!H$14,0)) -> 0 | J14: $110,831 | K14: 193 | L14: =I14*J14*K14/Selection!O$12 -> 0.0 | M14: 24.2% | N14: 80%
A15: CA | B15: Oakland Rail Yard | C15: Middle Harbor Rd. (7th St to I-880) | D15: Truck/Rail | E15: San Francisco CA CSA | H15: Alameda County | I15: =IF(B15='2-INTERMODAL FACILITY INPUTS'!E$8,'2-INTERMODAL FACILITY INPUTS'!H$8,IF(B15='2-INTERMODAL FACILITY INPUTS'!E$14,'2-INTERMODAL FACILITY INPUTS'!H$14,0)) -> 0 | J15: $110,831 | K15: 150 | L15: =I15*J15*K15/Selection!O$12 -> 0.0 | M15: 24.2% | N15: 63%
A16: CA | B16: Lathrop Rail Yard | C16: Roth Rd. (Airport Rd to I-5), Airport Rd (Roth to French Camp), French Camp Rd (Airport to SR 99) | D16: Truck/Rail | E16: San Francisco CA CSA | I16: =IF(B16='2-INTERMODAL FACILITY INPUTS'!E$8,'2-INTERMODAL FACILITY INPUTS'!H$8,IF(B16='2-INTERMODAL FACILITY INPUTS'!E$14,'2-INTERMODAL FACILITY INPUTS'!H$14,0)) -> 0 | J16: $110,831 | K16: 150 | L16: =I16*J16*K16/Selection!O$12 -> 0.0 | M16: 24.2% | N16: 63%
A17: CA | B17: LA (Nr. Union Station) | C17: Lamar St. (Station to N. Main), N Main St (Lamar to Daly), Daly St (N Main to N Mission), Mission Rd. (Daly to I-5) | D17: Truck/Rail | E17: Los Angeles CA CSA | I17: =IF(B17='2-INTERMODAL FACILITY INPUTS'!E$8,'2-INTERMODAL FACILITY INPUTS'!H$8,IF(B17='2-INTERMODAL FACILITY INPUTS'!E$14,'2-INTERMODAL FACILITY INPUTS'!H$14,0)) -> 0 | J17: $110,831 | K17: 193 | L17: =I17*J17*K17/Selection!O$12 -> 0.0 | M17: 24.2% | N17: 80%
A18: CA | B18: Richmond Rail Yard | C18: Canal Blvd. (Facility to I-580) | D18: Truck/Rail | E18: San Francisco CA CSA | I18: =IF(B18='2-INTERMODAL FACILITY INPUTS'!E$8,'2-INTERMODAL FACILITY INPUTS'!H$8,IF(B18='2-INTERMODAL FACILITY INPUTS'!E$14,'2-INTERMODAL FACILITY INPUTS'!H$14,0)) -> 0 | J18: $110,831 | K18: 150 | L18: =I18*J18*K18/Selection!O$12 -> 0.0 | M18: 24.2% | N18: 63%
A19: CA | B19: LA ATSF Rail Yard | C19: Washington Blvd. (Hobart Yard to I-710) | D19: Truck/Rail | E19: Los Angeles CA CSA | I19: =IF(B19='2-INTERMODAL FACILITY INPUTS'!E$8,'2-INTERMODAL FACILITY INPUTS'!H$8,IF(B19='2-INTERMODAL FACILITY INPUTS'!E$14,'2-INTERMODAL FACILITY INPUTS'!H$14,0)) -> 0 | J19: $110,831 | K19: 193 | L19: =I19*J19*K19/Selection!O$12 -> 0.0 | M19: 24.2% | N19: 80%
A20: CA | B20: Stockton Rail Yard | C20: Anderson St. (Facility to Diamond St.), Diamond St (Anderson to Charter Way), Charter Way (Diamond to SR 99), Mariposa Rd (Charter Way to SR 99) | D20: Truck/Rail | E20: Remainder of California | F20: Stockton | I20: =IF(B20='2-INTERMODAL FACILITY INPUTS'!E$8,'2-INTERMODAL FACILITY INPUTS'!H$8,IF(B20='2-INTERMODAL FACILITY INPUTS'!E$14,'2-INTERMODAL FACILITY INPUTS'!H$14,0)) -> 0 | J20: $110,831 | K20: 179 | L20: =I20*J20*K20/Selection!O$12 -> 0.0 | M20: 24.2% | N20: 75%
A21: CA | B21: San Bernadino Rail Yard | C21: 2nd St (I-215 to Mt Vernon), Mount Vernon (4th St to Rialto), 4th St (Mt Vernon to 5th), Rialto Ave (Mt Vernon to Sidewinder Mountain Rd) | D21: Truck/Rail | E21: Los Angeles CA CSA | I21: =IF(B21='2-INTERMODAL FACILITY INPUTS'!E$8,'2-INTERMODAL FACILITY INPUTS'!H$8,IF(B21='2-INTERMODAL FACILITY INPUTS'!E$14,'2-INTERMODAL FACILITY INPUTS'!H$14,0)) -> 0 | J21: $110,831 | K21: 193 | L21: =I21*J21*K21/Selection!O$12 -> 0.0 | M21: 24.2% | N21: 80%
A22: CA | B22: City of Industry Rail Yard | C22: Azusa Ave (Anaheim-Puente Rd to SR 60), Anahein-Puenta Rd to Arenth Ave) | D22: Truck/Rail | E22: Los Angeles CA CSA | I22: =IF(B22='2-INTERMODAL FACILITY INPUTS'!E$8,'2-INTERMODAL FACILITY INPUTS'!H$8,IF(B22='2-INTERMODAL FACILITY INPUTS'!E$14,'2-INTERMODAL FACILITY INPUTS'!H$14,0)) -> 0 | J22: $110,831 | K22: 193 | L22: =I22*J22*K22/Selection!O$12 -> 0.0 | M22: 24.2% | N22: 80%
A23: CA | B23: LA/Vernon Facility | C23: Washington St. (Facility to I-710) - Included in LA ATSF Railyard (CA66R) | D23: Truck/Rail | E23: Los Angeles CA CSA | I23: =IF(B23='2-INTERMODAL FACILITY INPUTS'!E$8,'2-INTERMODAL FACILITY INPUTS'!H$8,IF(B23='2-INTERMODAL FACILITY INPUTS'!E$14,'2-INTERMODAL FACILITY INPUTS'!H$14,0)) -> 0 | J23: $110,831 | K23: 193 | L23: =I23*J23*K23/Selection!O$12 -> 0.0 | M23: 24.2% | N23: 80%
A24: CA | B24: UPS - Richmond Terminal | C24: Atlas Rd (Facility to Richmond Parkway), Richmond Pkwy (Atlas to I-80) | D24: Truck/Rail | E24: San Francisco CA CSA | I24: =IF(B24='2-INTERMODAL FACILITY INPUTS'!E$8,'2-INTERMODAL FACILITY INPUTS'!H$8,IF(B24='2-INTERMODAL FACILITY INPUTS'!E$14,'2-INTERMODAL FACILITY INPUTS'!H$14,0)) -> 0 | J24: $110,831 | K24: 150 | L24: =I24*J24*K24/Selection!O$12 -> 0.0 | M24: 24.2% | N24: 63%
A25: CO | B25: Union Pacific RR Auto Transfer | C25: From I-76: E 0.1 mi on 96th Ave, N 0.5 mi on I-76 Frontage Road to Terminal Entrance | D25: Truck/Rail | E25: Denver CO CSA | I25: =IF(B25='2-INTERMODAL FACILITY INPUTS'!E$8,'2-INTERMODAL FACILITY INPUTS'!H$8,IF(B25='2-INTERMODAL FACILITY INPUTS'!E$14,'2-INTERMODAL FACILITY INPUTS'!H$14,0)) -> 0 | J25: $94,900 | K25: 95 | L25: =I25*J25*K25/Selection!O$12 -> 0.0 | M25: 20.7% | N25: 40%
A26: CO | B26: Burlington Northern RR Auto Transfer | C26: From I-76: E 1.6 mi on 88th Ave, N 0.5 mi on Yosemite Ave to Terminal Entrance | D26: Truck/Rail | E26: Denver CO CSA | I26: =IF(B26='2-INTERMODAL FACILITY INPUTS'!E$8,'2-INTERMODAL FACILITY INPUTS'!H$8,IF(B26='2-INTERMODAL FACILITY INPUTS'!E$14,'2-INTERMODAL FACILITY INPUTS'!H$14,0)) -> 0 | J26: $94,900 | K26: 95 | L26: =I26*J26*K26/Selection!O$12 -> 0.0 | M26: 20.7% | N26: 40%
A27: CO | B27: Southern Pacific RR Transfer Facility | C27: From I-76: South on Pecos Street to Terminal Entrance at 56th Avenue | D27: Truck/Rail | E27: Denver CO CSA | I27: =IF(B27='2-INTERMODAL FACILITY INPUTS'!E$8,'2-INTERMODAL FACILITY INPUTS'!H$8,IF(B27='2-INTERMODAL FACILITY INPUTS'!E$14,'2-INTERMODAL FACILITY INPUTS'!H$14,0)) -> 0 | J27: $94,900 | K27: 95 | L27: =I27*J27*K27/Selection!O$12 -> 0.0 | M27: 20.7% | N27: 40%
A28: CO | B28: Burlington Northern RR Transfer Facility | C28: 53rd Pl. to Bannock St. to Broadway to 58th Ave. to S.H. 53 to I-25. | D28: Truck/Rail | E28: Denver CO CSA | I28: =IF(B28='2-INTERMODAL FACILITY INPUTS'!E$8,'2-INTERMODAL FACILITY INPUTS'!H$8,IF(B28='2-INTERMODAL FACILITY INPUTS'!E$14,'2-INTERMODAL FACILITY INPUTS'!H$14,0)) -> 0 | J28: $94,900 | K28: 95 | L28: =I28*J28*K28/Selection!O$12 -> 0.0 | M28: 20.7% | N28: 40%
A29: CO | B29: Union Pacific RR Transfer Facility | C29: From S.H. 2 (Colorado Blvd): W 1.4 mi on S.H. 33 (40th Ave) to terminal entrance at Williams Street | D29: Truck/Rail | E29: Denver CO CSA | I29: =IF(B29='2-INTERMODAL FACILITY INPUTS'!E$8,'2-INTERMODAL FACILITY INPUTS'!H$8,IF(B29='2-INTERMODAL FACILITY INPUTS'!E$14,'2-INTERMODAL FACILITY INPUTS'!H$14,0)) -> 0 | J29: $94,900 | K29: 95 | L29: =I29*J29*K29/Selection!O$12 -> 0.0 | M29: 20.7% | N29: 40%
A30: FL | B30: CSX Intermodal - Orlando | C30: Orange Ave. (Facility to Sand Lake Rd.), Sand Lake Rd. (Orange Ave to SR-528) | D30: Truck/Rail | E30: Orlando FL CSA | I30: =IF(B30='2-INTERMODAL FACILITY INPUTS'!E$8,'2-INTERMODAL FACILITY INPUTS'!H$8,IF(B30='2-INTERMODAL FACILITY INPUTS'!E$14,'2-INTERMODAL FACILITY INPUTS'!H$14,0)) -> 0 | J30: $46,933 | K30: 70 | L30: =I30*J30*K30/Selection!O$12 -> 0.0 | M30: 10.3% | N30: 29%
A31: FL | B31: Parsec - Miami | C31: NW 36 St. (NW67 to SR826), NW 72nd (SR836 to NW25), NW 67th Av. (SR948 to NW25), NW 25th (SR826 to NW67) | D31: Truck/Rail | E31: Miami FL MSA | I31: =IF(B31='2-INTERMODAL FACILITY INPUTS'!E$8,'2-INTERMODAL FACILITY INPUTS'!H$8,IF(B31='2-INTERMODAL FACILITY INPUTS'!E$14,'2-INTERMODAL FACILITY INPUTS'!H$14,0)) -> 0 | J31: $46,933 | K31: 121 | L31: =I31*J31*K31/Selection!O$12 -> 0.0 | M31: 10.3% | N31: 50%
A32: FL | B32: Parsec (North) - Miami | C32: Hialeah Expressway (NW 72nd St to R 826) | D32: Truck/Rail | E32: Miami FL MSA | I32: =IF(B32='2-INTERMODAL FACILITY INPUTS'!E$8,'2-INTERMODAL FACILITY INPUTS'!H$8,IF(B32='2-INTERMODAL FACILITY INPUTS'!E$14,'2-INTERMODAL FACILITY INPUTS'!H$14,0)) -> 0 | J32: $46,933 | K32: 121 | L32: =I32*J32*K32/Selection!O$12 -> 0.0 | M32: 10.3% | N32: 50%
A33: FL | B33: Parsec (East Coast RR) - Jacksonville | C33: US 1 (Entrance to University Blvd.), University Blvd. (US 1 to I-95) | D33: Truck/Rail | E33: Jacksonville FL MSA | I33: =IF(B33='2-INTERMODAL FACILITY INPUTS'!E$8,'2-INTERMODAL FACILITY INPUTS'!H$8,IF(B33='2-INTERMODAL FACILITY INPUTS'!E$14,'2-INTERMODAL FACILITY INPUTS'!H$14,0)) -> 0 | J33: $46,933 | K33: 112 | L33: =I33*J33*K33/Selection!O$12 -> 0.0 | M33: 10.3% | N33: 47%
A34: FL | B34: Norfolk Southern Yards | C34: Old Kings Rd. (Entrance to US 23), US 23 (Old Kings Rd. to I-95) | D34: Truck/Rail | E34: Jacksonville FL MSA | I34: =IF(B34='2-INTERMODAL FACILITY INPUTS'!E$8,'2-INTERMODAL FACILITY INPUTS'!H$8,IF(B34='2-INTERMODAL FACILITY INPUTS'!E$14,'2-INTERMODAL FACILITY INPUTS'!H$14,0)) -> 0 | J34: $46,933 | K34: 112 | L34: =I34*J34*K34/Selection!O$12 -> 0.0 | M34: 10.3% | N34: 47%
A35: FL | B35: CSXT Bulk Intermodal Facility | C35: Sportsman Club Rd (Entrance to Pritchard Rd.), Pritchard Rd. (Sportsman Cl. to I-95) | D35: Truck/Rail | E35: Jacksonville FL MSA | I35: =IF(B35='2-INTERMODAL FACILITY INPUTS'!E$8,'2-INTERMODAL FACILITY INPUTS'!H$8,IF(B35='2-INTERMODAL FACILITY INPUTS'!E$14,'2-INTERMODAL FACILITY INPUTS'!H$14,0)) -> 0 | J35: $46,933 | K35: 112 | L35: =I35*J35*K35/Selection!O$12 -> 0.0 | M35: 10.3% | N35: 47%
A36: FL | B36: Parsec - Ft. Lauderdale | C36: Served by an Existing NHS Route | D36: Truck/Rail | E36: Miami FL MSA | I36: =IF(B36='2-INTERMODAL FACILITY INPUTS'!E$8,'2-INTERMODAL FACILITY INPUTS'!H$8,IF(B36='2-INTERMODAL FACILITY INPUTS'!E$14,'2-INTERMODAL FACILITY INPUTS'!H$14,0)) -> 0 | J36: $46,933 | K36: 121 | L36: =I36*J36*K36/Selection!O$12 -> 0.0 | M36: 10.3% | N36: 50%
A37: FL | B37: Parsec - West Palm Beach | C37: Served by an Existing NHS Route | D37: Truck/Rail | E37: Miami FL MSA | I37: =IF(B37='2-INTERMODAL FACILITY INPUTS'!E$8,'2-INTERMODAL FACILITY INPUTS'!H$8,IF(B37='2-INTERMODAL FACILITY INPUTS'!E$14,'2-INTERMODAL FACILITY INPUTS'!H$14,0)) -> 0 | J37: $46,933 | K37: 121 | L37: =I37*J37*K37/Selection!O$12 -> 0.0 | M37: 10.3% | N37: 50%
A38: GA | B38: Atlanta Hulsey Rail Yard | C38: From I-20 (ex 26): North 0.5 miles on CS052003 to the truck/rail facility | D38: Truck/Rail | E38: Atlanta GA-AL CSA (GA Part) | I38: =IF(B38='2-INTERMODAL FACILITY INPUTS'!E$8,'2-INTERMODAL FACILITY INPUTS'!H$8,IF(B38='2-INTERMODAL FACILITY INPUTS'!E$14,'2-INTERMODAL FACILITY INPUTS'!H$14,0)) -> 0 | J38: $68,355 | K38: 155 | L38: =I38*J38*K38/Selection!O$12 -> 0.0 | M38: 14.9% | N38: 65%
A39: GA | B39: Atlanta Inman Rail Yard | C39: From I-285: S 1.3 mi on S. Cobb Dr. and SR 280, NE 1.0 mi on Bolton Rd, SE 2.3 mi on Marietta Rd | D39: Truck/Rail | E39: Atlanta GA-AL CSA (GA Part) | I39: =IF(B39='2-INTERMODAL FACILITY INPUTS'!E$8,'2-INTERMODAL FACILITY INPUTS'!H$8,IF(B39='2-INTERMODAL FACILITY INPUTS'!E$14,'2-INTERMODAL FACILITY INPUTS'!H$14,0)) -> 0 | J39: $68,355 | K39: 155 | L39: =I39*J39*K39/Selection!O$12 -> 0.0 | M39: 14.9% | N39: 65%
A40: GA | B40: Norfolk Southern Rail Yard, Atlanta | C40: From Lakewood Freeway (SR 166) Sylvan Rd exit right 0.1 mi and left on Lakewood Ave, 0.4 mi to Terminal. | D40: Truck/Rail | E40: Atlanta GA-AL CSA (GA Part) | I40: =IF(B40='2-INTERMODAL FACILITY INPUTS'!E$8,'2-INTERMODAL FACILITY INPUTS'!H$8,IF(B40='2-INTERMODAL FACILITY INPUTS'!E$14,'2-INTERMODAL FACILITY INPUTS'!H$14,0)) -> 0 | J40: $68,355 | K40: 155 | L40: =I40*J40*K40/Selection!O$12 -> 0.0 | M40: 14.9% | N40: 65%
A41: GA | B41: CSX Railyard, Savannah | C41: From I-516: N&W 0.70 mi on Tremont Rd, N 0.1 mi on Tremont Ave, W 0.2 mi on Safety First Rd | D41: Truck/Rail | E41: Savannah GA CSA | I41: =IF(B41='2-INTERMODAL FACILITY INPUTS'!E$8,'2-INTERMODAL FACILITY INPUTS'!H$8,IF(B41='2-INTERMODAL FACILITY INPUTS'!E$14,'2-INTERMODAL FACILITY INPUTS'!H$14,0)) -> 0 | J41: $68,355 | K41: 146 | L41: =I41*J41*K41/Selection!O$12 -> 0.0 | M41: 14.9% | N41: 61%
A42: GA | B42: Colonel's Island Terminal, Brunswick | C42: From SR-520/ US 17; North 0.6 mi on Public Road 1108 to the rail yard gates | D42: Truck/Rail | E42: Remainder of Georgia | F42: Brunswick | I42: =IF(B42='2-INTERMODAL FACILITY INPUTS'!E$8,'2-INTERMODAL FACILITY INPUTS'!H$8,IF(B42='2-INTERMODAL FACILITY INPUTS'!E$14,'2-INTERMODAL FACILITY INPUTS'!H$14,0)) -> 0 | J42: $68,355 | K42: 166 | L42: =I42*J42*K42/Selection!O$12 -> 0.0 | M42: 14.9% | N42: 69%
A43: IL | B43: Schiller Park East | C43: Lawrence Ave. (Entrance to US 45) | D43: Truck/Rail | E43: Chicago IL-IN-WI CSA (IL Part) | I43: =IF(B43='2-INTERMODAL FACILITY INPUTS'!E$8,'2-INTERMODAL FACILITY INPUTS'!H$8,IF(B43='2-INTERMODAL FACILITY INPUTS'!E$14,'2-INTERMODAL FACILITY INPUTS'!H$14,0)) -> 0 | J43: $35,698 | K43: 186 | L43: =I43*J43*K43/Selection!O$12 -> 0.0 | M43: 7.8% | N43: 78%
A44: IL | B44: Bensenville | C44: Entrance on Franklin Ave. to Williams Dr. to Belmont Ave. to US 45 | D44: Truck/Rail | E44: Chicago IL-IN-WI CSA (IL Part) | I44: =IF(B44='2-INTERMODAL FACILITY INPUTS'!E$8,'2-INTERMODAL FACILITY INPUTS'!H$8,IF(B44='2-INTERMODAL FACILITY INPUTS'!E$14,'2-INTERMODAL FACILITY INPUTS'!H$14,0)) -> 0 | J44: $35,698 | K44: 186 | L44: =I44*J44*K44/Selection!O$12 -> 0.0 | M44: 7.8% | N44: 78%
A45: IL | B45: Global Two | C45: US 20 (Entrance to I-294) | D45: Truck/Rail | E45: Chicago IL-IN-WI CSA (IL Part) | I45: =IF(B45='2-INTERMODAL FACILITY INPUTS'!E$8,'2-INTERMODAL FACILITY INPUTS'!H$8,IF(B45='2-INTERMODAL FACILITY INPUTS'!E$14,'2-INTERMODAL FACILITY INPUTS'!H$14,0)) -> 0 | J45: $35,698 | K45: 186 | L45: =I45*J45*K45/Selection!O$12 -> 0.0 | M45: 7.8% | N45: 78%
A46: IL | B46: Cicero/BN - Ceco | C46: 28th St. (Entrance to Il 50) | D46: Truck/Rail | E46: Chicago IL-IN-WI CSA (IL Part) | I46: =IF(B46='2-INTERMODAL FACILITY INPUTS'!E$8,'2-INTERMODAL FACILITY INPUTS'!H$8,IF(B46='2-INTERMODAL FACILITY INPUTS'!E$14,'2-INTERMODAL FACILITY INPUTS'!H$14,0)) -> 0 | J46: $35,698 | K46: 186 | L46: =I46*J46*K46/Selection!O$12 -> 0.0 | M46: 7.8% | N46: 78%
A47: IL | B47: Cicero/BN - Ogden | C47: Served by an Existing NHS Route | D47: Truck/Rail | E47: Chicago IL-IN-WI CSA (IL Part) | I47: =IF(B47='2-INTERMODAL FACILITY INPUTS'!E$8,'2-INTERMODAL FACILITY INPUTS'!H$8,IF(B47='2-INTERMODAL FACILITY INPUTS'!E$14,'2-INTERMODAL FACILITY INPUTS'!H$14,0)) -> 0 | J47: $35,698 | K47: 186 | L47: =I47*J47*K47/Selection!O$12 -> 0.0 | M47: 7.8% | N47: 78%
A48: IL | B48: Global One | C48: 15th St. (Entrance to Ashland Ave), Ashland Ave. (15th to Frontage), Frontage Rd (Ashland to I-290) | D48: Truck/Rail | E48: Chicago IL-IN-WI CSA (IL Part) | I48: =IF(B48='2-INTERMODAL FACILITY INPUTS'!E$8,'2-INTERMODAL FACILITY INPUTS'!H$8,IF(B48='2-INTERMODAL FACILITY INPUTS'!E$14,'2-INTERMODAL FACILITY INPUTS'!H$14,0)) -> 0 | J48: $35,698 | K48: 186 | L48: =I48*J48*K48/Selection!O$12 -> 0.0 | M48: 7.8% | N48: 78%
A49: IL | B49: Western Ave Burlington Northern | C49: Blue Island (Western to Ashland), Damen (Blue Island to 30th) | D49: Truck/Rail | E49: Chicago IL-IN-WI CSA (IL Part) | I49: =IF(B49='2-INTERMODAL FACILITY INPUTS'!E$8,'2-INTERMODAL FACILITY INPUTS'!H$8,IF(B49='2-INTERMODAL FACILITY INPUTS'!E$14,'2-INTERMODAL FACILITY INPUTS'!H$14,0)) -> 0 | J49: $35,698 | K49: 186 | L49: =I49*J49*K49/Selection!O$12 -> 0.0 | M49: 7.8% | N49: 78%
A50: IL | B50: 26th St./Union Pacific | C50: Canal St (Entrance to Archer), Archer Av. (Canal to Cermak), Cermak (Archer to I-90/94) | D50: Truck/Rail | E50: Chicago IL-IN-WI CSA (IL Part) | I50: =IF(B50='2-INTERMODAL FACILITY INPUTS'!E$8,'2-INTERMODAL FACILITY INPUTS'!H$8,IF(B50='2-INTERMODAL FACILITY INPUTS'!E$14,'2-INTERMODAL FACILITY INPUTS'!H$14,0)) -> 0 | J50: $35,698 | K50: 186 | L50: =I50*J50*K50/Selection!O$12 -> 0.0 | M50: 7.8% | N50: 78%
A51: IL | B51: Railport - Canadien National | C51: 43rd St. (Entrance to Ashland), Ashland Ave. (43rd to I-55) | D51: Truck/Rail | E51: Chicago IL-IN-WI CSA (IL Part) | I51: =IF(B51='2-INTERMODAL FACILITY INPUTS'!E$8,'2-INTERMODAL FACILITY INPUTS'!H$8,IF(B51='2-INTERMODAL FACILITY INPUTS'!E$14,'2-INTERMODAL FACILITY INPUTS'!H$14,0)) -> 0 | J51: $35,698 | K51: 186 | L51: =I51*J51*K51/Selection!O$12 -> 0.0 | M51: 7.8% | N51: 78%
A52: IL | B52: Canadien National - Lumber | C52: 51st St. (Entrance to Kedzie), Kedzie Ave (51st to 47th) | D52: Truck/Rail | E52: Chicago IL-IN-WI CSA (IL Part) | I52: =IF(B52='2-INTERMODAL FACILITY INPUTS'!E$8,'2-INTERMODAL FACILITY INPUTS'!H$8,IF(B52='2-INTERMODAL FACILITY INPUTS'!E$14,'2-INTERMODAL FACILITY INPUTS'!H$14,0)) -> 0 | J52: $35,698 | K52: 186 | L52: =I52*J52*K52/Selection!O$12 -> 0.0 | M52: 7.8% | N52: 78%
A53: IL | B53: Corwith /BN and SF | C53: Kedzie Ave (Entrance @ 41st St to I-55) | D53: Truck/Rail | E53: Chicago IL-IN-WI CSA (IL Part) | I53: =IF(B53='2-INTERMODAL FACILITY INPUTS'!E$8,'2-INTERMODAL FACILITY INPUTS'!H$8,IF(B53='2-INTERMODAL FACILITY INPUTS'!E$14,'2-INTERMODAL FACILITY INPUTS'!H$14,0)) -> 0 | J53: $35,698 | K53: 186 | L53: =I53*J53*K53/Selection!O$12 -> 0.0 | M53: 7.8% | N53: 78%
A54: IL | B54: 47th Yard - Conrail | C54: 51st St. (Entrance to I-90/94) | D54: Truck/Rail | E54: Chicago IL-IN-WI CSA (IL Part) | I54: =IF(B54='2-INTERMODAL FACILITY INPUTS'!E$8,'2-INTERMODAL FACILITY INPUTS'!H$8,IF(B54='2-INTERMODAL FACILITY INPUTS'!E$14,'2-INTERMODAL FACILITY INPUTS'!H$14,0)) -> 0 | J54: $35,698 | K54: 186 | L54: =I54*J54*K54/Selection!O$12 -> 0.0 | M54: 7.8% | N54: 78%
A55: IL | B55: 63rd Yard - Conrail | C55: 63rd St (Entrance to I-90/94), Frontage (63rd to I-90/94) | D55: Truck/Rail | E55: Chicago IL-IN-WI CSA (IL Part) | I55: =IF(B55='2-INTERMODAL FACILITY INPUTS'!E$8,'2-INTERMODAL FACILITY INPUTS'!H$8,IF(B55='2-INTERMODAL FACILITY INPUTS'!E$14,'2-INTERMODAL FACILITY INPUTS'!H$14,0)) -> 0 | J55: $35,698 | K55: 186 | L55: =I55*J55*K55/Selection!O$12 -> 0.0 | M55: 7.8% | N55: 78%
A56: IL | B56: Forest Hill - CSX Intermodal | C56: 79th St. (Entrance to Western Ave.) | D56: Truck/Rail | E56: Chicago IL-IN-WI CSA (IL Part) | I56: =IF(B56='2-INTERMODAL FACILITY INPUTS'!E$8,'2-INTERMODAL FACILITY INPUTS'!H$8,IF(B56='2-INTERMODAL FACILITY INPUTS'!E$14,'2-INTERMODAL FACILITY INPUTS'!H$14,0)) -> 0 | J56: $35,698 | K56: 186 | L56: =I56*J56*K56/Selection!O$12 -> 0.0 | M56: 7.8% | N56: 78%
A57: IL | B57: Landers - Norfolk Southern | C57: 79th St. (Cicero to Western) | D57: Truck/Rail | E57: Chicago IL-IN-WI CSA (IL Part) | I57: =IF(B57='2-INTERMODAL FACILITY INPUTS'!E$8,'2-INTERMODAL FACILITY INPUTS'!H$8,IF(B57='2-INTERMODAL FACILITY INPUTS'!E$14,'2-INTERMODAL FACILITY INPUTS'!H$14,0)) -> 0 | J57: $35,698 | K57: 186 | L57: =I57*J57*K57/Selection!O$12 -> 0.0 | M57: 7.8% | N57: 78%
A58: IL | B58: Bedford Park - CSX Intermodal | C58: 71st St. (Entrance to IL 43) | D58: Truck/Rail | E58: Chicago IL-IN-WI CSA (IL Part) | I58: =IF(B58='2-INTERMODAL FACILITY INPUTS'!E$8,'2-INTERMODAL FACILITY INPUTS'!H$8,IF(B58='2-INTERMODAL FACILITY INPUTS'!E$14,'2-INTERMODAL FACILITY INPUTS'!H$14,0)) -> 0 | J58: $35,698 | K58: 186 | L58: =I58*J58*K58/Selection!O$12 -> 0.0 | M58: 7.8% | N58: 78%
A59: IL | B59: Willow Springs/Hodgkins/BN/SF | C59: 75th St. (Entrance to I-294) | D59: Truck/Rail | E59: Chicago IL-IN-WI CSA (IL Part) | I59: =IF(B59='2-INTERMODAL FACILITY INPUTS'!E$8,'2-INTERMODAL FACILITY INPUTS'!H$8,IF(B59='2-INTERMODAL FACILITY INPUTS'!E$14,'2-INTERMODAL FACILITY INPUTS'!H$14,0)) -> 0 | J59: $35,698 | K59: 186 | L59: =I59*J59*K59/Selection!O$12 -> 0.0 | M59: 7.8% | N59: 78%
A60: IL | B60: Iowa Interstate | C60: 119th St. (Wolcott to I-57) | D60: Truck/Rail | E60: Chicago IL-IN-WI CSA (IL Part) | I60: =IF(B60='2-INTERMODAL FACILITY INPUTS'!E$8,'2-INTERMODAL FACILITY INPUTS'!H$8,IF(B60='2-INTERMODAL FACILITY INPUTS'!E$14,'2-INTERMODAL FACILITY INPUTS'!H$14,0)) -> 0 | J60: $35,698 | K60: 186 | L60: =I60*J60*K60/Selection!O$12 -> 0.0 | M60: 7.8% | N60: 78%
A61: IL | B61: Yard Center/Union Pacific | C61: Sibley Rd. (Entrance to I-94) | D61: Truck/Rail | E61: Chicago IL-IN-WI CSA (IL Part) | I61: =IF(B61='2-INTERMODAL FACILITY INPUTS'!E$8,'2-INTERMODAL FACILITY INPUTS'!H$8,IF(B61='2-INTERMODAL FACILITY INPUTS'!E$14,'2-INTERMODAL FACILITY INPUTS'!H$14,0)) -> 0 | J61: $35,698 | K61: 186 | L61: =I61*J61*K61/Selection!O$12 -> 0.0 | M61: 7.8% | N61: 78%
A62: IL | B62: Markham/IC/WC/SP | C62: Center St (Entrance to 167th), 167th St. (Center to Halsted), Halstead (167th to I-80) | D62: Truck/Rail | E62: Chicago IL-IN-WI CSA (IL Part) | I62: =IF(B62='2-INTERMODAL FACILITY INPUTS'!E$8,'2-INTERMODAL FACILITY INPUTS'!H$8,IF(B62='2-INTERMODAL FACILITY INPUTS'!E$14,'2-INTERMODAL FACILITY INPUTS'!H$14,0)) -> 0 | J62: $35,698 | K62: 186 | L62: =I62*J62*K62/Selection!O$12 -> 0.0 | M62: 7.8% | N62: 78%
A63: IL | B63: IMX/SP | C63: Damen St. (30th Ave to I-55) | D63: Truck/Rail | E63: Chicago IL-IN-WI CSA (IL Part) | I63: =IF(B63='2-INTERMODAL FACILITY INPUTS'!E$8,'2-INTERMODAL FACILITY INPUTS'!H$8,IF(B63='2-INTERMODAL FACILITY INPUTS'!E$14,'2-INTERMODAL FACILITY INPUTS'!H$14,0)) -> 0 | J63: $35,698 | K63: 186 | L63: =I63*J63*K63/Selection!O$12 -> 0.0 | M63: 7.8% | N63: 78%
A64: IL | B64: Triple Crown - Norfolk Southern | C64: 103rd St. (Stoney Island Rd to I-94) | D64: Truck/Rail | E64: Chicago IL-IN-WI CSA (IL Part) | I64: =IF(B64='2-INTERMODAL FACILITY INPUTS'!E$8,'2-INTERMODAL FACILITY INPUTS'!H$8,IF(B64='2-INTERMODAL FACILITY INPUTS'!E$14,'2-INTERMODAL FACILITY INPUTS'!H$14,0)) -> 0 | J64: $35,698 | K64: 186 | L64: =I64*J64*K64/Selection!O$12 -> 0.0 | M64: 7.8% | N64: 78%
A65: IL | B65: Auto-Transload - BN/Sante Fe | C65: Fort Hill (Entrance to Jefferson), Jefferson Ave. (Fort Hill IL 59) | D65: Truck/Rail | E65: Chicago IL-IN-WI CSA (IL Part) | I65: =IF(B65='2-INTERMODAL FACILITY INPUTS'!E$8,'2-INTERMODAL FACILITY INPUTS'!H$8,IF(B65='2-INTERMODAL FACILITY INPUTS'!E$14,'2-INTERMODAL FACILITY INPUTS'!H$14,0)) -> 0 | J65: $35,698 | K65: 186 | L65: =I65*J65*K65/Selection!O$12 -> 0.0 | M65: 7.8% | N65: 78%
A66: IL | B66: Peoria Midwest Transportation Services-P&PU | C66: Oxford (Entrance to Wesley), Wesley (Oxford to Main), Main (Wesley to IL 8/116) | D66: Truck/Rail | E66: Remainder of Illinois | F66: Peoria | I66: =IF(B66='2-INTERMODAL FACILITY INPUTS'!E$8,'2-INTERMODAL FACILITY INPUTS'!H$8,IF(B66='2-INTERMODAL FACILITY INPUTS'!E$14,'2-INTERMODAL FACILITY INPUTS'!H$14,0)) -> 0 | J66: $35,698 | K66: 141 | L66: =I66*J66*K66/Selection!O$12 -> 0.0 | M66: 7.8% | N66: 59%
A67: IL | B67: Gateway Western Railway Intermodal Yard | C67: Main St (Entrance to IL 3) | D67: Truck/Rail | E67: St. Louis MO-IL CSA (IL Part) | I67: =IF(B67='2-INTERMODAL FACILITY INPUTS'!E$8,'2-INTERMODAL FACILITY INPUTS'!H$8,IF(B67='2-INTERMODAL FACILITY INPUTS'!E$14,'2-INTERMODAL FACILITY INPUTS'!H$14,0)) -> 0 | J67: $35,698 | K67: 97 | L67: =I67*J67*K67/Selection!O$12 -> 0.0 | M67: 7.8% | N67: 40%
A68: IL | B68: Rose Lake Intermodal Yard-Conrail | C68: Collinsville Rd (Entrance to IL 203), IL 203 (Collinsville to I-55) | D68: Truck/Rail | E68: St. Louis MO-IL CSA (IL Part) | I68: =IF(B68='2-INTERMODAL FACILITY INPUTS'!E$8,'2-INTERMODAL FACILITY INPUTS'!H$8,IF(B68='2-INTERMODAL FACILITY INPUTS'!E$14,'2-INTERMODAL FACILITY INPUTS'!H$14,0)) -> 0 | J68: $35,698 | K68: 97 | L68: =I68*J68*K68/Selection!O$12 -> 0.0 | M68: 7.8% | N68: 40%
A69: IL | B69: Union Pacific Motor Freight Intermodal Yard | C69: Carondelet St (Entrance to Main), Main St (Carondelet to IL 3) | D69: Truck/Rail | E69: St. Louis MO-IL CSA (IL Part) | I69: =IF(B69='2-INTERMODAL FACILITY INPUTS'!E$8,'2-INTERMODAL FACILITY INPUTS'!H$8,IF(B69='2-INTERMODAL FACILITY INPUTS'!E$14,'2-INTERMODAL FACILITY INPUTS'!H$14,0)) -> 0 | J69: $35,698 | K69: 97 | L69: =I69*J69*K69/Selection!O$12 -> 0.0 | M69: 7.8% | N69: 40%
A70: IL | B70: 59th Street CSX | C70: Dirksen (Entrance to Airport Rd), Airport Rd (Dirksen to I-474) | D70: Truck/Rail | E70: Remainder of Illinois | F70: Peoria | I70: =IF(B70='2-INTERMODAL FACILITY INPUTS'!E$8,'2-INTERMODAL FACILITY INPUTS'!H$8,IF(B70='2-INTERMODAL FACILITY INPUTS'!E$14,'2-INTERMODAL FACILITY INPUTS'!H$14,0)) -> 0 | J70: $35,698 | K70: 141 | L70: =I70*J70*K70/Selection!O$12 -> 0.0 | M70: 7.8% | N70: 59%
A71: IL | B71: Gateway | C71: West (Entrance to 159th) | D71: Truck/Rail | E71: Remainder of Illinois | F71: Peoria | I71: =IF(B71='2-INTERMODAL FACILITY INPUTS'!E$8,'2-INTERMODAL FACILITY INPUTS'!H$8,IF(B71='2-INTERMODAL FACILITY INPUTS'!E$14,'2-INTERMODAL FACILITY INPUTS'!H$14,0)) -> 0 | J71: $35,698 | K71: 141 | L71: =I71*J71*K71/Selection!O$12 -> 0.0 | M71: 7.8% | N71: 59%
A72: IN | B72: Norfolk Southern Triple Crown RR Facility | C72: From U.S. 30: south on Coliseum Blvd, west on Pontiac St, and Northwest on Wayne Trace to terminal | D72: Truck/Rail | E72: Remainder of Indiana | F72: Fort Wayne | I72: =IF(B72='2-INTERMODAL FACILITY INPUTS'!E$8,'2-INTERMODAL FACILITY INPUTS'!H$8,IF(B72='2-INTERMODAL FACILITY INPUTS'!E$14,'2-INTERMODAL FACILITY INPUTS'!H$14,0)) -> 0 | J72: $55,368 | K72: 127 | L72: =I72*J72*K72/Selection!O$12 -> 0.0 | M72: 12.1% | N72: 53%
A73: IN | B73: Avon Conrail Intermodal Facility | C73: From I-465/I-74 (exit 13): west on U.S. 36, south on Dan Jones Road to terminal | D73: Truck/Rail | E73: Indianapolis IN CSA | I73: =IF(B73='2-INTERMODAL FACILITY INPUTS'!E$8,'2-INTERMODAL FACILITY INPUTS'!H$8,IF(B73='2-INTERMODAL FACILITY INPUTS'!E$14,'2-INTERMODAL FACILITY INPUTS'!H$14,0)) -> 0 | J73: $55,368 | K73: 97 | L73: =I73*J73*K73/Selection!O$12 -> 0.0 | M73: 12.1% | N73: 40%
A74: IA | B74: Quad Cities Container Terminal, Davenport | C74: S Rolff St, Rockingham Rd (IA 22), between the Terminal and I-280 | D74: Truck/Rail | E74: Iowa | I74: =IF(B74='2-INTERMODAL FACILITY INPUTS'!E$8,'2-INTERMODAL FACILITY INPUTS'!H$8,IF(B74='2-INTERMODAL FACILITY INPUTS'!E$14,'2-INTERMODAL FACILITY INPUTS'!H$14,0)) -> 0 | J74: $22,417 | K74: 153 | L74: =I74*J74*K74/Selection!O$12 -> 0.0 | M74: 4.9% | N74: 64%
A75: IA | B75: Rail Intermodal Specialist, Des Moines | C75: IA 46/Vandalia Rd (IA 163 to US 65) | D75: Truck/Rail | E75: Iowa | I75: =IF(B75='2-INTERMODAL FACILITY INPUTS'!E$8,'2-INTERMODAL FACILITY INPUTS'!H$8,IF(B75='2-INTERMODAL FACILITY INPUTS'!E$14,'2-INTERMODAL FACILITY INPUTS'!H$14,0)) -> 0 | J75: $22,417 | K75: 153 | L75: =I75*J75*K75/Selection!O$12 -> 0.0 | M75: 4.9% | N75: 64%
A76: KS | B76: Sante Fe Terminal, Kansas City | C76: From I-635 (ex 3): E 0.5 mi on K-32, S 0.1 mi on 39th, E 0.1 mi on Fairbanks, S 0.1 mi on 38th | D76: Truck/Rail | E76: Kansas City MO-KS CSA (KS Part) | I76: =IF(B76='2-INTERMODAL FACILITY INPUTS'!E$8,'2-INTERMODAL FACILITY INPUTS'!H$8,IF(B76='2-INTERMODAL FACILITY INPUTS'!E$14,'2-INTERMODAL FACILITY INPUTS'!H$14,0)) -> 0 | J76: $56,031 | K76: 75 | L76: =I76*J76*K76/Selection!O$12 -> 0.0 | M76: 12.2% | N76: 31%
A77: KS | B77: Southern Pacific's Kansas City Intermodal Facility | C77: From I-635 (ex 3): E 1.7 mi on K-32 (connector for SF Term), N 0.2 mi on 18th, W 0.3 mi on Baynard | D77: Truck/Rail | E77: Kansas City MO-KS CSA (KS Part) | I77: =IF(B77='2-INTERMODAL FACILITY INPUTS'!E$8,'2-INTERMODAL FACILITY INPUTS'!H$8,IF(B77='2-INTERMODAL FACILITY INPUTS'!E$14,'2-INTERMODAL FACILITY INPUTS'!H$14,0)) -> 0 | J77: $56,031 | K77: 75 | L77: =I77*J77*K77/Selection!O$12 -> 0.0 | M77: 12.2% | N77: 31%
A78: KY | B78: Norfolk Southern Intermodal - Louisville | C78: Newburg Rd (I-264 to Bishop), Bishop Lane (Newburg to Jennings), Jennings Lane (Bishop to Facility) | D78: Truck/Rail | E78: Louisville KY-IN CSA (KY Part) | I78: =IF(B78='2-INTERMODAL FACILITY INPUTS'!E$8,'2-INTERMODAL FACILITY INPUTS'!H$8,IF(B78='2-INTERMODAL FACILITY INPUTS'!E$14,'2-INTERMODAL FACILITY INPUTS'!H$14,0)) -> 0 | J78: $17,962 | K78: 98 | L78: =I78*J78*K78/Selection!O$12 -> 0.0 | M78: 3.9% | N78: 41%
A79: KY | B79: Norfolk Southern Intermodal - Georgetown | C79: KY 620 - Facility to I-75 Interchange | D79: Truck/Rail | E79: Remainder of Kentucky | F79: Lexington | I79: =IF(B79='2-INTERMODAL FACILITY INPUTS'!E$8,'2-INTERMODAL FACILITY INPUTS'!H$8,IF(B79='2-INTERMODAL FACILITY INPUTS'!E$14,'2-INTERMODAL FACILITY INPUTS'!H$14,0)) -> 0 | J79: $17,962 | K79: 133 | L79: =I79*J79*K79/Selection!O$12 -> 0.0 | M79: 3.9% | N79: 55%
A80: KY | B80: Golden Oak Mining Co. | C80: KY 7 (KY 15 to KY 931), KY 931 (KY 7 to Facility) | D80: Truck/Rail | E80: Remainder of Kentucky | F80: Hindman | I80: =IF(B80='2-INTERMODAL FACILITY INPUTS'!E$8,'2-INTERMODAL FACILITY INPUTS'!H$8,IF(B80='2-INTERMODAL FACILITY INPUTS'!E$14,'2-INTERMODAL FACILITY INPUTS'!H$14,0)) -> 0 | J80: $17,962 | K80: 133 | L80: =I80*J80*K80/Selection!O$12 -> 0.0 | M80: 3.9% | N80: 55%
A81: KY | B81: McCoy Elkhorn Coal Corp | C81: KY 194 - US 119 to Facility | D81: Truck/Rail | E81: Remainder of Kentucky | I81: =IF(B81='2-INTERMODAL FACILITY INPUTS'!E$8,'2-INTERMODAL FACILITY INPUTS'!H$8,IF(B81='2-INTERMODAL FACILITY INPUTS'!E$14,'2-INTERMODAL FACILITY INPUTS'!H$14,0)) -> 0 | J81: $17,962 | K81: 133 | L81: =I81*J81*K81/Selection!O$12 -> 0.0 | M81: 3.9% | N81: 55%
A82: KY | B82: Ivel Coal Tipple | C82: County Rd 1020 - US 23 to Facility | D82: Truck/Rail | E82: Remainder of Kentucky | I82: =IF(B82='2-INTERMODAL FACILITY INPUTS'!E$8,'2-INTERMODAL FACILITY INPUTS'!H$8,IF(B82='2-INTERMODAL FACILITY INPUTS'!E$14,'2-INTERMODAL FACILITY INPUTS'!H$14,0)) -> 0 | J82: $17,962 | K82: 133 | L82: =I82*J82*K82/Selection!O$12 -> 0.0 | M82: 3.9% | N82: 55%
A83: KY | B83: Praise Dock Coal Tipple | C83: KY 80 from US 460 to Facility | D83: Truck/Rail | E83: Remainder of Kentucky | I83: =IF(B83='2-INTERMODAL FACILITY INPUTS'!E$8,'2-INTERMODAL FACILITY INPUTS'!H$8,IF(B83='2-INTERMODAL FACILITY INPUTS'!E$14,'2-INTERMODAL FACILITY INPUTS'!H$14,0)) -> 0 | J83: $17,962 | K83: 133 | L83: =I83*J83*K83/Selection!O$12 -> 0.0 | M83: 3.9% | N83: 55%
A84: KY | B84: Clark Elkhorn Coal Tipple | C84: KY 1441 (US 460 to Clark Elkhorn Tipple #1 Entrance), KY 1789 (US 460 to KY 1441) | D84: Truck/Rail | E84: Remainder of Kentucky | I84: =IF(B84='2-INTERMODAL FACILITY INPUTS'!E$8,'2-INTERMODAL FACILITY INPUTS'!H$8,IF(B84='2-INTERMODAL FACILITY INPUTS'!E$14,'2-INTERMODAL FACILITY INPUTS'!H$14,0)) -> 0 | J84: $17,962 | K84: 133 | L84: =I84*J84*K84/Selection!O$12 -> 0.0 | M84: 3.9% | N84: 55%
A85: LA | B85: Union Pacific - Avondale Terminal | C85: Avondale Garden Rd. (Terminal to US 90) | D85: Truck/Rail | E85: New Orleans LA CSA | I85: =IF(B85='2-INTERMODAL FACILITY INPUTS'!E$8,'2-INTERMODAL FACILITY INPUTS'!H$8,IF(B85='2-INTERMODAL FACILITY INPUTS'!E$14,'2-INTERMODAL FACILITY INPUTS'!H$14,0)) -> 0 | J85: $17,247 | K85: 144 | L85: =I85*J85*K85/Selection!O$12 -> 0.0 | M85: 3.8% | N85: 60%
A86: LA | B86: BNSF - Westwego Terminal | C86: Bridge City Ave {LA 18} (Terminal to US 90) | D86: Truck/Rail | E86: New Orleans LA CSA | I86: =IF(B86='2-INTERMODAL FACILITY INPUTS'!E$8,'2-INTERMODAL FACILITY INPUTS'!H$8,IF(B86='2-INTERMODAL FACILITY INPUTS'!E$14,'2-INTERMODAL FACILITY INPUTS'!H$14,0)) -> 0 | J86: $17,247 | K86: 144 | L86: =I86*J86*K86/Selection!O$12 -> 0.0 | M86: 3.8% | N86: 60%
A87: LA | B87: Kansas City Southern - Metaire Ter. | C87: Labarre Rd. (Terminal to US 61) | D87: Truck/Rail | E87: New Orleans LA CSA | I87: =IF(B87='2-INTERMODAL FACILITY INPUTS'!E$8,'2-INTERMODAL FACILITY INPUTS'!H$8,IF(B87='2-INTERMODAL FACILITY INPUTS'!E$14,'2-INTERMODAL FACILITY INPUTS'!H$14,0)) -> 0 | J87: $17,247 | K87: 144 | L87: =I87*J87*K87/Selection!O$12 -> 0.0 | M87: 3.8% | N87: 60%
A88: LA | B88: Illinois Central - New Orleans Ter. | C88: Tchoupitoulas St. (Terminal to US 90) and Felicity St. to Religious St to Tchoupitoulas St | D88: Truck/Rail | E88: New Orleans LA CSA | I88: =IF(B88='2-INTERMODAL FACILITY INPUTS'!E$8,'2-INTERMODAL FACILITY INPUTS'!H$8,IF(B88='2-INTERMODAL FACILITY INPUTS'!E$14,'2-INTERMODAL FACILITY INPUTS'!H$14,0)) -> 0 | J88: $17,247 | K88: 144 | L88: =I88*J88*K88/Selection!O$12 -> 0.0 | M88: 3.8% | N88: 60%
A89: LA | B89: Norfolk Southern - New Orleans Ter. | C89: Florida Ave. (Terminal to LA 3021) | D89: Truck/Rail | E89: New Orleans LA CSA | I89: =IF(B89='2-INTERMODAL FACILITY INPUTS'!E$8,'2-INTERMODAL FACILITY INPUTS'!H$8,IF(B89='2-INTERMODAL FACILITY INPUTS'!E$14,'2-INTERMODAL FACILITY INPUTS'!H$14,0)) -> 0 | J89: $17,247 | K89: 144 | L89: =I89*J89*K89/Selection!O$12 -> 0.0 | M89: 3.8% | N89: 60%
A90: LA | B90: CSX - New Orleans Terminal | C90: Almonaster Rd (Terminal to Alvar Rd) | D90: Truck/Rail | E90: New Orleans LA CSA | I90: =IF(B90='2-INTERMODAL FACILITY INPUTS'!E$8,'2-INTERMODAL FACILITY INPUTS'!H$8,IF(B90='2-INTERMODAL FACILITY INPUTS'!E$14,'2-INTERMODAL FACILITY INPUTS'!H$14,0)) -> 0 | J90: $17,247 | K90: 144 | L90: =I90*J90*K90/Selection!O$12 -> 0.0 | M90: 3.8% | N90: 60%
A91: LA | B91: Union Pacific - Reisor Terminal | C91: LA 526 (Terminal to I-20) | D91: Truck/Rail | E91: Remainder of Louisiana | F91: Shrevport | I91: =IF(B91='2-INTERMODAL FACILITY INPUTS'!E$8,'2-INTERMODAL FACILITY INPUTS'!H$8,IF(B91='2-INTERMODAL FACILITY INPUTS'!E$14,'2-INTERMODAL FACILITY INPUTS'!H$14,0)) -> 0 | J91: $17,247 | K91: 149 | L91: =I91*J91*K91/Selection!O$12 -> 0.0 | M91: 3.8% | N91: 62%
A92: LA | B92: KCS - Deramua Yard | C92: LA 173 (Terminal to I-220) | D92: Truck/Rail | E92: Remainder of Louisiana | F92: Shrevport | I92: =IF(B92='2-INTERMODAL FACILITY INPUTS'!E$8,'2-INTERMODAL FACILITY INPUTS'!H$8,IF(B92='2-INTERMODAL FACILITY INPUTS'!E$14,'2-INTERMODAL FACILITY INPUTS'!H$14,0)) -> 0 | J92: $17,247 | K92: 149 | L92: =I92*J92*K92/Selection!O$12 -> 0.0 | M92: 3.8% | N92: 62%
A93: ME | B93: Portland Freight Terminal District | C93: From I-95 (exit 7): south 2.1 mi on ME Turnpike Approach Road to U.S. 1 | D93: Truck/Rail | E93: Maine | I93: =IF(B93='2-INTERMODAL FACILITY INPUTS'!E$8,'2-INTERMODAL FACILITY INPUTS'!H$8,IF(B93='2-INTERMODAL FACILITY INPUTS'!E$14,'2-INTERMODAL FACILITY INPUTS'!H$14,0)) -> 0 | J93: $43,033 | K93: 203 | L93: =I93*J93*K93/Selection!O$12 -> 0.0 | M93: 9.4% | N93: 85%
A94: ME | B94: Auburn Interodal Truck/Rail Transfer Fac | C94: From I-495 (ex 12)/SW on SR 4: NW 1.9 mi on Kittyhawk Rd, northerly 0.7 mi on Lewiston Jct Rd | D94: Truck/Rail | E94: Maine | I94: =IF(B94='2-INTERMODAL FACILITY INPUTS'!E$8,'2-INTERMODAL FACILITY INPUTS'!H$8,IF(B94='2-INTERMODAL FACILITY INPUTS'!E$14,'2-INTERMODAL FACILITY INPUTS'!H$14,0)) -> 0 | J94: $43,033 | K94: 203 | L94: =I94*J94*K94/Selection!O$12 -> 0.0 | M94: 9.4% | N94: 85%
A95: ME | B95: Merrill Marine Terminal (Rail) | C95: From I-295 (exit 5): 0.8 mi E on SR 22/Congress St, 0.8 mi S on U.S. 1, 0.2 mi E on U.S. 1A | D95: Truck/Rail | E95: Maine | I95: =IF(B95='2-INTERMODAL FACILITY INPUTS'!E$8,'2-INTERMODAL FACILITY INPUTS'!H$8,IF(B95='2-INTERMODAL FACILITY INPUTS'!E$14,'2-INTERMODAL FACILITY INPUTS'!H$14,0)) -> 0 | J95: $43,033 | K95: 203 | L95: =I95*J95*K95/Selection!O$12 -> 0.0 | M95: 9.4% | N95: 85%
A96: ME | B96: CSX Intermodal Container Facility | C96: Vail St (Keith to CSX Gate), New Vail St (Keith to Newgate), Keith Ave MU5857 (Broening to Clinton) | D96: Truck/Rail | E96: Maine | I96: =IF(B96='2-INTERMODAL FACILITY INPUTS'!E$8,'2-INTERMODAL FACILITY INPUTS'!H$8,IF(B96='2-INTERMODAL FACILITY INPUTS'!E$14,'2-INTERMODAL FACILITY INPUTS'!H$14,0)) -> 0 | J96: $43,033 | K96: 203 | L96: =I96*J96*K96/Selection!O$12 -> 0.0 | M96: 9.4% | N96: 85%
A97: ME | B97: Norfolk Southern Bayview Terminal | C97: Eastern Ave (I-95 to Ponca), Ponca St (Eastern to Lombard), Lombard (Kane to Haven), | D97: Truck/Rail | E97: Maine | I97: =IF(B97='2-INTERMODAL FACILITY INPUTS'!E$8,'2-INTERMODAL FACILITY INPUTS'!H$8,IF(B97='2-INTERMODAL FACILITY INPUTS'!E$14,'2-INTERMODAL FACILITY INPUTS'!H$14,0)) -> 0 | J97: $43,033 | K97: 203 | L97: =I97*J97*K97/Selection!O$12 -> 0.0 | M97: 9.4% | N97: 85%
A98: ME | B98: Jessup Auto Distribution Facility | C98: Dorsey Run Rd (MD 175 to MD 32), MD 175 (I-95 to Dorsey Run Rd) | D98: Truck/Rail | E98: Maine | I98: =IF(B98='2-INTERMODAL FACILITY INPUTS'!E$8,'2-INTERMODAL FACILITY INPUTS'!H$8,IF(B98='2-INTERMODAL FACILITY INPUTS'!E$14,'2-INTERMODAL FACILITY INPUTS'!H$14,0)) -> 0 | J98: $43,033 | K98: 203 | L98: =I98*J98*K98/Selection!O$12 -> 0.0 | M98: 9.4% | N98: 85%
A99: MA | B99: Ayer Boston & Maine RR Yard | C99: Willow Rd to Route 2A/110 to Route 110/111 | D99: Truck/Rail | E99: Boston MA-NH CSA (MA Part) | I99: =IF(B99='2-INTERMODAL FACILITY INPUTS'!E$8,'2-INTERMODAL FACILITY INPUTS'!H$8,IF(B99='2-INTERMODAL FACILITY INPUTS'!E$14,'2-INTERMODAL FACILITY INPUTS'!H$14,0)) -> 0 | J99: $457,508 | K99: 113 | L99: =I99*J99*K99/Selection!O$12 -> 0.0 | M99: 100.0% | N99: 47%
A100: MA | B100: Beacon Park Yard | C100: Yard to Cambridge St. to I-90 | D100: Truck/Rail | E100: Boston MA-NH CSA (MA Part) | I100: =IF(B100='2-INTERMODAL FACILITY INPUTS'!E$8,'2-INTERMODAL FACILITY INPUTS'!H$8,IF(B100='2-INTERMODAL FACILITY INPUTS'!E$14,'2-INTERMODAL FACILITY INPUTS'!H$14,0)) -> 0 | J100: $457,508 | K100: 113 | L100: =I100*J100*K100/Selection!O$12 -> 0.0 | M100: 100.0% | N100: 47%
A101: MA | B101: Ft. Devens Intermodal Rail Terminal | C101: Barnum Rd. to Route 110/111 | D101: Truck/Rail | E101: Boston MA-NH CSA (MA Part) | I101: =IF(B101='2-INTERMODAL FACILITY INPUTS'!E$8,'2-INTERMODAL FACILITY INPUTS'!H$8,IF(B101='2-INTERMODAL FACILITY INPUTS'!E$14,'2-INTERMODAL FACILITY INPUTS'!H$14,0)) -> 0 | J101: $457,508 | K101: 113 | L101: =I101*J101*K101/Selection!O$12 -> 0.0 | M101: 100.0% | N101: 47%
A102: MA | B102: W. Springfield Conrail Yard | C102: Yard to Day St to Union St to Route 20 (Park Ave) | D102: Truck/Rail | E102: Remainder of Massachusetts | F102: Springfield | I102: =IF(B102='2-INTERMODAL FACILITY INPUTS'!E$8,'2-INTERMODAL FACILITY INPUTS'!H$8,IF(B102='2-INTERMODAL FACILITY INPUTS'!E$14,'2-INTERMODAL FACILITY INPUTS'!H$14,0)) -> 0 | J102: $457,508 | K102: 87 | L102: =I102*J102*K102/Selection!O$12 -> 0.0 | M102: 100.0% | N102: 36%
A103: MA | B103: Westborough Conrail Auto Yard | C103: Walkup St. to Flanders Rd. to Connector Rd. to Lyon St. to Computer Dr. to Route 9 | D103: Truck/Rail | E103: Boston MA-NH CSA (MA Part) | I103: =IF(B103='2-INTERMODAL FACILITY INPUTS'!E$8,'2-INTERMODAL FACILITY INPUTS'!H$8,IF(B103='2-INTERMODAL FACILITY INPUTS'!E$14,'2-INTERMODAL FACILITY INPUTS'!H$14,0)) -> 0 | J103: $457,508 | K103: 113 | L103: =I103*J103*K103/Selection!O$12 -> 0.0 | M103: 100.0% | N103: 47%
A104: MA | B104: Worcester P&W Yard - Southbridge St | C104: Yard to Southbridge St. to Cambridge St | D104: Truck/Rail | E104: Boston MA-NH CSA (MA Part) | I104: =IF(B104='2-INTERMODAL FACILITY INPUTS'!E$8,'2-INTERMODAL FACILITY INPUTS'!H$8,IF(B104='2-INTERMODAL FACILITY INPUTS'!E$14,'2-INTERMODAL FACILITY INPUTS'!H$14,0)) -> 0 | J104: $457,508 | K104: 113 | L104: =I104*J104*K104/Selection!O$12 -> 0.0 | M104: 100.0% | N104: 47%
A105: MA | B105: Worcester P&W Yard - Wiser Ave | C105: Yard to Millbury St (NB) to Route 146 | D105: Truck/Rail | E105: Boston MA-NH CSA (MA Part) | I105: =IF(B105='2-INTERMODAL FACILITY INPUTS'!E$8,'2-INTERMODAL FACILITY INPUTS'!H$8,IF(B105='2-INTERMODAL FACILITY INPUTS'!E$14,'2-INTERMODAL FACILITY INPUTS'!H$14,0)) -> 0 | J105: $457,508 | K105: 113 | L105: =I105*J105*K105/Selection!O$12 -> 0.0 | M105: 100.0% | N105: 47%
A106: MA | B106: Worcester TVT Conrail Yard | C106: Yard to Franklin St to Grafton St | D106: Truck/Rail | E106: Boston MA-NH CSA (MA Part) | I106: =IF(B106='2-INTERMODAL FACILITY INPUTS'!E$8,'2-INTERMODAL FACILITY INPUTS'!H$8,IF(B106='2-INTERMODAL FACILITY INPUTS'!E$14,'2-INTERMODAL FACILITY INPUTS'!H$14,0)) -> 0 | J106: $457,508 | K106: 113 | L106: =I106*J106*K106/Selection!O$12 -> 0.0 | M106: 100.0% | N106: 47%
A107: MI | B107: Detroit Jct/Livernois Intermodal Ter. | C107: Mercier St. (Wyoming to Dix Ave.), Wyoming Ave. (Mercier to US-12) | D107: Truck/Rail | E107: Detroit MI CSA | I107: =IF(B107='2-INTERMODAL FACILITY INPUTS'!E$8,'2-INTERMODAL FACILITY INPUTS'!H$8,IF(B107='2-INTERMODAL FACILITY INPUTS'!E$14,'2-INTERMODAL FACILITY INPUTS'!H$14,0)) -> 0 | J107: $64,749 | K107: 240 | L107: =I107*J107*K107/Selection!O$12 -> 0.0 | M107: 14.2% | N107: 100%
A108: MI | B108: Norfolk Southern - Delray | C108: Served by an Existing NHS Route | D108: Truck/Rail | E108: Detroit MI CSA | I108: =IF(B108='2-INTERMODAL FACILITY INPUTS'!E$8,'2-INTERMODAL FACILITY INPUTS'!H$8,IF(B108='2-INTERMODAL FACILITY INPUTS'!E$14,'2-INTERMODAL FACILITY INPUTS'!H$14,0)) -> 0 | J108: $64,749 | K108: 240 | L108: =I108*J108*K108/Selection!O$12 -> 0.0 | M108: 14.2% | N108: 100%
A109: MI | B109: Norfolk Southern - Oakwood | C109: Hess St. (Terminal to Schaffer), Schaffer Hwy (Hess St to I-75) | D109: Truck/Rail | E109: Remainder of Michigan | F109: Kalamazoo | I109: =IF(B109='2-INTERMODAL FACILITY INPUTS'!E$8,'2-INTERMODAL FACILITY INPUTS'!H$8,IF(B109='2-INTERMODAL FACILITY INPUTS'!E$14,'2-INTERMODAL FACILITY INPUTS'!H$14,0)) -> 0 | J109: $64,749 | K109: 226 | L109: =I109*J109*K109/Selection!O$12 -> 0.0 | M109: 14.2% | N109: 94%
A110: MI | B110: Norfolk Southern - Triple Crown | C110: S. Wabash St. to Dix Ave (Outer Dr. to Schaffer Hwy to I-75) | D110: Truck/Rail | E110: Detroit MI CSA | I110: =IF(B110='2-INTERMODAL FACILITY INPUTS'!E$8,'2-INTERMODAL FACILITY INPUTS'!H$8,IF(B110='2-INTERMODAL FACILITY INPUTS'!E$14,'2-INTERMODAL FACILITY INPUTS'!H$14,0)) -> 0 | J110: $64,749 | K110: 240 | L110: =I110*J110*K110/Selection!O$12 -> 0.0 | M110: 14.2% | N110: 100%
A111: MI | B111: Detroit - CP Rail System Oak Yard | C111: Served by an Existing NHS Route | D111: Truck/Rail | E111: Detroit MI CSA | I111: =IF(B111='2-INTERMODAL FACILITY INPUTS'!E$8,'2-INTERMODAL FACILITY INPUTS'!H$8,IF(B111='2-INTERMODAL FACILITY INPUTS'!E$14,'2-INTERMODAL FACILITY INPUTS'!H$14,0)) -> 0 | J111: $64,749 | K111: 240 | L111: =I111*J111*K111/Selection!O$12 -> 0.0 | M111: 14.2% | N111: 100%
A112: MI | B112: Ferndale - CN North America Moterm | C112: Fern St. (Terminal to Fair St.), Fair St. (Fern to M 102) | D112: Truck/Rail | E112: Detroit MI CSA | I112: =IF(B112='2-INTERMODAL FACILITY INPUTS'!E$8,'2-INTERMODAL FACILITY INPUTS'!H$8,IF(B112='2-INTERMODAL FACILITY INPUTS'!E$14,'2-INTERMODAL FACILITY INPUTS'!H$14,0)) -> 0 | J112: $64,749 | K112: 240 | L112: =I112*J112*K112/Selection!O$12 -> 0.0 | M112: 14.2% | N112: 100%
A113: MI | B113: Woodhaven - APL | C113: King Rd. (Terminal to Allen Rd), Allen Rd (King Rd to West Rd.) | D113: Truck/Rail | E113: Detroit MI CSA | I113: =IF(B113='2-INTERMODAL FACILITY INPUTS'!E$8,'2-INTERMODAL FACILITY INPUTS'!H$8,IF(B113='2-INTERMODAL FACILITY INPUTS'!E$14,'2-INTERMODAL FACILITY INPUTS'!H$14,0)) -> 0 | J113: $64,749 | K113: 240 | L113: =I113*J113*K113/Selection!O$12 -> 0.0 | M113: 14.2% | N113: 100%
A114: MI | B114: New Boston Auto Ramp | C114: Sibley Rd. (Terminal to I-275) | D114: Truck/Rail | E114: Detroit MI CSA | I114: =IF(B114='2-INTERMODAL FACILITY INPUTS'!E$8,'2-INTERMODAL FACILITY INPUTS'!H$8,IF(B114='2-INTERMODAL FACILITY INPUTS'!E$14,'2-INTERMODAL FACILITY INPUTS'!H$14,0)) -> 0 | J114: $64,749 | K114: 240 | L114: =I114*J114*K114/Selection!O$12 -> 0.0 | M114: 14.2% | N114: 100%
A115: MS | B115: IC Railroad | C115: N Mill St. (Facility to W. Wilson), Woodrow Wilson (N Mill to I-55) | D115: Truck/Rail | E115: Mississippi | I115: =IF(B115='2-INTERMODAL FACILITY INPUTS'!E$8,'2-INTERMODAL FACILITY INPUTS'!H$8,IF(B115='2-INTERMODAL FACILITY INPUTS'!E$14,'2-INTERMODAL FACILITY INPUTS'!H$14,0)) -> 0 | J115: $21,852 | K115: 144 | L115: =I115*J115*K115/Selection!O$12 -> 0.0 | M115: 4.8% | N115: 61%
A116: MO | B116: Kansas City Southern, Kansas City | C116: South on Chouteau Freeway from Route 210 (Shared access with Union Pacific) | D116: Truck/Rail | E116: Kansas City MO-KS CSA (MO Part) | I116: =IF(B116='2-INTERMODAL FACILITY INPUTS'!E$8,'2-INTERMODAL FACILITY INPUTS'!H$8,IF(B116='2-INTERMODAL FACILITY INPUTS'!E$14,'2-INTERMODAL FACILITY INPUTS'!H$14,0)) -> 0 | J116: $45,194 | K116: 83 | L116: =I116*J116*K116/Selection!O$12 -> 0.0 | M116: 9.9% | N116: 35%
A117: MO | B117: Union Pacific, Kansas City | C117: From Route 210 intermodal connector: S 2.0 mi on Chouteau Trafficway to facility entrance on Gardner | D117: Truck/Rail | E117: Kansas City MO-KS CSA (MO Part) | I117: =IF(B117='2-INTERMODAL FACILITY INPUTS'!E$8,'2-INTERMODAL FACILITY INPUTS'!H$8,IF(B117='2-INTERMODAL FACILITY INPUTS'!E$14,'2-INTERMODAL FACILITY INPUTS'!H$14,0)) -> 0 | J117: $45,194 | K117: 83 | L117: =I117*J117*K117/Selection!O$12 -> 0.0 | M117: 9.9% | N117: 35%
A118: MO | B118: Norfolk Southern/Triple Crown, KC | C118: From I-29/35 (ex 6B): E 5.5 mi on Route 210 to Facility Entrance | D118: Truck/Rail | E118: Kansas City MO-KS CSA (MO Part) | I118: =IF(B118='2-INTERMODAL FACILITY INPUTS'!E$8,'2-INTERMODAL FACILITY INPUTS'!H$8,IF(B118='2-INTERMODAL FACILITY INPUTS'!E$14,'2-INTERMODAL FACILITY INPUTS'!H$14,0)) -> 0 | J118: $45,194 | K118: 83 | L118: =I118*J118*K118/Selection!O$12 -> 0.0 | M118: 9.9% | N118: 35%
A119: MO | B119: Burlington Northern, Kansas City | C119: From I-29/35 (ex 6B): E 5.5 mi on Route 210 to Facility Entrance | D119: Truck/Rail | E119: Kansas City MO-KS CSA (MO Part) | I119: =IF(B119='2-INTERMODAL FACILITY INPUTS'!E$8,'2-INTERMODAL FACILITY INPUTS'!H$8,IF(B119='2-INTERMODAL FACILITY INPUTS'!E$14,'2-INTERMODAL FACILITY INPUTS'!H$14,0)) -> 0 | J119: $45,194 | K119: 83 | L119: =I119*J119*K119/Selection!O$12 -> 0.0 | M119: 9.9% | N119: 35%
A120: MO | B120: Norfolk Southern/Triple Crown, St. Louis | C120: From I-70 (exit 246): NE 0.3 mi on Adelaide, NW 1.5 mi on Hall to intermodal facility | D120: Truck/Rail | E120: St. Louis MO-IL CSA (MO Part) | I120: =IF(B120='2-INTERMODAL FACILITY INPUTS'!E$8,'2-INTERMODAL FACILITY INPUTS'!H$8,IF(B120='2-INTERMODAL FACILITY INPUTS'!E$14,'2-INTERMODAL FACILITY INPUTS'!H$14,0)) -> 0 | J120: $45,194 | K120: 99 | L120: =I120*J120*K120/Selection!O$12 -> 0.0 | M120: 9.9% | N120: 42%
A121: NE | B121: Union Pacific Railroad | C121: Leavenworth (Terminal to 14th), 14th (Leavenworth to I-480), 13th (Leavenworth to I-480) | D121: Truck/Rail | E121: Nebraska | I121: =IF(B121='2-INTERMODAL FACILITY INPUTS'!E$8,'2-INTERMODAL FACILITY INPUTS'!H$8,IF(B121='2-INTERMODAL FACILITY INPUTS'!E$14,'2-INTERMODAL FACILITY INPUTS'!H$14,0)) -> 0 | J121: $56,750 | K121: 95 | L121: =I121*J121*K121/Selection!O$12 -> 0.0 | M121: 12.4% | N121: 40%
A122: NE | B122: Burlington Northern Railroad | C122: Gibson St (Terminal to Missouri), Missouri (Gibson to 12th), 12th St (Missouri to J), | D122: Truck/Rail | E122: Nebraska | I122: =IF(B122='2-INTERMODAL FACILITY INPUTS'!E$8,'2-INTERMODAL FACILITY INPUTS'!H$8,IF(B122='2-INTERMODAL FACILITY INPUTS'!E$14,'2-INTERMODAL FACILITY INPUTS'!H$14,0)) -> 0 | J122: $56,750 | K122: 95 | L122: =I122*J122*K122/Selection!O$12 -> 0.0 | M122: 12.4% | N122: 40%
A123: NJ | B123: Rail Terminal at Pulaski Skyway | C123: Served by an Existing NHS Route | D123: Truck/Rail | E123: New York NY-NJ-CT-PA CSA (NJ Part) | I123: =IF(B123='2-INTERMODAL FACILITY INPUTS'!E$8,'2-INTERMODAL FACILITY INPUTS'!H$8,IF(B123='2-INTERMODAL FACILITY INPUTS'!E$14,'2-INTERMODAL FACILITY INPUTS'!H$14,0)) -> 0 | J123: $117,981 | K123: 163 | L123: =I123*J123*K123/Selection!O$12 -> 0.0 | M123: 25.8% | N123: 69%
A124: NJ | B124: Port Neward Rail Terminal | C124: Served by an Existing NHS Route | D124: Truck/Rail | E124: New York NY-NJ-CT-PA CSA (NJ Part) | I124: =IF(B124='2-INTERMODAL FACILITY INPUTS'!E$8,'2-INTERMODAL FACILITY INPUTS'!H$8,IF(B124='2-INTERMODAL FACILITY INPUTS'!E$14,'2-INTERMODAL FACILITY INPUTS'!H$14,0)) -> 0 | J124: $117,981 | K124: 163 | L124: =I124*J124*K124/Selection!O$12 -> 0.0 | M124: 25.8% | N124: 69%
A125: NJ | B125: Union City Rail Terminal | C125: Served by an Existing NHS Route | D125: Truck/Rail | E125: New York NY-NJ-CT-PA CSA (NJ Part) | I125: =IF(B125='2-INTERMODAL FACILITY INPUTS'!E$8,'2-INTERMODAL FACILITY INPUTS'!H$8,IF(B125='2-INTERMODAL FACILITY INPUTS'!E$14,'2-INTERMODAL FACILITY INPUTS'!H$14,0)) -> 0 | J125: $117,981 | K125: 163 | L125: =I125*J125*K125/Selection!O$12 -> 0.0 | M125: 25.8% | N125: 69%
A126: NJ | B126: Port Elizabeth Rail Terminal | C126: Served by an Existing NHS Route | D126: Truck/Rail | E126: New York NY-NJ-CT-PA CSA (NJ Part) | I126: =IF(B126='2-INTERMODAL FACILITY INPUTS'!E$8,'2-INTERMODAL FACILITY INPUTS'!H$8,IF(B126='2-INTERMODAL FACILITY INPUTS'!E$14,'2-INTERMODAL FACILITY INPUTS'!H$14,0)) -> 0 | J126: $117,981 | K126: 163 | L126: =I126*J126*K126/Selection!O$12 -> 0.0 | M126: 25.8% | N126: 69%
A127: NJ | B127: Newark Rail Terminal | C127: Served by an Existing NHS Route | D127: Truck/Rail | E127: New York NY-NJ-CT-PA CSA (NJ Part) | I127: =IF(B127='2-INTERMODAL FACILITY INPUTS'!E$8,'2-INTERMODAL FACILITY INPUTS'!H$8,IF(B127='2-INTERMODAL FACILITY INPUTS'!E$14,'2-INTERMODAL FACILITY INPUTS'!H$14,0)) -> 0 | J127: $117,981 | K127: 163 | L127: =I127*J127*K127/Selection!O$12 -> 0.0 | M127: 25.8% | N127: 69%
A128: NY | B128: Harlem River Intermodal Yard | C128: Brown Pl from Entrance to E. 132nd St to Alexander Ave. to E. 135th St. to I-87 | D128: Truck/Rail | E128: New York NY-NJ-CT-PA CSA (NY Part) | I128: =IF(B128='2-INTERMODAL FACILITY INPUTS'!E$8,'2-INTERMODAL FACILITY INPUTS'!H$8,IF(B128='2-INTERMODAL FACILITY INPUTS'!E$14,'2-INTERMODAL FACILITY INPUTS'!H$14,0)) -> 0 | J128: $251,753 | K128: 104 | L128: =I128*J128*K128/Selection!O$12 -> 0.0 | M128: 55.0% | N128: 44%
A129: NY | B129: Bronx Terminal Market | C129: E. 151st St. (Entrance to Grand Concourse) | D129: Truck/Rail | E129: New York NY-NJ-CT-PA CSA (NY Part) | I129: =IF(B129='2-INTERMODAL FACILITY INPUTS'!E$8,'2-INTERMODAL FACILITY INPUTS'!H$8,IF(B129='2-INTERMODAL FACILITY INPUTS'!E$14,'2-INTERMODAL FACILITY INPUTS'!H$14,0)) -> 0 | J129: $251,753 | K129: 104 | L129: =I129*J129*K129/Selection!O$12 -> 0.0 | M129: 55.0% | N129: 44%
A130: NY | B130: 65th Street Lirr Bay Ridge Terminal | C130: 65th St. (2nd Ave. Entrance to Gowanus Pkwy) | D130: Truck/Rail | E130: New York NY-NJ-CT-PA CSA (NY Part) | I130: =IF(B130='2-INTERMODAL FACILITY INPUTS'!E$8,'2-INTERMODAL FACILITY INPUTS'!H$8,IF(B130='2-INTERMODAL FACILITY INPUTS'!E$14,'2-INTERMODAL FACILITY INPUTS'!H$14,0)) -> 0 | J130: $251,753 | K130: 104 | L130: =I130*J130*K130/Selection!O$12 -> 0.0 | M130: 55.0% | N130: 44%
A131: NY | B131: Hunts Point Market Truck Terminal | C131: Market Loop to Hunts Point Ave. to Randall Ave. to Leggett Ave. to Bruckner Blvd EB to Triborough Bridge. Also, Leggett Ave. to Bruckner Blvd. WB to Major Deegan Expressway (I-87) | D131: Truck/Rail | E131: New York NY-NJ-CT-PA CSA (NY Part) | I131: =IF(B131='2-INTERMODAL FACILITY INPUTS'!E$8,'2-INTERMODAL FACILITY INPUTS'!H$8,IF(B131='2-INTERMODAL FACILITY INPUTS'!E$14,'2-INTERMODAL FACILITY INPUTS'!H$14,0)) -> 0 | J131: $251,753 | K131: 104 | L131: =I131*J131*K131/Selection!O$12 -> 0.0 | M131: 55.0% | N131: 44%
A132: NY | B132: Howland Hook Marine Terminal | C132: Entrance on Richmond Terrace to Western Ave. to Goethals Rd. to Forest Ave. to Staten Island Expressway | D132: Truck/Rail | E132: New York NY-NJ-CT-PA CSA (NY Part) | I132: =IF(B132='2-INTERMODAL FACILITY INPUTS'!E$8,'2-INTERMODAL FACILITY INPUTS'!H$8,IF(B132='2-INTERMODAL FACILITY INPUTS'!E$14,'2-INTERMODAL FACILITY INPUTS'!H$14,0)) -> 0 | J132: $251,753 | K132: 104 | L132: =I132*J132*K132/Selection!O$12 -> 0.0 | M132: 55.0% | N132: 44%
A133: NY | B133: Conrail - Selkirk Yard | C133: CR 53 (Entrance to CR 55), Cr 55 (Cr 53 to US 9W), US 9W (CR 55 to NY 396), | D133: Truck/Rail | E133: Albany NY CSA | I133: =IF(B133='2-INTERMODAL FACILITY INPUTS'!E$8,'2-INTERMODAL FACILITY INPUTS'!H$8,IF(B133='2-INTERMODAL FACILITY INPUTS'!E$14,'2-INTERMODAL FACILITY INPUTS'!H$14,0)) -> 0 | J133: $251,753 | K133: 91 | L133: =I133*J133*K133/Selection!O$12 -> 0.0 | M133: 55.0% | N133: 38%
A134: NY | B134: Conrail Dewitt Yard | C134: Central Ave. (Entrance to Freemont), Freemont Rd. (Central to Kirkville), Kirkville Rd. (Freemont to Girden Rd. (Entrance to Kirkville Rd.), Kirkville (Girden to I-481) | D134: Truck/Rail | E134: Remainder of New York | F134: Syracuse | I134: =IF(B134='2-INTERMODAL FACILITY INPUTS'!E$8,'2-INTERMODAL FACILITY INPUTS'!H$8,IF(B134='2-INTERMODAL FACILITY INPUTS'!E$14,'2-INTERMODAL FACILITY INPUTS'!H$14,0)) -> 0 | J134: $251,753 | K134: 237 | L134: =I134*J134*K134/Selection!O$12 -> 0.0 | M134: 55.0% | N134: 100%
A135: NY | B135: Norfolk-Southern Transfer Station | C135: Gruner Rd. (Entrance to Harlem), Harlem Rd. (Gruner to Walden), Walden Rd. (Harlem to I-90) | D135: Truck/Rail | E135: New York NY-NJ-CT-PA CSA (NY Part) | I135: =IF(B135='2-INTERMODAL FACILITY INPUTS'!E$8,'2-INTERMODAL FACILITY INPUTS'!H$8,IF(B135='2-INTERMODAL FACILITY INPUTS'!E$14,'2-INTERMODAL FACILITY INPUTS'!H$14,0)) -> 0 | J135: $251,753 | K135: 104 | L135: =I135*J135*K135/Selection!O$12 -> 0.0 | M135: 55.0% | N135: 44%
A136: NY | B136: South Brooklyn Railroad Yard | C136: 39th St. (Rail Yard to Gowanus Pkwy) | D136: Truck/Rail | E136: New York NY-NJ-CT-PA CSA (NY Part) | I136: =IF(B136='2-INTERMODAL FACILITY INPUTS'!E$8,'2-INTERMODAL FACILITY INPUTS'!H$8,IF(B136='2-INTERMODAL FACILITY INPUTS'!E$14,'2-INTERMODAL FACILITY INPUTS'!H$14,0)) -> 0 | J136: $251,753 | K136: 104 | L136: =I136*J136*K136/Selection!O$12 -> 0.0 | M136: 55.0% | N136: 44%
A137: NC | B137: CSX Freight Intermodal Facility - Charlotte | C137: Hovis Rd and NC 16 between I-85 and the Terminal Entrance | D137: Truck/Rail | E137: Charlotte NC-SC CSA (NC Part) | I137: =IF(B137='2-INTERMODAL FACILITY INPUTS'!E$8,'2-INTERMODAL FACILITY INPUTS'!H$8,IF(B137='2-INTERMODAL FACILITY INPUTS'!E$14,'2-INTERMODAL FACILITY INPUTS'!H$14,0)) -> 0 | J137: $76,487 | K137: 97 | L137: =I137*J137*K137/Selection!O$12 -> 0.0 | M137: 16.7% | N137: 41%
A138: NC | B138: Norfolk Southern Corp. - Charlotte | C138: N. Brevard St and Caldwell St/Parkwood Ave between I-277 and Terminal Entrance | D138: Truck/Rail | E138: Charlotte NC-SC CSA (NC Part) | I138: =IF(B138='2-INTERMODAL FACILITY INPUTS'!E$8,'2-INTERMODAL FACILITY INPUTS'!H$8,IF(B138='2-INTERMODAL FACILITY INPUTS'!E$14,'2-INTERMODAL FACILITY INPUTS'!H$14,0)) -> 0 | J138: $76,487 | K138: 97 | L138: =I138*J138*K138/Selection!O$12 -> 0.0 | M138: 16.7% | N138: 41%
A139: NC | B139: Norfolk Southern Corp. - Greensboro | C139: Terminal Entrance to Merrit Dr to NC 6 to Holden Rd to Meadowview Rd to SR 4121(High Point Rd) to I-40 | D139: Truck/Rail | E139: Greensboro--Winston-Salem--High Point NC CSA | I139: =IF(B139='2-INTERMODAL FACILITY INPUTS'!E$8,'2-INTERMODAL FACILITY INPUTS'!H$8,IF(B139='2-INTERMODAL FACILITY INPUTS'!E$14,'2-INTERMODAL FACILITY INPUTS'!H$14,0)) -> 0 | J139: $76,487 | K139: 84 | L139: =I139*J139*K139/Selection!O$12 -> 0.0 | M139: 16.7% | N139: 35%
A140: NC | B140: Norfolf Southern Corp. - Winston-Salem | C140: From I-40 Business, MLK Dr to US 311 to Williston Dr to Old Walkertown Rd to Terminal Entrance | D140: Truck/Rail | E140: Greensboro--Winston-Salem--High Point NC CSA | I140: =IF(B140='2-INTERMODAL FACILITY INPUTS'!E$8,'2-INTERMODAL FACILITY INPUTS'!H$8,IF(B140='2-INTERMODAL FACILITY INPUTS'!E$14,'2-INTERMODAL FACILITY INPUTS'!H$14,0)) -> 0 | J140: $76,487 | K140: 84 | L140: =I140*J140*K140/Selection!O$12 -> 0.0 | M140: 16.7% | N140: 35%
A141: OH | B141: Conrail "Airline" Trailer/Container Term | C141: From U.S. 20 (Reynolds Rd): E on Hill Rd (CR 30) to terminal entrance at Parkside Blvd (CR 521) | D141: Truck/Rail | E141: Cleveland OH CSA | I141: =IF(B141='2-INTERMODAL FACILITY INPUTS'!E$8,'2-INTERMODAL FACILITY INPUTS'!H$8,IF(B141='2-INTERMODAL FACILITY INPUTS'!E$14,'2-INTERMODAL FACILITY INPUTS'!H$14,0)) -> 0 | J141: $59,925 | K141: 159 | L141: =I141*J141*K141/Selection!O$12 -> 0.0 | M141: 13.1% | N141: 67%
A142: OH | B142: CSX Bulk Intermodal Distribution System | C142: From I-75: east on Miami St (SR 65) to entrance on Oakdale Ave (CR 558) | D142: Truck/Rail | E142: Cleveland OH CSA | I142: =IF(B142='2-INTERMODAL FACILITY INPUTS'!E$8,'2-INTERMODAL FACILITY INPUTS'!H$8,IF(B142='2-INTERMODAL FACILITY INPUTS'!E$14,'2-INTERMODAL FACILITY INPUTS'!H$14,0)) -> 0 | J142: $59,925 | K142: 159 | L142: =I142*J142*K142/Selection!O$12 -> 0.0 | M142: 13.1% | N142: 67%
A143: OH | B143: Major Grain/Bulk Materials Terminal Ops | C143: From I-75: north on South St, southeasterly on Kuhlman St to entrance to terminal | D143: Truck/Rail | E143: Remainder of Ohio | F143: Toledo | I143: =IF(B143='2-INTERMODAL FACILITY INPUTS'!E$8,'2-INTERMODAL FACILITY INPUTS'!H$8,IF(B143='2-INTERMODAL FACILITY INPUTS'!E$14,'2-INTERMODAL FACILITY INPUTS'!H$14,0)) -> 0 | J143: $59,925 | K143: 153 | L143: =I143*J143*K143/Selection!O$12 -> 0.0 | M143: 13.1% | N143: 65%
A144: OH | B144: Triple Crown Rail Transfer Facility | C144: From U.S. 30 (on new location): north on SR 598 to Triple Crown Access Drive | D144: Truck/Rail | E144: Remainder of Ohio | F144: Crawford County | I144: =IF(B144='2-INTERMODAL FACILITY INPUTS'!E$8,'2-INTERMODAL FACILITY INPUTS'!H$8,IF(B144='2-INTERMODAL FACILITY INPUTS'!E$14,'2-INTERMODAL FACILITY INPUTS'!H$14,0)) -> 0 | J144: $59,925 | K144: 153 | L144: =I144*J144*K144/Selection!O$12 -> 0.0 | M144: 13.1% | N144: 65%
A145: OH | B145: Stark Intermodal Freight Facility | C145: Served by an Existing NHS Route | D145: Truck/Rail | E145: Remainder of Ohio | F145: Stark County | I145: =IF(B145='2-INTERMODAL FACILITY INPUTS'!E$8,'2-INTERMODAL FACILITY INPUTS'!H$8,IF(B145='2-INTERMODAL FACILITY INPUTS'!E$14,'2-INTERMODAL FACILITY INPUTS'!H$14,0)) -> 0 | J145: $59,925 | K145: 153 | L145: =I145*J145*K145/Selection!O$12 -> 0.0 | M145: 13.1% | N145: 65%
A146: OH | B146: Norfolk Southern Discovery Park | C146: From I-270: North on Alum Creek Dr, NW on New World Road, W on Watkins Rd to terminal | D146: Truck/Rail | E146: Columbus OH CSA | I146: =IF(B146='2-INTERMODAL FACILITY INPUTS'!E$8,'2-INTERMODAL FACILITY INPUTS'!H$8,IF(B146='2-INTERMODAL FACILITY INPUTS'!E$14,'2-INTERMODAL FACILITY INPUTS'!H$14,0)) -> 0 | J146: $59,925 | K146: 121 | L146: =I146*J146*K146/Selection!O$12 -> 0.0 | M146: 13.1% | N146: 51%
A147: OH | B147: Columbus Conrail (Buckeye Yard) | C147: From I-270: W on Roberts Rd, S on Westbelt Dr to Rail Yard at Trabue Rd | D147: Truck/Rail | E147: Columbus OH CSA | I147: =IF(B147='2-INTERMODAL FACILITY INPUTS'!E$8,'2-INTERMODAL FACILITY INPUTS'!H$8,IF(B147='2-INTERMODAL FACILITY INPUTS'!E$14,'2-INTERMODAL FACILITY INPUTS'!H$14,0)) -> 0 | J147: $59,925 | K147: 121 | L147: =I147*J147*K147/Selection!O$12 -> 0.0 | M147: 13.1% | N147: 51%
A148: OH | B148: Marysville Conrail Railyard | C148: From U.S. 33: west on Honda Parkway to SR 739 (Stokes Rd), SR 739 (Honda Pkwy to railyard entrance (at intersection with SR 739)) | D148: Truck/Rail | E148: Columbus OH CSA | I148: =IF(B148='2-INTERMODAL FACILITY INPUTS'!E$8,'2-INTERMODAL FACILITY INPUTS'!H$8,IF(B148='2-INTERMODAL FACILITY INPUTS'!E$14,'2-INTERMODAL FACILITY INPUTS'!H$14,0)) -> 0 | J148: $59,925 | K148: 121 | L148: =I148*J148*K148/Selection!O$12 -> 0.0 | M148: 13.1% | N148: 51%
A149: OH | B149: Cincinnati Norfolk Southern (Union Sta) | C149: From I-75: S on Freeman Ave, W on W. Eighth St to terminal entrance | D149: Truck/Rail | E149: Cincinnati OH-KY-IN CSA (OH Part) | I149: =IF(B149='2-INTERMODAL FACILITY INPUTS'!E$8,'2-INTERMODAL FACILITY INPUTS'!H$8,IF(B149='2-INTERMODAL FACILITY INPUTS'!E$14,'2-INTERMODAL FACILITY INPUTS'!H$14,0)) -> 0 | J149: $59,925 | K149: 115 | L149: =I149*J149*K149/Selection!O$12 -> 0.0 | M149: 13.1% | N149: 49%
A150: OH | B150: Cincinnati CSXT (Queensgate) | C150: From I-75, W on Gest St, N on Dalton St, W on Findlay St to Terminal Entrance | D150: Truck/Rail | E150: Cincinnati OH-KY-IN CSA (OH Part) | I150: =IF(B150='2-INTERMODAL FACILITY INPUTS'!E$8,'2-INTERMODAL FACILITY INPUTS'!H$8,IF(B150='2-INTERMODAL FACILITY INPUTS'!E$14,'2-INTERMODAL FACILITY INPUTS'!H$14,0)) -> 0 | J150: $59,925 | K150: 115 | L150: =I150*J150*K150/Selection!O$12 -> 0.0 | M150: 13.1% | N150: 49%
A151: OH | B151: Norfolk - Southern RR Container Port | C151: From I-90: easterly on U.S. 422 (Broadway) to facility entrance at E. 9th Street | D151: Truck/Rail | E151: Cleveland OH CSA | I151: =IF(B151='2-INTERMODAL FACILITY INPUTS'!E$8,'2-INTERMODAL FACILITY INPUTS'!H$8,IF(B151='2-INTERMODAL FACILITY INPUTS'!E$14,'2-INTERMODAL FACILITY INPUTS'!H$14,0)) -> 0 | J151: $59,925 | K151: 159 | L151: =I151*J151*K151/Selection!O$12 -> 0.0 | M151: 13.1% | N151: 67%
A152: OH | B152: Conrail Interstate Terminal Warehouse | C152: Chatfield Ave (Warehouse Dr to W 105th St), W 105th St (Chatfield to IR 71) | D152: Truck/Rail | E152: Cleveland OH CSA | I152: =IF(B152='2-INTERMODAL FACILITY INPUTS'!E$8,'2-INTERMODAL FACILITY INPUTS'!H$8,IF(B152='2-INTERMODAL FACILITY INPUTS'!E$14,'2-INTERMODAL FACILITY INPUTS'!H$14,0)) -> 0 | J152: $59,925 | K152: 159 | L152: =I152*J152*K152/Selection!O$12 -> 0.0 | M152: 13.1% | N152: 67%
A153: OH | B153: Conrail Intermodal & Flexi-Flo Bulk Term | C153: E 152nd St (Entrance to I-90) | D153: Truck/Rail | E153: Cleveland OH CSA | I153: =IF(B153='2-INTERMODAL FACILITY INPUTS'!E$8,'2-INTERMODAL FACILITY INPUTS'!H$8,IF(B153='2-INTERMODAL FACILITY INPUTS'!E$14,'2-INTERMODAL FACILITY INPUTS'!H$14,0)) -> 0 | J153: $59,925 | K153: 159 | L153: =I153*J153*K153/Selection!O$12 -> 0.0 | M153: 13.1% | N153: 67%
A154: OH | B154: Medina Supply Company & Stone Yard | C154: From SR 18/57: south on State Road (CR 22), west on Smith Road (CR 4) to facility entrance | D154: Truck/Rail | E154: Cleveland OH CSA | I154: =IF(B154='2-INTERMODAL FACILITY INPUTS'!E$8,'2-INTERMODAL FACILITY INPUTS'!H$8,IF(B154='2-INTERMODAL FACILITY INPUTS'!E$14,'2-INTERMODAL FACILITY INPUTS'!H$14,0)) -> 0 | J154: $59,925 | K154: 159 | L154: =I154*J154*K154/Selection!O$12 -> 0.0 | M154: 13.1% | N154: 67%
A155: OK | B155: Burlington Northern Railroad | C155: 23rd St (BN Terminal to Southwest Ave), SW Ave (23rd St to I-244 Ramp) | D155: Truck/Rail | E155: Cleveland OH CSA | I155: =IF(B155='2-INTERMODAL FACILITY INPUTS'!E$8,'2-INTERMODAL FACILITY INPUTS'!H$8,IF(B155='2-INTERMODAL FACILITY INPUTS'!E$14,'2-INTERMODAL FACILITY INPUTS'!H$14,0)) -> 0 | J155: $16,943 | K155: 159 | L155: =I155*J155*K155/Selection!O$12 -> 0.0 | M155: 3.7% | N155: 67%
A156: OR | B156: Brooklyn Yard (SP), Portland | C156: Holgate Blvd between McLoughlin Blvd (or 99E) and SPRR Track | D156: Truck/Rail | E156: Portland OR-WA MSA (OR Part) | I156: =IF(B156='2-INTERMODAL FACILITY INPUTS'!E$8,'2-INTERMODAL FACILITY INPUTS'!H$8,IF(B156='2-INTERMODAL FACILITY INPUTS'!E$14,'2-INTERMODAL FACILITY INPUTS'!H$14,0)) -> 0 | J156: $39,402 | K156: 110 | L156: =I156*J156*K156/Selection!O$12 -> 0.0 | M156: 8.6% | N156: 46%
A157: OR | B157: Willridge Yards | C157: Balboa Ave (Culebra to Yeon) | D157: Truck/Rail | E157: Portland OR-WA MSA (OR Part) | I157: =IF(B157='2-INTERMODAL FACILITY INPUTS'!E$8,'2-INTERMODAL FACILITY INPUTS'!H$8,IF(B157='2-INTERMODAL FACILITY INPUTS'!E$14,'2-INTERMODAL FACILITY INPUTS'!H$14,0)) -> 0 | J157: $39,402 | K157: 110 | L157: =I157*J157*K157/Selection!O$12 -> 0.0 | M157: 8.6% | N157: 46%
A158: OR | B158: Lake Yards | C158: Front Ave (Nicolai to Kittridge), Nocolai St (Yeon Ave to Front) | D158: Truck/Rail | E158: Portland OR-WA MSA (OR Part) | I158: =IF(B158='2-INTERMODAL FACILITY INPUTS'!E$8,'2-INTERMODAL FACILITY INPUTS'!H$8,IF(B158='2-INTERMODAL FACILITY INPUTS'!E$14,'2-INTERMODAL FACILITY INPUTS'!H$14,0)) -> 0 | J158: $39,402 | K158: 110 | L158: =I158*J158*K158/Selection!O$12 -> 0.0 | M158: 8.6% | N158: 46%
A159: OR | B159: Albina Yards (UP), Portland | C159: Interstate Ave (Going to Russell), Russell St (Interstate Ave to the Rail Facility), Going St (Basin to I-5) | D159: Truck/Rail | E159: Portland OR-WA MSA (OR Part) | I159: =IF(B159='2-INTERMODAL FACILITY INPUTS'!E$8,'2-INTERMODAL FACILITY INPUTS'!H$8,IF(B159='2-INTERMODAL FACILITY INPUTS'!E$14,'2-INTERMODAL FACILITY INPUTS'!H$14,0)) -> 0 | J159: $39,402 | K159: 110 | L159: =I159*J159*K159/Selection!O$12 -> 0.0 | M159: 8.6% | N159: 46%
A160: OR | B160: Eugene Reload Facilities, Eugene | C160: Garfield St (6th to Cross), Cross St (Garfield to Cleveland), Cleveland St (Cross to Roosevelt), | D160: Truck/Rail | E160: Remainder of Oregon | F160: Eugene | I160: =IF(B160='2-INTERMODAL FACILITY INPUTS'!E$8,'2-INTERMODAL FACILITY INPUTS'!H$8,IF(B160='2-INTERMODAL FACILITY INPUTS'!E$14,'2-INTERMODAL FACILITY INPUTS'!H$14,0)) -> 0 | J160: $39,402 | K160: 120 | L160: =I160*J160*K160/Selection!O$12 -> 0.0 | M160: 8.6% | N160: 51%
A161: PA | B161: Conrail Double Stack Intermodal Terminal | C161: SE on Wall Ave to PA 48 (SR 0048) North on PA 48 to I-376 | D161: Truck/Rail | E161: Pittsburgh PA CSA | I161: =IF(B161='2-INTERMODAL FACILITY INPUTS'!E$8,'2-INTERMODAL FACILITY INPUTS'!H$8,IF(B161='2-INTERMODAL FACILITY INPUTS'!E$14,'2-INTERMODAL FACILITY INPUTS'!H$14,0)) -> 0 | J161: $112,431 | K161: 116 | L161: =I161*J161*K161/Selection!O$12 -> 0.0 | M161: 24.6% | N161: 49%
A162: PA | B162: Lucknow Yard | C162: S on Industrial Rd to Wilderwood Park Dr to Cameron St | D162: Truck/Rail | E162: Remainder of Pennsylvania | F162: Harrisburg, PA | I162: =IF(B162='2-INTERMODAL FACILITY INPUTS'!E$8,'2-INTERMODAL FACILITY INPUTS'!H$8,IF(B162='2-INTERMODAL FACILITY INPUTS'!E$14,'2-INTERMODAL FACILITY INPUTS'!H$14,0)) -> 0 | J162: $112,431 | K162: 134 | L162: =I162*J162*K162/Selection!O$12 -> 0.0 | M162: 24.6% | N162: 57%
A163: PA | B163: Conrail DB Stack Facility and Triple Crown | C163: W on Grayson Rd to Rupp Hill Rd to Paxton St to Penhar Dr to US 322 | D163: Truck/Rail | E163: Remainder of Pennsylvania | F163: Harrisburg, PA | I163: =IF(B163='2-INTERMODAL FACILITY INPUTS'!E$8,'2-INTERMODAL FACILITY INPUTS'!H$8,IF(B163='2-INTERMODAL FACILITY INPUTS'!E$14,'2-INTERMODAL FACILITY INPUTS'!H$14,0)) -> 0 | J163: $112,431 | K163: 134 | L163: =I163*J163*K163/Selection!O$12 -> 0.0 | M163: 24.6% | N163: 57%
A164: PA | B164: Allentown/Bethlehem Piggy Back Yard | C164: E on River St to PA 378 | D164: Truck/Rail | E164: Remainder of Pennsylvania | F164: Allentown | I164: =IF(B164='2-INTERMODAL FACILITY INPUTS'!E$8,'2-INTERMODAL FACILITY INPUTS'!H$8,IF(B164='2-INTERMODAL FACILITY INPUTS'!E$14,'2-INTERMODAL FACILITY INPUTS'!H$14,0)) -> 0 | J164: $112,431 | K164: 134 | L164: =I164*J164*K164/Selection!O$12 -> 0.0 | M164: 24.6% | N164: 57%
A165: PA | B165: Morrisville Truck/Rail Facility | C165: E Cabot Blvd to Oxford Valley Rd to US 1 | D165: Truck/Rail | E165: Philadelphia PA-NJ-DE-MD CSA (PA Part) | I165: =IF(B165='2-INTERMODAL FACILITY INPUTS'!E$8,'2-INTERMODAL FACILITY INPUTS'!H$8,IF(B165='2-INTERMODAL FACILITY INPUTS'!E$14,'2-INTERMODAL FACILITY INPUTS'!H$14,0)) -> 0 | J165: $112,431 | K165: 142 | L165: =I165*J165*K165/Selection!O$12 -> 0.0 | M165: 24.6% | N165: 60%
A166: PA | B166: Phil. Bulk Intermodal Dist Services Terminal | C166: East on Moore St, South on 34th St to Maiden Lane to I-76 | D166: Truck/Rail | E166: Philadelphia PA-NJ-DE-MD CSA (PA Part) | I166: =IF(B166='2-INTERMODAL FACILITY INPUTS'!E$8,'2-INTERMODAL FACILITY INPUTS'!H$8,IF(B166='2-INTERMODAL FACILITY INPUTS'!E$14,'2-INTERMODAL FACILITY INPUTS'!H$14,0)) -> 0 | J166: $112,431 | K166: 142 | L166: =I166*J166*K166/Selection!O$12 -> 0.0 | M166: 24.6% | N166: 60%
A167: PA | B167: S Phil. Rail Complex | C167: North on Old Delaware Ave to Columbus Blvd (same as S. Phil. Port Complex) | D167: Truck/Rail | E167: Philadelphia PA-NJ-DE-MD CSA (PA Part) | I167: =IF(B167='2-INTERMODAL FACILITY INPUTS'!E$8,'2-INTERMODAL FACILITY INPUTS'!H$8,IF(B167='2-INTERMODAL FACILITY INPUTS'!E$14,'2-INTERMODAL FACILITY INPUTS'!H$14,0)) -> 0 | J167: $112,431 | K167: 142 | L167: =I167*J167*K167/Selection!O$12 -> 0.0 | M167: 24.6% | N167: 60%
A168: PA | B168: Twin Oaks Truck/Rail Terminal | C168: Bethel Rd to US 322 (Conchester Rd) | D168: Truck/Rail | E168: Philadelphia PA-NJ-DE-MD CSA (PA Part) | I168: =IF(B168='2-INTERMODAL FACILITY INPUTS'!E$8,'2-INTERMODAL FACILITY INPUTS'!H$8,IF(B168='2-INTERMODAL FACILITY INPUTS'!E$14,'2-INTERMODAL FACILITY INPUTS'!H$14,0)) -> 0 | J168: $112,431 | K168: 142 | L168: =I168*J168*K168/Selection!O$12 -> 0.0 | M168: 24.6% | N168: 60%
A169: SC | B169: Charleston Rail Facility (CSX) | C169: S-62 (Montague Ave), S-1411 (Blossom St) between I-26 and the Rail Freight Yard | D169: Truck/Rail | E169: Charleston SC MSA | I169: =IF(B169='2-INTERMODAL FACILITY INPUTS'!E$8,'2-INTERMODAL FACILITY INPUTS'!H$8,IF(B169='2-INTERMODAL FACILITY INPUTS'!E$14,'2-INTERMODAL FACILITY INPUTS'!H$14,0)) -> 0 | J169: $48,110 | K169: 120 | L169: =I169*J169*K169/Selection!O$12 -> 0.0 | M169: 10.5% | N169: 51%
A170: SC | B170: North Charleston Rail Facility (Norfolk-Southern) | C170: W Montague (I-26 to Marriott), Marriott Dr (Montague to Freight Yard) | D170: Truck/Rail | E170: Charleston SC MSA | I170: =IF(B170='2-INTERMODAL FACILITY INPUTS'!E$8,'2-INTERMODAL FACILITY INPUTS'!H$8,IF(B170='2-INTERMODAL FACILITY INPUTS'!E$14,'2-INTERMODAL FACILITY INPUTS'!H$14,0)) -> 0 | J170: $48,110 | K170: 120 | L170: =I170*J170*K170/Selection!O$12 -> 0.0 | M170: 10.5% | N170: 51%
A171: SC | B171: Fremar Farmers Co-op Grain Elevator, Marion | C171: SD 44, FAS 6355 from US 81 to Marion | D171: Truck/Rail | E171: Remainder of South Carolina | F171: Marion | I171: =IF(B171='2-INTERMODAL FACILITY INPUTS'!E$8,'2-INTERMODAL FACILITY INPUTS'!H$8,IF(B171='2-INTERMODAL FACILITY INPUTS'!E$14,'2-INTERMODAL FACILITY INPUTS'!H$14,0)) -> 0 | J171: $48,110 | K171: 132 | L171: =I171*J171*K171/Selection!O$12 -> 0.0 | M171: 10.5% | N171: 56%
A172: SC | B172: Hutting Elevator Co. Grain Elevator, Canton | C172: US 18 from I-29 to Canton | D172: Truck/Rail | E172: Remainder of South Carolina | F172: Canton | I172: =IF(B172='2-INTERMODAL FACILITY INPUTS'!E$8,'2-INTERMODAL FACILITY INPUTS'!H$8,IF(B172='2-INTERMODAL FACILITY INPUTS'!E$14,'2-INTERMODAL FACILITY INPUTS'!H$14,0)) -> 0 | J172: $48,110 | K172: 132 | L172: =I172*J172*K172/Selection!O$12 -> 0.0 | M172: 10.5% | N172: 56%
A173: TN | B173: CSX Corporation - Kingsport | C173: Lincoln St from John B Dennis Hwy (SR-93) to Facility Entrance | D173: Truck/Rail | E173: Remainder of Tennessee | F173: Kingsport | I173: =IF(B173='2-INTERMODAL FACILITY INPUTS'!E$8,'2-INTERMODAL FACILITY INPUTS'!H$8,IF(B173='2-INTERMODAL FACILITY INPUTS'!E$14,'2-INTERMODAL FACILITY INPUTS'!H$14,0)) -> 0 | J173: $93,531 | K173: 137 | L173: =I173*J173*K173/Selection!O$12 -> 0.0 | M173: 20.4% | N173: 58%
A174: TN | B174: Forrest Yards - Memphis Norfolk Southern | C174: Southern Ave from Lamar Ave (SR-4) to E Parkway (SR-277) | D174: Truck/Rail | E174: Memphis TN-MS-AR MSA (TN Part) | I174: =IF(B174='2-INTERMODAL FACILITY INPUTS'!E$8,'2-INTERMODAL FACILITY INPUTS'!H$8,IF(B174='2-INTERMODAL FACILITY INPUTS'!E$14,'2-INTERMODAL FACILITY INPUTS'!H$14,0)) -> 0 | J174: $93,531 | K174: 101 | L174: =I174*J174*K174/Selection!O$12 -> 0.0 | M174: 20.4% | N174: 43%
A175: TN | B175: Leewood Yards | C175: Jackson Ave (SR-14) and Chelsea Ave between I-40 and Warford St | D175: Truck/Rail | E175: Memphis TN-MS-AR MSA (TN Part) | I175: =IF(B175='2-INTERMODAL FACILITY INPUTS'!E$8,'2-INTERMODAL FACILITY INPUTS'!H$8,IF(B175='2-INTERMODAL FACILITY INPUTS'!E$14,'2-INTERMODAL FACILITY INPUTS'!H$14,0)) -> 0 | J175: $93,531 | K175: 101 | L175: =I175*J175*K175/Selection!O$12 -> 0.0 | M175: 20.4% | N175: 43%
A176: TN | B176: Tennessee Yards - Memphis Burlington NOR | C176: Shelby Dr between Lamar Ave (SR-4) and the Tennessee Yard | D176: Truck/Rail | E176: Memphis TN-MS-AR MSA (TN Part) | I176: =IF(B176='2-INTERMODAL FACILITY INPUTS'!E$8,'2-INTERMODAL FACILITY INPUTS'!H$8,IF(B176='2-INTERMODAL FACILITY INPUTS'!E$14,'2-INTERMODAL FACILITY INPUTS'!H$14,0)) -> 0 | J176: $93,531 | K176: 101 | L176: =I176*J176*K176/Selection!O$12 -> 0.0 | M176: 20.4% | N176: 43%
A177: TN | B177: Johnston Yards - Memphis Illinois Center | C177: Mallory Ave and Riverport Rd between I-55 and Rail Yard | D177: Truck/Rail | E177: Memphis TN-MS-AR MSA (TN Part) | I177: =IF(B177='2-INTERMODAL FACILITY INPUTS'!E$8,'2-INTERMODAL FACILITY INPUTS'!H$8,IF(B177='2-INTERMODAL FACILITY INPUTS'!E$14,'2-INTERMODAL FACILITY INPUTS'!H$14,0)) -> 0 | J177: $93,531 | K177: 101 | L177: =I177*J177*K177/Selection!O$12 -> 0.0 | M177: 20.4% | N177: 43%
A178: TN | B178: Radnor Yards - Nashville CSX | C178: Armory Ave and Sidco Dr between I-65 and Harding Place | D178: Truck/Rail | E178: Nashville TN CSA | I178: =IF(B178='2-INTERMODAL FACILITY INPUTS'!E$8,'2-INTERMODAL FACILITY INPUTS'!H$8,IF(B178='2-INTERMODAL FACILITY INPUTS'!E$14,'2-INTERMODAL FACILITY INPUTS'!H$14,0)) -> 0 | J178: $93,531 | K178: 64 | L178: =I178*J178*K178/Selection!O$12 -> 0.0 | M178: 20.4% | N178: 27%
A179: TX | B179: Port of Laredo (Union Pacific RR) | C179: I-35 Frontage Rd between Milo (LP 20) Exit Ramp and the Facility Access Rd (Private) | D179: Truck/Rail | E179: Laredo TX MSA | I179: =IF(B179='2-INTERMODAL FACILITY INPUTS'!E$8,'2-INTERMODAL FACILITY INPUTS'!H$8,IF(B179='2-INTERMODAL FACILITY INPUTS'!E$14,'2-INTERMODAL FACILITY INPUTS'!H$14,0)) -> 0 | J179: $32,694 | K179: 236 | L179: =I179*J179*K179/Selection!O$12 -> 0.0 | M179: 7.1% | N179: 100%
A180: TX | B180: McAllen EC Dev. Corp. & Foreign Trade Zone | C180: FM 1016 (Ware Rd to Spur 115) | D180: Truck/Rail | E180: Remainder of Texas | F180: McAllen | I180: =IF(B180='2-INTERMODAL FACILITY INPUTS'!E$8,'2-INTERMODAL FACILITY INPUTS'!H$8,IF(B180='2-INTERMODAL FACILITY INPUTS'!E$14,'2-INTERMODAL FACILITY INPUTS'!H$14,0)) -> 0 | J180: $32,694 | K180: 233 | L180: =I180*J180*K180/Selection!O$12 -> 0.0 | M180: 7.1% | N180: 98%
A181: TX | B181: Souther Pacific (San Antonio) | C181: Sherman St and Pine St between the Terminal and I-35 | D181: Truck/Rail | E181: San Antonio TX MSA | I181: =IF(B181='2-INTERMODAL FACILITY INPUTS'!E$8,'2-INTERMODAL FACILITY INPUTS'!H$8,IF(B181='2-INTERMODAL FACILITY INPUTS'!E$14,'2-INTERMODAL FACILITY INPUTS'!H$14,0)) -> 0 | J181: $32,694 | K181: 73 | L181: =I181*J181*K181/Selection!O$12 -> 0.0 | M181: 7.1% | N181: 31%
A182: TX | B182: Santa Fe Railroad Yard (El Paso) | C182: Served by an Existing NHS Route | D182: Truck/Rail | E182: El Paso TX MSA | I182: =IF(B182='2-INTERMODAL FACILITY INPUTS'!E$8,'2-INTERMODAL FACILITY INPUTS'!H$8,IF(B182='2-INTERMODAL FACILITY INPUTS'!E$14,'2-INTERMODAL FACILITY INPUTS'!H$14,0)) -> 0 | J182: $32,694 | K182: 207 | L182: =I182*J182*K182/Selection!O$12 -> 0.0 | M182: 7.1% | N182: 87%
A183: TX | B183: Southern Pacific RR Alfalfa Yard (El Paso) | C183: Dodge Rd between the Railroad yard and North Loop Dr | D183: Truck/Rail | E183: El Paso TX MSA | I183: =IF(B183='2-INTERMODAL FACILITY INPUTS'!E$8,'2-INTERMODAL FACILITY INPUTS'!H$8,IF(B183='2-INTERMODAL FACILITY INPUTS'!E$14,'2-INTERMODAL FACILITY INPUTS'!H$14,0)) -> 0 | J183: $32,694 | K183: 207 | L183: =I183*J183*K183/Selection!O$12 -> 0.0 | M183: 7.1% | N183: 87%
A184: TX | B184: S.P. Houston Intermodal Hub | C184: Lockwood between the Terminal and I-10 | D184: Truck/Rail | E184: Houston TX CSA | I184: =IF(B184='2-INTERMODAL FACILITY INPUTS'!E$8,'2-INTERMODAL FACILITY INPUTS'!H$8,IF(B184='2-INTERMODAL FACILITY INPUTS'!E$14,'2-INTERMODAL FACILITY INPUTS'!H$14,0)) -> 0 | J184: $32,694 | K184: 222 | L184: =I184*J184*K184/Selection!O$12 -> 0.0 | M184: 7.1% | N184: 94%
A185: TX | B185: U.P. Settegast Yard (Houston) | C185: Kirkpatrick Blvd between the Terminal and I-610 | D185: Truck/Rail | E185: Houston TX CSA | I185: =IF(B185='2-INTERMODAL FACILITY INPUTS'!E$8,'2-INTERMODAL FACILITY INPUTS'!H$8,IF(B185='2-INTERMODAL FACILITY INPUTS'!E$14,'2-INTERMODAL FACILITY INPUTS'!H$14,0)) -> 0 | J185: $32,694 | K185: 222 | L185: =I185*J185*K185/Selection!O$12 -> 0.0 | M185: 7.1% | N185: 94%
A186: TX | B186: M.P. GMAC Yard | C186: Hardy Rd between the Terminal and FM-1960 (Hiumble Westfield Rd) | D186: Truck/Rail | E186: Houston TX CSA | I186: =IF(B186='2-INTERMODAL FACILITY INPUTS'!E$8,'2-INTERMODAL FACILITY INPUTS'!H$8,IF(B186='2-INTERMODAL FACILITY INPUTS'!E$14,'2-INTERMODAL FACILITY INPUTS'!H$14,0)) -> 0 | J186: $32,694 | K186: 222 | L186: =I186*J186*K186/Selection!O$12 -> 0.0 | M186: 7.1% | N186: 94%
A187: TX | B187: A.T.S.F. Intermodal Facility | C187: Served by an Existing NHS Route | D187: Truck/Rail | E187: Houston TX CSA | I187: =IF(B187='2-INTERMODAL FACILITY INPUTS'!E$8,'2-INTERMODAL FACILITY INPUTS'!H$8,IF(B187='2-INTERMODAL FACILITY INPUTS'!E$14,'2-INTERMODAL FACILITY INPUTS'!H$14,0)) -> 0 | J187: $32,694 | K187: 222 | L187: =I187*J187*K187/Selection!O$12 -> 0.0 | M187: 7.1% | N187: 94%
A188: TX | B188: S.P. Barbours Cut Intermodal Terminal | C188: Served by an Existing NHS Route | D188: Truck/Rail | E188: Houston TX CSA | I188: =IF(B188='2-INTERMODAL FACILITY INPUTS'!E$8,'2-INTERMODAL FACILITY INPUTS'!H$8,IF(B188='2-INTERMODAL FACILITY INPUTS'!E$14,'2-INTERMODAL FACILITY INPUTS'!H$14,0)) -> 0 | J188: $32,694 | K188: 222 | L188: =I188*J188*K188/Selection!O$12 -> 0.0 | M188: 7.1% | N188: 94%
A189: TX | B189: Union Pacific Intermodal Facility (DFW) | C189: Sam Houston (Forney to UPRR), Forney Rd (Town East to Terminal), Forney Rd (US 80 to Town East), South Parkway (US 80 to Forney) | D189: Truck/Rail | E189: Dallas-Fort Worth TX CSA | I189: =IF(B189='2-INTERMODAL FACILITY INPUTS'!E$8,'2-INTERMODAL FACILITY INPUTS'!H$8,IF(B189='2-INTERMODAL FACILITY INPUTS'!E$14,'2-INTERMODAL FACILITY INPUTS'!H$14,0)) -> 0 | J189: $32,694 | K189: 122 | L189: =I189*J189*K189/Selection!O$12 -> 0.0 | M189: 7.1% | N189: 51%
A190: TX | B190: BNSF - Alliance Intermodal Terminal | C190: Keller Haslet Rd between the Facility and I-35 | D190: Truck/Rail | E190: Dallas-Fort Worth TX CSA | H190: Denton | I190: =IF(B190='2-INTERMODAL FACILITY INPUTS'!E$8,'2-INTERMODAL FACILITY INPUTS'!H$8,IF(B190='2-INTERMODAL FACILITY INPUTS'!E$14,'2-INTERMODAL FACILITY INPUTS'!H$14,0)) -> 600000 | J190: $32,694 | K190: 122 | L190: =I190*J190*K190/Selection!O$12 -> 23.9 | M190: 7.1% | N190: 51%
A191: TX | B191: Union Pacific Intermodal Center (Arlington) | C191: Served by an Existing NHS Route | D191: Truck/Rail | E191: Dallas-Fort Worth TX CSA | I191: =IF(B191='2-INTERMODAL FACILITY INPUTS'!E$8,'2-INTERMODAL FACILITY INPUTS'!H$8,IF(B191='2-INTERMODAL FACILITY INPUTS'!E$14,'2-INTERMODAL FACILITY INPUTS'!H$14,0)) -> 0 | J191: $32,694 | K191: 122 | L191: =I191*J191*K191/Selection!O$12 -> 0.0 | M191: 7.1% | N191: 51%
A192: UT | B192: Sharp Truck/Rail Facility | C192: Terminal to SR 78 to SR 28 | D192: Truck/Rail | E192: Remainder of Utah | I192: =IF(B192='2-INTERMODAL FACILITY INPUTS'!E$8,'2-INTERMODAL FACILITY INPUTS'!H$8,IF(B192='2-INTERMODAL FACILITY INPUTS'!E$14,'2-INTERMODAL FACILITY INPUTS'!H$14,0)) -> 0 | J192: $60,952 | K192: 38 | L192: =I192*J192*K192/Selection!O$12 -> 0.0 | M192: 13.3% | N192: 16%
A193: UT | B193: Beck Street Truck/Rail Facility | C193: Terminal to SR 89 to SR 268 to I-15 | D193: Truck/Rail | E193: Salt Lake City UT CSA | I193: =IF(B193='2-INTERMODAL FACILITY INPUTS'!E$8,'2-INTERMODAL FACILITY INPUTS'!H$8,IF(B193='2-INTERMODAL FACILITY INPUTS'!E$14,'2-INTERMODAL FACILITY INPUTS'!H$14,0)) -> 0 | J193: $60,952 | K193: 99 | L193: =I193*J193*K193/Selection!O$12 -> 0.0 | M193: 13.3% | N193: 42%
A194: VT | B194: Vermont Railway Yard, Burlington | C194: Battery St, Main St, US 2 between the Rail Yard and I-89 | D194: Truck/Rail | E194: Vermont | I194: =IF(B194='2-INTERMODAL FACILITY INPUTS'!E$8,'2-INTERMODAL FACILITY INPUTS'!H$8,IF(B194='2-INTERMODAL FACILITY INPUTS'!E$14,'2-INTERMODAL FACILITY INPUTS'!H$14,0)) -> 0 | J194: $455,396 | K194: 172 | L194: =I194*J194*K194/Selection!O$12 -> 0.0 | M194: 99.5% | N194: 73%
A195: VA | B195: Alexandria Intermodal - Norfolk Southern | C195: Metro Rd (Entrance to Van Dorn St), Van Dorn St (Metro Rd to I-95). | D195: Truck/Rail | E195: Washington DC-MD-VA-WV CSA (VA Part) | I195: =IF(B195='2-INTERMODAL FACILITY INPUTS'!E$8,'2-INTERMODAL FACILITY INPUTS'!H$8,IF(B195='2-INTERMODAL FACILITY INPUTS'!E$14,'2-INTERMODAL FACILITY INPUTS'!H$14,0)) -> 0 | J195: $68,631 | K195: 80 | L195: =I195*J195*K195/Selection!O$12 -> 0.0 | M195: 15.0% | N195: 34%
A196: VA | B196: Chesapeake Intermodal - Norfolk Southern | C196: Atlantic Ave. (Entrance to S.R.168), S.R. 168 (Atlantic to I-64) | D196: Truck/Rail | E196: Norfolk VA-NC MSA (VA Part) | I196: =IF(B196='2-INTERMODAL FACILITY INPUTS'!E$8,'2-INTERMODAL FACILITY INPUTS'!H$8,IF(B196='2-INTERMODAL FACILITY INPUTS'!E$14,'2-INTERMODAL FACILITY INPUTS'!H$14,0)) -> 0 | J196: $68,631 | K196: 105 | L196: =I196*J196*K196/Selection!O$12 -> 0.0 | M196: 15.0% | N196: 44%
A197: VA | B197: Virginia Inland Port | C197: Rt. 340 (Entrance to I-66) | D197: Truck/Rail | E197: Washington DC-MD-VA-WV CSA (VA Part) | I197: =IF(B197='2-INTERMODAL FACILITY INPUTS'!E$8,'2-INTERMODAL FACILITY INPUTS'!H$8,IF(B197='2-INTERMODAL FACILITY INPUTS'!E$14,'2-INTERMODAL FACILITY INPUTS'!H$14,0)) -> 0 | J197: $68,631 | K197: 80 | L197: =I197*J197*K197/Selection!O$12 -> 0.0 | M197: 15.0% | N197: 34%
A198: WA | B198: Union Pacific ARGO Yard, Seattle | C198: Served by an Existing NHS Route | D198: Truck/Rail | E198: Seattle WA CSA | I198: =IF(B198='2-INTERMODAL FACILITY INPUTS'!E$8,'2-INTERMODAL FACILITY INPUTS'!H$8,IF(B198='2-INTERMODAL FACILITY INPUTS'!E$14,'2-INTERMODAL FACILITY INPUTS'!H$14,0)) -> 0 | J198: $45,046 | K198: 163 | L198: =I198*J198*K198/Selection!O$12 -> 0.0 | M198: 9.8% | N198: 69%
A199: WA | B199: Burlington Northern Interbay Yd, Seattle | C199: Served by an Existing NHS Route | D199: Truck/Rail | E199: Seattle WA CSA | I199: =IF(B199='2-INTERMODAL FACILITY INPUTS'!E$8,'2-INTERMODAL FACILITY INPUTS'!H$8,IF(B199='2-INTERMODAL FACILITY INPUTS'!E$14,'2-INTERMODAL FACILITY INPUTS'!H$14,0)) -> 0 | J199: $45,046 | K199: 163 | L199: =I199*J199*K199/Selection!O$12 -> 0.0 | M199: 9.8% | N199: 69%
A200: WA | B200: BN-UP Port of Tacoma Yards | C200: Served by an Existing NHS Route | D200: Truck/Rail | E200: Seattle WA CSA | I200: =IF(B200='2-INTERMODAL FACILITY INPUTS'!E$8,'2-INTERMODAL FACILITY INPUTS'!H$8,IF(B200='2-INTERMODAL FACILITY INPUTS'!E$14,'2-INTERMODAL FACILITY INPUTS'!H$14,0)) -> 0 | J200: $45,046 | K200: 163 | L200: =I200*J200*K200/Selection!O$12 -> 0.0 | M200: 9.8% | N200: 69%
... 5 more rows

Sheet FAF Value per ton (hidden)
D1: Outbound | G1: Inbound | J1: Total
A2: State | B2: State Abbreviation | C2: DMS_MODE | D2: Total KTons in 2010 | E2: Total M$ in 2010 | F2: Value per ton | G2: Total KTons in 2010 | H2: Total M$ in 2010 | I2: Value Per ton | J2: Total KTons in 2010 | K2: Total M$ in 2010 | L2: Value Per ton
A3: Alabama | B3: AL | C3: Air (include truck-air) | D3: 73 | E3: $4,781 | F3: =(E3*1000000)/(D3*1000) -> $65,817 | G3: 71 | H3: $6,464 | I3: =(H3*1000000)/(G3*1000) -> $91,537 | J3: =D3+G3 -> 143 | K3: =E3+H3 -> $11,245 | L3: =(K3*1000000)/(J3*1000) -> $78,494
A4: Alaska | B4: AK | C4: Air (include truck-air) | D4: 2159 | E4: $172,797 | F4: =(E4*1000000)/(D4*1000) -> $80,021 | G4: 1530 | H4: $119,378 | I4: =(H4*1000000)/(G4*1000) -> $78,000 | J4: =D4+G4 -> 3690 | K4: =E4+H4 -> $292,175 | L4: =(K4*1000000)/(J4*1000) -> $79,182
A5: Arizona | B5: AZ | C5: Air (include truck-air) | D5: 94 | E5: $6,133 | F5: $65,279 | G5: 54 | H5: $8,582 | I5: $157,784 | J5: 148 | K5: $14,715 | L5: $99,194
A6: Arkansas | B6: AR | C6: Air (include truck-air) | D6: 5 | E6: $921 | F6: $173,329 | G6: 12 | H6: $1,651 | I6: $133,613 | J6: 18 | K6: $2,572 | L6: $145,559
A7: California | B7: CA | C7: Air (include truck-air) | D7: 1793 | E7: $146,643 | F7: $81,807 | G7: 1692 | H7: $152,831 | I7: $90,311 | J7: 3485 | K7: $299,474 | L7: $85,937
A8: Colorado | B8: CO | C8: Air (include truck-air) | D8: 31 | E8: $7,763 | F8: $253,404 | G8: 40 | H8: $5,704 | I8: $141,725 | J8: 71 | K8: $13,467 | L8: $189,992
A9: Connecticut | B9: CT | C9: Air (include truck-air) | D9: 53 | E9: $4,983 | F9: $94,799 | G9: 54 | H9: $3,633 | I9: $67,895 | J9: 106 | K9: $8,615 | L9: $81,228
A10: Delaware | B10: DE | C10: Air (include truck-air) | D10: 36 | E10: $4,462 | F10: $123,873 | G10: 39 | H10: $4,170 | I10: $107,331 | J10: 75 | K10: $8,633 | L10: $115,290
A11: Washington DC | B11: DC | C11: Air (include truck-air) | D11: 0 | E11: $4 | F11: $75,625 | G11: 3 | H11: $355 | I11: $128,997 | J11: 3 | K11: $359 | L11: $127,929
A12: Florida | B12: FL | C12: Air (include truck-air) | D12: 1734 | E12: $106,452 | F12: $61,393 | G12: 1817 | H12: $111,925 | I12: $61,600 | J12: 3551 | K12: $218,377 | L12: $61,499
A13: Georgia | B13: GA | C13: Air (include truck-air) | D13: 325 | E13: $27,654 | F13: $85,166 | G13: 390 | H13: $31,942 | I13: $81,914 | J13: 715 | K13: $59,596 | L13: $83,392
A14: Hawaii | B14: HI | C14: Air (include truck-air) | D14: 318 | E14: $12,082 | F14: $37,974 | G14: 448 | H14: $15,117 | I14: $33,708 | J14: 767 | K14: $27,199 | L14: $35,478
A15: Idaho | B15: ID | C15: Air (include truck-air) | D15: 5 | E15: $1,126 | F15: $247,647 | G15: 8 | H15: $950 | I15: $123,882 | J15: 12 | K15: $2,076 | L15: $169,945
A16: Illinois | B16: IL | C16: Air (include truck-air) | D16: 825 | E16: $60,049 | F16: $72,750 | G16: 934 | H16: $74,231 | I16: $79,467 | J16: 1760 | K16: $134,280 | L16: $76,316
A17: Indiana | B17: IN | C17: Air (include truck-air) | D17: 86 | E17: $8,296 | F17: $96,595 | G17: 78 | H17: $8,631 | I17: $110,444 | J17: 164 | K17: $16,926 | L17: $103,193
A18: Iowa | B18: IA | C18: Air (include truck-air) | D18: 10 | E18: $589 | F18: $59,069 | G18: 7 | H18: $545 | I18: $82,324 | J18: 17 | K18: $1,134 | L18: $68,340
A19: Kansas | B19: KS | C19: Air (include truck-air) | D19: 46 | E19: $7,364 | F19: $160,558 | G19: 9 | H19: $1,262 | I19: $139,869 | J19: 55 | K19: $8,626 | L19: $157,157
A20: Kentucky | B20: KY | C20: Air (include truck-air) | D20: 212 | E20: $14,524 | F20: $68,664 | G20: 132 | H20: $12,824 | I20: $97,485 | J20: 343 | K20: $27,348 | L20: $79,716
A21: Louisiana | B21: LA | C21: Air (include truck-air) | D21: 58 | E21: $7,064 | F21: $120,753 | G21: 89 | H21: $8,446 | I21: $94,572 | J21: 148 | K21: $15,510 | L21: $104,934
A22: Maine | B22: ME | C22: Air (include truck-air) | D22: 5 | E22: $464 | F22: $84,718 | G22: 8 | H22: $514 | I22: $67,915 | J22: 13 | K22: $978 | L22: $74,972
A23: Maryland | B23: MD | C23: Air (include truck-air) | D23: 12 | E23: $964 | F23: $79,014 | G23: 19 | H23: $1,843 | I23: $94,587 | J23: 32 | K23: $2,806 | L23: $88,592
A24: Massachusetts | B24: MA | C24: Air (include truck-air) | D24: 133 | E24: $17,308 | F24: $130,300 | G24: 158 | H24: $16,511 | I24: $104,750 | J24: 290 | K24: $33,819 | L24: $116,435
A25: Michigan | B25: MI | C25: Air (include truck-air) | D25: 99 | E25: $5,228 | F25: $52,861 | G25: 122 | H25: $6,323 | I25: $51,900 | J25: 221 | K25: $11,552 | L25: $52,330
A26: Minnesota | B26: MN | C26: Air (include truck-air) | D26: 55 | E26: $5,637 | F26: $103,324 | G26: 52 | H26: $4,996 | I26: $96,411 | J26: 106 | K26: $10,633 | L26: $99,956
A27: Mississippi | B27: MS | C27: Air (include truck-air) | D27: 3 | E27: $354 | F27: $124,401 | G27: 8 | H27: $1,327 | I27: $173,496 | J27: 10 | K27: $1,681 | L27: $160,193
A28: Missouri | B28: MO | C28: Air (include truck-air) | D28: 27 | E28: $2,455 | F28: $89,779 | G28: 20 | H28: $1,197 | I28: $59,659 | J28: 47 | K28: $3,651 | L28: $77,032
A29: Montana | B29: MT | C29: Air (include truck-air) | D29: 2 | E29: $112 | F29: $73,230 | G29: 5 | H29: $452 | I29: $94,715 | J29: 6 | K29: $564 | L29: $89,497
A30: Nebraska | B30: NE | C30: Air (include truck-air) | D30: 11 | E30: $144 | F30: $13,058 | G30: 9 | H30: $959 | I30: $104,070 | J30: 20 | K30: $1,103 | L30: $54,441
A31: Nevada | B31: NV | C31: Air (include truck-air) | D31: 31 | E31: $1,316 | F31: $42,882 | G31: 110 | H31: $2,133 | I31: $19,440 | J31: 140 | K31: $3,449 | L31: $24,564
A32: New Hampshire | B32: NH | C32: Air (include truck-air) | D32: 12 | E32: $3,144 | F32: $272,420 | G32: 5 | H32: $550 | I32: $113,274 | J32: 16 | K32: $3,694 | L32: $225,288
A33: New Jersey | B33: NJ | C33: Air (include truck-air) | D33: 507 | E33: $55,280 | F33: $109,036 | G33: 486 | H33: $52,234 | I33: $107,575 | J33: 993 | K33: $107,515 | L33: $108,321
A34: New Mexico | B34: NM | C34: Air (include truck-air) | D34: 1 | E34: $354 | F34: $267,873 | G34: 4 | H34: $487 | I34: $110,337 | J34: 6 | K34: $842 | L34: $146,651
A35: New York | B35: NY | C35: Air (include truck-air) | D35: 1043 | E35: $120,594 | F35: $115,651 | G35: 1158 | H35: $127,936 | I35: $110,498 | J35: 2201 | K35: $248,530 | L35: $112,940
A36: North Carolina | B36: NC | C36: Air (include truck-air) | D36: 91 | E36: $7,216 | F36: $79,416 | G36: 100 | H36: $7,341 | I36: $73,742 | J36: 190 | K36: $14,556 | L36: $76,450
A37: North Dakota | B37: ND | C37: Air (include truck-air) | D37: 1 | E37: $24 | F37: $31,043 | G37: 14 | H37: $214 | I37: $15,298 | J37: 15 | K37: $239 | L37: $16,124
A38: Ohio | B38: OH | C38: Air (include truck-air) | D38: 150 | E38: $12,175 | F38: $81,272 | G38: 176 | H38: $17,053 | I38: $96,856 | J38: 326 | K38: $29,228 | L38: $89,692
A39: Oklahoma | B39: OK | C39: Air (include truck-air) | D39: 15 | E39: $531 | F39: $35,655 | G39: 9 | H39: $1,104 | I39: $126,023 | J39: 24 | K39: $1,635 | L39: $69,139
A40: Oregon | B40: OR | C40: Air (include truck-air) | D40: 11 | E40: $1,968 | F40: $175,769 | G40: 88 | H40: $4,669 | I40: $53,015 | J40: 99 | K40: $6,636 | L40: $66,859
A41: Pennsylvania | B41: PA | C41: Air (include truck-air) | D41: 217 | E41: $22,200 | F41: $102,230 | G41: 219 | H41: $23,164 | I41: $105,910 | J41: 436 | K41: $45,364 | L41: $104,076
A42: Rhode Island | B42: RI | C42: Air (include truck-air) | D42: 5 | E42: $228 | F42: $44,846 | G42: 6 | H42: $200 | I42: $31,223 | J42: 11 | K42: $428 | L42: $37,240
A43: South Carolina | B43: SC | C43: Air (include truck-air) | D43: 65 | E43: $2,004 | F43: $30,644 | G43: 25 | H43: $2,563 | I43: $103,392 | J43: 90 | K43: $4,567 | L43: $50,644
A44: South Dakota | B44: SD | C44: Air (include truck-air) | D44: 0 | E44: $40 | F44: $88,860 | G44: 1 | H44: $111 | I44: $158,200 | J44: 1 | K44: $151 | L44: $131,230
A45: Tennessee | B45: TN | C45: Air (include truck-air) | D45: 306 | E45: $43,556 | F45: $142,259 | G45: 343 | H45: $40,391 | I45: $117,776 | J45: 649 | K45: $83,947 | L45: $129,324
A46: Texas | B46: TX | C46: Air (include truck-air) | D46: 632 | E46: $57,464 | F46: $90,968 | G46: 665 | H46: $70,652 | I46: $106,275 | J46: 1296 | K46: $128,116 | L46: $98,817
A47: Utah | B47: UT | C47: Air (include truck-air) | D47: 18 | E47: $1,202 | F47: $66,621 | G47: 29 | H47: $1,007 | I47: $34,885 | J47: 47 | K47: $2,209 | L47: $47,090
A48: Vermont | B48: VT | C48: Air (include truck-air) | D48: 1 | E48: $315 | F48: $299,130 | G48: 3 | H48: $152 | I48: $60,423 | J48: 4 | K48: $467 | L48: $130,997
A49: Virginia | B49: VA | C49: Air (include truck-air) | D49: 255 | E49: $22,767 | F49: $89,226 | G49: 259 | H49: $25,747 | I49: $99,576 | J49: 514 | K49: $48,514 | L49: $94,436
A50: Washington | B50: WA | C50: Air (include truck-air) | D50: 146 | E50: $17,790 | F50: $121,547 | G50: 213 | H50: $16,182 | I50: $75,957 | J50: 359 | K50: $33,972 | L50: $94,522
A51: West Virginia | B51: WV | C51: Air (include truck-air) | D51: 1 | E51: $153 | F51: $133,201 | G51: 3 | H51: $531 | I51: $184,334 | J51: 4 | K51: $684 | L51: $169,751
A52: Wisconsin | B52: WI | C52: Air (include truck-air) | D52: 30 | E52: $1,871 | F52: $61,964 | G52: 25 | H52: $1,271 | I52: $51,079 | J52: 55 | K52: $3,141 | L52: $57,046
A53: Wyoming | B53: WY | C53: Air (include truck-air) | D53: 0 | E53: $25 | F53: $179,606 | G53: 2 | H53: $112 | I53: $57,458 | J53: 2 | K53: $136 | L53: $65,497
A54: Alabama | B54: AL | C54: Rail | D54: 30744 | E54: $10,454 | F54: $340 | G54: 44413 | H54: $8,094 | I54: $182 | J54: 75157 | K54: $18,548 | L54: $247
A55: Alaska | B55: AK | C55: Rail | D55: 4576 | E55: $1,876 | F55: $410 | G55: 4530 | H55: $1,862 | I55: $411 | J55: 9106 | K55: $3,738 | L55: $411
A56: Arizona | B56: AZ | C56: Rail | D56: 12743 | E56: $8,019 | F56: $629 | G56: 37499 | H56: $6,418 | I56: $171 | J56: 50242 | K56: $14,436 | L56: $287
A57: Arkansas | B57: AR | C57: Rail | D57: 12288 | E57: $3,450 | F57: $281 | G57: 32416 | H57: $3,490 | I57: $108 | J57: 44703 | K57: $6,940 | L57: $155
A58: California | B58: CA | C58: Rail | D58: 21430 | E58: $17,989 | F58: $839 | G58: 51937 | H58: $43,268 | I58: $833 | J58: 73367 | K58: $61,258 | L58: $835
A59: Colorado | B59: CO | C59: Rail | D59: 49728 | E59: $2,795 | F59: $56 | G59: 33708 | H59: $3,796 | I59: $113 | J59: 83436 | K59: $6,591 | L59: $79
A60: Connecticut | B60: CT | C60: Rail | D60: 1725 | E60: $1,281 | F60: $743 | G60: 1276 | H60: $924 | I60: $724 | J60: 3001 | K60: $2,205 | L60: $735
A61: Delaware | B61: DE | C61: Rail | D61: 654 | E61: $890 | F61: $1,362 | G61: 6421 | H61: $1,197 | I61: $186 | J61: 7075 | K61: $2,088 | L61: $295
A62: Washington DC | B62: DC | C62: Rail | D62: 4 | E62: $2 | F62: $587 | G62: 5 | H62: $1 | I62: $170 | J62: 9 | K62: $3 | L62: $368
A63: Florida | B63: FL | C63: Rail | D63: 21893 | E63: $4,936 | F63: $225 | G63: 49450 | H63: $11,713 | I63: $237 | J63: 71344 | K63: $16,649 | L63: $233
A64: Georgia | B64: GA | C64: Rail | D64: 18047 | E64: $5,774 | F64: $320 | G64: 83874 | H64: $16,652 | I64: $199 | J64: 101922 | K64: $22,425 | L64: $220
A65: Idaho | B65: ID | C65: Rail | D65: 12048 | E65: $3,338 | F65: $277 | G65: 13457 | H65: $1,535 | I65: $114 | J65: 25505 | K65: $4,873 | L65: $191
A66: Illinois | B66: IL | C66: Rail | D66: 70895 | E66: $22,108 | F66: $312 | G66: 115003 | H66: $23,335 | I66: $203 | J66: 185898 | K66: $45,442 | L66: $244
A67: Indiana | B67: IN | C67: Rail | D67: 50171 | E67: $16,285 | F67: $325 | G67: 61749 | H67: $11,942 | I67: $193 | J67: 111920 | K67: $28,227 | L67: $252
A68: Iowa | B68: IA | C68: Rail | D68: 29675 | E68: $9,832 | F68: =(E68*1000000)/(D68*1000) -> $331 | G68: 41194 | H68: $5,981 | I68: =(H68*1000000)/(G68*1000) -> $145 | J68: =D68+G68 -> 70868 | K68: =E68+H68 -> $15,813 | L68: =(K68*1000000)/(J68*1000) -> $223
A69: Kansas | B69: KS | C69: Rail | D69: 23094 | E69: $7,425 | F69: $321 | G69: 44683 | H69: $3,458 | I69: $77 | J69: 67777 | K69: $10,882 | L69: $161
A70: Kentucky | B70: KY | C70: Rail | D70: 125543 | E70: $19,201 | F70: $153 | G70: 40417 | H70: $7,537 | I70: $186 | J70: 165960 | K70: $26,738 | L70: $161
A71: Louisiana | B71: LA | C71: Rail | D71: 42529 | E71: $30,608 | F71: $720 | G71: 37788 | H71: $11,700 | I71: $310 | J71: 80317 | K71: $42,308 | L71: $527
A72: Maine | B72: ME | C72: Rail | D72: 3216 | E72: $1,645 | F72: $512 | G72: 3948 | H72: $1,387 | I72: $351 | J72: 7164 | K72: $3,033 | L72: $423
A73: Maryland | B73: MD | C73: Rail | D73: 2883 | E73: $1,573 | F73: $546 | G73: 20878 | H73: $5,277 | I73: $253 | J73: 23761 | K73: $6,850 | L73: $288
A74: Massachusetts | B74: MA | C74: Rail | D74: 1856 | E74: $492 | F74: $265 | G74: 3965 | H74: $4,339 | I74: $1,094 | J74: 5821 | K74: $4,830 | L74: $830
A75: Michigan | B75: MI | C75: Rail | D75: 40373 | E75: $51,145 | F75: $1,267 | G75: 76051 | H75: $62,176 | I75: $818 | J75: 116424 | K75: $113,321 | L75: $973
A76: Minnesota | B76: MN | C76: Rail | D76: 68216 | E76: $14,932 | F76: $219 | G76: 47970 | H76: $8,810 | I76: $184 | J76: 116186 | K76: $23,741 | L76: $204
A77: Mississippi | B77: MS | C77: Rail | D77: 7415 | E77: $3,495 | F77: $471 | G77: 17598 | H77: $5,075 | I77: $288 | J77: 25013 | K77: $8,570 | L77: $343
A78: Missouri | B78: MO | C78: Rail | D78: 17477 | E78: $5,941 | F78: $340 | G78: 61183 | H78: $7,887 | I78: $129 | J78: 78660 | K78: $13,828 | L78: $176
A79: Montana | B79: MT | C79: Rail | D79: 40508 | E79: $3,240 | F79: $80 | G79: 5984 | H79: $933 | I79: $156 | J79: 46492 | K79: $4,173 | L79: $90
A80: Nebraska | B80: NE | C80: Rail | D80: 23029 | E80: $6,113 | F80: $265 | G80: 21256 | H80: $2,399 | I80: $113 | J80: 44286 | K80: $8,512 | L80: $192
A81: Nevada | B81: NV | C81: Rail | D81: 3142 | E81: $234 | F81: $74 | G81: 7912 | H81: $1,314 | I81: $166 | J81: 11054 | K81: $1,548 | L81: $140
A82: New Hampshire | B82: NH | C82: Rail | D82: 772 | E82: $361 | F82: $468 | G82: 688 | H82: $313 | I82: $455 | J82: 1460 | K82: $674 | L82: $462
A83: New Jersey | B83: NJ | C83: Rail | D83: 9292 | E83: $3,416 | F83: $368 | G83: 17917 | H83: $12,963 | I83: $724 | J83: 27209 | K83: $16,379 | L83: $602
A84: New Mexico | B84: NM | C84: Rail | D84: 22076 | E84: $1,267 | F84: $57 | G84: 4731 | H84: $713 | I84: $151 | J84: 26807 | K84: $1,980 | L84: $74
A85: New York | B85: NY | C85: Rail | D85: 18402 | E85: $11,425 | F85: $621 | G85: 20360 | H85: $10,360 | I85: $509 | J85: 38762 | K85: $21,785 | L85: $562
A86: North Carolina | B86: NC | C86: Rail | D86: 9517 | E86: $4,217 | F86: $443 | G86: 62093 | H86: $9,429 | I86: $152 | J86: 71610 | K86: $13,646 | L86: $191
A87: North Dakota | B87: ND | C87: Rail | D87: 35812 | E87: $9,755 | F87: $272 | G87: 14020 | H87: $4,372 | I87: $312 | J87: 49833 | K87: $14,127 | L87: $283
A88: Ohio | B88: OH | C88: Rail | D88: 53489 | E88: $18,476 | F88: $345 | G88: 84175 | H88: $17,027 | I88: $202 | J88: 137664 | K88: $35,503 | L88: $258
A89: Oklahoma | B89: OK | C89: Rail | D89: 16140 | E89: $4,261 | F89: $264 | G89: 31998 | H89: $3,093 | I89: $97 | J89: 48138 | K89: $7,354 | L89: $153
A90: Oregon | B90: OR | C90: Rail | D90: 6068 | E90: $2,632 | F90: $434 | G90: 22193 | H90: $7,001 | I90: $315 | J90: 28261 | K90: $9,633 | L90: $341
A91: Pennsylvania | B91: PA | C91: Rail | D91: 54837 | E91: $14,528 | F91: $265 | G91: 59404 | H91: $13,130 | I91: $221 | J91: 114241 | K91: $27,658 | L91: $242
A92: Rhode Island | B92: RI | C92: Rail | D92: 110 | E92: $97 | F92: $888 | G92: 177 | H92: $138 | I92: $777 | J92: 287 | K92: $235 | L92: $820
A93: South Carolina | B93: SC | C93: Rail | D93: 8741 | E93: $5,551 | F93: $635 | G93: 41886 | H93: $10,420 | I93: $249 | J93: 50628 | K93: $15,971 | L93: $315
A94: South Dakota | B94: SD | C94: Rail | D94: 7821 | E94: $2,081 | F94: $266 | G94: 5700 | H94: $677 | I94: $119 | J94: 13521 | K94: $2,759 | L94: $204
A95: Tennessee | B95: TN | C95: Rail | D95: 11002 | E95: $4,956 | F95: $450 | G95: 30072 | H95: $10,518 | I95: $350 | J95: 41074 | K95: $15,474 | L95: $377
A96: Texas | B96: TX | C96: Rail | D96: 159591 | E96: $106,375 | F96: $667 | G96: 264168 | H96: $82,752 | I96: $313 | J96: 423760 | K96: $189,127 | L96: $446
A97: Utah | B97: UT | C97: Rail | D97: 32189 | E97: $8,961 | F97: $278 | G97: 15149 | H97: $2,636 | I97: $174 | J97: 47338 | K97: $11,597 | L97: $245
A98: Vermont | B98: VT | C98: Rail | D98: 1830 | E98: $587 | F98: $321 | G98: 1941 | H98: $831 | I98: $428 | J98: 3771 | K98: $1,419 | L98: $376
A99: Virginia | B99: VA | C99: Rail | D99: 70553 | E99: $5,910 | F99: $84 | G99: 92032 | H99: $10,186 | I99: $111 | J99: 162584 | K99: $16,096 | L99: $99
A100: Washington | B100: WA | C100: Rail | D100: 14647 | E100: $6,293 | F100: $430 | G100: 40685 | H100: $11,729 | I100: $288 | J100: 55332 | K100: $18,022 | L100: $326
A101: West Virginia | B101: WV | C101: Rail | D101: 121691 | E101: $7,713 | F101: $63 | G101: 21610 | H101: $4,750 | I101: $220 | J101: 143301 | K101: $12,463 | L101: $87
A102: Wisconsin | B102: WI | C102: Rail | D102: 17109 | E102: $4,000 | F102: $234 | G102: 62800 | H102: $7,997 | I102: $127 | J102: 79909 | K102: $11,997 | L102: $150
A103: Wyoming | B103: WY | C103: Rail | D103: 482167 | E103: $6,280 | F103: $13 | G103: 29395 | H103: $681 | I103: $23 | J103: 511561 | K103: $6,961 | L103: $14
A104: Alabama | B104: AL | C104: Water | D104: 2149 | E104: $978 | F104: $455 | G104: 10383 | H104: $3,845 | I104: $370 | J104: 12532 | K104: $4,823 | L104: $385
A105: Alaska | B105: AK | C105: Water | D105: 38058 | E105: $17,514 | F105: $460 | G105: 5463 | H105: $3,780 | I105: $692 | J105: 43521 | K105: $21,295 | L105: $489
A106: Arkansas | B106: AR | C106: Water | D106: 3600 | E106: $911 | F106: $253 | G106: 3312 | H106: $1,080 | I106: $326 | J106: 6912 | K106: $1,991 | L106: $288
A107: California | B107: CA | C107: Water | D107: 15268 | E107: $6,899 | F107: $452 | G107: 29003 | H107: $13,030 | I107: $449 | J107: 44271 | K107: $19,929 | L107: $450
A108: Connecticut | B108: CT | C108: Water | D108: 0 | E108: $0 | F108: $0 | G108: 881 | H108: $33 | I108: $38 | J108: 881 | K108: $33 | L108: $38
A109: Delaware | B109: DE | C109: Water | D109: 3719 | E109: $2,928 | F109: $787 | G109: 1174 | H109: $702 | I109: $598 | J109: 4893 | K109: $3,630 | L109: $742
A110: Washington DC | B110: DC | C110: Water | D110: 1 | E110: $0 | F110: $144 | G110: 11 | H110: $4 | I110: $361 | J110: 12 | K110: $4 | L110: $335
A111: Florida | B111: FL | C111: Water | D111: 1032 | E111: $315 | F111: $305 | G111: 16978 | H111: $8,228 | I111: $485 | J111: 18010 | K111: $8,543 | L111: $474
A112: Georgia | B112: GA | C112: Water | D112: 30 | E112: $12 | F112: $418 | G112: 2158 | H112: $1,705 | I112: $790 | J112: 2188 | K112: $1,718 | L112: $785
A113: Hawaii | B113: HI | C113: Water | D113: 3643 | E113: $2,323 | F113: $638 | G113: 4130 | H113: $2,831 | I113: $685 | J113: 7773 | K113: $5,154 | L113: $663
A114: Idaho | B114: ID | C114: Water | D114: 33 | E114: $12 | F114: $361 | G114: 14 | H114: $5 | I114: $361 | J114: 47 | K114: $17 | L114: $361
A115: Illinois | B115: IL | C115: Water | D115: 63609 | E115: $7,848 | F115: $123 | G115: 24437 | H115: $2,677 | I115: $110 | J115: 88047 | K115: $10,525 | L115: $120
A116: Indiana | B116: IN | C116: Water | D116: 4382 | E116: $281 | F116: $64 | G116: 5214 | H116: $851 | I116: $163 | J116: 9596 | K116: $1,132 | L116: $118
A117: Iowa | B117: IA | C117: Water | D117: 5910 | E117: $1,113 | F117: $188 | G117: 960 | H117: $198 | I117: $206 | J117: 6870 | K117: $1,311 | L117: $191
A118: Kansas | B118: KS | C118: Water | D118: 73 | E118: $29 | F118: $404 | G118: 129 | H118: $46 | I118: $361 | J118: 201 | K118: $76 | L118: $377
A119: Kentucky | B119: KY | C119: Water | D119: 37930 | E119: $2,648 | F119: $70 | G119: 10518 | H119: $2,070 | I119: $197 | J119: 48448 | K119: $4,718 | L119: $97
A120: Louisiana | B120: LA | C120: Water | D120: 167929 | E120: $71,947 | F120: $428 | G120: 230253 | H120: $68,163 | I120: $296 | J120: 398182 | K120: $140,110 | L120: $352
A121: Maine | B121: ME | C121: Water | D121: 10 | E121: $9 | F121: $824 | G121: 15 | H121: $10 | I121: $688 | J121: 25 | K121: $19 | L121: $744
A122: Maryland | B122: MD | C122: Water | D122: 161 | E122: $11 | F122: $68 | G122: 81 | H122: $25 | I122: $315 | J122: 242 | K122: $36 | L122: $150
A123: Massachusetts | B123: MA | C123: Water | D123: 19 | E123: $7 | F123: $337 | G123: 108 | H123: $74 | I123: $681 | J123: 127 | K123: $80 | L123: $629
A124: Michigan | B124: MI | C124: Water | D124: 19629 | E124: $443 | F124: $23 | G124: 8050 | H124: $479 | I124: $59 | J124: 27679 | K124: $922 | L124: $33
A125: Minnesota | B125: MN | C125: Water | D125: 19305 | E125: $2,843 | F125: $147 | G125: 2118 | H125: $104 | I125: $49 | J125: 21423 | K125: $2,947 | L125: $138
A126: Mississippi | B126: MS | C126: Water | D126: 16407 | E126: $4,983 | F126: $304 | G126: 5104 | H126: $1,484 | I126: $291 | J126: 21510 | K126: $6,466 | L126: $301
A127: Missouri | B127: MO | C127: Water | D127: 32845 | E127: $3,497 | F127: $106 | G127: 4804 | H127: $545 | I127: $113 | J127: 37649 | K127: $4,041 | L127: $107
A128: Nebraska | B128: NE | C128: Water | D128: 3 | E128: $1 | F128: $447 | G128: 61 | H128: $22 | I128: $361 | J128: 64 | K128: $23 | L128: $364
A129: New Hampshire | B129: NH | C129: Water | D129: 5 | E129: $2 | F129: $361 | G129: 689 | H129: $369 | I129: $535 | J129: 694 | K129: $371 | L129: $534
A130: New Jersey | B130: NJ | C130: Water | D130: 30294 | E130: $14,244 | F130: $470 | G130: 27480 | H130: $14,533 | I130: $529 | J130: 57774 | K130: $28,777 | L130: $498
A131: New York | B131: NY | C131: Water | D131: 740 | E131: $161 | F131: $217 | G131: 8940 | H131: $3,100 | I131: $347 | J131: 9680 | K131: $3,261 | L131: $337
A132: North Carolina | B132: NC | C132: Water | D132: 1 | E132: $35 | F132: =(E132*1000000)/(D132*1000) -> $37,996 | G132: 43 | H132: $16 | I132: =(H132*1000000)/(G132*1000) -> $361 | J132: =D132+G132 -> 44 | K132: =E132+H132 -> $51 | L132: =(K132*1000000)/(J132*1000) -> $1,143
A133: Ohio | B133: OH | C133: Water | D133: 8164 | E133: $656 | F133: $80 | G133: 37933 | H133: $2,598 | I133: $68 | J133: 46097 | K133: $3,254 | L133: $71
A134: Oklahoma | B134: OK | C134: Water | D134: 115 | E134: $43 | F134: $378 | G134: 1326 | H134: $534 | I134: $403 | J134: 1440 | K134: $578 | L134: $401
A135: Oregon | B135: OR | C135: Water | D135: 2638 | E135: $634 | F135: $240 | G135: 3862 | H135: $871 | I135: $226 | J135: 6499 | K135: $1,505 | L135: $232
A136: Pennsylvania | B136: PA | C136: Water | D136: 8583 | E136: $4,120 | F136: $480 | G136: 10445 | H136: $5,487 | I136: $525 | J136: 19028 | K136: $9,606 | L136: $505
A137: Rhode Island | B137: RI | C137: Water | D137: 0 | E137: $0 | F137: $0 | G137: 545 | H137: $405 | I137: $743 | J137: 546 | K137: $405 | L137: $743
A138: South Carolina | B138: SC | C138: Water | D138: 14 | E138: $45 | F138: $3,148 | G138: 45 | H138: $16 | I138: $360 | J138: 59 | K138: $61 | L138: $1,035
A139: South Dakota | B139: SD | C139: Water | D139: 13 | E139: $6 | F139: $451 | G139: 17 | H139: $6 | I139: $361 | J139: 29 | K139: $12 | L139: $400
A140: Tennessee | B140: TN | C140: Water | D140: 3338 | E140: $673 | F140: $202 | G140: 9651 | H140: $3,059 | I140: $317 | J140: 12989 | K140: $3,732 | L140: $287
A141: Texas | B141: TX | C141: Water | D141: 83656 | E141: $44,653 | F141: $534 | G141: 91310 | H141: $44,059 | I141: $483 | J141: 174966 | K141: $88,712 | L141: $507
A142: Vermont | B142: VT | C142: Water | D142: 1 | E142: $0 | F142: $361 | G142: 2 | H142: $1 | I142: $361 | J142: 3 | K142: $1 | L142: $361
A143: Virginia | B143: VA | C143: Water | D143: 120 | E143: $58 | F143: $482 | G143: 314 | H143: $76 | I143: $243 | J143: 435 | K143: $134 | L143: $309
A144: Washington | B144: WA | C144: Water | D144: 18207 | E144: $7,051 | F144: $387 | G144: 29674 | H144: $12,641 | I144: $426 | J144: 47880 | K144: $19,692 | L144: $411
A145: West Virginia | B145: WV | C145: Water | D145: 10734 | E145: $758 | F145: $71 | G145: 12627 | H145: $717 | I145: $57 | J145: 23361 | K145: $1,475 | L145: $63
A146: Wisconsin | B146: WI | C146: Water | D146: 119 | E146: $37 | F146: $309 | G146: 2228 | H146: $245 | I146: $110 | J146: 2347 | K146: $282 | L146: $120
A147: Alabama | B147: AL | C147: Multiple modes & mail | D147: 6516 | E147: $22,355 | F147: $3,431 | G147: 14300 | H147: $28,193 | I147: $1,972 | J147: 20816 | K147: $50,548 | L147: $2,428
A148: Alaska | B148: AK | C148: Multiple modes & mail | D148: 2821 | E148: $2,038 | F148: $722 | G148: 1943 | H148: $5,272 | I148: $2,713 | J148: 4764 | K148: $7,310 | L148: $1,534
A149: Arizona | B149: AZ | C149: Multiple modes & mail | D149: 2462 | E149: $23,784 | F149: $9,660 | G149: 4446 | H149: $31,982 | I149: $7,193 | J149: 6909 | K149: $55,766 | L149: $8,072
A150: Arkansas | B150: AR | C150: Multiple modes & mail | D150: 7188 | E150: $8,588 | F150: $1,195 | G150: 4338 | H150: $14,317 | I150: $3,300 | J150: 11526 | K150: $22,905 | L150: $1,987
A151: California | B151: CA | C151: Multiple modes & mail | D151: 50098 | E151: $336,508 | F151: $6,717 | G151: 60673 | H151: $250,242 | I151: $4,124 | J151: 110770 | K151: $586,749 | L151: $5,297
A152: Colorado | B152: CO | C152: Multiple modes & mail | D152: 4045 | E152: $23,264 | F152: $5,752 | G152: 6563 | H152: $26,814 | I152: $4,086 | J152: 10607 | K152: $50,078 | L152: $4,721
A153: Connecticut | B153: CT | C153: Multiple modes & mail | D153: 3492 | E153: $22,545 | F153: $6,456 | G153: 2284 | H153: $21,834 | I153: $9,560 | J153: 5776 | K153: $44,379 | L153: $7,683
A154: Delaware | B154: DE | C154: Multiple modes & mail | D154: 566 | E154: $3,425 | F154: $6,055 | G154: 1200 | H154: $5,014 | I154: $4,178 | J154: 1766 | K154: $8,439 | L154: $4,780
A155: Washington DC | B155: DC | C155: Multiple modes & mail | D155: 932 | E155: $507 | F155: $544 | G155: 81 | H155: $3,697 | I155: $45,444 | J155: 1013 | K155: $4,205 | L155: $4,150
A156: Florida | B156: FL | C156: Multiple modes & mail | D156: 25027 | E156: $71,189 | F156: $2,844 | G156: 25174 | H156: $94,788 | I156: $3,765 | J156: 50201 | K156: $165,977 | L156: $3,306
A157: Georgia | B157: GA | C157: Multiple modes & mail | D157: 11050 | E157: $45,778 | F157: $4,143 | G157: 15773 | H157: $63,673 | I157: $4,037 | J157: 26823 | K157: $109,451 | L157: $4,080
A158: Hawaii | B158: HI | C158: Multiple modes & mail | D158: 1724 | E158: $2,462 | F158: $1,428 | G158: 3402 | H158: $9,584 | I158: $2,818 | J158: 5125 | K158: $12,047 | L158: $2,350
A159: Idaho | B159: ID | C159: Multiple modes & mail | D159: 1650 | E159: $5,424 | F159: $3,288 | G159: 1536 | H159: $7,478 | I159: $4,867 | J159: 3186 | K159: $12,902 | L159: $4,049
A160: Illinois | B160: IL | C160: Multiple modes & mail | D160: 54476 | E160: $117,860 | F160: $2,164 | G160: 19927 | H160: $94,279 | I160: $4,731 | J160: 74403 | K160: $212,138 | L160: $2,851
A161: Indiana | B161: IN | C161: Multiple modes & mail | D161: 11325 | E161: $38,002 | F161: $3,356 | G161: 14521 | H161: $34,714 | I161: $2,391 | J161: 25846 | K161: $72,716 | L161: $2,813
A162: Iowa | B162: IA | C162: Multiple modes & mail | D162: 9694 | E162: $13,170 | F162: $1,359 | G162: 3826 | H162: $18,015 | I162: $4,709 | J162: 13520 | K162: $31,185 | L162: $2,307
A163: Kansas | B163: KS | C163: Multiple modes & mail | D163: 4942 | E163: $16,782 | F163: $3,396 | G163: 2575 | H163: $16,300 | I163: $6,329 | J163: 7518 | K163: $33,082 | L163: $4,401
A164: Kentucky | B164: KY | C164: Multiple modes & mail | D164: 14454 | E164: $15,734 | F164: $1,089 | G164: 15041 | H164: $26,506 | I164: $1,762 | J164: 29494 | K164: $42,240 | L164: $1,432
A165: Louisiana | B165: LA | C165: Multiple modes & mail | D165: 26549 | E165: $27,751 | F165: $1,045 | G165: 45459 | H165: $27,000 | I165: $594 | J165: 72008 | K165: $54,751 | L165: $760
A166: Maine | B166: ME | C166: Multiple modes & mail | D166: 1393 | E166: $3,634 | F166: $2,608 | G166: 479 | H166: $4,621 | I166: $9,651 | J166: 1872 | K166: $8,255 | L166: $4,409
A167: Maryland | B167: MD | C167: Multiple modes & mail | D167: 3085 | E167: $19,319 | F167: $6,262 | G167: 9752 | H167: $30,109 | I167: $3,087 | J167: 12837 | K167: $49,428 | L167: $3,850
A168: Massachusetts | B168: MA | C168: Multiple modes & mail | D168: 1489 | E168: $41,298 | F168: $27,728 | G168: 1950 | H168: $33,314 | I168: $17,084 | J168: 3439 | K168: $74,612 | L168: $21,693
A169: Michigan | B169: MI | C169: Multiple modes & mail | D169: 13513 | E169: $53,026 | F169: $3,924 | G169: 13064 | H169: $51,438 | I169: $3,937 | J169: 26577 | K169: $104,465 | L169: $3,931
A170: Minnesota | B170: MN | C170: Multiple modes & mail | D170: 32013 | E170: $51,672 | F170: $1,614 | G170: 12649 | H170: $34,446 | I170: $2,723 | J170: 44662 | K170: $86,119 | L170: $1,928
A171: Mississippi | B171: MS | C171: Multiple modes & mail | D171: 4740 | E171: $6,277 | F171: $1,324 | G171: 5900 | H171: $13,273 | I171: $2,250 | J171: 10640 | K171: $19,550 | L171: $1,838
A172: Missouri | B172: MO | C172: Multiple modes & mail | D172: 12231 | E172: $33,500 | F172: $2,739 | G172: 14422 | H172: $36,297 | I172: $2,517 | J172: 26652 | K172: $69,797 | L172: $2,619
A173: Montana | B173: MT | C173: Multiple modes & mail | D173: 4676 | E173: $1,696 | F173: $363 | G173: 270 | H173: $3,991 | I173: $14,796 | J173: 4946 | K173: $5,687 | L173: $1,150
A174: Nebraska | B174: NE | C174: Multiple modes & mail | D174: 3165 | E174: $10,886 | F174: $3,439 | G174: 1326 | H174: $8,779 | I174: $6,623 | J174: 4491 | K174: $19,665 | L174: $4,379
A175: Nevada | B175: NV | C175: Multiple modes & mail | D175: 884 | E175: $8,684 | F175: $9,824 | G175: 2718 | H175: $15,054 | I175: $5,539 | J175: 3602 | K175: $23,739 | L175: $6,591
A176: New Hampshire | B176: NH | C176: Multiple modes & mail | D176: 720 | E176: $9,027 | F176: $12,529 | G176: 846 | H176: $7,586 | I176: $8,962 | J176: 1567 | K176: $16,613 | L176: $10,602
A177: New Jersey | B177: NJ | C177: Multiple modes & mail | D177: 12657 | E177: $90,501 | F177: $7,150 | G177: 12492 | H177: $62,605 | I177: $5,012 | J177: 25149 | K177: $153,106 | L177: $6,088
A178: New Mexico | B178: NM | C178: Multiple modes & mail | D178: 890 | E178: $5,141 | F178: $5,778 | G178: 1138 | H178: $8,316 | I178: $7,305 | J178: 2028 | K178: $13,457 | L178: $6,635
A179: New York | B179: NY | C179: Multiple modes & mail | D179: 7112 | E179: $108,516 | F179: $15,258 | G179: 10955 | H179: $99,718 | I179: $9,103 | J179: 18067 | K179: $208,234 | L179: $11,526
A180: North Carolina | B180: NC | C180: Multiple modes & mail | D180: 6183 | E180: $28,660 | F180: $4,636 | G180: 6807 | H180: $47,662 | I180: $7,002 | J180: 12989 | K180: $76,322 | L180: $5,876
A181: North Dakota | B181: ND | C181: Multiple modes & mail | D181: 1162 | E181: $1,835 | F181: $1,580 | G181: 248 | H181: $3,458 | I181: $13,936 | J181: 1410 | K181: $5,293 | L181: $3,754
A182: Ohio | B182: OH | C182: Multiple modes & mail | D182: 20746 | E182: $75,345 | F182: $3,632 | G182: 28251 | H182: $71,342 | I182: $2,525 | J182: 48997 | K182: $146,687 | L182: $2,994
A183: Oklahoma | B183: OK | C183: Multiple modes & mail | D183: 6984 | E183: $7,172 | F183: $1,027 | G183: 5197 | H183: $18,109 | I183: $3,485 | J183: 12181 | K183: $25,281 | L183: $2,075
A184: Oregon | B184: OR | C184: Multiple modes & mail | D184: 9658 | E184: $23,064 | F184: $2,388 | G184: 8351 | H184: $22,039 | I184: $2,639 | J184: 18009 | K184: $45,103 | L184: $2,504
A185: Pennsylvania | B185: PA | C185: Multiple modes & mail | D185: 10027 | E185: $68,321 | F185: $6,814 | G185: 11899 | H185: $59,822 | I185: $5,027 | J185: 21926 | K185: $128,143 | L185: $5,844
A186: Rhode Island | B186: RI | C186: Multiple modes & mail | D186: 625 | E186: $4,907 | F186: $7,848 | G186: 918 | H186: $5,249 | I186: $5,719 | J186: 1543 | K186: $10,155 | L186: $6,582
A187: South Carolina | B187: SC | C187: Multiple modes & mail | D187: 6949 | E187: $20,263 | F187: $2,916 | G187: 5667 | H187: $25,605 | I187: $4,518 | J187: 12617 | K187: $45,868 | L187: $3,636
A188: South Dakota | B188: SD | C188: Multiple modes & mail | D188: 1716 | E188: $3,060 | F188: $1,784 | G188: 534 | H188: $3,992 | I188: $7,474 | J188: 2250 | K188: $7,052 | L188: $3,135
A189: Tennessee | B189: TN | C189: Multiple modes & mail | D189: 9947 | E189: $56,384 | F189: $5,669 | G189: 20348 | H189: $44,044 | I189: $2,165 | J189: 30294 | K189: $100,428 | L189: $3,315
A190: Texas | B190: TX | C190: Multiple modes & mail | D190: 70393 | E190: $139,481 | F190: $1,981 | G190: 83525 | H190: $173,925 | I190: $2,082 | J190: 153918 | K190: $313,407 | L190: $2,036
A191: Utah | B191: UT | C191: Multiple modes & mail | D191: 4474 | E191: $16,529 | F191: $3,694 | G191: 3411 | H191: $15,912 | I191: $4,665 | J191: 7885 | K191: $32,441 | L191: $4,114
A192: Vermont | B192: VT | C192: Multiple modes & mail | D192: 79 | E192: $2,178 | F192: $27,600 | G192: 100 | H192: $2,551 | I192: $25,545 | J192: 179 | K192: $4,729 | L192: $26,452
A193: Virginia | B193: VA | C193: Multiple modes & mail | D193: 8124 | E193: $33,791 | F193: $4,159 | G193: 9125 | H193: $45,353 | I193: $4,970 | J193: 17248 | K193: $79,144 | L193: $4,589
A194: Washington | B194: WA | C194: Multiple modes & mail | D194: 24839 | E194: $67,812 | F194: $2,730 | G194: 24150 | H194: $48,511 | I194: $2,009 | J194: 48988 | K194: $116,323 | L194: $2,374
A195: West Virginia | B195: WV | C195: Multiple modes & mail | D195: 17264 | E195: $5,036 | F195: $292 | G195: 2244 | H195: $5,836 | I195: $2,600 | J195: 19509 | K195: $10,872 | L195: $557
A196: Wisconsin | B196: WI | C196: Multiple modes & mail | D196: 11199 | E196: $32,226 | F196: =(E196*1000000)/(D196*1000) -> $2,878 | G196: 9489 | H196: $42,659 | I196: =(H196*1000000)/(G196*1000) -> $4,496 | J196: =D196+G196 -> 20688 | K196: =E196+H196 -> $74,885 | L196: =(K196*1000000)/(J196*1000) -> $3,620
A197: Wyoming | B197: WY | C197: Multiple modes & mail | D197: 4778 | E197: $1,676 | F197: =(E197*1000000)/(D197*1000) -> $351 | G197: 1439 | H197: $2,763 | I197: =(H197*1000000)/(G197*1000) -> $1,920 | J197: =D197+G197 -> 6217 | K197: =E197+H197 -> $4,439 | L197: =(K197*1000000)/(J197*1000) -> $714

Sheet Selection (hidden)
K1: Type | L1: Category | N1: Not in use | Q1: Not in use
B2: US State: | C2: Abbreviation: | G2: State | H2: Facility | I2: State_Facility | K2: Airport Freight | L2: Freight | N2: Mode | O2: Average | Q2: Mode | R2: $/Ton | U2: Facility | V2: Mode | W2: Purpose | X2: Crew Cost Factor ($/hr per crew member) | Y2: Passenger Cost Factor ($/hr per occupant) | Z2: Freight Logistics Factor ($/hr per ton)
B3: Alabama | C3: AL | G3: AK | H3: Airport Freight | I3: AK_Airport Freight | K3: Airport Passenger | L3: Passenger Vehicles | N3: Air (include truck-air) | O3: $85,005 | Q3: Air | R3: $59,464 | U3: Road | V3: Passenger Car | W3: On-the-Clock | X3: 0 | Y3: 29.16982922 | Z3: 0
B4: Alaska | C4: AK | G4: AL | H4: Airport Passenger | I4: AK_Airport Passenger | K4: Rail Freight | L4: Freight | N4: Rail | O4: $256 | Q4: Rail | R4: $201 | U4: Road | V4: Passenger Car | W4: Commute | X4: 0 | Y4: 22.48728653 | Z4: 0
B5: Arizona | C5: AZ | G5: AR | H5: Marine | I5: AK_Marine | K5: Rail Passenger | L5: Passenger Vehicles | N5: Water | O5: $333 | Q5: Water | R5: $253 | U5: Road | V5: Passenger Car | W5: Personal/Rec | X5: 0 | Y5: 11.24364326 | Z5: 0
B6: Arkansas | C6: AR | G6: AZ | H6: Rail Freight | I6: AL_Airport Freight | K6: Marine | L6: Freight | N6: Multiple Modes | O6: $3,307 | U6: Road | V6: Truck Freight | W6: Freight | X6: 26.0607119 | Y6: 0 | Z6: 1.591081594
B7: California | C7: CA | G7: CA | H7: Rail Passenger | I7: AL_Airport Passenger
B8: Colorado | C8: CO | G8: CO | I8: AL_Marine
B9: Connecticut | C9: CT | G9: CT | I9: AL_Rail Freight | N9: Average Tons/container | O9: 16.5 | X9: Occupants | Y9: Tons | Z9: Hourly value
B10: Delaware | C10: DE | G10: DE | I10: AR_Airport Freight | W10: Truck | X10: 1 | Y10: 19.4 | Z10: 56.93
B11: Florida | C11: FL | G11: FL | I11: AR_Airport Passenger | W11: Passenger vehicle | X11: 1.59 | Y11: 0 | Z11: 17.88
B12: Georgia | C12: GA | G12: GA | I12: AR_Marine | N12: Freight Divisor | O12: 100000000000
B13: Hawaii | C13: HI | G13: HI | I13: AR_Rail Freight | N13: Passenger Divisor | O13: 100,000,000
B14: Idaho | C14: ID | G14: IA | I14: AS_Airport Freight
B15: Illinois | C15: IL | G15: ID | I15: AS_Airport Passenger
B16: Indiana | C16: IN | G16: IL | I16: AZ_Airport Freight
B17: Iowa | C17: IA | G17: IN | I17: AZ_Airport Passenger
B18: Kansas | C18: KS | G18: KS | I18: AZ_Rail Freight
B19: Kentucky | C19: KY | G19: KY | I19: CA_Airport Freight
B20: Louisiana | C20: LA | G20: LA | I20: CA_Airport Passenger
B21: Maine | C21: ME | G21: MA | I21: CA_Marine
B22: Maryland | C22: MD | G22: MD | I22: CA_Rail Freight
B23: Massachusetts | C23: MA | G23: ME | I23: CA_Rail Passenger
B24: Michigan | C24: MI | G24: MI | I24: CO_Airport Freight
B25: Minnesota | C25: MN | G25: MN | I25: CO_Airport Passenger
B26: Mississippi | C26: MS | G26: MO | I26: CO_Rail Freight
B27: Missouri | C27: MO | G27: MS | I27: CO_Rail Passenger
B28: Montana | C28: MT | G28: MT | I28: CT_Airport Freight
B29: Nebraska | C29: NE | G29: NC | I29: CT_Airport Passenger
B30: Nevada | C30: NV | G30: ND | I30: CT_Marine
B31: New Hampshire | C31: NH | G31: NE | I31: CT_Rail Passenger
B32: New Jersey | C32: NJ | G32: NH | I32: DC_Rail Passenger
B33: New Mexico | C33: NM | G33: NJ | I33: DE_Airport Freight
B34: New York | C34: NY | G34: NM | I34: DE_Airport Passenger
B35: North Carolina | C35: NC | G35: NV | I35: DE_Marine
B36: North Dakota | C36: ND | G36: NY | I36: DE_Rail Passenger
B37: Ohio | C37: OH | G37: OH | I37: FL_Airport Freight
B38: Oklahoma | C38: OK | G38: OK | I38: FL_Airport Passenger
B39: Oregon | C39: OR | G39: OR | I39: FL_Marine
B40: Pennsylvania | C40: PA | G40: PA | I40: FL_Rail Freight
B41: Rhode Island | C41: RI | G41: RI | I41: FL_Rail Passenger
B42: South Carolina | C42: SC | G42: SC | I42: GA_Airport Freight
B43: South Dakota | C43: SD | G43: SD | I43: GA_Airport Passenger
B44: Tennessee | C44: TN | G44: TN | I44: GA_Marine
B45: Texas | C45: TX | G45: TX | I45: GA_Rail Freight
B46: Utah | C46: UT | G46: UT | I46: GA_Rail Passenger
B47: Vermont | C47: VT | G47: VA | I47: GU_Airport Freight
B48: Virginia | C48: VA | G48: VT | I48: GU_Airport Passenger
B49: Washington | C49: WA | G49: WA | I49: HI_Airport Freight
B50: West Virginia | C50: WV | G50: WI | I50: HI_Airport Passenger
B51: Wisconsin | C51: WI | G51: WV | I51: HI_Marine
B52: Wyoming | C52: WY | G52: WY | I52: IA_Airport Freight
I53: IA_Airport Passenger
I54: IA_Rail Freight
I55: ID_Airport Freight
I56: ID_Airport Passenger
I57: IL_Airport Freight
I58: IL_Airport Passenger
I59: IL_Marine
I60: IL_Rail Freight
I61: IL_Rail Passenger
I62: IN_Airport Freight
I63: IN_Airport Passenger
I64: IN_Marine
I65: IN_Rail Freight
I66: IN_Rail Passenger
I67: KS_Airport Freight
I68: KS_Airport Passenger
I69: KS_Rail Freight
I70: KY_Airport Freight
I71: KY_Airport Passenger
I72: KY_Marine
I73: KY_Rail Freight
I74: LA_Airport Freight
I75: LA_Airport Passenger
I76: LA_Marine
I77: LA_Rail Freight
I78: LA_Rail Passenger
I79: MA_Airport Freight
I80: MA_Airport Passenger
I81: MA_Marine
I82: MA_Rail Freight
I83: MA_Rail Passenger
I84: MD_Airport Freight
I85: MD_Airport Passenger
I86: MD_Marine
I87: MD_Rail Passenger
I88: ME_Airport Freight
I89: ME_Airport Passenger
I90: ME_Marine
I91: ME_Rail Freight
I92: ME_Rail Passenger
I93: MI_Airport Freight
I94: MI_Airport Passenger
I95: MI_Marine
I96: MI_Rail Freight
I97: MI_Rail Passenger
I98: MN_Airport Freight
I99: MN_Airport Passenger
I100: MN_Marine
I101: MN_Rail Passenger
I102: MO_Airport Freight
I103: MO_Airport Passenger
I104: MO_Marine
I105: MO_Rail Freight
I106: MO_Rail Passenger
I107: MQ_Airport Freight
I108: MQ_Airport Passenger
I109: MS_Airport Freight
I110: MS_Airport Passenger
I111: MS_Marine
I112: MS_Rail Freight
I113: MT_Airport Freight
I114: MT_Airport Passenger
I115: NA_Airport Freight
I116: NA_Airport Passenger
I117: NC_Airport Freight
I118: NC_Airport Passenger
I119: NC_Marine
I120: NC_Rail Freight
I121: NC_Rail Passenger
I122: ND_Airport Freight
I123: ND_Airport Passenger
I124: NE_Airport Freight
I125: NE_Airport Passenger
I126: NE_Rail Freight
I127: NH_Airport Freight
I128: NH_Airport Passenger
I129: NH_Marine
I130: NJ_Airport Freight
I131: NJ_Airport Passenger
I132: NJ_Marine
I133: NJ_Rail Freight
I134: NJ_Rail Passenger
I135: NM_Airport Freight
I136: NM_Airport Passenger
I137: NM_Rail Passenger
I138: NV_Airport Freight
I139: NV_Airport Passenger
I140: NY_Airport Freight
I141: NY_Airport Passenger
I142: NY_Marine
I143: NY_Rail Freight
I144: NY_Rail Passenger
I145: OH_Airport Freight
I146: OH_Airport Passenger
I147: OH_Marine
I148: OH_Rail Freight
I149: OK_Airport Freight
I150: OK_Airport Passenger
I151: OK_Marine
I152: OK_Rail Freight
I153: OR_Airport Freight
I154: OR_Airport Passenger
I155: OR_Marine
I156: OR_Rail Freight
I157: OR_Rail Passenger
I158: PA_Airport Freight
I159: PA_Airport Passenger
I160: PA_Marine
I161: PA_Rail Freight
I162: PA_Rail Passenger
I163: PR_Airport Freight
I164: PR_Airport Passenger
I165: PR_Marine
I166: RI_Airport Freight
I167: RI_Airport Passenger
I168: RI_Marine
I169: RI_Rail Passenger
I170: SC_Airport Freight
I171: SC_Airport Passenger
I172: SC_Marine
I173: SC_Rail Freight
I174: SC_Rail Passenger
I175: SD_Airport Freight
I176: SD_Airport Passenger
I177: TN_Airport Freight
I178: TN_Airport Passenger
I179: TN_Marine
I180: TN_Rail Freight
I181: TN_Rail Passenger
I182: TX_Airport Freight
I183: TX_Airport Passenger
I184: TX_Marine
I185: TX_Rail Freight
I186: TX_Rail Passenger
I187: UT_Airport Freight
I188: UT_Airport Passenger
I189: UT_Rail Freight
I190: VA_Airport Freight
I191: VA_Airport Passenger
I192: VA_Marine
I193: VA_Rail Freight
I194: VA_Rail Passenger
I195: VA_Rail Passenger
I196: VI_Airport Freight
I197: VI_Airport Passenger
I198: VT_Airport Freight
I199: VT_Airport Passenger
I200: VT_Rail Freight
... 15 more rows

Sheet All Facilities (hidden)
A1: State | B1: Facility | C1: State_Facility | D1: Port Name | E1: County
A2: AK | B2: Airport Freight | C2: =CONCATENATE(A2,"_",B2) -> AK_Airport Freight | D2: Adak Island NAS- Alaska | E2: =PROPER(IF(OR(B2="Airport Freight",B2="Airport Passenger"),VLOOKUP(D2,Air!$B$3:$E$995,4,FALSE),IF(B2="Marine",VLOOKUP(D2,Marine!$B$3:$E$151,4,FALSE),IF(B2="Rail Passenger",VLOOKUP(D2,'Rail - Passenger'!$B$2:$F$97,5,FALSE),IF(B2="Rail Freight",VLOOKUP(D2,'Rail - Freight'!$B$2:$H$205,7,FALSE)))))) -> Aleutian Islands
A3: AK | B3: Airport Freight | C3: AK_Airport Freight | D3: Akhiok- Alaska | E3: =PROPER(IF(OR(B3="Airport Freight",B3="Airport Passenger"),VLOOKUP(D3,Air!$B$3:$E$995,4,FALSE),IF(B3="Marine",VLOOKUP(D3,Marine!$B$3:$E$151,4,FALSE),IF(B3="Rail Passenger",VLOOKUP(D3,'Rail - Passenger'!$B$2:$F$97,5,FALSE),IF(B3="Rail Freight",VLOOKUP(D3,'Rail - Freight'!$B$2:$H$205,7,FALSE)))))) -> Kodiak Island
A4: AK | B4: Airport Freight | C4: AK_Airport Freight | D4: Akiachak Bay- Alaska | E4: =PROPER(IF(OR(B4="Airport Freight",B4="Airport Passenger"),VLOOKUP(D4,Air!$B$3:$E$995,4,FALSE),IF(B4="Marine",VLOOKUP(D4,Marine!$B$3:$E$151,4,FALSE),IF(B4="Rail Passenger",VLOOKUP(D4,'Rail - Passenger'!$B$2:$F$97,5,FALSE),IF(B4="Rail Freight",VLOOKUP(D4,'Rail - Freight'!$B$2:$H$205,7,FALSE)))))) -> Bethel
A5: AK | B5: Airport Freight | C5: AK_Airport Freight | D5: Akiak- Alaska | E5: =PROPER(IF(OR(B5="Airport Freight",B5="Airport Passenger"),VLOOKUP(D5,Air!$B$3:$E$995,4,FALSE),IF(B5="Marine",VLOOKUP(D5,Marine!$B$3:$E$151,4,FALSE),IF(B5="Rail Passenger",VLOOKUP(D5,'Rail - Passenger'!$B$2:$F$97,5,FALSE),IF(B5="Rail Freight",VLOOKUP(D5,'Rail - Freight'!$B$2:$H$205,7,FALSE)))))) -> Bethel
A6: AK | B6: Airport Freight | C6: AK_Airport Freight | D6: Akutan- Alaska | E6: =PROPER(IF(OR(B6="Airport Freight",B6="Airport Passenger"),VLOOKUP(D6,Air!$B$3:$E$995,4,FALSE),IF(B6="Marine",VLOOKUP(D6,Marine!$B$3:$E$151,4,FALSE),IF(B6="Rail Passenger",VLOOKUP(D6,'Rail - Passenger'!$B$2:$F$97,5,FALSE),IF(B6="Rail Freight",VLOOKUP(D6,'Rail - Freight'!$B$2:$H$205,7,FALSE)))))) -> Aleutian Islands
A7: AK | B7: Airport Freight | C7: AK_Airport Freight | D7: Alakanuk- Alaska | E7: =PROPER(IF(OR(B7="Airport Freight",B7="Airport Passenger"),VLOOKUP(D7,Air!$B$3:$E$995,4,FALSE),IF(B7="Marine",VLOOKUP(D7,Marine!$B$3:$E$151,4,FALSE),IF(B7="Rail Passenger",VLOOKUP(D7,'Rail - Passenger'!$B$2:$F$97,5,FALSE),IF(B7="Rail Freight",VLOOKUP(D7,'Rail - Freight'!$B$2:$H$205,7,FALSE)))))) -> Wade Hampton
A8: AK | B8: Airport Freight | C8: AK_Airport Freight | D8: Aleknagik- Alaska | E8: =PROPER(IF(OR(B8="Airport Freight",B8="Airport Passenger"),VLOOKUP(D8,Air!$B$3:$E$995,4,FALSE),IF(B8="Marine",VLOOKUP(D8,Marine!$B$3:$E$151,4,FALSE),IF(B8="Rail Passenger",VLOOKUP(D8,'Rail - Passenger'!$B$2:$F$97,5,FALSE),IF(B8="Rail Freight",VLOOKUP(D8,'Rail - Freight'!$B$2:$H$205,7,FALSE)))))) -> Bristol Bay
A9: AK | B9: Airport Freight | C9: AK_Airport Freight | D9: Alitak Bay SPB- Alaska | E9: =PROPER(IF(OR(B9="Airport Freight",B9="Airport Passenger"),VLOOKUP(D9,Air!$B$3:$E$995,4,FALSE),IF(B9="Marine",VLOOKUP(D9,Marine!$B$3:$E$151,4,FALSE),IF(B9="Rail Passenger",VLOOKUP(D9,'Rail - Passenger'!$B$2:$F$97,5,FALSE),IF(B9="Rail Freight",VLOOKUP(D9,'Rail - Freight'!$B$2:$H$205,7,FALSE)))))) -> Kodiak Island
A10: AK | B10: Airport Freight | C10: AK_Airport Freight | D10: Allakaket- Alaska | E10: =PROPER(IF(OR(B10="Airport Freight",B10="Airport Passenger"),VLOOKUP(D10,Air!$B$3:$E$995,4,FALSE),IF(B10="Marine",VLOOKUP(D10,Marine!$B$3:$E$151,4,FALSE),IF(B10="Rail Passenger",VLOOKUP(D10,'Rail - Passenger'!$B$2:$F$97,5,FALSE),IF(B10="Rail Freight",VLOOKUP(D10,'Rail - Freight'!$B$2:$H$205,7,FALSE)))))) -> Yukon-Koyukuk
A11: AK | B11: Airport Freight | C11: AK_Airport Freight | D11: Ambler- Alaska | E11: =PROPER(IF(OR(B11="Airport Freight",B11="Airport Passenger"),VLOOKUP(D11,Air!$B$3:$E$995,4,FALSE),IF(B11="Marine",VLOOKUP(D11,Marine!$B$3:$E$151,4,FALSE),IF(B11="Rail Passenger",VLOOKUP(D11,'Rail - Passenger'!$B$2:$F$97,5,FALSE),IF(B11="Rail Freight",VLOOKUP(D11,'Rail - Freight'!$B$2:$H$205,7,FALSE)))))) -> Northwest Arctic
A12: AK | B12: Airport Freight | C12: AK_Airport Freight | D12: Anaktuvik Pass- Alaska | E12: =PROPER(IF(OR(B12="Airport Freight",B12="Airport Passenger"),VLOOKUP(D12,Air!$B$3:$E$995,4,FALSE),IF(B12="Marine",VLOOKUP(D12,Marine!$B$3:$E$151,4,FALSE),IF(B12="Rail Passenger",VLOOKUP(D12,'Rail - Passenger'!$B$2:$F$97,5,FALSE),IF(B12="Rail Freight",VLOOKUP(D12,'Rail - Freight'!$B$2:$H$205,7,FALSE)))))) -> Yukon-Koyukuk
A13: AK | B13: Airport Freight | C13: AK_Airport Freight | D13: Anchorage Intl Airport | E13: =PROPER(IF(OR(B13="Airport Freight",B13="Airport Passenger"),VLOOKUP(D13,Air!$B$3:$E$995,4,FALSE),IF(B13="Marine",VLOOKUP(D13,Marine!$B$3:$E$151,4,FALSE),IF(B13="Rail Passenger",VLOOKUP(D13,'Rail - Passenger'!$B$2:$F$97,5,FALSE),IF(B13="Rail Freight",VLOOKUP(D13,'Rail - Freight'!$B$2:$H$205,7,FALSE)))))) -> Anchorage
A14: AK | B14: Airport Freight | C14: AK_Airport Freight | D14: Angoon- Alaska | E14: =PROPER(IF(OR(B14="Airport Freight",B14="Airport Passenger"),VLOOKUP(D14,Air!$B$3:$E$995,4,FALSE),IF(B14="Marine",VLOOKUP(D14,Marine!$B$3:$E$151,4,FALSE),IF(B14="Rail Passenger",VLOOKUP(D14,'Rail - Passenger'!$B$2:$F$97,5,FALSE),IF(B14="Rail Freight",VLOOKUP(D14,'Rail - Freight'!$B$2:$H$205,7,FALSE)))))) -> Sitka
A15: AK | B15: Airport Freight | C15: AK_Airport Freight | D15: Aniak- Alaska | E15: =PROPER(IF(OR(B15="Airport Freight",B15="Airport Passenger"),VLOOKUP(D15,Air!$B$3:$E$995,4,FALSE),IF(B15="Marine",VLOOKUP(D15,Marine!$B$3:$E$151,4,FALSE),IF(B15="Rail Passenger",VLOOKUP(D15,'Rail - Passenger'!$B$2:$F$97,5,FALSE),IF(B15="Rail Freight",VLOOKUP(D15,'Rail - Freight'!$B$2:$H$205,7,FALSE)))))) -> Kuskokwim
A16: AK | B16: Airport Freight | C16: AK_Airport Freight | D16: Anvik- Alaska | E16: =PROPER(IF(OR(B16="Airport Freight",B16="Airport Passenger"),VLOOKUP(D16,Air!$B$3:$E$995,4,FALSE),IF(B16="Marine",VLOOKUP(D16,Marine!$B$3:$E$151,4,FALSE),IF(B16="Rail Passenger",VLOOKUP(D16,'Rail - Passenger'!$B$2:$F$97,5,FALSE),IF(B16="Rail Freight",VLOOKUP(D16,'Rail - Freight'!$B$2:$H$205,7,FALSE)))))) -> Kuskokwim
A17: AK | B17: Airport Freight | C17: AK_Airport Freight | D17: Arctic Village- Alaska | E17: =PROPER(IF(OR(B17="Airport Freight",B17="Airport Passenger"),VLOOKUP(D17,Air!$B$3:$E$995,4,FALSE),IF(B17="Marine",VLOOKUP(D17,Marine!$B$3:$E$151,4,FALSE),IF(B17="Rail Passenger",VLOOKUP(D17,'Rail - Passenger'!$B$2:$F$97,5,FALSE),IF(B17="Rail Freight",VLOOKUP(D17,'Rail - Freight'!$B$2:$H$205,7,FALSE)))))) -> Upper Yukon
A18: AK | B18: Airport Freight | C18: AK_Airport Freight | D18: Atka- Alaska | E18: =PROPER(IF(OR(B18="Airport Freight",B18="Airport Passenger"),VLOOKUP(D18,Air!$B$3:$E$995,4,FALSE),IF(B18="Marine",VLOOKUP(D18,Marine!$B$3:$E$151,4,FALSE),IF(B18="Rail Passenger",VLOOKUP(D18,'Rail - Passenger'!$B$2:$F$97,5,FALSE),IF(B18="Rail Freight",VLOOKUP(D18,'Rail - Freight'!$B$2:$H$205,7,FALSE)))))) -> Unorganized
A19: AK | B19: Airport Freight | C19: AK_Airport Freight | D19: Atmautluak- Alaska | E19: =PROPER(IF(OR(B19="Airport Freight",B19="Airport Passenger"),VLOOKUP(D19,Air!$B$3:$E$995,4,FALSE),IF(B19="Marine",VLOOKUP(D19,Marine!$B$3:$E$151,4,FALSE),IF(B19="Rail Passenger",VLOOKUP(D19,'Rail - Passenger'!$B$2:$F$97,5,FALSE),IF(B19="Rail Freight",VLOOKUP(D19,'Rail - Freight'!$B$2:$H$205,7,FALSE)))))) -> Bethel
A20: AK | B20: Airport Freight | C20: AK_Airport Freight | D20: Atqasuk- Alaska | E20: =PROPER(IF(OR(B20="Airport Freight",B20="Airport Passenger"),VLOOKUP(D20,Air!$B$3:$E$995,4,FALSE),IF(B20="Marine",VLOOKUP(D20,Marine!$B$3:$E$151,4,FALSE),IF(B20="Rail Passenger",VLOOKUP(D20,'Rail - Passenger'!$B$2:$F$97,5,FALSE),IF(B20="Rail Freight",VLOOKUP(D20,'Rail - Freight'!$B$2:$H$205,7,FALSE)))))) -> North Slope
A21: AK | B21: Airport Freight | C21: AK_Airport Freight | D21: Attu Island- Alaska | E21: =PROPER(IF(OR(B21="Airport Freight",B21="Airport Passenger"),VLOOKUP(D21,Air!$B$3:$E$995,4,FALSE),IF(B21="Marine",VLOOKUP(D21,Marine!$B$3:$E$151,4,FALSE),IF(B21="Rail Passenger",VLOOKUP(D21,'Rail - Passenger'!$B$2:$F$97,5,FALSE),IF(B21="Rail Freight",VLOOKUP(D21,'Rail - Freight'!$B$2:$H$205,7,FALSE)))))) -> Aleutian Islands
A22: AK | B22: Airport Freight | C22: AK_Airport Freight | D22: Barrow WBAS | E22: =PROPER(IF(OR(B22="Airport Freight",B22="Airport Passenger"),VLOOKUP(D22,Air!$B$3:$E$995,4,FALSE),IF(B22="Marine",VLOOKUP(D22,Marine!$B$3:$E$151,4,FALSE),IF(B22="Rail Passenger",VLOOKUP(D22,'Rail - Passenger'!$B$2:$F$97,5,FALSE),IF(B22="Rail Freight",VLOOKUP(D22,'Rail - Freight'!$B$2:$H$205,7,FALSE)))))) -> North Slope
A23: AK | B23: Airport Freight | C23: AK_Airport Freight | D23: Barter Island- Alaska | E23: =PROPER(IF(OR(B23="Airport Freight",B23="Airport Passenger"),VLOOKUP(D23,Air!$B$3:$E$995,4,FALSE),IF(B23="Marine",VLOOKUP(D23,Marine!$B$3:$E$151,4,FALSE),IF(B23="Rail Passenger",VLOOKUP(D23,'Rail - Passenger'!$B$2:$F$97,5,FALSE),IF(B23="Rail Freight",VLOOKUP(D23,'Rail - Freight'!$B$2:$H$205,7,FALSE)))))) -> Upper Yukon
A24: AK | B24: Airport Freight | C24: AK_Airport Freight | D24: Beaver- Alaska | E24: =PROPER(IF(OR(B24="Airport Freight",B24="Airport Passenger"),VLOOKUP(D24,Air!$B$3:$E$995,4,FALSE),IF(B24="Marine",VLOOKUP(D24,Marine!$B$3:$E$151,4,FALSE),IF(B24="Rail Passenger",VLOOKUP(D24,'Rail - Passenger'!$B$2:$F$97,5,FALSE),IF(B24="Rail Freight",VLOOKUP(D24,'Rail - Freight'!$B$2:$H$205,7,FALSE)))))) -> Upper Yukon
A25: AK | B25: Airport Freight | C25: AK_Airport Freight | D25: Bell Island- Alaska | E25: =PROPER(IF(OR(B25="Airport Freight",B25="Airport Passenger"),VLOOKUP(D25,Air!$B$3:$E$995,4,FALSE),IF(B25="Marine",VLOOKUP(D25,Marine!$B$3:$E$151,4,FALSE),IF(B25="Rail Passenger",VLOOKUP(D25,'Rail - Passenger'!$B$2:$F$97,5,FALSE),IF(B25="Rail Freight",VLOOKUP(D25,'Rail - Freight'!$B$2:$H$205,7,FALSE)))))) -> Ketchikan Gateway
A26: AK | B26: Airport Freight | C26: AK_Airport Freight | D26: Bethel- Alaska | E26: =PROPER(IF(OR(B26="Airport Freight",B26="Airport Passenger"),VLOOKUP(D26,Air!$B$3:$E$995,4,FALSE),IF(B26="Marine",VLOOKUP(D26,Marine!$B$3:$E$151,4,FALSE),IF(B26="Rail Passenger",VLOOKUP(D26,'Rail - Passenger'!$B$2:$F$97,5,FALSE),IF(B26="Rail Freight",VLOOKUP(D26,'Rail - Freight'!$B$2:$H$205,7,FALSE)))))) -> Bethel
A27: AK | B27: Airport Freight | C27: AK_Airport Freight | D27: Bettles- Alaska | E27: =PROPER(IF(OR(B27="Airport Freight",B27="Airport Passenger"),VLOOKUP(D27,Air!$B$3:$E$995,4,FALSE),IF(B27="Marine",VLOOKUP(D27,Marine!$B$3:$E$151,4,FALSE),IF(B27="Rail Passenger",VLOOKUP(D27,'Rail - Passenger'!$B$2:$F$97,5,FALSE),IF(B27="Rail Freight",VLOOKUP(D27,'Rail - Freight'!$B$2:$H$205,7,FALSE)))))) -> Yukon-Koyukuk
A28: AK | B28: Airport Freight | C28: AK_Airport Freight | D28: Big Delta- Alaska | E28: =PROPER(IF(OR(B28="Airport Freight",B28="Airport Passenger"),VLOOKUP(D28,Air!$B$3:$E$995,4,FALSE),IF(B28="Marine",VLOOKUP(D28,Marine!$B$3:$E$151,4,FALSE),IF(B28="Rail Passenger",VLOOKUP(D28,'Rail - Passenger'!$B$2:$F$97,5,FALSE),IF(B28="Rail Freight",VLOOKUP(D28,'Rail - Freight'!$B$2:$H$205,7,FALSE)))))) -> Fairbanks North Star
A29: AK | B29: Airport Freight | C29: AK_Airport Freight | D29: Bradley Lake- AK | E29: =PROPER(IF(OR(B29="Airport Freight",B29="Airport Passenger"),VLOOKUP(D29,Air!$B$3:$E$995,4,FALSE),IF(B29="Marine",VLOOKUP(D29,Marine!$B$3:$E$151,4,FALSE),IF(B29="Rail Passenger",VLOOKUP(D29,'Rail - Passenger'!$B$2:$F$97,5,FALSE),IF(B29="Rail Freight",VLOOKUP(D29,'Rail - Freight'!$B$2:$H$205,7,FALSE)))))) -> Wrangell-Petersburg
A30: AK | B30: Airport Freight | C30: AK_Airport Freight | D30: Buckland- Alaska | E30: =PROPER(IF(OR(B30="Airport Freight",B30="Airport Passenger"),VLOOKUP(D30,Air!$B$3:$E$995,4,FALSE),IF(B30="Marine",VLOOKUP(D30,Marine!$B$3:$E$151,4,FALSE),IF(B30="Rail Passenger",VLOOKUP(D30,'Rail - Passenger'!$B$2:$F$97,5,FALSE),IF(B30="Rail Freight",VLOOKUP(D30,'Rail - Freight'!$B$2:$H$205,7,FALSE)))))) -> Unorganized
A31: AK | B31: Airport Freight | C31: AK_Airport Freight | D31: Candle- Alaska | E31: =PROPER(IF(OR(B31="Airport Freight",B31="Airport Passenger"),VLOOKUP(D31,Air!$B$3:$E$995,4,FALSE),IF(B31="Marine",VLOOKUP(D31,Marine!$B$3:$E$151,4,FALSE),IF(B31="Rail Passenger",VLOOKUP(D31,'Rail - Passenger'!$B$2:$F$97,5,FALSE),IF(B31="Rail Freight",VLOOKUP(D31,'Rail - Freight'!$B$2:$H$205,7,FALSE)))))) -> Unorganized
A32: AK | B32: Airport Freight | C32: AK_Airport Freight | D32: Cape Lisburne- Alaska | E32: =PROPER(IF(OR(B32="Airport Freight",B32="Airport Passenger"),VLOOKUP(D32,Air!$B$3:$E$995,4,FALSE),IF(B32="Marine",VLOOKUP(D32,Marine!$B$3:$E$151,4,FALSE),IF(B32="Rail Passenger",VLOOKUP(D32,'Rail - Passenger'!$B$2:$F$97,5,FALSE),IF(B32="Rail Freight",VLOOKUP(D32,'Rail - Freight'!$B$2:$H$205,7,FALSE)))))) -> Barrow
A33: AK | B33: Airport Freight | C33: AK_Airport Freight | D33: Cape Newenham- Alaska | E33: =PROPER(IF(OR(B33="Airport Freight",B33="Airport Passenger"),VLOOKUP(D33,Air!$B$3:$E$995,4,FALSE),IF(B33="Marine",VLOOKUP(D33,Marine!$B$3:$E$151,4,FALSE),IF(B33="Rail Passenger",VLOOKUP(D33,'Rail - Passenger'!$B$2:$F$97,5,FALSE),IF(B33="Rail Freight",VLOOKUP(D33,'Rail - Freight'!$B$2:$H$205,7,FALSE)))))) -> Bethel
A34: AK | B34: Airport Freight | C34: AK_Airport Freight | D34: Cape Romanzof- Alaska | E34: =PROPER(IF(OR(B34="Airport Freight",B34="Airport Passenger"),VLOOKUP(D34,Air!$B$3:$E$995,4,FALSE),IF(B34="Marine",VLOOKUP(D34,Marine!$B$3:$E$151,4,FALSE),IF(B34="Rail Passenger",VLOOKUP(D34,'Rail - Passenger'!$B$2:$F$97,5,FALSE),IF(B34="Rail Freight",VLOOKUP(D34,'Rail - Freight'!$B$2:$H$205,7,FALSE)))))) -> Wade Hampton
A35: AK | B35: Airport Freight | C35: AK_Airport Freight | D35: Central- Alaska | E35: =PROPER(IF(OR(B35="Airport Freight",B35="Airport Passenger"),VLOOKUP(D35,Air!$B$3:$E$995,4,FALSE),IF(B35="Marine",VLOOKUP(D35,Marine!$B$3:$E$151,4,FALSE),IF(B35="Rail Passenger",VLOOKUP(D35,'Rail - Passenger'!$B$2:$F$97,5,FALSE),IF(B35="Rail Freight",VLOOKUP(D35,'Rail - Freight'!$B$2:$H$205,7,FALSE)))))) -> Upper Yukon
A36: AK | B36: Airport Freight | C36: AK_Airport Freight | D36: Chalkyitsik- Alaska | E36: =PROPER(IF(OR(B36="Airport Freight",B36="Airport Passenger"),VLOOKUP(D36,Air!$B$3:$E$995,4,FALSE),IF(B36="Marine",VLOOKUP(D36,Marine!$B$3:$E$151,4,FALSE),IF(B36="Rail Passenger",VLOOKUP(D36,'Rail - Passenger'!$B$2:$F$97,5,FALSE),IF(B36="Rail Freight",VLOOKUP(D36,'Rail - Freight'!$B$2:$H$205,7,FALSE)))))) -> Upper Yukon
A37: AK | B37: Airport Freight | C37: AK_Airport Freight | D37: Chandalar- Alaska | E37: =PROPER(IF(OR(B37="Airport Freight",B37="Airport Passenger"),VLOOKUP(D37,Air!$B$3:$E$995,4,FALSE),IF(B37="Marine",VLOOKUP(D37,Marine!$B$3:$E$151,4,FALSE),IF(B37="Rail Passenger",VLOOKUP(D37,'Rail - Passenger'!$B$2:$F$97,5,FALSE),IF(B37="Rail Freight",VLOOKUP(D37,'Rail - Freight'!$B$2:$H$205,7,FALSE)))))) -> Upper Yukon
A38: AK | B38: Airport Freight | C38: AK_Airport Freight | D38: Chefornak- Alaska | E38: =PROPER(IF(OR(B38="Airport Freight",B38="Airport Passenger"),VLOOKUP(D38,Air!$B$3:$E$995,4,FALSE),IF(B38="Marine",VLOOKUP(D38,Marine!$B$3:$E$151,4,FALSE),IF(B38="Rail Passenger",VLOOKUP(D38,'Rail - Passenger'!$B$2:$F$97,5,FALSE),IF(B38="Rail Freight",VLOOKUP(D38,'Rail - Freight'!$B$2:$H$205,7,FALSE)))))) -> Bethel
A39: AK | B39: Airport Freight | C39: AK_Airport Freight | D39: Chena Hot Springs- Alaska | E39: =PROPER(IF(OR(B39="Airport Freight",B39="Airport Passenger"),VLOOKUP(D39,Air!$B$3:$E$995,4,FALSE),IF(B39="Marine",VLOOKUP(D39,Marine!$B$3:$E$151,4,FALSE),IF(B39="Rail Passenger",VLOOKUP(D39,'Rail - Passenger'!$B$2:$F$97,5,FALSE),IF(B39="Rail Freight",VLOOKUP(D39,'Rail - Freight'!$B$2:$H$205,7,FALSE)))))) -> Fairbanks North Star
A40: AK | B40: Airport Freight | C40: AK_Airport Freight | D40: Chernofski- Alaska | E40: =PROPER(IF(OR(B40="Airport Freight",B40="Airport Passenger"),VLOOKUP(D40,Air!$B$3:$E$995,4,FALSE),IF(B40="Marine",VLOOKUP(D40,Marine!$B$3:$E$151,4,FALSE),IF(B40="Rail Passenger",VLOOKUP(D40,'Rail - Passenger'!$B$2:$F$97,5,FALSE),IF(B40="Rail Freight",VLOOKUP(D40,'Rail - Freight'!$B$2:$H$205,7,FALSE)))))) -> Aleutian Islands
A41: AK | B41: Airport Freight | C41: AK_Airport Freight | D41: Chevak- Alaska | E41: =PROPER(IF(OR(B41="Airport Freight",B41="Airport Passenger"),VLOOKUP(D41,Air!$B$3:$E$995,4,FALSE),IF(B41="Marine",VLOOKUP(D41,Marine!$B$3:$E$151,4,FALSE),IF(B41="Rail Passenger",VLOOKUP(D41,'Rail - Passenger'!$B$2:$F$97,5,FALSE),IF(B41="Rail Freight",VLOOKUP(D41,'Rail - Freight'!$B$2:$H$205,7,FALSE)))))) -> Wade Hampton
A42: AK | B42: Airport Freight | C42: AK_Airport Freight | D42: Chicken- Alaska | E42: =PROPER(IF(OR(B42="Airport Freight",B42="Airport Passenger"),VLOOKUP(D42,Air!$B$3:$E$995,4,FALSE),IF(B42="Marine",VLOOKUP(D42,Marine!$B$3:$E$151,4,FALSE),IF(B42="Rail Passenger",VLOOKUP(D42,'Rail - Passenger'!$B$2:$F$97,5,FALSE),IF(B42="Rail Freight",VLOOKUP(D42,'Rail - Freight'!$B$2:$H$205,7,FALSE)))))) -> Upper Yukon
A43: AK | B43: Airport Freight | C43: AK_Airport Freight | D43: Chignik | E43: =PROPER(IF(OR(B43="Airport Freight",B43="Airport Passenger"),VLOOKUP(D43,Air!$B$3:$E$995,4,FALSE),IF(B43="Marine",VLOOKUP(D43,Marine!$B$3:$E$151,4,FALSE),IF(B43="Rail Passenger",VLOOKUP(D43,'Rail - Passenger'!$B$2:$F$97,5,FALSE),IF(B43="Rail Freight",VLOOKUP(D43,'Rail - Freight'!$B$2:$H$205,7,FALSE)))))) -> Aleutian Islands
A44: AK | B44: Airport Freight | C44: AK_Airport Freight | D44: Chignik Fisheries | E44: =PROPER(IF(OR(B44="Airport Freight",B44="Airport Passenger"),VLOOKUP(D44,Air!$B$3:$E$995,4,FALSE),IF(B44="Marine",VLOOKUP(D44,Marine!$B$3:$E$151,4,FALSE),IF(B44="Rail Passenger",VLOOKUP(D44,'Rail - Passenger'!$B$2:$F$97,5,FALSE),IF(B44="Rail Freight",VLOOKUP(D44,'Rail - Freight'!$B$2:$H$205,7,FALSE)))))) -> Aleutian Islands
A45: AK | B45: Airport Freight | C45: AK_Airport Freight | D45: Chignik Lagoon | E45: =PROPER(IF(OR(B45="Airport Freight",B45="Airport Passenger"),VLOOKUP(D45,Air!$B$3:$E$995,4,FALSE),IF(B45="Marine",VLOOKUP(D45,Marine!$B$3:$E$151,4,FALSE),IF(B45="Rail Passenger",VLOOKUP(D45,'Rail - Passenger'!$B$2:$F$97,5,FALSE),IF(B45="Rail Freight",VLOOKUP(D45,'Rail - Freight'!$B$2:$H$205,7,FALSE)))))) -> Aleutian Islands
A46: AK | B46: Airport Freight | C46: AK_Airport Freight | D46: Chignik Lake | E46: =PROPER(IF(OR(B46="Airport Freight",B46="Airport Passenger"),VLOOKUP(D46,Air!$B$3:$E$995,4,FALSE),IF(B46="Marine",VLOOKUP(D46,Marine!$B$3:$E$151,4,FALSE),IF(B46="Rail Passenger",VLOOKUP(D46,'Rail - Passenger'!$B$2:$F$97,5,FALSE),IF(B46="Rail Freight",VLOOKUP(D46,'Rail - Freight'!$B$2:$H$205,7,FALSE)))))) -> Aleutian Islands
A47: AK | B47: Airport Freight | C47: AK_Airport Freight | D47: Chisana- Alaska | E47: =PROPER(IF(OR(B47="Airport Freight",B47="Airport Passenger"),VLOOKUP(D47,Air!$B$3:$E$995,4,FALSE),IF(B47="Marine",VLOOKUP(D47,Marine!$B$3:$E$151,4,FALSE),IF(B47="Rail Passenger",VLOOKUP(D47,'Rail - Passenger'!$B$2:$F$97,5,FALSE),IF(B47="Rail Freight",VLOOKUP(D47,'Rail - Freight'!$B$2:$H$205,7,FALSE)))))) -> Fairbanks North Star
A48: AK | B48: Airport Freight | C48: AK_Airport Freight | D48: Circle- Alaska | E48: =PROPER(IF(OR(B48="Airport Freight",B48="Airport Passenger"),VLOOKUP(D48,Air!$B$3:$E$995,4,FALSE),IF(B48="Marine",VLOOKUP(D48,Marine!$B$3:$E$151,4,FALSE),IF(B48="Rail Passenger",VLOOKUP(D48,'Rail - Passenger'!$B$2:$F$97,5,FALSE),IF(B48="Rail Freight",VLOOKUP(D48,'Rail - Freight'!$B$2:$H$205,7,FALSE)))))) -> Upper Yukon
A49: AK | B49: Airport Freight | C49: AK_Airport Freight | D49: Circle Hot Springs- Alaska | E49: =PROPER(IF(OR(B49="Airport Freight",B49="Airport Passenger"),VLOOKUP(D49,Air!$B$3:$E$995,4,FALSE),IF(B49="Marine",VLOOKUP(D49,Marine!$B$3:$E$151,4,FALSE),IF(B49="Rail Passenger",VLOOKUP(D49,'Rail - Passenger'!$B$2:$F$97,5,FALSE),IF(B49="Rail Freight",VLOOKUP(D49,'Rail - Freight'!$B$2:$H$205,7,FALSE)))))) -> Upper Yukon
A50: AK | B50: Airport Freight | C50: AK_Airport Freight | D50: Clarks Point- Alaska | E50: =PROPER(IF(OR(B50="Airport Freight",B50="Airport Passenger"),VLOOKUP(D50,Air!$B$3:$E$995,4,FALSE),IF(B50="Marine",VLOOKUP(D50,Marine!$B$3:$E$151,4,FALSE),IF(B50="Rail Passenger",VLOOKUP(D50,'Rail - Passenger'!$B$2:$F$97,5,FALSE),IF(B50="Rail Freight",VLOOKUP(D50,'Rail - Freight'!$B$2:$H$205,7,FALSE)))))) -> Bristol Bay
A51: AK | B51: Airport Freight | C51: AK_Airport Freight | D51: Coffman Cove- AK | E51: =PROPER(IF(OR(B51="Airport Freight",B51="Airport Passenger"),VLOOKUP(D51,Air!$B$3:$E$995,4,FALSE),IF(B51="Marine",VLOOKUP(D51,Marine!$B$3:$E$151,4,FALSE),IF(B51="Rail Passenger",VLOOKUP(D51,'Rail - Passenger'!$B$2:$F$97,5,FALSE),IF(B51="Rail Freight",VLOOKUP(D51,'Rail - Freight'!$B$2:$H$205,7,FALSE)))))) -> Prince Of Wales
A52: AK | B52: Airport Freight | C52: AK_Airport Freight | D52: Cold Bay Airport- Alaska | E52: =PROPER(IF(OR(B52="Airport Freight",B52="Airport Passenger"),VLOOKUP(D52,Air!$B$3:$E$995,4,FALSE),IF(B52="Marine",VLOOKUP(D52,Marine!$B$3:$E$151,4,FALSE),IF(B52="Rail Passenger",VLOOKUP(D52,'Rail - Passenger'!$B$2:$F$97,5,FALSE),IF(B52="Rail Freight",VLOOKUP(D52,'Rail - Freight'!$B$2:$H$205,7,FALSE)))))) -> Aleutian Islands
A53: AK | B53: Airport Freight | C53: AK_Airport Freight | D53: Coldfoot- Alaska | E53: =PROPER(IF(OR(B53="Airport Freight",B53="Airport Passenger"),VLOOKUP(D53,Air!$B$3:$E$995,4,FALSE),IF(B53="Marine",VLOOKUP(D53,Marine!$B$3:$E$151,4,FALSE),IF(B53="Rail Passenger",VLOOKUP(D53,'Rail - Passenger'!$B$2:$F$97,5,FALSE),IF(B53="Rail Freight",VLOOKUP(D53,'Rail - Freight'!$B$2:$H$205,7,FALSE)))))) -> Upper Yukon
A54: AK | B54: Airport Freight | C54: AK_Airport Freight | D54: Colorado Creek- Alaska | E54: =PROPER(IF(OR(B54="Airport Freight",B54="Airport Passenger"),VLOOKUP(D54,Air!$B$3:$E$995,4,FALSE),IF(B54="Marine",VLOOKUP(D54,Marine!$B$3:$E$151,4,FALSE),IF(B54="Rail Passenger",VLOOKUP(D54,'Rail - Passenger'!$B$2:$F$97,5,FALSE),IF(B54="Rail Freight",VLOOKUP(D54,'Rail - Freight'!$B$2:$H$205,7,FALSE)))))) -> Kuskokwim
A55: AK | B55: Airport Freight | C55: AK_Airport Freight | D55: Craig SPB- Alaska | E55: =PROPER(IF(OR(B55="Airport Freight",B55="Airport Passenger"),VLOOKUP(D55,Air!$B$3:$E$995,4,FALSE),IF(B55="Marine",VLOOKUP(D55,Marine!$B$3:$E$151,4,FALSE),IF(B55="Rail Passenger",VLOOKUP(D55,'Rail - Passenger'!$B$2:$F$97,5,FALSE),IF(B55="Rail Freight",VLOOKUP(D55,'Rail - Freight'!$B$2:$H$205,7,FALSE)))))) -> Prince Of Wales
A56: AK | B56: Airport Freight | C56: AK_Airport Freight | D56: Crooked Creek- Alaska | E56: =PROPER(IF(OR(B56="Airport Freight",B56="Airport Passenger"),VLOOKUP(D56,Air!$B$3:$E$995,4,FALSE),IF(B56="Marine",VLOOKUP(D56,Marine!$B$3:$E$151,4,FALSE),IF(B56="Rail Passenger",VLOOKUP(D56,'Rail - Passenger'!$B$2:$F$97,5,FALSE),IF(B56="Rail Freight",VLOOKUP(D56,'Rail - Freight'!$B$2:$H$205,7,FALSE)))))) -> Kuskokwim
A57: AK | B57: Airport Freight | C57: AK_Airport Freight | D57: Dahl Creek- Alaska | E57: =PROPER(IF(OR(B57="Airport Freight",B57="Airport Passenger"),VLOOKUP(D57,Air!$B$3:$E$995,4,FALSE),IF(B57="Marine",VLOOKUP(D57,Marine!$B$3:$E$151,4,FALSE),IF(B57="Rail Passenger",VLOOKUP(D57,'Rail - Passenger'!$B$2:$F$97,5,FALSE),IF(B57="Rail Freight",VLOOKUP(D57,'Rail - Freight'!$B$2:$H$205,7,FALSE)))))) -> Kobuk
A58: AK | B58: Airport Freight | C58: AK_Airport Freight | D58: Deadhorse/Prudhoe Bay | E58: =PROPER(IF(OR(B58="Airport Freight",B58="Airport Passenger"),VLOOKUP(D58,Air!$B$3:$E$995,4,FALSE),IF(B58="Marine",VLOOKUP(D58,Marine!$B$3:$E$151,4,FALSE),IF(B58="Rail Passenger",VLOOKUP(D58,'Rail - Passenger'!$B$2:$F$97,5,FALSE),IF(B58="Rail Freight",VLOOKUP(D58,'Rail - Freight'!$B$2:$H$205,7,FALSE)))))) -> North Slope
A59: AK | B59: Airport Freight | C59: AK_Airport Freight | D59: Deering- Alaska | E59: =PROPER(IF(OR(B59="Airport Freight",B59="Airport Passenger"),VLOOKUP(D59,Air!$B$3:$E$995,4,FALSE),IF(B59="Marine",VLOOKUP(D59,Marine!$B$3:$E$151,4,FALSE),IF(B59="Rail Passenger",VLOOKUP(D59,'Rail - Passenger'!$B$2:$F$97,5,FALSE),IF(B59="Rail Freight",VLOOKUP(D59,'Rail - Freight'!$B$2:$H$205,7,FALSE)))))) -> Kobuk
A60: AK | B60: Airport Freight | C60: AK_Airport Freight | D60: Denali National Park- AK | E60: =PROPER(IF(OR(B60="Airport Freight",B60="Airport Passenger"),VLOOKUP(D60,Air!$B$3:$E$995,4,FALSE),IF(B60="Marine",VLOOKUP(D60,Marine!$B$3:$E$151,4,FALSE),IF(B60="Rail Passenger",VLOOKUP(D60,'Rail - Passenger'!$B$2:$F$97,5,FALSE),IF(B60="Rail Freight",VLOOKUP(D60,'Rail - Freight'!$B$2:$H$205,7,FALSE)))))) -> Matanuska-Susitna
A61: AK | B61: Airport Freight | C61: AK_Airport Freight | D61: Dillingham- Alaska | E61: =PROPER(IF(OR(B61="Airport Freight",B61="Airport Passenger"),VLOOKUP(D61,Air!$B$3:$E$995,4,FALSE),IF(B61="Marine",VLOOKUP(D61,Marine!$B$3:$E$151,4,FALSE),IF(B61="Rail Passenger",VLOOKUP(D61,'Rail - Passenger'!$B$2:$F$97,5,FALSE),IF(B61="Rail Freight",VLOOKUP(D61,'Rail - Freight'!$B$2:$H$205,7,FALSE)))))) -> Bristol Bay
A62: AK | B62: Airport Freight | C62: AK_Airport Freight | D62: Dutch Harbor- Alaska | E62: =PROPER(IF(OR(B62="Airport Freight",B62="Airport Passenger"),VLOOKUP(D62,Air!$B$3:$E$995,4,FALSE),IF(B62="Marine",VLOOKUP(D62,Marine!$B$3:$E$151,4,FALSE),IF(B62="Rail Passenger",VLOOKUP(D62,'Rail - Passenger'!$B$2:$F$97,5,FALSE),IF(B62="Rail Freight",VLOOKUP(D62,'Rail - Freight'!$B$2:$H$205,7,FALSE)))))) -> Aleutian Islands
A63: AK | B63: Airport Freight | C63: AK_Airport Freight | D63: Eagle- Alaska | E63: =PROPER(IF(OR(B63="Airport Freight",B63="Airport Passenger"),VLOOKUP(D63,Air!$B$3:$E$995,4,FALSE),IF(B63="Marine",VLOOKUP(D63,Marine!$B$3:$E$151,4,FALSE),IF(B63="Rail Passenger",VLOOKUP(D63,'Rail - Passenger'!$B$2:$F$97,5,FALSE),IF(B63="Rail Freight",VLOOKUP(D63,'Rail - Freight'!$B$2:$H$205,7,FALSE)))))) -> Upper Yukon
A64: AK | B64: Airport Freight | C64: AK_Airport Freight | D64: Eek- Alaska | E64: =PROPER(IF(OR(B64="Airport Freight",B64="Airport Passenger"),VLOOKUP(D64,Air!$B$3:$E$995,4,FALSE),IF(B64="Marine",VLOOKUP(D64,Marine!$B$3:$E$151,4,FALSE),IF(B64="Rail Passenger",VLOOKUP(D64,'Rail - Passenger'!$B$2:$F$97,5,FALSE),IF(B64="Rail Freight",VLOOKUP(D64,'Rail - Freight'!$B$2:$H$205,7,FALSE)))))) -> Bethel
A65: AK | B65: Airport Freight | C65: AK_Airport Freight | D65: Egegik- Alaska | E65: =PROPER(IF(OR(B65="Airport Freight",B65="Airport Passenger"),VLOOKUP(D65,Air!$B$3:$E$995,4,FALSE),IF(B65="Marine",VLOOKUP(D65,Marine!$B$3:$E$151,4,FALSE),IF(B65="Rail Passenger",VLOOKUP(D65,'Rail - Passenger'!$B$2:$F$97,5,FALSE),IF(B65="Rail Freight",VLOOKUP(D65,'Rail - Freight'!$B$2:$H$205,7,FALSE)))))) -> Bristol Bay
A66: AK | B66: Airport Freight | C66: =CONCATENATE(A66,"_",B66) -> AK_Airport Freight | D66: Eielson AFB | E66: =PROPER(IF(OR(B66="Airport Freight",B66="Airport Passenger"),VLOOKUP(D66,Air!$B$3:$E$995,4,FALSE),IF(B66="Marine",VLOOKUP(D66,Marine!$B$3:$E$151,4,FALSE),IF(B66="Rail Passenger",VLOOKUP(D66,'Rail - Passenger'!$B$2:$F$97,5,FALSE),IF(B66="Rail Freight",VLOOKUP(D66,'Rail - Freight'!$B$2:$H$205,7,FALSE)))))) -> Fairbanks North Star
A67: AK | B67: Airport Freight | C67: AK_Airport Freight | D67: Ekwok- Alaska | E67: =PROPER(IF(OR(B67="Airport Freight",B67="Airport Passenger"),VLOOKUP(D67,Air!$B$3:$E$995,4,FALSE),IF(B67="Marine",VLOOKUP(D67,Marine!$B$3:$E$151,4,FALSE),IF(B67="Rail Passenger",VLOOKUP(D67,'Rail - Passenger'!$B$2:$F$97,5,FALSE),IF(B67="Rail Freight",VLOOKUP(D67,'Rail - Freight'!$B$2:$H$205,7,FALSE)))))) -> Bristol Bay
A68: AK | B68: Airport Freight | C68: AK_Airport Freight | D68: Elfin Cove- Alaska | E68: =PROPER(IF(OR(B68="Airport Freight",B68="Airport Passenger"),VLOOKUP(D68,Air!$B$3:$E$995,4,FALSE),IF(B68="Marine",VLOOKUP(D68,Marine!$B$3:$E$151,4,FALSE),IF(B68="Rail Passenger",VLOOKUP(D68,'Rail - Passenger'!$B$2:$F$97,5,FALSE),IF(B68="Rail Freight",VLOOKUP(D68,'Rail - Freight'!$B$2:$H$205,7,FALSE)))))) -> Skagway-Yakutat
A69: AK | B69: Airport Freight | C69: AK_Airport Freight | D69: Elim- Alaska | E69: =PROPER(IF(OR(B69="Airport Freight",B69="Airport Passenger"),VLOOKUP(D69,Air!$B$3:$E$995,4,FALSE),IF(B69="Marine",VLOOKUP(D69,Marine!$B$3:$E$151,4,FALSE),IF(B69="Rail Passenger",VLOOKUP(D69,'Rail - Passenger'!$B$2:$F$97,5,FALSE),IF(B69="Rail Freight",VLOOKUP(D69,'Rail - Freight'!$B$2:$H$205,7,FALSE)))))) -> Nome
A70: AK | B70: Airport Freight | C70: AK_Airport Freight | D70: Elmendorf AFB | E70: =PROPER(IF(OR(B70="Airport Freight",B70="Airport Passenger"),VLOOKUP(D70,Air!$B$3:$E$995,4,FALSE),IF(B70="Marine",VLOOKUP(D70,Marine!$B$3:$E$151,4,FALSE),IF(B70="Rail Passenger",VLOOKUP(D70,'Rail - Passenger'!$B$2:$F$97,5,FALSE),IF(B70="Rail Freight",VLOOKUP(D70,'Rail - Freight'!$B$2:$H$205,7,FALSE)))))) -> Anchorage
A71: AK | B71: Airport Freight | C71: AK_Airport Freight | D71: English Bay- Alaska | E71: =PROPER(IF(OR(B71="Airport Freight",B71="Airport Passenger"),VLOOKUP(D71,Air!$B$3:$E$995,4,FALSE),IF(B71="Marine",VLOOKUP(D71,Marine!$B$3:$E$151,4,FALSE),IF(B71="Rail Passenger",VLOOKUP(D71,'Rail - Passenger'!$B$2:$F$97,5,FALSE),IF(B71="Rail Freight",VLOOKUP(D71,'Rail - Freight'!$B$2:$H$205,7,FALSE)))))) -> Kenai-Cook Inlet
A72: AK | B72: Airport Freight | C72: AK_Airport Freight | D72: Excursion Inlet SPB- AK | E72: =PROPER(IF(OR(B72="Airport Freight",B72="Airport Passenger"),VLOOKUP(D72,Air!$B$3:$E$995,4,FALSE),IF(B72="Marine",VLOOKUP(D72,Marine!$B$3:$E$151,4,FALSE),IF(B72="Rail Passenger",VLOOKUP(D72,'Rail - Passenger'!$B$2:$F$97,5,FALSE),IF(B72="Rail Freight",VLOOKUP(D72,'Rail - Freight'!$B$2:$H$205,7,FALSE)))))) -> Skagway-Yakutat
A73: AK | B73: Airport Freight | C73: AK_Airport Freight | D73: Fairbanks Intl Airport | E73: =PROPER(IF(OR(B73="Airport Freight",B73="Airport Passenger"),VLOOKUP(D73,Air!$B$3:$E$995,4,FALSE),IF(B73="Marine",VLOOKUP(D73,Marine!$B$3:$E$151,4,FALSE),IF(B73="Rail Passenger",VLOOKUP(D73,'Rail - Passenger'!$B$2:$F$97,5,FALSE),IF(B73="Rail Freight",VLOOKUP(D73,'Rail - Freight'!$B$2:$H$205,7,FALSE)))))) -> Fairbanks North Star
A74: AK | B74: Airport Freight | C74: AK_Airport Freight | D74: False Pass- Alaska | E74: =PROPER(IF(OR(B74="Airport Freight",B74="Airport Passenger"),VLOOKUP(D74,Air!$B$3:$E$995,4,FALSE),IF(B74="Marine",VLOOKUP(D74,Marine!$B$3:$E$151,4,FALSE),IF(B74="Rail Passenger",VLOOKUP(D74,'Rail - Passenger'!$B$2:$F$97,5,FALSE),IF(B74="Rail Freight",VLOOKUP(D74,'Rail - Freight'!$B$2:$H$205,7,FALSE)))))) -> Aleutian Islands
A75: AK | B75: Airport Freight | C75: AK_Airport Freight | D75: Farewell- Alaska | E75: =PROPER(IF(OR(B75="Airport Freight",B75="Airport Passenger"),VLOOKUP(D75,Air!$B$3:$E$995,4,FALSE),IF(B75="Marine",VLOOKUP(D75,Marine!$B$3:$E$151,4,FALSE),IF(B75="Rail Passenger",VLOOKUP(D75,'Rail - Passenger'!$B$2:$F$97,5,FALSE),IF(B75="Rail Freight",VLOOKUP(D75,'Rail - Freight'!$B$2:$H$205,7,FALSE)))))) -> Kuskokwim
A76: AK | B76: Airport Freight | C76: AK_Airport Freight | D76: Flat- Alaska | E76: =PROPER(IF(OR(B76="Airport Freight",B76="Airport Passenger"),VLOOKUP(D76,Air!$B$3:$E$995,4,FALSE),IF(B76="Marine",VLOOKUP(D76,Marine!$B$3:$E$151,4,FALSE),IF(B76="Rail Passenger",VLOOKUP(D76,'Rail - Passenger'!$B$2:$F$97,5,FALSE),IF(B76="Rail Freight",VLOOKUP(D76,'Rail - Freight'!$B$2:$H$205,7,FALSE)))))) -> Kuskokwim
A77: AK | B77: Airport Freight | C77: AK_Airport Freight | D77: Fort Yukon- Alaska | E77: =PROPER(IF(OR(B77="Airport Freight",B77="Airport Passenger"),VLOOKUP(D77,Air!$B$3:$E$995,4,FALSE),IF(B77="Marine",VLOOKUP(D77,Marine!$B$3:$E$151,4,FALSE),IF(B77="Rail Passenger",VLOOKUP(D77,'Rail - Passenger'!$B$2:$F$97,5,FALSE),IF(B77="Rail Freight",VLOOKUP(D77,'Rail - Freight'!$B$2:$H$205,7,FALSE)))))) -> Upper Yukon
A78: AK | B78: Airport Freight | C78: AK_Airport Freight | D78: Ft Wainwright AAF | E78: =PROPER(IF(OR(B78="Airport Freight",B78="Airport Passenger"),VLOOKUP(D78,Air!$B$3:$E$995,4,FALSE),IF(B78="Marine",VLOOKUP(D78,Marine!$B$3:$E$151,4,FALSE),IF(B78="Rail Passenger",VLOOKUP(D78,'Rail - Passenger'!$B$2:$F$97,5,FALSE),IF(B78="Rail Freight",VLOOKUP(D78,'Rail - Freight'!$B$2:$H$205,7,FALSE)))))) -> Fairbanks North Star
A79: AK | B79: Airport Freight | C79: AK_Airport Freight | D79: Funter Bay- Alaska | E79: =PROPER(IF(OR(B79="Airport Freight",B79="Airport Passenger"),VLOOKUP(D79,Air!$B$3:$E$995,4,FALSE),IF(B79="Marine",VLOOKUP(D79,Marine!$B$3:$E$151,4,FALSE),IF(B79="Rail Passenger",VLOOKUP(D79,'Rail - Passenger'!$B$2:$F$97,5,FALSE),IF(B79="Rail Freight",VLOOKUP(D79,'Rail - Freight'!$B$2:$H$205,7,FALSE)))))) -> Angoon
A80: AK | B80: Airport Freight | C80: AK_Airport Freight | D80: Galbraith Lake- Alaska | E80: =PROPER(IF(OR(B80="Airport Freight",B80="Airport Passenger"),VLOOKUP(D80,Air!$B$3:$E$995,4,FALSE),IF(B80="Marine",VLOOKUP(D80,Marine!$B$3:$E$151,4,FALSE),IF(B80="Rail Passenger",VLOOKUP(D80,'Rail - Passenger'!$B$2:$F$97,5,FALSE),IF(B80="Rail Freight",VLOOKUP(D80,'Rail - Freight'!$B$2:$H$205,7,FALSE)))))) -> Nome
A81: AK | B81: Airport Freight | C81: AK_Airport Freight | D81: Galena- Alaska | E81: =PROPER(IF(OR(B81="Airport Freight",B81="Airport Passenger"),VLOOKUP(D81,Air!$B$3:$E$995,4,FALSE),IF(B81="Marine",VLOOKUP(D81,Marine!$B$3:$E$151,4,FALSE),IF(B81="Rail Passenger",VLOOKUP(D81,'Rail - Passenger'!$B$2:$F$97,5,FALSE),IF(B81="Rail Freight",VLOOKUP(D81,'Rail - Freight'!$B$2:$H$205,7,FALSE)))))) -> Yukon-Koyukuk
A82: AK | B82: Airport Freight | C82: AK_Airport Freight | D82: Gambell- Alaska | E82: =PROPER(IF(OR(B82="Airport Freight",B82="Airport Passenger"),VLOOKUP(D82,Air!$B$3:$E$995,4,FALSE),IF(B82="Marine",VLOOKUP(D82,Marine!$B$3:$E$151,4,FALSE),IF(B82="Rail Passenger",VLOOKUP(D82,'Rail - Passenger'!$B$2:$F$97,5,FALSE),IF(B82="Rail Freight",VLOOKUP(D82,'Rail - Freight'!$B$2:$H$205,7,FALSE)))))) -> Nome
A83: AK | B83: Airport Freight | C83: AK_Airport Freight | D83: Golovin- Alaska | E83: =PROPER(IF(OR(B83="Airport Freight",B83="Airport Passenger"),VLOOKUP(D83,Air!$B$3:$E$995,4,FALSE),IF(B83="Marine",VLOOKUP(D83,Marine!$B$3:$E$151,4,FALSE),IF(B83="Rail Passenger",VLOOKUP(D83,'Rail - Passenger'!$B$2:$F$97,5,FALSE),IF(B83="Rail Freight",VLOOKUP(D83,'Rail - Freight'!$B$2:$H$205,7,FALSE)))))) -> Nome
A84: AK | B84: Airport Freight | C84: AK_Airport Freight | D84: Goodnews Bay- Alaska | E84: =PROPER(IF(OR(B84="Airport Freight",B84="Airport Passenger"),VLOOKUP(D84,Air!$B$3:$E$995,4,FALSE),IF(B84="Marine",VLOOKUP(D84,Marine!$B$3:$E$151,4,FALSE),IF(B84="Rail Passenger",VLOOKUP(D84,'Rail - Passenger'!$B$2:$F$97,5,FALSE),IF(B84="Rail Freight",VLOOKUP(D84,'Rail - Freight'!$B$2:$H$205,7,FALSE)))))) -> Bethel
A85: AK | B85: Airport Freight | C85: AK_Airport Freight | D85: Granite Mountain- Alaska | E85: =PROPER(IF(OR(B85="Airport Freight",B85="Airport Passenger"),VLOOKUP(D85,Air!$B$3:$E$995,4,FALSE),IF(B85="Marine",VLOOKUP(D85,Marine!$B$3:$E$151,4,FALSE),IF(B85="Rail Passenger",VLOOKUP(D85,'Rail - Passenger'!$B$2:$F$97,5,FALSE),IF(B85="Rail Freight",VLOOKUP(D85,'Rail - Freight'!$B$2:$H$205,7,FALSE)))))) -> Nome
A86: AK | B86: Airport Freight | C86: AK_Airport Freight | D86: Grayling- Alaska | E86: =PROPER(IF(OR(B86="Airport Freight",B86="Airport Passenger"),VLOOKUP(D86,Air!$B$3:$E$995,4,FALSE),IF(B86="Marine",VLOOKUP(D86,Marine!$B$3:$E$151,4,FALSE),IF(B86="Rail Passenger",VLOOKUP(D86,'Rail - Passenger'!$B$2:$F$97,5,FALSE),IF(B86="Rail Freight",VLOOKUP(D86,'Rail - Freight'!$B$2:$H$205,7,FALSE)))))) -> Kuskokwim
A87: AK | B87: Airport Freight | C87: AK_Airport Freight | D87: Gulkana- Alaska | E87: =PROPER(IF(OR(B87="Airport Freight",B87="Airport Passenger"),VLOOKUP(D87,Air!$B$3:$E$995,4,FALSE),IF(B87="Marine",VLOOKUP(D87,Marine!$B$3:$E$151,4,FALSE),IF(B87="Rail Passenger",VLOOKUP(D87,'Rail - Passenger'!$B$2:$F$97,5,FALSE),IF(B87="Rail Freight",VLOOKUP(D87,'Rail - Freight'!$B$2:$H$205,7,FALSE)))))) -> Valdez-Chitna-Whitie
A88: AK | B88: Airport Freight | C88: AK_Airport Freight | D88: Gustavus- Alaska | E88: =PROPER(IF(OR(B88="Airport Freight",B88="Airport Passenger"),VLOOKUP(D88,Air!$B$3:$E$995,4,FALSE),IF(B88="Marine",VLOOKUP(D88,Marine!$B$3:$E$151,4,FALSE),IF(B88="Rail Passenger",VLOOKUP(D88,'Rail - Passenger'!$B$2:$F$97,5,FALSE),IF(B88="Rail Freight",VLOOKUP(D88,'Rail - Freight'!$B$2:$H$205,7,FALSE)))))) -> Skagway-Yakutat
A89: AK | B89: Airport Freight | C89: AK_Airport Freight | D89: Haines- Alaska | E89: =PROPER(IF(OR(B89="Airport Freight",B89="Airport Passenger"),VLOOKUP(D89,Air!$B$3:$E$995,4,FALSE),IF(B89="Marine",VLOOKUP(D89,Marine!$B$3:$E$151,4,FALSE),IF(B89="Rail Passenger",VLOOKUP(D89,'Rail - Passenger'!$B$2:$F$97,5,FALSE),IF(B89="Rail Freight",VLOOKUP(D89,'Rail - Freight'!$B$2:$H$205,7,FALSE)))))) -> Haines
